Workbook

Sheet onedist
B1: Massachusetts Department of Elementary and Secondary Education
B2: Office of District and School Finance
B4: School Choice Trends in Enrollment and Tuition
B6: Select a district | H6: =VLOOKUP(B6,alpha,2,FALSE) -> 
D8: Receiving | F8: Sending
B9: FY | D9: FTE Pupils | E9: Tuition | F9: FTE Pupils | G9: Tuition
A10: 3 | B10: 1996 | D10: =IF(ISNA(VLOOKUP($H$6,recfte,$A10,FALSE)),0,VLOOKUP($H$6,recfte,$A10,FALSE)) -> 0 | E10: =IF(ISNA(VLOOKUP($H$6,rectuit,$A10,FALSE)),0,VLOOKUP($H$6,rectuit,$A10,FALSE)) -> 0 | F10: =IF(ISNA(VLOOKUP($H$6,sendfte,$A10,FALSE)),0,VLOOKUP($H$6,sendfte,$A10,FALSE)) -> 0 | G10: =IF(ISNA(VLOOKUP($H$6,sendtuit,$A10,FALSE)),0,VLOOKUP($H$6,sendtuit,$A10,FALSE)) -> 0
A11: =A10+1 -> 4 | B11: 1997 | D11: 0 | E11: 0 | F11: 0 | G11: 0
A12: =A11+1 -> 5 | B12: 1998 | D12: 0 | E12: 0 | F12: 0 | G12: 0
A13: 6 | B13: 1999 | D13: 0 | E13: 0 | F13: 0 | G13: 0
A14: 7 | B14: 2000 | D14: 0 | E14: 0 | F14: 0 | G14: 0
A15: 8 | B15: 2001 | D15: 0 | E15: 0 | F15: 0 | G15: 0
A16: 9 | B16: 2002 | D16: 0 | E16: 0 | F16: 0 | G16: 0
A17: 10 | B17: 2003 | D17: 0 | E17: 0 | F17: 0 | G17: 0
A18: 11 | B18: 2004 | D18: 0 | E18: 0 | F18: 0 | G18: 0
A19: 12 | B19: 2005 | D19: 0 | E19: 0 | F19: 0 | G19: 0
A20: 13 | B20: 2006 | D20: 0 | E20: 0 | F20: 0 | G20: 0
A21: 14 | B21: 2007 | D21: 0 | E21: 0 | F21: 0 | G21: 0
A22: 15 | B22: 2008 | D22: 0 | E22: 0 | F22: 0 | G22: 0
A23: 16 | B23: 2009 | D23: 0 | E23: 0 | F23: 0 | G23: 0
A24: 17 | B24: 2010 | D24: 0 | E24: 0 | F24: 0 | G24: 0
A25: 18 | B25: 2011 | D25: 0 | E25: 0 | F25: 0 | G25: 0
A26: 19 | B26: 2012 | D26: 0 | E26: 0 | F26: 0 | G26: 0
A27: 20 | B27: 2013 | D27: 0 | E27: 0 | F27: 0 | G27: 0
A28: 21 | B28: 2014 | D28: 0 | E28: 0 | F28: 0 | G28: 0
A29: 22 | B29: 2015 | D29: 0 | E29: 0 | F29: 0 | G29: 0
A30: 23 | B30: 2016 | D30: 0 | E30: 0 | F30: 0 | G30: 0
A31: 24 | B31: 2017 | D31: 0 | E31: 0 | F31: 0 | G31: 0
A32: 25 | B32: 2018 | D32: 0 | E32: 0 | F32: 0 | G32: 0
A33: 26 | B33: 2019 | D33: 0 | E33: 0 | F33: 0 | G33: 0
A34: 27 | B34: 2020 | D34: 0 | E34: 0 | F34: 0 | G34: 0
A35: 28 | B35: 2021 | D35: 0 | E35: 0 | F35: 0 | G35: 0
A36: 29 | B36: 2022 | D36: 0 | E36: 0 | F36: 0 | G36: 0
A37: 30 | B37: 2023 | D37: 0 | E37: 0 | F37: 0 | G37: 0
A38: 31 | B38: 2024 | D38: 0 | E38: 0 | F38: 0 | G38: 0

Sheet chopct
B1: Massachusetts Department of Elementary and Secondary Education
B2: Office of District and School Finance
B4: School Choice and Other In-District Enrollment
B7: State Totals | F7: =VLOOKUP(B7,alpha,2,FALSE) -> 9999
B9: FY | C9: Receiving Choice FTEs | D9: Total Enrollment | E9: Resident/ Other Enrollment | F9: % Choice
A10: 3 | B10: 1996 | C10: =IF(ISNA(VLOOKUP($F$7,recfte,$A10,FALSE)),0,VLOOKUP($F$7,recfte,$A10,FALSE)) -> 5996.828856 | D10: =IF(ISNA(VLOOKUP($F$7,isrtrends,$A10,FALSE)),0,VLOOKUP($F$7,isrtrends,$A10,FALSE)) -> 916927 | E10: =D10-C10 -> 910930.1711 | F10: =IF(D10>0,C10/D10," ") -> 0.006540137716
A11: =A10+1 -> 4 | B11: 1997 | C11: 6457.52 | D11: 935623 | E11: =D11-C11 -> 929165.48 | F11: =IF(D11>0,C11/D11," ") -> 0.006901839737
A12: =A11+1 -> 5 | B12: 1998 | C12: 6826.78 | D12: 950405 | E12: 943578.22 | F12: 0.007183021975
A13: 6 | B13: 1999 | C13: 7183.49 | D13: 963761 | E13: 956577.51 | F13: 0.007453601048
A14: 7 | B14: 2000 | C14: 7317.19 | D14: 972260 | E14: 964942.81 | F14: 0.007525960134
A15: 8 | B15: 2001 | C15: 7273.79 | D15: 979593 | E15: 972319.21 | F15: 0.007425318474
A16: 9 | B16: 2002 | C16: 7540.26 | D16: 974015 | E16: 966474.74 | F16: 0.00774142082
A17: 10 | B17: 2003 | C17: 8073.51 | D17: 983313 | E17: 975239.49 | F17: 0.008210518929
A18: 11 | B18: 2004 | C18: 8822.425 | D18: 980818 | E18: 971995.575 | F18: 0.008994966446
A19: 12 | B19: 2005 | C19: 9268.77 | D19: 975911 | E19: 966642.23 | F19: 0.009497556642
A20: 13 | B20: 2006 | C20: 9731.525 | D20: 972371 | E20: 962639.475 | F20: 0.01000803706
A21: 14 | B21: 2007 | C21: 10337.74 | D21: 968661 | E21: 958323.26 | F21: 0.01067219595
A22: 15 | B22: 2008 | C22: 10786.495 | D22: 962806 | E22: 952019.505 | F22: 0.01120318631
A23: 16 | B23: 2009 | C23: 11300.225 | D23: 958910 | E23: 947609.775 | F23: 0.01178444797
A24: 17 | B24: 2010 | C24: 11800.8 | D24: 957053 | E24: 945252.2 | F24: 0.01233035161
A25: 18 | B25: 2011 | C25: 12190.62 | D25: 955563 | E25: 943372.38 | F25: 0.01275752619
A26: 19 | B26: 2012 | C26: 12886.19 | D26: 953369 | E26: 940482.81 | F26: 0.01351647683
A27: 20 | B27: 2013 | C27: 13354.62 | D27: 954773 | E27: 941418.38 | F27: 0.01398722
A28: 21 | B28: 2014 | C28: 13920.74 | D28: 955739 | E28: 941818.26 | F28: 0.01456542006
A29: 22 | B29: 2015 | C29: 14855.58 | D29: 955844 | E29: 940988.42 | F29: 0.01554184574
A30: 23 | B30: 2016 | C30: 15635.54 | D30: 953429 | E30: 937793.46 | F30: 0.01639927042
A31: 24 | B31: 2017 | C31: 16353.24 | D31: 953748 | E31: =D31-C31 -> 937394.76 | F31: 0.01714629022
A32: 25 | B32: 2018 | C32: 16686.9 | D32: 954034 | E32: =D32-C32 -> 937347.1 | F32: 0.01749088607
A33: 26 | B33: 2019 | C33: 17326.78 | D33: =IF(ISNA(VLOOKUP($F$7,isrtrends,$A33,FALSE)),0,VLOOKUP($F$7,isrtrends,$A33,FALSE)) -> 951631 | E33: =D33-C33 -> 934304.22 | F33: 0.01820745646
A34: 27 | B34: 2020 | C34: 17374.48 | D34: 948828 | E34: =D34-C34 -> 931453.52 | F34: 0.01831151695
A35: 28 | B35: 2021 | C35: 17469.15 | D35: 911,465 | E35: 893995.85 | F35: 0.01916601296
A36: 29 | B36: 2022 | C36: 17414.16 | D36: 911529 | E36: =D36-C36 -> 894114.84 | F36: =IF(D36>0,C36/D36," ") -> 0.01910434007
A37: 30 | B37: 2023 | C37: 17687.9 | D37: 913735 | E37: =D37-C37 -> 896047.1 | F37: 0.01935780068
A38: 31 | B38: 2024 | C38: 17693.74 | D38: 914959 | E38: 897265.26 | F38: 0.01933828729

Sheet isrtrends (hidden)
A9: LEA | B9: District | C9: FY96 | D9: FY97 | E9: FY98 | F9: FY99 | G9: FY00 | H9: FY01 | I9: FY02 | J9: FY03 | K9: FY04 | L9: FY05 | M9: FY06 | N9: FY07 | O9: FY08 | P9: FY09 | Q9: FY10 | R9: FY11 | S9: FY12 | T9: FY13 | U9: FY14 | V9: FY15 | W9: FY16 | X9: FY17 | Y9: FY18 | Z9: FY19 | AA9: FY20 | AB9: FY21 | AC9: FY22 | AD9: FY23 | AE9: FY24
A10: 0001 | B10: Abington | C10: 2279 | D10: 2336 | E10: 2284 | F10: 2277 | G10: 2265 | H10: 2323 | I10: 2300 | J10: 2348 | K10: 2457 | L10: 2388 | M10: 2358 | N10: 2332 | O10: 2316 | P10: 2293 | Q10: 2189 | R10: 2016 | S10: 2026 | T10: 2031 | U10: 1954 | V10: 1956 | W10: 1934 | X10: 1916 | Y10: 2034 | Z10: 2056 | AA10: 2143 | AB10: 2,117 | AC10: 2,154 | AD10: 2138 | AE10: 2133
A11: 0002 | B11: Acton | C11: 2159 | D11: 2261 | E11: 2287 | F11: 2372 | G11: 2386 | H11: 2436 | I11: 2487 | J11: 2547 | K11: 2522 | L11: 2568 | M11: 2546 | N11: 2564 | O11: 2584 | P11: 2556 | Q11: 2614 | R11: 2566 | S11: 2514 | T11: 2512 | U11: 2473 | V11: 0 | W11: 0 | X11: 0 | Y11: 0 | Z11: 0 | AA11: 0 | AB11: 0 | AC11: 0 | AD11: 0 | AE11: 0
A12: 0003 | B12: Acushnet | C12: 1052 | D12: 1032 | E12: 1069 | F12: 1097 | G12: 1109 | H12: 1095 | I12: 1106 | J12: 1081 | K12: 1109 | L12: 1117 | M12: 1087 | N12: 1085 | O12: 1072 | P12: 1029 | Q12: 996 | R12: 1007 | S12: 1005 | T12: 976 | U12: 992 | V12: 973 | W12: 970 | X12: 955 | Y12: 963 | Z12: 1004 | AA12: 1010 | AB12: 910 | AC12: 935 | AD12: 963 | AE12: 937
A13: 0004 | B13: Adams | V13: 0 | W13: 0 | X13: 0 | Y13: 0 | Z13: 0 | AA13: 0 | AB13: 0 | AC13: 0 | AD13: 0 | AE13: 0
A14: 0005 | B14: Agawam | C14: 4258 | D14: 4292 | E14: 4334 | F14: 4266 | G14: 4229 | H14: 4367 | I14: 4321 | J14: 4380 | K14: 4335 | L14: 4336 | M14: 4364 | N14: 4374 | O14: 4355 | P14: 4347 | Q14: 4273 | R14: 4230 | S14: 4204 | T14: 4113 | U14: 4107 | V14: 4091 | W14: 3939 | X14: 3918 | Y14: 3864 | Z14: 3747 | AA14: 3670 | AB14: 3,508 | AC14: 3,464 | AD14: 3457 | AE14: 3504
A15: 0006 | B15: Alford | V15: 0 | W15: 0 | X15: 0 | Y15: 0 | Z15: 0 | AA15: 0 | AB15: 0 | AC15: 0 | AD15: 0 | AE15: 0
A16: 0007 | B16: Amesbury | C16: 2785 | D16: 2799 | E16: 2800 | F16: 2868 | G16: 2832 | H16: 2789 | I16: 2826 | J16: 2775 | K16: 2726 | L16: 2613 | M16: 2503 | N16: 2433 | O16: 2426 | P16: 2409 | Q16: 2424 | R16: 2385 | S16: 2315 | T16: 2337 | U16: 2348 | V16: 2280 | W16: 2267 | X16: 2150 | Y16: 2147 | Z16: 2058 | AA16: 2012 | AB16: 1,852 | AC16: 1,797 | AD16: 1779 | AE16: 1817
A17: 0008 | B17: Amherst | C17: 1765 | D17: 1732 | E17: 1696 | F17: 1655 | G17: 1601 | H17: 1594 | I17: 1543 | J17: 1524 | K17: 1462 | L17: 1483 | M17: 1470 | N17: 1448 | O17: 1399 | P17: 1382 | Q17: 1321 | R17: 1242 | S17: 1214 | T17: 1206 | U17: 1210 | V17: 1200 | W17: 1182 | X17: 1148 | Y17: 1146 | Z17: 1131 | AA17: 1093 | AB17: 1,029 | AC17: 1,053 | AD17: 1050 | AE17: 983
A18: 0009 | B18: Andover | C18: 5461 | D18: 5501 | E18: 5619 | F18: 5734 | G18: 5808 | H18: 5905 | I18: 5847 | J18: 5915 | K18: 5939 | L18: 5959 | M18: 6017 | N18: 5998 | O18: 6089 | P18: 6123 | Q18: 6163 | R18: 6178 | S18: 6199 | T18: 6225 | U18: 6110 | V18: 6076 | W18: 6075 | X18: 6009 | Y18: 5924 | Z18: 5957 | AA18: 5856 | AB18: 5,574 | AC18: 5,456 | AD18: 5526 | AE18: 5448
A19: 0010 | B19: Arlington | C19: 4059 | D19: 4116 | E19: 4197 | F19: 4222 | G19: 4178 | H19: 4215 | I19: 4265 | J19: 4481 | K19: 4425 | L19: 4486 | M19: 4522 | N19: 4548 | O19: 4532 | P19: 4654 | Q19: 4713 | R19: 4808 | S19: 4858 | T19: 4903 | U19: 5020 | V19: 5208 | W19: 5304 | X19: 5524 | Y19: 5711 | Z19: 5939 | AA19: 6047 | AB19: 5,755 | AC19: 5,866 | AD19: 5987 | AE19: 5997
A20: 0011 | B20: Ashburnham | V20: 0 | W20: 0 | X20: 0 | Y20: 0 | Z20: 0 | AA20: 0 | AB20: 0 | AC20: 0 | AD20: 0 | AE20: 0
A21: 0012 | B21: Ashby | V21: 0 | W21: 0 | X21: 0 | Y21: 0 | Z21: 0 | AA21: 0 | AB21: 0 | AC21: 0 | AD21: 0 | AE21: 0
A22: 0013 | B22: Ashfield | V22: 0 | W22: 0 | X22: 0 | Y22: 0 | Z22: 0 | AA22: 0 | AB22: 0 | AC22: 0 | AD22: 0 | AE22: 0
A23: 0014 | B23: Ashland | C23: 1926 | D23: 1969 | E23: 2120 | F23: 2190 | G23: 2296 | H23: 2372 | I23: 2531 | J23: 2553 | K23: 2590 | L23: 2629 | M23: 2654 | N23: 2653 | O23: 2671 | P23: 2630 | Q23: 2640 | R23: 2624 | S23: 2583 | T23: 2573 | U23: 2581 | V23: 2595 | W23: 2711 | X23: 2701 | Y23: 2756 | Z23: 2845 | AA23: 2849 | AB23: 2,729 | AC23: 2,870 | AD23: 2891 | AE23: 2903
A24: 0015 | B24: Athol | V24: 0 | W24: 0 | X24: 0 | Y24: 0 | Z24: 0 | AA24: 0 | AB24: 0 | AC24: 0 | AD24: 0 | AE24: 0
A25: 0016 | B25: Attleboro | C25: 6431 | D25: 6561 | E25: 6760 | F25: 6802 | G25: 6922 | H25: 6886 | I25: 6821 | J25: 6728 | K25: 6531 | L25: 6308 | M25: 6196 | N25: 6039 | O25: 5989 | P25: 5937 | Q25: 5933 | R25: 5855 | S25: 5933 | T25: 5902 | U25: 5862 | V25: 5927 | W25: 5918 | X25: 5909 | Y25: 5948 | Z25: 5946 | AA25: 5982 | AB25: 5,752 | AC25: 5,866 | AD25: 5926 | AE25: 6057
A26: 0017 | B26: Auburn | C26: 2333 | D26: 2348 | E26: 2410 | F26: 2442 | G26: 2471 | H26: 2507 | I26: 2398 | J26: 2422 | K26: 2372 | L26: 2339 | M26: 2310 | N26: 2323 | O26: 2384 | P26: 2362 | Q26: 2399 | R26: 2363 | S26: 2357 | T26: 2339 | U26: 2348 | V26: 2369 | W26: 2454 | X26: 2523 | Y26: 2610 | Z26: 2628 | AA26: 2636 | AB26: 2,518 | AC26: 2,573 | AD26: 2558 | AE26: 2499
A27: 0018 | B27: Avon | C27: 802 | D27: 817 | E27: 793 | F27: 802 | G27: 785 | H27: 757 | I27: 741 | J27: 730 | K27: 702 | L27: 723 | M27: 757 | N27: 761 | O27: 752 | P27: 749 | Q27: 748 | R27: 772 | S27: 756 | T27: 746 | U27: 740 | V27: 741 | W27: 732 | X27: 714 | Y27: 726 | Z27: 728 | AA27: 725 | AB27: 683 | AC27: 715 | AD27: 730 | AE27: 732
A28: 0019 | B28: Ayer | C28: 1115 | D28: 1083 | E28: 1130 | F28: 1207 | G28: 1269 | H28: 1318 | I28: 1411 | J28: 1390 | K28: 1390 | L28: 1368 | M28: 1325 | N28: 1270 | O28: 1234 | P28: 1202 | Q28: 1197 | R28: 915 | S28: 0 | T28: 0 | U28: 0 | V28: 0 | W28: 0 | X28: 0 | Y28: 0 | Z28: 0 | AA28: 0 | AB28: 0 | AC28: 0 | AD28: 0 | AE28: 0
A29: 0020 | B29: Barnstable | C29: 7063 | D29: 7003 | E29: 7069 | F29: 7029 | G29: 6474 | H29: 6310 | I29: 6136 | J29: 6229 | K29: 5586 | L29: 5101 | M29: 4728 | N29: 4543 | O29: 4457 | P29: 4354 | Q29: 4293 | R29: 4153 | S29: 4144 | T29: 4941 | U29: 4900 | V29: 4933 | W29: 4914 | X29: 4948 | Y29: 4870 | Z29: 4791 | AA29: 5041 | AB29: 4,713 | AC29: 4,751 | AD29: 4838 | AE29: 4817
A30: 0021 | B30: Barre | V30: 0 | W30: 0 | X30: 0 | Y30: 0 | Z30: 0 | AA30: 0 | AB30: 0 | AC30: 0 | AD30: 0 | AE30: 0
A31: 0022 | B31: Becket | V31: 0 | W31: 0 | X31: 0 | Y31: 0 | Z31: 0 | AA31: 0 | AB31: 0 | AC31: 0 | AD31: 0 | AE31: 0
A32: 0023 | B32: Bedford | C32: 1871 | D32: 1940 | E32: 2028 | F32: 2093 | G32: 2086 | H32: 2177 | I32: 2186 | J32: 2219 | K32: 2246 | L32: 2279 | M32: 2282 | N32: 2285 | O32: 2342 | P32: 2420 | Q32: 2429 | R32: 2383 | S32: 2443 | T32: 2514 | U32: 2539 | V32: 2522 | W32: 2536 | X32: 2608 | Y32: 2647 | Z32: 2658 | AA32: 2689 | AB32: 2,615 | AC32: 2,602 | AD32: 2539 | AE32: 2559
A33: 0024 | B33: Belchertown | C33: 2237 | D33: 2288 | E33: 2237 | F33: 2325 | G33: 2338 | H33: 2347 | I33: 2385 | J33: 2440 | K33: 2513 | L33: 2538 | M33: 2602 | N33: 2684 | O33: 2681 | P33: 2655 | Q33: 2610 | R33: 2607 | S33: 2518 | T33: 2492 | U33: 2416 | V33: 2364 | W33: 2353 | X33: 2354 | Y33: 2323 | Z33: 2267 | AA33: 2240 | AB33: 2,149 | AC33: 2,131 | AD33: 2125 | AE33: 2081
A34: 0025 | B34: Bellingham | C34: 2588 | D34: 2684 | E34: 2735 | F34: 2750 | G34: 2754 | H34: 2833 | I34: 2736 | J34: 2834 | K34: 2729 | L34: 2693 | M34: 2599 | N34: 2606 | O34: 2668 | P34: 2671 | Q34: 2635 | R34: 2567 | S34: 2470 | T34: 2457 | U34: 2404 | V34: 2381 | W34: 2273 | X34: 2257 | Y34: 2283 | Z34: 2223 | AA34: 2138 | AB34: 1,984 | AC34: 1,980 | AD34: 2007 | AE34: 1990
A35: 0026 | B35: Belmont | C35: 3397 | D35: 3463 | E35: 3490 | F35: 3506 | G35: 3608 | H35: 3563 | I35: 3574 | J35: 3601 | K35: 3713 | L35: 3711 | M35: 3694 | N35: 3727 | O35: 3759 | P35: 3863 | Q35: 3974 | R35: 3928 | S35: 3961 | T35: 4065 | U35: 4205 | V35: 4283 | W35: 4362 | X35: 4466 | Y35: 4592 | Z35: 4628 | AA35: 4700 | AB35: 4,420 | AC35: 4,356 | AD35: 4378 | AE35: 4424
A36: 0027 | B36: Berkley | C36: 812 | D36: 829 | E36: 870 | F36: 903 | G36: 939 | H36: 909 | I36: 974 | J36: 997 | K36: 1022 | L36: 1036 | M36: 1009 | N36: 990 | O36: 964 | P36: 951 | Q36: 921 | R36: 898 | S36: 876 | T36: 868 | U36: 873 | V36: 855 | W36: 903 | X36: 929 | Y36: 920 | Z36: 888 | AA36: 915 | AB36: 864 | AC36: 870 | AD36: 852 | AE36: 836
A37: 0028 | B37: Berlin | C37: 209 | D37: 243 | E37: 240 | F37: 238 | G37: 246 | H37: 233 | I37: 242 | J37: 262 | K37: 246 | L37: 257 | M37: 249 | N37: 226 | O37: 216 | P37: 239 | Q37: 212 | R37: 201 | S37: 213 | T37: 223 | U37: 204 | V37: 186 | W37: 185 | X37: 190 | Y37: 183 | Z37: 183 | AA37: 0 | AB37: 0 | AC37: 0 | AD37: 0 | AE37: 0
A38: 0029 | B38: Bernardston | V38: 0 | W38: 0 | X38: 0 | Y38: 0 | Z38: 0 | AA38: 0 | AB38: 0 | AC38: 0 | AD38: 0 | AE38: 0
A39: 0030 | B39: Beverly | C39: 4811 | D39: 4870 | E39: 4792 | F39: 4798 | G39: 4736 | H39: 4680 | I39: 4585 | J39: 4648 | K39: 4557 | L39: 4514 | M39: 4459 | N39: 4409 | O39: 4397 | P39: 4219 | Q39: 4269 | R39: 4251 | S39: 4292 | T39: 4335 | U39: 4404 | V39: 4500 | W39: 4523 | X39: 4525 | Y39: 4500 | Z39: 4565 | AA39: 4700 | AB39: 4,633 | AC39: 4,636 | AD39: 4575 | AE39: 4502
A40: 0031 | B40: Billerica | C40: 6039 | D40: 6070 | E40: 6227 | F40: 6261 | G40: 6272 | H40: 6396 | I40: 6412 | J40: 6363 | K40: 6395 | L40: 6384 | M40: 6406 | N40: 6282 | O40: 6242 | P40: 6100 | Q40: 5940 | R40: 5792 | S40: 5720 | T40: 5513 | U40: 5361 | V40: 5144 | W40: 4981 | X40: 4882 | Y40: 4779 | Z40: 4764 | AA40: 4797 | AB40: 4,569 | AC40: 4,734 | AD40: 4822 | AE40: 4901
A41: 0032 | B41: Blackstone | V41: 0 | W41: 0 | X41: 0 | Y41: 0 | Z41: 0 | AA41: 0 | AB41: 0 | AC41: 0 | AD41: 0 | AE41: 0
A42: 0033 | B42: Blandford | V42: 0 | W42: 0 | X42: 0 | Y42: 0 | Z42: 0 | AA42: 0 | AB42: 0 | AC42: 0 | AD42: 0 | AE42: 0
A43: 0034 | B43: Bolton | V43: 0 | W43: 0 | X43: 0 | Y43: 0 | Z43: 0 | AA43: 0 | AB43: 0 | AC43: 0 | AD43: 0 | AE43: 0
A44: 0035 | B44: Boston | C44: 63293 | D44: 63239 | E44: 63762 | F44: 63043 | G44: 62950 | H44: 63024 | I44: 62414 | J44: 61552 | K44: 60150 | L44: 57742 | M44: 57349 | N44: 56388 | O44: 56168 | P44: 55923 | Q44: 55371 | R44: 56037 | S44: 55027 | T44: 55114 | U44: 54300 | V44: 54312 | W44: 53530 | X44: 53263 | Y44: 52665 | Z44: 51433 | AA44: 50480 | AB44: 48,112 | AC44: 46,169 | AD44: 46001 | AE44: 45742
A45: 0036 | B45: Bourne | C45: 2431 | D45: 2433 | E45: 2484 | F45: 2480 | G45: 2476 | H45: 2548 | I45: 2564 | J45: 2612 | K45: 2532 | L45: 2549 | M45: 2602 | N45: 2542 | O45: 2537 | P45: 2443 | Q45: 2372 | R45: 2302 | S45: 2175 | T45: 2105 | U45: 2046 | V45: 2013 | W45: 1926 | X45: 1935 | Y45: 1951 | Z45: 1935 | AA45: 1907 | AB45: 1,650 | AC45: 1,557 | AD45: 1554 | AE45: 1563
A46: 0037 | B46: Boxborough | C46: 494 | D46: 541 | E46: 579 | F46: 639 | G46: 644 | H46: 625 | I46: 630 | J46: 608 | K46: 611 | L46: 589 | M46: 560 | N46: 543 | O46: 548 | P46: 526 | Q46: 495 | R46: 484 | S46: 475 | T46: 437 | U46: 428 | V46: 0 | W46: 0 | X46: 0 | Y46: 0 | Z46: 0 | AA46: 0 | AB46: 0 | AC46: 0 | AD46: 0 | AE46: 0
A47: 0038 | B47: Boxford | C47: 923 | D47: 975 | E47: 1046 | F47: 1075 | G47: 1060 | H47: 1089 | I47: 1002 | J47: 999 | K47: 1038 | L47: 1008 | M47: 988 | N47: 974 | O47: 980 | P47: 939 | Q47: 917 | R47: 867 | S47: 823 | T47: 778 | U47: 747 | V47: 747 | W47: 736 | X47: 755 | Y47: 719 | Z47: 718 | AA47: 747 | AB47: 679 | AC47: 739 | AD47: 732 | AE47: 757
A48: 0039 | B48: Boylston | C48: 333 | D48: 332 | E48: 341 | F48: 352 | G48: 368 | H48: 382 | I48: 362 | J48: 376 | K48: 377 | L48: 374 | M48: 383 | N48: 377 | O48: 369 | P48: 380 | Q48: 377 | R48: 358 | S48: 386 | T48: 379 | U48: 315 | V48: 297 | W48: 303 | X48: 293 | Y48: 299 | Z48: 298 | AA48: 0 | AB48: 0 | AC48: 0 | AD48: 0 | AE48: 0
A49: 0040 | B49: Braintree | C49: 4736 | D49: 4885 | E49: 4851 | F49: 4904 | G49: 4855 | H49: 4888 | I49: 4906 | J49: 4941 | K49: 5003 | L49: 5106 | M49: 5195 | N49: 5165 | O49: 5246 | P49: 5352 | Q49: 5377 | R49: 5467 | S49: 5478 | T49: 5549 | U49: 5647 | V49: 5686 | W49: 5757 | X49: 5809 | Y49: 5828 | Z49: 5842 | AA49: 5795 | AB49: 5,456 | AC49: 5,369 | AD49: 5305 | AE49: 5237
A50: 0041 | B50: Brewster | C50: 740 | D50: 742 | E50: 754 | F50: 773 | G50: 770 | H50: 690 | I50: 639 | J50: 591 | K50: 537 | L50: 521 | M50: 478 | N50: 480 | O50: 523 | P50: 507 | Q50: 503 | R50: 491 | S50: 496 | T50: 469 | U50: 477 | V50: 481 | W50: 490 | X50: 492 | Y50: 476 | Z50: 478 | AA50: 470 | AB50: 420 | AC50: 438 | AD50: 431 | AE50: 434
A51: 0042 | B51: Bridgewater | V51: 0 | W51: 0 | X51: 0 | Y51: 0 | Z51: 0 | AA51: 0 | AB51: 0 | AC51: 0 | AD51: 0 | AE51: 0
A52: 0043 | B52: Brimfield | C52: 348 | D52: 349 | E52: 346 | F52: 359 | G52: 350 | H52: 352 | I52: 308 | J52: 371 | K52: 365 | L52: 353 | M52: 366 | N52: 369 | O52: 350 | P52: 348 | Q52: 344 | R52: 349 | S52: 328 | T52: 328 | U52: 307 | V52: 291 | W52: 288 | X52: 285 | Y52: 286 | Z52: 293 | AA52: 299 | AB52: 269 | AC52: 269 | AD52: 287 | AE52: 284
A53: 0044 | B53: Brockton | C53: 15035 | D53: 15461 | E53: 16015 | F53: 16660 | G53: 16869 | H53: 16791 | I53: 16753 | J53: 16700 | K53: 16471 | L53: 16091 | M53: 15896 | N53: 15612 | O53: 15338 | P53: 15312 | Q53: 15502 | R53: 15828 | S53: 16162 | T53: 16595 | U53: 17011 | V53: 17186 | W53: 17102 | X53: 16970 | Y53: 16651 | Z53: 16349 | AA53: 16024 | AB53: 15,384 | AC53: 15,265 | AD53: 14906 | AE53: 14954
A54: 0045 | B54: Brookfield | C54: 368 | D54: 353 | E54: 346 | F54: 351 | G54: 343 | H54: 338 | I54: 307 | J54: 296 | K54: 304 | L54: 321 | M54: 296 | N54: 277 | O54: 270 | P54: 296 | Q54: 304 | R54: 319 | S54: 328 | T54: 319 | U54: 316 | V54: 333 | W54: 327 | X54: 318 | Y54: 311 | Z54: 316 | AA54: 307 | AB54: 266 | AC54: 279 | AD54: 291 | AE54: 302
A55: 0046 | B55: Brookline | C55: 6039 | D55: 6068 | E55: 6073 | F55: 5977 | G55: 5989 | H55: 6028 | I55: 5960 | J55: 6044 | K55: 6022 | L55: 5984 | M55: 6014 | N55: 6142 | O55: 6168 | P55: 6321 | Q55: 6472 | R55: 6627 | S55: 6875 | T55: 7112 | U55: 7288 | V55: 7508 | W55: 7668 | X55: 7695 | Y55: 7801 | Z55: 7855 | AA55: 7777 | AB55: 6,891 | AC55: 6,928 | AD55: 7060 | AE55: 7039
A56: 0047 | B56: Buckland | V56: 0 | W56: 0 | X56: 0 | Y56: 0 | Z56: 0 | AA56: 0 | AB56: 0 | AC56: 0 | AD56: 0 | AE56: 0
A57: 0048 | B57: Burlington | C57: 3413 | D57: 3488 | E57: 3539 | F57: 3548 | G57: 3478 | H57: 3529 | I57: 3593 | J57: 3511 | K57: 3486 | L57: 3522 | M57: 3551 | N57: 3528 | O57: 3686 | P57: 3650 | Q57: 3711 | R57: 3652 | S57: 3626 | T57: 3606 | U57: 3579 | V57: 3499 | W57: 3508 | X57: 3521 | Y57: 3520 | Z57: 3533 | AA57: 3509 | AB57: 3,388 | AC57: 3,440 | AD57: 3412 | AE57: 3525
A58: 0049 | B58: Cambridge | C58: 8005 | D58: 7965 | E58: 7679 | F58: 7446 | G58: 7294 | H58: 7110 | I58: 7046 | J58: 6775 | K58: 6437 | L58: 6183 | M58: 5803 | N58: 5599 | O58: 5682 | P58: 5770 | Q58: 5950 | R58: 6019 | S58: 6052 | T58: 6222 | U58: 6361 | V58: 6539 | W58: 6607 | X58: 6794 | Y58: 6914 | Z58: 7052 | AA58: 7091 | AB58: 6,678 | AC58: 6,612 | AD58: 6627 | AE58: 6915
A59: 0050 | B59: Canton | C59: 2733 | D59: 2795 | E59: 2822 | F59: 2836 | G59: 2867 | H59: 2879 | I59: 2791 | J59: 2957 | K59: 3006 | L59: 2990 | M59: 3073 | N59: 3093 | O59: 3049 | P59: 3097 | Q59: 3125 | R59: 3218 | S59: 3250 | T59: 3262 | U59: 3247 | V59: 3326 | W59: 3308 | X59: 3325 | Y59: 3310 | Z59: 3272 | AA59: 3297 | AB59: 3,164 | AC59: 3,228 | AD59: 3219 | AE59: 3277
A60: 0051 | B60: Carlisle | C60: 664 | D60: 691 | E60: 715 | F60: 747 | G60: 787 | H60: 807 | I60: 846 | J60: 835 | K60: 819 | L60: 826 | M60: 808 | N60: 785 | O60: 766 | P60: 720 | Q60: 698 | R60: 672 | S60: 653 | T60: 638 | U60: 640 | V60: 641 | W60: 607 | X60: 590 | Y60: 606 | Z60: 600 | AA60: 597 | AB60: 579 | AC60: 615 | AD60: 601 | AE60: 608
A61: 0052 | B61: Carver | C61: 2183 | D61: 2193 | E61: 2225 | F61: 2180 | G61: 2218 | H61: 2227 | I61: 2209 | J61: 2132 | K61: 2097 | L61: 2061 | M61: 2043 | N61: 1995 | O61: 1970 | P61: 1908 | Q61: 1847 | R61: 1785 | S61: 1760 | T61: 1737 | U61: 1708 | V61: 1641 | W61: 1635 | X61: 1626 | Y61: 1576 | Z61: 1555 | AA61: 1577 | AB61: 1,476 | AC61: 1,508 | AD61: 1525 | AE61: 1488
A62: 0053 | B62: Charlemont | V62: 0 | W62: 0 | X62: 0 | Y62: 0 | Z62: 0 | AA62: 0 | AB62: 0 | AC62: 0 | AD62: 0 | AE62: 0
A63: 0054 | B63: Charlton | V63: 0 | W63: 0 | X63: 0 | Y63: 0 | Z63: 0 | AA63: 0 | AB63: 0 | AC63: 0 | AD63: 0 | AE63: 0
A64: 0055 | B64: Chatham | C64: 666 | D64: 657 | E64: 641 | F64: 694 | G64: 707 | H64: 726 | I64: 722 | J64: 739 | K64: 731 | L64: 716 | M64: 700 | N64: 702 | O64: 710 | P64: 687 | Q64: 674 | R64: 691 | S64: 635 | T64: 0 | U64: 0 | V64: 0 | W64: 0 | X64: 0 | Y64: 0 | Z64: 0 | AA64: 0 | AB64: 0 | AC64: 0 | AD64: 0 | AE64: 0
A65: 0056 | B65: Chelmsford | C65: 5378 | D65: 5374 | E65: 5404 | F65: 5516 | G65: 5617 | H65: 5697 | I65: 5662 | J65: 5728 | K65: 5773 | L65: 5732 | M65: 5693 | N65: 5618 | O65: 5563 | P65: 5548 | Q65: 5418 | R65: 5307 | S65: 5211 | T65: 5138 | U65: 5124 | V65: 5056 | W65: 4987 | X65: 4974 | Y65: 4994 | Z65: 4961 | AA65: 5021 | AB65: 4,826 | AC65: 4,943 | AD65: 5055 | AE65: 5130
A66: 0057 | B66: Chelsea | C66: 4763 | D66: 5298 | E66: 5533 | F66: 5765 | G66: 5658 | H66: 5741 | I66: 5749 | J66: 5777 | K66: 5678 | L66: 5533 | M66: 5495 | N66: 5566 | O66: 5492 | P66: 5602 | Q66: 5638 | R66: 5570 | S66: 5692 | T66: 5891 | U66: 6118 | V66: 6350 | W66: 6319 | X66: 6338 | Y66: 6326 | Z66: 6088 | AA66: 6255 | AB66: 5,936 | AC66: 6,074 | AD66: 6153 | AE66: 6148
A67: 0058 | B67: Cheshire | V67: 0 | W67: 0 | X67: 0 | Y67: 0 | Z67: 0 | AA67: 0 | AB67: 0 | AC67: 0 | AD67: 0 | AE67: 0
A68: 0059 | B68: Chester | V68: 0 | W68: 0 | X68: 0 | Y68: 0 | Z68: 0 | AA68: 0 | AB68: 0 | AC68: 0 | AD68: 0 | AE68: 0
A69: 0060 | B69: Chesterfield | V69: 0 | W69: 0 | X69: 0 | Y69: 0 | Z69: 0 | AA69: 0 | AB69: 0 | AC69: 0 | AD69: 0 | AE69: 0
A70: 0061 | B70: Chicopee | C70: 7556 | D70: 7632 | E70: 7859 | F70: 7691 | G70: 7916 | H70: 7849 | I70: 7609 | J70: 7702 | K70: 7528 | L70: 7599 | M70: 7527 | N70: 7691 | O70: 7754 | P70: 7774 | Q70: 7845 | R70: 7875 | S70: 7844 | T70: 7775 | U70: 7779 | V70: 7841 | W70: 7710 | X70: 7683 | Y70: 7544 | Z70: 7392 | AA70: 7268 | AB70: 6,850 | AC70: 6,796 | AD70: 6710 | AE70: 6807
A71: 0062 | B71: Chilmark | V71: 0 | W71: 0 | X71: 0 | Y71: 0 | Z71: 0 | AA71: 0 | AB71: 0 | AC71: 0 | AD71: 0 | AE71: 0
A72: 0063 | B72: Clarksburg | C72: 200 | D72: 200 | E72: 210 | F72: 214 | G72: 220 | H72: 217 | I72: 211 | J72: 211 | K72: 202 | L72: 199 | M72: 196 | N72: 199 | O72: 207 | P72: 198 | Q72: 175 | R72: 187 | S72: 180 | T72: 171 | U72: 178 | V72: 168 | W72: 163 | X72: 173 | Y72: 193 | Z72: 185 | AA72: 197 | AB72: 190 | AC72: 211 | AD72: 189 | AE72: 208
A73: 0064 | B73: Clinton | C73: 1843 | D73: 1868 | E73: 1879 | F73: 1959 | G73: 1961 | H73: 2024 | I73: 1873 | J73: 1984 | K73: 2020 | L73: 1991 | M73: 2046 | N73: 2042 | O73: 2029 | P73: 2025 | Q73: 1996 | R73: 1955 | S73: 1921 | T73: 1896 | U73: 1905 | V73: 1866 | W73: 1865 | X73: 1872 | Y73: 1883 | Z73: 1858 | AA73: 1900 | AB73: 1,827 | AC73: 1,905 | AD73: 1972 | AE73: 1989
A74: 0065 | B74: Cohasset | C74: 1199 | D74: 1213 | E74: 1240 | F74: 1257 | G74: 1294 | H74: 1337 | I74: 1367 | J74: 1392 | K74: 1444 | L74: 1500 | M74: 1515 | N74: 1489 | O74: 1421 | P74: 1466 | Q74: 1496 | R74: 1535 | S74: 1530 | T74: 1584 | U74: 1632 | V74: 1606 | W74: 1637 | X74: 1586 | Y74: 1582 | Z74: 1557 | AA74: 1500 | AB74: 1,448 | AC74: 1,422 | AD74: 1406 | AE74: 1406
A75: 0066 | B75: Colrain | V75: 0 | W75: 0 | X75: 0 | Y75: 0 | Z75: 0 | AA75: 0 | AB75: 0 | AC75: 0 | AD75: 0 | AE75: 0
A76: 0067 | B76: Concord | C76: 1873 | D76: 1941 | E76: 2011 | F76: 2063 | G76: 2063 | H76: 2060 | I76: 2006 | J76: 1988 | K76: 1974 | L76: 1975 | M76: 1930 | N76: 1858 | O76: 1831 | P76: 1875 | Q76: 1894 | R76: 1947 | S76: 1991 | T76: 2140 | U76: 2178 | V76: 2114 | W76: 2098 | X76: 2108 | Y76: 2113 | Z76: 2099 | AA76: 2065 | AB76: 2,001 | AC76: 1,998 | AD76: 1946 | AE76: 1971
A77: 0068 | B77: Conway | C77: 227 | D77: 213 | E77: 203 | F77: 194 | G77: 164 | H77: 156 | I77: 155 | J77: 149 | K77: 152 | L77: 152 | M77: 158 | N77: 166 | O77: 177 | P77: 169 | Q77: 175 | R77: 177 | S77: 181 | T77: 178 | U77: 172 | V77: 167 | W77: 154 | X77: 141 | Y77: 138 | Z77: 135 | AA77: 133 | AB77: 125 | AC77: 145 | AD77: 123 | AE77: 144
A78: 0069 | B78: Cummington | V78: 0 | W78: 0 | X78: 0 | Y78: 0 | Z78: 0 | AA78: 0 | AB78: 0 | AC78: 0 | AD78: 0 | AE78: 0
A79: 0070 | B79: Dalton | V79: 0 | W79: 0 | X79: 0 | Y79: 0 | Z79: 0 | AA79: 0 | AB79: 0 | AC79: 0 | AD79: 0 | AE79: 0
A80: 0071 | B80: Danvers | C80: 3535 | D80: 3581 | E80: 3640 | F80: 3680 | G80: 3747 | H80: 3733 | I80: 3721 | J80: 3696 | K80: 3657 | L80: 3630 | M80: 3592 | N80: 3618 | O80: 3573 | P80: 3581 | Q80: 3617 | R80: 3637 | S80: 3617 | T80: 3593 | U80: 3644 | V80: 3588 | W80: 3608 | X80: 3379 | Y80: 3464 | Z80: 3481 | AA80: 3417 | AB80: 3,309 | AC80: 3,217 | AD80: 3235 | AE80: 3251
A81: 0072 | B81: Dartmouth | C81: 3968 | D81: 4038 | E81: 4004 | F81: 4056 | G81: 4025 | H81: 4097 | I81: 4227 | J81: 4255 | K81: 4271 | L81: 4295 | M81: 4295 | N81: 4306 | O81: 4239 | P81: 4092 | Q81: 4017 | R81: 3964 | S81: 3864 | T81: 3783 | U81: 3694 | V81: 3718 | W81: 3693 | X81: 3655 | Y81: 3674 | Z81: 3618 | AA81: 3580 | AB81: 3,419 | AC81: 3,411 | AD81: 3370 | AE81: 3351
A82: 0073 | B82: Dedham | C82: 2970 | D82: 2971 | E82: 2986 | F82: 2980 | G82: 3041 | H82: 3085 | I82: 3019 | J82: 2983 | K82: 2996 | L82: 2945 | M82: 2897 | N82: 2871 | O82: 2879 | P82: 2857 | Q82: 2910 | R82: 2879 | S82: 2862 | T82: 2826 | U82: 2818 | V82: 2776 | W82: 2747 | X82: 2693 | Y82: 2658 | Z82: 2687 | AA82: 2736 | AB82: 2,556 | AC82: 2,567 | AD82: 2555 | AE82: 2699
A83: 0074 | B83: Deerfield | C83: 449 | D83: 441 | E83: 469 | F83: 454 | G83: 449 | H83: 424 | I83: 444 | J83: 442 | K83: 451 | L83: 447 | M83: 468 | N83: 464 | O83: 487 | P83: 484 | Q83: 490 | R83: 478 | S83: 464 | T83: 444 | U83: 443 | V83: 437 | W83: 413 | X83: 401 | Y83: 401 | Z83: 392 | AA83: 386 | AB83: 311 | AC83: 326 | AD83: 309 | AE83: 313
A84: 0075 | B84: Dennis | V84: 0 | W84: 0 | X84: 0 | Y84: 0 | Z84: 0 | AA84: 0 | AB84: 0 | AC84: 0 | AD84: 0 | AE84: 0
A85: 0076 | B85: Dighton | V85: 0 | W85: 0 | X85: 0 | Y85: 0 | Z85: 0 | AA85: 0 | AB85: 0 | AC85: 0 | AD85: 0 | AE85: 0
A86: 0077 | B86: Douglas | C86: 996 | D86: 989 | E86: 1047 | F86: 1313 | G86: 1397 | H86: 1389 | I86: 1417 | J86: 1483 | K86: 1588 | L86: 1714 | M86: 1746 | N86: 1775 | O86: 1761 | P86: 1759 | Q86: 1771 | R86: 1731 | S86: 1708 | T86: 1657 | U86: 1596 | V86: 1544 | W86: 1471 | X86: 1388 | Y86: 1329 | Z86: 1296 | AA86: 1282 | AB86: 1,151 | AC86: 1,180 | AD86: 1186 | AE86: 1160
A87: 0078 | B87: Dover | C87: 486 | D87: 504 | E87: 543 | F87: 544 | G87: 576 | H87: 577 | I87: 602 | J87: 586 | K87: 618 | L87: 622 | M87: 619 | N87: 593 | O87: 580 | P87: 579 | Q87: 572 | R87: 548 | S87: 512 | T87: 523 | U87: 504 | V87: 469 | W87: 475 | X87: 483 | Y87: 492 | Z87: 499 | AA87: 490 | AB87: 475 | AC87: 489 | AD87: 502 | AE87: 497
A88: 0079 | B88: Dracut | C88: 3960 | D88: 3989 | E88: 4040 | F88: 4145 | G88: 4102 | H88: 4153 | I88: 4133 | J88: 4259 | K88: 4263 | L88: 4194 | M88: 4211 | N88: 4234 | O88: 4206 | P88: 4190 | Q88: 4107 | R88: 4018 | S88: 3953 | T88: 3872 | U88: 3816 | V88: 3688 | W88: 3600 | X88: 3499 | Y88: 3551 | Z88: 3582 | AA88: 3677 | AB88: 3,659 | AC88: 3,628 | AD88: 3581 | AE88: 3543
A89: 0080 | B89: Dudley | V89: 0 | W89: 0 | X89: 0 | Y89: 0 | Z89: 0 | AA89: 0 | AB89: 0 | AC89: 0 | AD89: 0 | AE89: 0
A90: 0081 | B90: Dunstable | V90: 0 | W90: 0 | X90: 0 | Y90: 0 | Z90: 0 | AA90: 0 | AB90: 0 | AC90: 0 | AD90: 0 | AE90: 0
A91: 0082 | B91: Duxbury | C91: 2816 | D91: 2904 | E91: 2960 | F91: 2977 | G91: 3103 | H91: 3148 | I91: 3193 | J91: 3234 | K91: 3294 | L91: 3308 | M91: 3345 | N91: 3372 | O91: 3391 | P91: 3370 | Q91: 3298 | R91: 3247 | S91: 3208 | T91: 3242 | U91: 3245 | V91: 3242 | W91: 3218 | X91: 3121 | Y91: 3097 | Z91: 3015 | AA91: 2972 | AB91: 2,790 | AC91: 2,811 | AD91: 2810 | AE91: 2755
A92: 0083 | B92: East Bridgewater | C92: 2391 | D92: 2416 | E92: 2429 | F92: 2441 | G92: 2495 | H92: 2471 | I92: 2495 | J92: 2468 | K92: 2422 | L92: 2501 | M92: 2522 | N92: 2484 | O92: 2489 | P92: 2425 | Q92: 2375 | R92: 2314 | S92: 2284 | T92: 2246 | U92: 2297 | V92: 2288 | W92: 2297 | X92: 2302 | Y92: 2296 | Z92: 2252 | AA92: 2216 | AB92: 2,082 | AC92: 2,107 | AD92: 2063 | AE92: 2008
A93: 0084 | B93: East Brookfield | V93: 0 | W93: 0 | X93: 0 | Y93: 0 | Z93: 0 | AA93: 0 | AB93: 0 | AC93: 0 | AD93: 0 | AE93: 0
A94: 0085 | B94: Eastham | C94: 343 | D94: 354 | E94: 343 | F94: 355 | G94: 322 | H94: 286 | I94: 273 | J94: 258 | K94: 222 | L94: 204 | M94: 207 | N94: 227 | O94: 232 | P94: 224 | Q94: 225 | R94: 209 | S94: 207 | T94: 205 | U94: 212 | V94: 182 | W94: 177 | X94: 182 | Y94: 172 | Z94: 171 | AA94: 194 | AB94: 194 | AC94: 192 | AD94: 186 | AE94: 176
A95: 0086 | B95: Easthampton | C95: 2024 | D95: 2029 | E95: 1922 | F95: 1861 | G95: 1846 | H95: 1777 | I95: 1645 | J95: 1705 | K95: 1634 | L95: 1628 | M95: 1611 | N95: 1657 | O95: 1702 | P95: 1651 | Q95: 1575 | R95: 1567 | S95: 1592 | T95: 1593 | U95: 1561 | V95: 1538 | W95: 1525 | X95: 1562 | Y95: 1541 | Z95: 1545 | AA95: 1544 | AB95: 1,445 | AC95: 1,417 | AD95: 1413 | AE95: 1397
A96: 0087 | B96: East Longmeadow | C96: 2584 | D96: 2614 | E96: 2654 | F96: 2640 | G96: 2559 | H96: 2606 | I96: 2624 | J96: 2670 | K96: 2748 | L96: 2788 | M96: 2818 | N96: 2859 | O96: 2863 | P96: 2857 | Q96: 2850 | R96: 2846 | S96: 2797 | T96: 2734 | U96: 2699 | V96: 2683 | W96: 2650 | X96: 2630 | Y96: 2652 | Z96: 2624 | AA96: 2588 | AB96: 2,404 | AC96: 2,492 | AD96: 2541 | AE96: 2507
A97: 0088 | B97: Easton | C97: 3460 | D97: 3556 | E97: 3607 | F97: 3697 | G97: 3769 | H97: 3699 | I97: 3765 | J97: 3848 | K97: 3833 | L97: 3853 | M97: 3875 | N97: 3918 | O97: 3914 | P97: 3929 | Q97: 3906 | R97: 3893 | S97: 3880 | T97: 3880 | U97: 3867 | V97: 3795 | W97: 3731 | X97: 3750 | Y97: 3722 | Z97: 3632 | AA97: 3579 | AB97: 3,410 | AC97: 3,418 | AD97: 3410 | AE97: 3401
A98: 0089 | B98: Edgartown | C98: 423 | D98: 447 | E98: 442 | F98: 417 | G98: 393 | H98: 380 | I98: 348 | J98: 358 | K98: 362 | L98: 351 | M98: 350 | N98: 329 | O98: 336 | P98: 332 | Q98: 328 | R98: 326 | S98: 335 | T98: 350 | U98: 356 | V98: 359 | W98: 345 | X98: 348 | Y98: 341 | Z98: 370 | AA98: 391 | AB98: 382 | AC98: 397 | AD98: 404 | AE98: 386
A99: 0090 | B99: Egremont | V99: 0 | W99: 0 | X99: 0 | Y99: 0 | Z99: 0 | AA99: 0 | AB99: 0 | AC99: 0 | AD99: 0 | AE99: 0
A100: 0091 | B100: Erving | C100: 160 | D100: 162 | E100: 164 | F100: 152 | G100: 157 | H100: 159 | I100: 144 | J100: 166 | K100: 168 | L100: 176 | M100: 185 | N100: 183 | O100: 189 | P100: 191 | Q100: 174 | R100: 164 | S100: 157 | T100: 157 | U100: 151 | V100: 140 | W100: 133 | X100: 136 | Y100: 142 | Z100: 128 | AA100: 133 | AB100: 113 | AC100: 133 | AD100: 129 | AE100: 123
A101: 0092 | B101: Essex | C101: 381 | D101: 374 | E101: 387 | F101: 395 | G101: 373 | H101: 0 | I101: 0 | J101: 0 | K101: 0 | L101: 0 | M101: 0 | N101: 0 | O101: 0 | P101: 0 | Q101: 0 | R101: 0 | S101: 0 | T101: 0 | U101: 0 | V101: 0 | W101: 0 | X101: 0 | Y101: 0 | Z101: 0 | AA101: 0 | AB101: 0 | AC101: 0 | AD101: 0 | AE101: 0
A102: 0093 | B102: Everett | C102: 4806 | D102: 4993 | E102: 5137 | F102: 5268 | G102: 5377 | H102: 5489 | I102: 5394 | J102: 5371 | K102: 5321 | L102: 5347 | M102: 5262 | N102: 5438 | O102: 5600 | P102: 5613 | Q102: 5889 | R102: 6142 | S102: 6371 | T102: 6672 | U102: 6906 | V102: 7071 | W102: 7125 | X102: 7078 | Y102: 7068 | Z102: 7107 | AA102: 7057 | AB102: 6,883 | AC102: 6,813 | AD102: 7285 | AE102: 7345
A103: 0094 | B103: Fairhaven | C103: 2247 | D103: 2207 | E103: 2208 | F103: 2212 | G103: 2230 | H103: 2252 | I103: 2324 | J103: 2343 | K103: 2259 | L103: 2291 | M103: 2180 | N103: 2141 | O103: 2066 | P103: 2025 | Q103: 1986 | R103: 1984 | S103: 1963 | T103: 1980 | U103: 1966 | V103: 1999 | W103: 2031 | X103: 2024 | Y103: 2052 | Z103: 2025 | AA103: 2042 | AB103: 1,918 | AC103: 1,846 | AD103: 1826 | AE103: 1759
A104: 0095 | B104: Fall River | C104: 12327 | D104: 12209 | E104: 12175 | F104: 12121 | G104: 12180 | H104: 12104 | I104: 12102 | J104: 12132 | K104: 11697 | L104: 11356 | M104: 10969 | N104: 10459 | O104: 10108 | P104: 9985 | Q104: 9886 | R104: 9873 | S104: 9834 | T104: 10138 | U104: 10319 | V104: 10246 | W104: 10123 | X104: 10163 | Y104: 10128 | Z104: 10120 | AA104: 10229 | AB104: 9,998 | AC104: 10,268 | AD104: 10447 | AE104: 10656
A105: 0096 | B105: Falmouth | C105: 5218 | D105: 5201 | E105: 5007 | F105: 4965 | G105: 4816 | H105: 4823 | I105: 4695 | J105: 4578 | K105: 4444 | L105: 4257 | M105: 4144 | N105: 4027 | O105: 3894 | P105: 3769 | Q105: 3750 | R105: 3710 | S105: 3512 | T105: 3536 | U105: 3541 | V105: 3547 | W105: 3515 | X105: 3466 | Y105: 3379 | Z105: 3351 | AA105: 3251 | AB105: 3,029 | AC105: 3,044 | AD105: 2967 | AE105: 2892
A106: 0097 | B106: Fitchburg | C106: 5244 | D106: 5431 | E106: 5644 | F106: 5901 | G106: 5987 | H106: 6294 | I106: 6217 | J106: 5977 | K106: 5760 | L106: 5600 | M106: 5682 | N106: 5521 | O106: 5331 | P106: 5155 | Q106: 4997 | R106: 4881 | S106: 4981 | T106: 4915 | U106: 5010 | V106: 5041 | W106: 5192 | X106: 5272 | Y106: 5349 | Z106: 5362 | AA106: 5338 | AB106: 5,116 | AC106: 5,187 | AD106: 5167 | AE106: 5124
A107: 0098 | B107: Florida | C107: 129 | D107: 124 | E107: 125 | F107: 115 | G107: 104 | H107: 107 | I107: 112 | J107: 115 | K107: 119 | L107: 111 | M107: 115 | N107: 106 | O107: 105 | P107: 112 | Q107: 115 | R107: 110 | S107: 104 | T107: 99 | U107: 95 | V107: 89 | W107: 87 | X107: 81 | Y107: 80 | Z107: 87 | AA107: 95 | AB107: 80 | AC107: 104 | AD107: 92 | AE107: 85
A108: 0099 | B108: Foxborough | C108: 2784 | D108: 2835 | E108: 2880 | F108: 2878 | G108: 2853 | H108: 2868 | I108: 2835 | J108: 2850 | K108: 2887 | L108: 2943 | M108: 2991 | N108: 2924 | O108: 2933 | P108: 2922 | Q108: 2867 | R108: 2836 | S108: 2777 | T108: 2753 | U108: 2738 | V108: 2712 | W108: 2645 | X108: 2601 | Y108: 2596 | Z108: 2553 | AA108: 2554 | AB108: 2,450 | AC108: 2,459 | AD108: 2454 | AE108: 2485
A109: 0100 | B109: Framingham | C109: 7504 | D109: 7758 | E109: 7851 | F109: 7893 | G109: 8242 | H109: 8518 | I109: 8391 | J109: 8364 | K109: 8102 | L109: 8065 | M109: 8124 | N109: 8085 | O109: 8038 | P109: 8154 | Q109: 8153 | R109: 8182 | S109: 8172 | T109: 8201 | U109: 8280 | V109: 8153 | W109: 8478 | X109: 8609 | Y109: 8739 | Z109: 8822 | AA109: 9088 | AB109: 8,733 | AC109: 8,824 | AD109: 9274 | AE109: 9134
A110: 0101 | B110: Franklin | C110: 4398 | D110: 4645 | E110: 4855 | F110: 5030 | G110: 5182 | H110: 5415 | I110: 5609 | J110: 5711 | K110: 5826 | L110: 5967 | M110: 6136 | N110: 6152 | O110: 6236 | P110: 6255 | Q110: 6120 | R110: 6032 | S110: 5956 | T110: 5868 | U110: 5760 | V110: 5633 | W110: 5510 | X110: 5412 | Y110: 5291 | Z110: 5198 | AA110: 5068 | AB110: 4,830 | AC110: 4,764 | AD110: 4711 | AE110: 4680
A111: 0102 | B111: Freetown | C111: 514 | D111: 519 | E111: 507 | F111: 517 | G111: 485 | H111: 458 | I111: 493 | J111: 516 | K111: 521 | L111: 509 | M111: 542 | N111: 546 | O111: 535 | P111: 511 | Q111: 533 | R111: 553 | S111: 0 | T111: 0 | U111: 0 | V111: 0 | W111: 0 | X111: 0 | Y111: 0 | Z111: 0 | AA111: 0 | AB111: 0 | AC111: 0 | AD111: 0 | AE111: 0
A112: 0103 | B112: Gardner | C112: 2981 | D112: 2962 | E112: 3123 | F112: 3102 | G112: 3119 | H112: 3171 | I112: 3155 | J112: 3231 | K112: 3263 | L112: 3205 | M112: 3067 | N112: 2981 | O112: 2914 | P112: 2727 | Q112: 2600 | R112: 2563 | S112: 2528 | T112: 2526 | U112: 2478 | V112: 2473 | W112: 2419 | X112: 2385 | Y112: 2326 | Z112: 2290 | AA112: 2346 | AB112: 2,211 | AC112: 2,251 | AD112: 2387 | AE112: 2472
A113: 0104 | B113: Aquinnah | V113: 0 | W113: 0 | X113: 0 | Y113: 0 | Z113: 0 | AA113: 0 | AB113: 0 | AC113: 0 | AD113: 0 | AE113: 0
A114: 0105 | B114: Georgetown | C114: 1304 | D114: 1321 | E114: 1386 | F114: 1464 | G114: 1495 | H114: 1527 | I114: 1601 | J114: 1622 | K114: 1617 | L114: 1675 | M114: 1723 | N114: 1738 | O114: 1687 | P114: 1701 | Q114: 1688 | R114: 1652 | S114: 1611 | T114: 1558 | U114: 1506 | V114: 1462 | W114: 1467 | X114: 1447 | Y114: 1443 | Z114: 1404 | AA114: 1368 | AB114: 1,218 | AC114: 1,276 | AD114: 1270 | AE114: 1262
A115: 0106 | B115: Gill | V115: 0 | W115: 0 | X115: 0 | Y115: 0 | Z115: 0 | AA115: 0 | AB115: 0 | AC115: 0 | AD115: 0 | AE115: 0
A116: 0107 | B116: Gloucester | C116: 3977 | D116: 4007 | E116: 4034 | F116: 4145 | G116: 4186 | H116: 4203 | I116: 4119 | J116: 4146 | K116: 4019 | L116: 3974 | M116: 3803 | N116: 3763 | O116: 3505 | P116: 3398 | Q116: 3372 | R116: 3203 | S116: 3091 | T116: 3016 | U116: 3078 | V116: 2963 | W116: 2914 | X116: 2930 | Y116: 2904 | Z116: 2886 | AA116: 2851 | AB116: 2,766 | AC116: 2,833 | AD116: 2805 | AE116: 2862
A117: 0108 | B117: Goshen | V117: 0 | W117: 0 | X117: 0 | Y117: 0 | Z117: 0 | AA117: 0 | AB117: 0 | AC117: 0 | AD117: 0 | AE117: 0
A118: 0109 | B118: Gosnold | C118: 4 | D118: 0 | E118: 0 | F118: 0 | G118: 2 | H118: 3 | I118: 8 | J118: 1 | K118: 2 | L118: 2 | M118: 2 | N118: 2 | O118: 4 | P118: 4 | Q118: 4 | R118: 4 | S118: 2 | T118: 2 | U118: 2 | V118: 2 | W118: 2 | X118: 2 | Y118: 2 | Z118: 2 | AA118: 0 | AB118: 4 | AC118: 0 | AD118: 0 | AE118: 0
A119: 0110 | B119: Grafton | C119: 1967 | D119: 2050 | E119: 2063 | F119: 2141 | G119: 2227 | H119: 2229 | I119: 2268 | J119: 2293 | K119: 2453 | L119: 2518 | M119: 2675 | N119: 2794 | O119: 2849 | P119: 2880 | Q119: 2902 | R119: 2872 | S119: 2905 | T119: 2994 | U119: 3067 | V119: 3148 | W119: 3206 | X119: 3189 | Y119: 3155 | Z119: 3173 | AA119: 3205 | AB119: 3,121 | AC119: 3,138 | AD119: 3080 | AE119: 3050
A120: 0111 | B120: Granby | C120: 986 | D120: 1059 | E120: 1081 | F120: 1105 | G120: 1121 | H120: 1071 | I120: 1087 | J120: 1119 | K120: 1140 | L120: 1146 | M120: 1154 | N120: 1145 | O120: 1137 | P120: 1110 | Q120: 1125 | R120: 1131 | S120: 1095 | T120: 1010 | U120: 939 | V120: 882 | W120: 819 | X120: 756 | Y120: 701 | Z120: 727 | AA120: 753 | AB120: 716 | AC120: 697 | AD120: 718 | AE120: 693
A121: 0112 | B121: Granville | C121: 271 | D121: 258 | E121: 252 | F121: 262 | G121: 256 | H121: 257 | I121: 270 | J121: 260 | K121: 248 | L121: 235 | M121: 256 | N121: 225 | O121: 192 | P121: 166 | Q121: 163 | R121: 149 | S121: 146 | T121: 0 | U121: 0 | V121: 0 | W121: 0 | X121: 0 | Y121: 0 | Z121: 0 | AA121: 0 | AB121: 0 | AC121: 0 | AD121: 0 | AE121: 0
A122: 0113 | B122: Great Barrington | V122: 0 | W122: 0 | X122: 0 | Y122: 0 | Z122: 0 | AA122: 0 | AB122: 0 | AC122: 0 | AD122: 0 | AE122: 0
A123: 0114 | B123: Greenfield | C123: 2520 | D123: 2538 | E123: 2452 | F123: 2469 | G123: 2433 | H123: 2332 | I123: 2267 | J123: 2244 | K123: 2120 | L123: 1948 | M123: 1861 | N123: 1817 | O123: 1708 | P123: 1527 | Q123: 1496 | R123: 1790 | S123: 2112 | T123: 2146 | U123: 1733 | V123: 1751 | W123: 1641 | X123: 1662 | Y123: 1699 | Z123: 1732 | AA123: 1718 | AB123: 1,545 | AC123: 1,604 | AD123: 1446 | AE123: 1414
A124: 0115 | B124: Groton | V124: 0 | W124: 0 | X124: 0 | Y124: 0 | Z124: 0 | AA124: 0 | AB124: 0 | AC124: 0 | AD124: 0 | AE124: 0
A125: 0116 | B125: Groveland | V125: 0 | W125: 0 | X125: 0 | Y125: 0 | Z125: 0 | AA125: 0 | AB125: 0 | AC125: 0 | AD125: 0 | AE125: 0
A126: 0117 | B126: Hadley | C126: 645 | D126: 644 | E126: 663 | F126: 663 | G126: 664 | H126: 657 | I126: 634 | J126: 633 | K126: 648 | L126: 643 | M126: 635 | N126: 652 | O126: 654 | P126: 672 | Q126: 714 | R126: 710 | S126: 700 | T126: 661 | U126: 623 | V126: 620 | W126: 606 | X126: 562 | Y126: 529 | Z126: 536 | AA126: 529 | AB126: 506 | AC126: 508 | AD126: 494 | AE126: 503
A127: 0118 | B127: Halifax | C127: 704 | D127: 707 | E127: 728 | F127: 736 | G127: 747 | H127: 705 | I127: 719 | J127: 706 | K127: 709 | L127: 712 | M127: 718 | N127: 724 | O127: 711 | P127: 684 | Q127: 654 | R127: 628 | S127: 597 | T127: 582 | U127: 568 | V127: 566 | W127: 545 | X127: 592 | Y127: 597 | Z127: 608 | AA127: 586 | AB127: 569 | AC127: 564 | AD127: 561 | AE127: 549
A128: 0119 | B128: Hamilton | V128: 0 | W128: 0 | X128: 0 | Y128: 0 | Z128: 0 | AA128: 0 | AB128: 0 | AC128: 0 | AD128: 0 | AE128: 0
A129: 0120 | B129: Hampden | V129: 0 | W129: 0 | X129: 0 | Y129: 0 | Z129: 0 | AA129: 0 | AB129: 0 | AC129: 0 | AD129: 0 | AE129: 0
A130: 0121 | B130: Hancock | C130: 103 | D130: 50 | E130: 46 | F130: 51 | G130: 51 | H130: 58 | I130: 58 | J130: 57 | K130: 50 | L130: 53 | M130: 44 | N130: 44 | O130: 39 | P130: 33 | Q130: 41 | R130: 48 | S130: 46 | T130: 46 | U130: 45 | V130: 43 | W130: 44 | X130: 36 | Y130: 42 | Z130: 34 | AA130: 47 | AB130: 57 | AC130: 57 | AD130: 59 | AE130: 58
A131: 0122 | B131: Hanover | C131: 2368 | D131: 2450 | E131: 2493 | F131: 2550 | G131: 2617 | H131: 2689 | I131: 2671 | J131: 2729 | K131: 2779 | L131: 2815 | M131: 2794 | N131: 2793 | O131: 2725 | P131: 2721 | Q131: 2698 | R131: 2685 | S131: 2735 | T131: 2684 | U131: 2642 | V131: 2638 | W131: 2632 | X131: 2625 | Y131: 2610 | Z131: 2645 | AA131: 2649 | AB131: 2,614 | AC131: 2,596 | AD131: 2579 | AE131: 2602
A132: 0123 | B132: Hanson | V132: 0 | W132: 0 | X132: 0 | Y132: 0 | Z132: 0 | AA132: 0 | AB132: 0 | AC132: 0 | AD132: 0 | AE132: 0
A133: 0124 | B133: Hardwick | V133: 0 | W133: 0 | X133: 0 | Y133: 0 | Z133: 0 | AA133: 0 | AB133: 0 | AC133: 0 | AD133: 0 | AE133: 0
A134: 0125 | B134: Harvard | C134: 1062 | D134: 1133 | E134: 1159 | F134: 1175 | G134: 1169 | H134: 1191 | I134: 1182 | J134: 1221 | K134: 1241 | L134: 1254 | M134: 1300 | N134: 1338 | O134: 1306 | P134: 1281 | Q134: 1277 | R134: 1267 | S134: 1260 | T134: 1210 | U134: 1170 | V134: 1143 | W134: 1137 | X134: 1117 | Y134: 1095 | Z134: 1065 | AA134: 1048 | AB134: 1,006 | AC134: 1,025 | AD134: 1020 | AE134: 1019
A135: 0126 | B135: Harwich | C135: 1453 | D135: 1485 | E135: 1516 | F135: 1544 | G135: 1580 | H135: 1562 | I135: 1527 | J135: 1500 | K135: 1524 | L135: 1480 | M135: 1441 | N135: 1399 | O135: 1358 | P135: 1350 | Q135: 1334 | R135: 1333 | S135: 1314 | T135: 0 | U135: 0 | V135: 0 | W135: 0 | X135: 0 | Y135: 0 | Z135: 0 | AA135: 0 | AB135: 0 | AC135: 0 | AD135: 0 | AE135: 0
A136: 0127 | B136: Hatfield | C136: 504 | D136: 506 | E136: 511 | F136: 506 | G136: 484 | H136: 472 | I136: 463 | J136: 488 | K136: 476 | L136: 472 | M136: 459 | N136: 443 | O136: 419 | P136: 418 | Q136: 456 | R136: 469 | S136: 482 | T136: 450 | U136: 450 | V136: 461 | W136: 447 | X136: 442 | Y136: 436 | Z136: 436 | AA136: 431 | AB136: 397 | AC136: 391 | AD136: 345 | AE136: 322
A137: 0128 | B137: Haverhill | C137: 8067 | D137: 8442 | E137: 8542 | F137: 8566 | G137: 8592 | H137: 8565 | I137: 8631 | J137: 8308 | K137: 8051 | L137: 7784 | M137: 7590 | N137: 7597 | O137: 7389 | P137: 6840 | Q137: 6845 | R137: 6804 | S137: 6980 | T137: 7052 | U137: 7147 | V137: 7240 | W137: 7324 | X137: 7452 | Y137: 7499 | Z137: 8047 | AA137: 8063 | AB137: 7,771 | AC137: 7,738 | AD137: 7775 | AE137: 7882
A138: 0129 | B138: Hawley | V138: 0 | W138: 0 | X138: 0 | Y138: 0 | Z138: 0 | AA138: 0 | AB138: 0 | AC138: 0 | AD138: 0 | AE138: 0
A139: 0130 | B139: Heath | V139: 0 | W139: 0 | X139: 0 | Y139: 0 | Z139: 0 | AA139: 0 | AB139: 0 | AC139: 0 | AD139: 0 | AE139: 0
A140: 0131 | B140: Hingham | C140: 3296 | D140: 3338 | E140: 3358 | F140: 3357 | G140: 3400 | H140: 3401 | I140: 3411 | J140: 3550 | K140: 3590 | L140: 3675 | M140: 3764 | N140: 3797 | O140: 3848 | P140: 3964 | Q140: 4058 | R140: 4100 | S140: 4135 | T140: 4202 | U140: 4237 | V140: 4292 | W140: 4327 | X140: 4317 | Y140: 4299 | Z140: 4242 | AA140: 4262 | AB140: 3,894 | AC140: 3,864 | AD140: 3797 | AE140: 3707
A141: 0132 | B141: Hinsdale | V141: 0 | W141: 0 | X141: 0 | Y141: 0 | Z141: 0 | AA141: 0 | AB141: 0 | AC141: 0 | AD141: 0 | AE141: 0
A142: 0133 | B142: Holbrook | C142: 1357 | D142: 1399 | E142: 1424 | F142: 1434 | G142: 1433 | H142: 1416 | I142: 1391 | J142: 1436 | K142: 1418 | L142: 1389 | M142: 1398 | N142: 1384 | O142: 1280 | P142: 1184 | Q142: 1161 | R142: 1187 | S142: 1176 | T142: 1238 | U142: 1232 | V142: 1198 | W142: 1201 | X142: 1170 | Y142: 1215 | Z142: 1259 | AA142: 1309 | AB142: 1,268 | AC142: 1,286 | AD142: 1310 | AE142: 1309
A143: 0134 | B143: Holden | V143: 0 | W143: 0 | X143: 0 | Y143: 0 | Z143: 0 | AA143: 0 | AB143: 0 | AC143: 0 | AD143: 0 | AE143: 0
A144: 0135 | B144: Holland | C144: 329 | D144: 320 | E144: 334 | F144: 322 | G144: 305 | H144: 297 | I144: 284 | J144: 270 | K144: 267 | L144: 263 | M144: 269 | N144: 270 | O144: 267 | P144: 285 | Q144: 251 | R144: 245 | S144: 222 | T144: 232 | U144: 237 | V144: 237 | W144: 223 | X144: 237 | Y144: 233 | Z144: 226 | AA144: 232 | AB144: 194 | AC144: 226 | AD144: 231 | AE144: 226
A145: 0136 | B145: Holliston | C145: 3035 | D145: 3089 | E145: 3135 | F145: 3157 | G145: 3161 | H145: 3163 | I145: 3121 | J145: 3083 | K145: 3120 | L145: 3038 | M145: 2971 | N145: 2939 | O145: 2951 | P145: 2902 | Q145: 2864 | R145: 2870 | S145: 2842 | T145: 2820 | U145: 2819 | V145: 2824 | W145: 2889 | X145: 2889 | Y145: 2905 | Z145: 2889 | AA145: 2910 | AB145: 2,754 | AC145: 2,809 | AD145: 2776 | AE145: 2724
A146: 0137 | B146: Holyoke | C146: 7746 | D146: 7930 | E146: 7820 | F146: 7614 | G146: 7562 | H146: 7246 | I146: 7160 | J146: 7255 | K146: 7245 | L146: 7056 | M146: 6485 | N146: 6256 | O146: 6121 | P146: 6025 | Q146: 5901 | R146: 5896 | S146: 5877 | T146: 5782 | U146: 5573 | V146: 5573 | W146: 5366 | X146: 5344 | Y146: 5293 | Z146: 5241 | AA146: 5350 | AB146: 5,153 | AC146: 5,102 | AD146: 4943 | AE146: 4898
A147: 0138 | B147: Hopedale | C147: 1040 | D147: 1133 | E147: 1139 | F147: 1114 | G147: 1103 | H147: 1118 | I147: 1156 | J147: 1222 | K147: 1270 | L147: 1261 | M147: 1302 | N147: 1328 | O147: 1323 | P147: 1324 | Q147: 1308 | R147: 1279 | S147: 1257 | T147: 1261 | U147: 1259 | V147: 1223 | W147: 1178 | X147: 1137 | Y147: 1133 | Z147: 1087 | AA147: 1080 | AB147: 1,099 | AC147: 1,114 | AD147: 1092 | AE147: 1101
A148: 0139 | B148: Hopkinton | C148: 2058 | D148: 2185 | E148: 2329 | F148: 2511 | G148: 2706 | H148: 2876 | I148: 2979 | J148: 2925 | K148: 3355 | L148: 3404 | M148: 3432 | N148: 3419 | O148: 3423 | P148: 3452 | Q148: 3453 | R148: 3454 | S148: 3414 | T148: 3414 | U148: 3461 | V148: 3463 | W148: 3463 | X148: 3462 | Y148: 3518 | Z148: 3685 | AA148: 3862 | AB148: 3,932 | AC148: 4,006 | AD148: 4163 | AE148: 4187
A149: 0140 | B149: Hubbardston | V149: 0 | W149: 0 | X149: 0 | Y149: 0 | Z149: 0 | AA149: 0 | AB149: 0 | AC149: 0 | AD149: 0 | AE149: 0
A150: 0141 | B150: Hudson | C150: 2535 | D150: 2581 | E150: 2658 | F150: 2711 | G150: 2752 | H150: 2746 | I150: 2648 | J150: 2769 | K150: 2769 | L150: 2757 | M150: 2820 | N150: 2882 | O150: 2904 | P150: 2982 | Q150: 3071 | R150: 2993 | S150: 2952 | T150: 2896 | U150: 2947 | V150: 2876 | W150: 2811 | X150: 2643 | Y150: 2633 | Z150: 2544 | AA150: 2566 | AB150: 2,416 | AC150: 2,336 | AD150: 2323 | AE150: 2340
A151: 0142 | B151: Hull | C151: 1518 | D151: 1441 | E151: 1513 | F151: 1480 | G151: 1438 | H151: 1387 | I151: 1329 | J151: 1328 | K151: 1273 | L151: 1308 | M151: 1255 | N151: 1235 | O151: 1216 | P151: 1213 | Q151: 1202 | R151: 1164 | S151: 1095 | T151: 1067 | U151: 1061 | V151: 1034 | W151: 985 | X151: 930 | Y151: 892 | Z151: 887 | AA151: 854 | AB151: 802 | AC151: 805 | AD151: 775 | AE151: 755
A152: 0143 | B152: Huntington | V152: 0 | W152: 0 | X152: 0 | Y152: 0 | Z152: 0 | AA152: 0 | AB152: 0 | AC152: 0 | AD152: 0 | AE152: 0
A153: 0144 | B153: Ipswich | C153: 1813 | D153: 1867 | E153: 1924 | F153: 1923 | G153: 1953 | H153: 2004 | I153: 2041 | J153: 2068 | K153: 2094 | L153: 2089 | M153: 2085 | N153: 2109 | O153: 2096 | P153: 2118 | Q153: 2137 | R153: 2111 | S153: 2114 | T153: 2048 | U153: 1986 | V153: 1918 | W153: 1844 | X153: 1778 | Y153: 1735 | Z153: 1708 | AA153: 1679 | AB153: 1,594 | AC153: 1,628 | AD153: 1603 | AE153: 1604
A154: 0145 | B154: Kingston | C154: 1074 | D154: 1086 | E154: 1120 | F154: 1128 | G154: 1138 | H154: 1209 | I154: 1213 | J154: 1213 | K154: 1208 | L154: 1181 | M154: 1175 | N154: 1150 | O154: 1159 | P154: 1173 | Q154: 1180 | R154: 1189 | S154: 1169 | T154: 1134 | U154: 1132 | V154: 1056 | W154: 1064 | X154: 1016 | Y154: 1024 | Z154: 1040 | AA154: 1065 | AB154: 1,035 | AC154: 1,047 | AD154: 1213 | AE154: 1261
A155: 0146 | B155: Lakeville | C155: 653 | D155: 660 | E155: 706 | F155: 699 | G155: 718 | H155: 691 | I155: 728 | J155: 721 | K155: 763 | L155: 777 | M155: 797 | N155: 765 | O155: 769 | P155: 770 | Q155: 742 | R155: 670 | S155: 0 | T155: 0 | U155: 0 | V155: 0 | W155: 0 | X155: 0 | Y155: 0 | Z155: 0 | AA155: 0 | AB155: 0 | AC155: 0 | AD155: 0 | AE155: 0
A156: 0147 | B156: Lancaster | V156: 0 | W156: 0 | X156: 0 | Y156: 0 | Z156: 0 | AA156: 0 | AB156: 0 | AC156: 0 | AD156: 0 | AE156: 0
A157: 0148 | B157: Lanesborough | C157: 325 | D157: 316 | E157: 325 | F157: 324 | G157: 300 | H157: 317 | I157: 319 | J157: 307 | K157: 296 | L157: 297 | M157: 303 | N157: 299 | O157: 295 | P157: 280 | Q157: 270 | R157: 255 | S157: 245 | T157: 222 | U157: 205 | V157: 216 | W157: 206 | X157: 206 | Y157: 210 | Z157: 0 | AA157: 0 | AB157: 0 | AC157: 0 | AD157: 0 | AE157: 0
A158: 0149 | B158: Lawrence | C158: 11355 | D158: 11650 | E158: 11928 | F158: 12419 | G158: 12562 | H158: 12494 | I158: 12700 | J158: 12587 | K158: 12508 | L158: 12235 | M158: 12273 | N158: 12204 | O158: 12301 | P158: 12221 | Q158: 12284 | R158: 12784 | S158: 12900 | T158: 13145 | U158: 13504 | V158: 13889 | W158: 13667 | X158: 13857 | Y158: 13846 | Z158: 13658 | AA158: 13550 | AB158: 12,842 | AC158: 12,786 | AD158: 12867 | AE158: 13008
A159: 0150 | B159: Lee | C159: 929 | D159: 921 | E159: 909 | F159: 913 | G159: 899 | H159: 902 | I159: 904 | J159: 899 | K159: 875 | L159: 873 | M159: 895 | N159: 890 | O159: 899 | P159: 864 | Q159: 839 | R159: 821 | S159: 791 | T159: 751 | U159: 720 | V159: 683 | W159: 680 | X159: 685 | Y159: 692 | Z159: 703 | AA159: 713 | AB159: 683 | AC159: 660 | AD159: 666 | AE159: 646
A160: 0151 | B160: Leicester | C160: 1774 | D160: 1801 | E160: 1880 | F160: 1889 | G160: 1904 | H160: 1931 | I160: 1933 | J160: 1944 | K160: 1940 | L160: 1893 | M160: 1950 | N160: 1931 | O160: 1922 | P160: 1874 | Q160: 1881 | R160: 1859 | S160: 1778 | T160: 1715 | U160: 1626 | V160: 1605 | W160: 1604 | X160: 1574 | Y160: 1569 | Z160: 1536 | AA160: 1488 | AB160: 1,374 | AC160: 1,389 | AD160: 1354 | AE160: 1322
A161: 0152 | B161: Lenox | C161: 787 | D161: 783 | E161: 805 | F161: 836 | G161: 866 | H161: 854 | I161: 843 | J161: 825 | K161: 835 | L161: 853 | M161: 850 | N161: 837 | O161: 813 | P161: 816 | Q161: 829 | R161: 801 | S161: 804 | T161: 783 | U161: 753 | V161: 728 | W161: 732 | X161: 765 | Y161: 755 | Z161: 756 | AA161: 776 | AB161: 750 | AC161: 722 | AD161: 770 | AE161: 783
A162: 0153 | B162: Leominster | C162: 5734 | D162: 5897 | E162: 6076 | F162: 6210 | G162: 6218 | H162: 6304 | I162: 6075 | J162: 6146 | K162: 6228 | L162: 6189 | M162: 6114 | N162: 6123 | O162: 6287 | P162: 6233 | Q162: 6290 | R162: 6214 | S162: 6181 | T162: 6183 | U162: 6171 | V162: 6096 | W162: 6057 | X162: 6047 | Y162: 6005 | Z162: 6027 | AA162: 6078 | AB162: 5,859 | AC162: 5,915 | AD162: 6000 | AE162: 6012
A163: 0154 | B163: Leverett | C163: 214 | D163: 209 | E163: 198 | F163: 182 | G163: 173 | H163: 168 | I163: 158 | J163: 140 | K163: 133 | L163: 139 | M163: 165 | N163: 171 | O163: 161 | P163: 156 | Q163: 165 | R163: 159 | S163: 148 | T163: 143 | U163: 121 | V163: 133 | W163: 130 | X163: 136 | Y163: 125 | Z163: 135 | AA163: 142 | AB163: 116 | AC163: 144 | AD163: 141 | AE163: 142
A164: 0155 | B164: Lexington | C164: 5274 | D164: 5442 | E164: 5570 | F164: 5719 | G164: 5809 | H164: 5898 | I164: 6010 | J164: 6051 | K164: 6175 | L164: 6184 | M164: 6253 | N164: 6226 | O164: 6253 | P164: 6235 | Q164: 6182 | R164: 6366 | S164: 6397 | T164: 6506 | U164: 6610 | V164: 6785 | W164: 6925 | X164: 7072 | Y164: 7246 | Z164: 7259 | AA164: 7190 | AB164: 6,901 | AC164: 6,790 | AD164: 6845 | AE164: 6805
A165: 0156 | B165: Leyden | V165: 0 | W165: 0 | X165: 0 | Y165: 0 | Z165: 0 | AA165: 0 | AB165: 0 | AC165: 0 | AD165: 0 | AE165: 0
A166: 0157 | B166: Lincoln | C166: 1135 | D166: 1231 | E166: 1197 | F166: 1238 | G166: 1256 | H166: 1311 | I166: 1004 | J166: 1378 | K166: 1319 | L166: 1259 | M166: 1256 | N166: 1227 | O166: 1219 | P166: 1126 | Q166: 1050 | R166: 1077 | S166: 1149 | T166: 1241 | U166: 1253 | V166: 1241 | W166: 1225 | X166: 1200 | Y166: 1189 | Z166: 1192 | AA166: 1114 | AB166: 1,048 | AC166: 1,066 | AD166: 1007 | AE166: 1033
A167: 0158 | B167: Littleton | C167: 1277 | D167: 1304 | E167: 1328 | F167: 1381 | G167: 1423 | H167: 1471 | I167: 1476 | J167: 1550 | K167: 1564 | L167: 1535 | M167: 1562 | N167: 1555 | O167: 1606 | P167: 1653 | Q167: 1607 | R167: 1584 | S167: 1610 | T167: 1576 | U167: 1584 | V167: 1596 | W167: 1623 | X167: 1646 | Y167: 1658 | Z167: 1653 | AA167: 1663 | AB167: 1,553 | AC167: 1,642 | AD167: 1690 | AE167: 1674
A168: 0159 | B168: Longmeadow | C168: 2919 | D168: 2971 | E168: 3058 | F168: 3051 | G168: 3165 | H168: 3199 | I168: 3234 | J168: 3319 | K168: 3389 | L168: 3367 | M168: 3318 | N168: 3221 | O168: 3157 | P168: 3133 | Q168: 3102 | R168: 3011 | S168: 2953 | T168: 2868 | U168: 2857 | V168: 2902 | W168: 2880 | X168: 2841 | Y168: 2877 | Z168: 2874 | AA168: 2847 | AB168: 2,751 | AC168: 2,791 | AD168: 2778 | AE168: 2773
A169: 0160 | B169: Lowell | C169: 15298 | D169: 15759 | E169: 16280 | F169: 16338 | G169: 16275 | H169: 15989 | I169: 15164 | J169: 15479 | K169: 15117 | L169: 14603 | M169: 14096 | N169: 13902 | O169: 13505 | P169: 13400 | Q169: 13331 | R169: 13600 | S169: 13548 | T169: 13879 | U169: 14031 | V169: 14075 | W169: 14152 | X169: 14416 | Y169: 14436 | Z169: 14548 | AA169: 14434 | AB169: 14,023 | AC169: 13,991 | AD169: 14130 | AE169: 14274
A170: 0161 | B170: Ludlow | C170: 2973 | D170: 3024 | E170: 2945 | F170: 3023 | G170: 2936 | H170: 2986 | I170: 2947 | J170: 3035 | K170: 3077 | L170: 3116 | M170: 3124 | N170: 3081 | O170: 3111 | P170: 3103 | Q170: 3050 | R170: 2987 | S170: 2886 | T170: 2874 | U170: 2802 | V170: 2716 | W170: 2699 | X170: 2661 | Y170: 2649 | Z170: 2594 | AA170: 2538 | AB170: 2,383 | AC170: 2,293 | AD170: 2271 | AE170: 2258
A171: 0162 | B171: Lunenburg | C171: 1788 | D171: 1843 | E171: 1829 | F171: 1830 | G171: 1861 | H171: 1889 | I171: 1851 | J171: 1887 | K171: 1830 | L171: 1822 | M171: 1836 | N171: 1844 | O171: 1824 | P171: 1739 | Q171: 1702 | R171: 1650 | S171: 1637 | T171: 1587 | U171: 1564 | V171: 1557 | W171: 1567 | X171: 1613 | Y171: 1641 | Z171: 1649 | AA171: 1641 | AB171: 1,593 | AC171: 1,597 | AD171: 1562 | AE171: 1580
A172: 0163 | B172: Lynn | C172: 13642 | D172: 14340 | E172: 14742 | F172: 14826 | G172: 15069 | H172: 15318 | I172: 15247 | J172: 15114 | K172: 14621 | L172: 14067 | M172: 13955 | N172: 13619 | O172: 13481 | P172: 13273 | Q172: 13373 | R172: 13547 | S172: 13731 | T172: 14139 | U172: 14378 | V172: 14871 | W172: 15098 | X172: 15299 | Y172: 15517 | Z172: 15751 | AA172: 16088 | AB172: 15,587 | AC172: 15,727 | AD172: 15433 | AE172: 16022
A173: 0164 | B173: Lynnfield | C173: 1778 | D173: 1820 | E173: 1865 | F173: 1869 | G173: 1859 | H173: 1859 | I173: 1831 | J173: 1985 | K173: 2031 | L173: 2103 | M173: 2202 | N173: 2299 | O173: 2339 | P173: 2361 | Q173: 2353 | R173: 2308 | S173: 2276 | T173: 2261 | U173: 2220 | V173: 2205 | W173: 2225 | X173: 2207 | Y173: 2221 | Z173: 2201 | AA173: 2202 | AB173: 2,167 | AC173: 2,167 | AD173: 2195 | AE173: 2186
A174: 0165 | B174: Malden | C174: 5579 | D174: 5577 | E174: 5663 | F174: 5510 | G174: 5685 | H174: 5807 | I174: 5468 | J174: 5945 | K174: 6135 | L174: 6239 | M174: 6287 | N174: 6320 | O174: 6387 | P174: 6416 | Q174: 6332 | R174: 6565 | S174: 6572 | T174: 6573 | U174: 6535 | V174: 6564 | W174: 6570 | X174: 6623 | Y174: 6540 | Z174: 6564 | AA174: 6481 | AB174: 6,120 | AC174: 6,101 | AD174: 6308 | AE174: 6282
A175: 0166 | B175: Manchester | C175: 851 | D175: 901 | E175: 921 | F175: 924 | G175: 918 | H175: 0 | I175: 0 | J175: 0 | K175: 0 | L175: 0 | M175: 0 | N175: 0 | O175: 0 | P175: 0 | Q175: 0 | R175: 0 | S175: 0 | T175: 0 | U175: 0 | V175: 0 | W175: 0 | X175: 0 | Y175: 0 | Z175: 0 | AA175: 0 | AB175: 0 | AC175: 0 | AD175: 0 | AE175: 0
A176: 0167 | B176: Mansfield | C176: 3650 | D176: 3838 | E176: 3890 | F176: 4024 | G176: 4228 | H176: 4340 | I176: 4547 | J176: 4535 | K176: 4742 | L176: 4776 | M176: 4839 | N176: 4893 | O176: 4887 | P176: 4912 | Q176: 4888 | R176: 4826 | S176: 4663 | T176: 4497 | U176: 4320 | V176: 4144 | W176: 4037 | X176: 3958 | Y176: 3856 | Z176: 3784 | AA176: 3651 | AB176: 3,504 | AC176: 3,437 | AD176: 3431 | AE176: 3371
A177: 0168 | B177: Marblehead | C177: 2684 | D177: 2703 | E177: 2749 | F177: 2826 | G177: 2839 | H177: 2792 | I177: 2853 | J177: 2960 | K177: 3016 | L177: 3071 | M177: 3115 | N177: 3128 | O177: 3212 | P177: 3261 | Q177: 3232 | R177: 3206 | S177: 3170 | T177: 3251 | U177: 3293 | V177: 3245 | W177: 3208 | X177: 3144 | Y177: 3096 | Z177: 3051 | AA177: 2963 | AB177: 2,704 | AC177: 2,601 | AD177: 2622 | AE177: 2617
A178: 0169 | B178: Marion | C178: 490 | D178: 502 | E178: 527 | F178: 496 | G178: 526 | H178: 498 | I178: 501 | J178: 496 | K178: 474 | L178: 450 | M178: 463 | N178: 450 | O178: 435 | P178: 435 | Q178: 441 | R178: 463 | S178: 473 | T178: 463 | U178: 451 | V178: 444 | W178: 449 | X178: 458 | Y178: 454 | Z178: 447 | AA178: 433 | AB178: 396 | AC178: 406 | AD178: 403 | AE178: 389
A179: 0170 | B179: Marlborough | C179: 4169 | D179: 4361 | E179: 4462 | F179: 4538 | G179: 4579 | H179: 4693 | I179: 4681 | J179: 4729 | K179: 4851 | L179: 4788 | M179: 4662 | N179: 4589 | O179: 4594 | P179: 4565 | Q179: 4539 | R179: 4573 | S179: 4597 | T179: 4589 | U179: 4535 | V179: 4543 | W179: 4484 | X179: 4525 | Y179: 4575 | Z179: 4657 | AA179: 4757 | AB179: 4,682 | AC179: 4,643 | AD179: 4765 | AE179: 4729
A180: 0171 | B180: Marshfield | C180: 4292 | D180: 4375 | E180: 4499 | F180: 4582 | G180: 4570 | H180: 4579 | I180: 4595 | J180: 4654 | K180: 4598 | L180: 4637 | M180: 4679 | N180: 4692 | O180: 4718 | P180: 4720 | Q180: 4746 | R180: 4671 | S180: 4588 | T180: 4483 | U180: 4411 | V180: 4267 | W180: 4277 | X180: 4245 | Y180: 4178 | Z180: 4060 | AA180: 3960 | AB180: 3,760 | AC180: 3,822 | AD180: 3763 | AE180: 3672
A181: 0172 | B181: Mashpee | C181: 1487 | D181: 1621 | E181: 1821 | F181: 2057 | G181: 2204 | H181: 2250 | I181: 2048 | J181: 2218 | K181: 2164 | L181: 2109 | M181: 2007 | N181: 2076 | O181: 2054 | P181: 1818 | Q181: 1856 | R181: 1767 | S181: 1737 | T181: 1725 | U181: 1670 | V181: 1667 | W181: 1629 | X181: 1500 | Y181: 1622 | Z181: 1616 | AA181: 1563 | AB181: 1,468 | AC181: 1,457 | AD181: 1443 | AE181: 1430
A182: 0173 | B182: Mattapoisett | C182: 571 | D182: 580 | E182: 586 | F182: 600 | G182: 591 | H182: 579 | I182: 567 | J182: 552 | K182: 523 | L182: 514 | M182: 520 | N182: 499 | O182: 496 | P182: 516 | Q182: 514 | R182: 518 | S182: 512 | T182: 503 | U182: 512 | V182: 502 | W182: 484 | X182: 447 | Y182: 444 | Z182: 441 | AA182: 442 | AB182: 405 | AC182: 436 | AD182: 429 | AE182: 400
A183: 0174 | B183: Maynard | C183: 1384 | D183: 1439 | E183: 1493 | F183: 1464 | G183: 1504 | H183: 1538 | I183: 1542 | J183: 1433 | K183: 1399 | L183: 1377 | M183: 1363 | N183: 1366 | O183: 1340 | P183: 1325 | Q183: 1328 | R183: 1312 | S183: 1323 | T183: 1352 | U183: 1418 | V183: 1418 | W183: 1421 | X183: 1439 | Y183: 1398 | Z183: 1350 | AA183: 1265 | AB183: 1,179 | AC183: 1,185 | AD183: 1194 | AE183: 1201
A184: 0175 | B184: Medfield | C184: 2339 | D184: 2445 | E184: 2540 | F184: 2685 | G184: 2778 | H184: 2887 | I184: 2980 | J184: 2978 | K184: 3047 | L184: 3099 | M184: 3063 | N184: 3071 | O184: 3038 | P184: 3004 | Q184: 3020 | R184: 2939 | S184: 2860 | T184: 2788 | U184: 2674 | V184: 2638 | W184: 2604 | X184: 2604 | Y184: 2629 | Z184: 2600 | AA184: 2601 | AB184: 2,511 | AC184: 2,530 | AD184: 2513 | AE184: 2504
A185: 0176 | B185: Medford | C185: 5337 | D185: 5260 | E185: 5116 | F185: 4933 | G185: 4753 | H185: 4595 | I185: 4481 | J185: 4722 | K185: 4716 | L185: 4809 | M185: 4727 | N185: 4861 | O185: 4799 | P185: 4822 | Q185: 4854 | R185: 4849 | S185: 4872 | T185: 4677 | U185: 4590 | V185: 4514 | W185: 4437 | X185: 4487 | Y185: 4329 | Z185: 4232 | AA185: 4203 | AB185: 3,943 | AC185: 4,024 | AD185: 4166 | AE185: 4134
A186: 0177 | B186: Medway | C186: 2169 | D186: 2234 | E186: 2374 | F186: 2501 | G186: 2595 | H186: 2689 | I186: 2797 | J186: 2848 | K186: 2886 | L186: 2868 | M186: 2879 | N186: 2871 | O186: 2778 | P186: 2756 | Q186: 2693 | R186: 2640 | S186: 2568 | T186: 2482 | U186: 2423 | V186: 2395 | W186: 2364 | X186: 2316 | Y186: 2271 | Z186: 2222 | AA186: 2178 | AB186: 2,074 | AC186: 2,108 | AD186: 2108 | AE186: 2159
A187: 0178 | B187: Melrose | C187: 3594 | D187: 3590 | E187: 3570 | F187: 3544 | G187: 3497 | H187: 3498 | I187: 3449 | J187: 3498 | K187: 3572 | L187: 3586 | M187: 3537 | N187: 3527 | O187: 3579 | P187: 3659 | Q187: 3767 | R187: 3775 | S187: 3780 | T187: 3679 | U187: 3685 | V187: 3711 | W187: 3725 | X187: 3798 | Y187: 3909 | Z187: 3945 | AA187: 3977 | AB187: 3,701 | AC187: 3,748 | AD187: 3849 | AE187: 3892
A188: 0179 | B188: Mendon | V188: 0 | W188: 0 | X188: 0 | Y188: 0 | Z188: 0 | AA188: 0 | AB188: 0 | AC188: 0 | AD188: 0 | AE188: 0
A189: 0180 | B189: Merrimac | V189: 0 | W189: 0 | X189: 0 | Y189: 0 | Z189: 0 | AA189: 0 | AB189: 0 | AC189: 0 | AD189: 0 | AE189: 0
A190: 0181 | B190: Methuen | C190: 6337 | D190: 6465 | E190: 6539 | F190: 6728 | G190: 6903 | H190: 7125 | I190: 7134 | J190: 7095 | K190: 7262 | L190: 7317 | M190: 7441 | N190: 7447 | O190: 7426 | P190: 7387 | Q190: 7230 | R190: 7112 | S190: 7098 | T190: 7055 | U190: 6937 | V190: 6953 | W190: 7027 | X190: 6896 | Y190: 6935 | Z190: 6927 | AA190: 6851 | AB190: 6,450 | AC190: 6,439 | AD190: 6440 | AE190: 6532
A191: 0182 | B191: Middleborough | C191: 3515 | D191: 3554 | E191: 3532 | F191: 3464 | G191: 3550 | H191: 3620 | I191: 3707 | J191: 3704 | K191: 3686 | L191: 3595 | M191: 3676 | N191: 3561 | O191: 3510 | P191: 3541 | Q191: 3506 | R191: 3457 | S191: 3373 | T191: 3295 | U191: 3221 | V191: 3120 | W191: 3010 | X191: 2762 | Y191: 2945 | Z191: 2976 | AA191: 2989 | AB191: 2,916 | AC191: 3,011 | AD191: 3036 | AE191: 2998
A192: 0183 | B192: Middlefield | V192: 0 | W192: 0 | X192: 0 | Y192: 0 | Z192: 0 | AA192: 0 | AB192: 0 | AC192: 0 | AD192: 0 | AE192: 0
A193: 0184 | B193: Middleton | C193: 582 | D193: 625 | E193: 672 | F193: 779 | G193: 779 | H193: 768 | I193: 718 | J193: 703 | K193: 791 | L193: 834 | M193: 857 | N193: 864 | O193: 872 | P193: 880 | Q193: 858 | R193: 818 | S193: 806 | T193: 809 | U193: 774 | V193: 756 | W193: 716 | X193: 699 | Y193: 687 | Z193: 700 | AA193: 713 | AB193: 678 | AC193: 708 | AD193: 721 | AE193: 722
A194: 0185 | B194: Milford | C194: 3946 | D194: 3935 | E194: 3972 | F194: 4091 | G194: 4250 | H194: 4375 | I194: 3915 | J194: 4100 | K194: 4185 | L194: 4214 | M194: 4192 | N194: 4201 | O194: 4210 | P194: 4191 | Q194: 4122 | R194: 4185 | S194: 4152 | T194: 4167 | U194: 4182 | V194: 4176 | W194: 4131 | X194: 4187 | Y194: 4186 | Z194: 4277 | AA194: 4407 | AB194: 4,235 | AC194: 4,309 | AD194: 4483 | AE194: 4413
A195: 0186 | B195: Millbury | C195: 1752 | D195: 1814 | E195: 1847 | F195: 1880 | G195: 1895 | H195: 1890 | I195: 1873 | J195: 1928 | K195: 2008 | L195: 1972 | M195: 1973 | N195: 1952 | O195: 1942 | P195: 1928 | Q195: 1893 | R195: 1844 | S195: 1808 | T195: 1805 | U195: 1776 | V195: 1743 | W195: 1732 | X195: 1727 | Y195: 1734 | Z195: 1692 | AA195: 1700 | AB195: 1,587 | AC195: 1,601 | AD195: 1619 | AE195: 1650
A196: 0187 | B196: Millis | C196: 1172 | D196: 1243 | E196: 1256 | F196: 1270 | G196: 1267 | H196: 1294 | I196: 1307 | J196: 1326 | K196: 1318 | L196: 1336 | M196: 1325 | N196: 1320 | O196: 1346 | P196: 1404 | Q196: 1435 | R196: 1465 | S196: 1452 | T196: 1451 | U196: 1425 | V196: 1407 | W196: 1362 | X196: 1323 | Y196: 1302 | Z196: 1223 | AA196: 1179 | AB196: 1,156 | AC196: 1,175 | AD196: 1206 | AE196: 1186
A197: 0188 | B197: Millville | V197: 0 | W197: 0 | X197: 0 | Y197: 0 | Z197: 0 | AA197: 0 | AB197: 0 | AC197: 0 | AD197: 0 | AE197: 0
A198: 0189 | B198: Milton | C198: 3736 | D198: 3776 | E198: 3905 | F198: 3916 | G198: 3869 | H198: 3807 | I198: 3731 | J198: 3597 | K198: 3580 | L198: 3594 | M198: 3651 | N198: 3724 | O198: 3768 | P198: 3876 | Q198: 3952 | R198: 3921 | S198: 3886 | T198: 3934 | U198: 3944 | V198: 4011 | W198: 4094 | X198: 4150 | Y198: 4211 | Z198: 4265 | AA198: 4431 | AB198: 4,355 | AC198: 4,352 | AD198: 4321 | AE198: 4320
A199: 0190 | B199: Monroe | V199: 0 | W199: 0 | X199: 0 | Y199: 0 | Z199: 0 | AA199: 0 | AB199: 0 | AC199: 0 | AD199: 0 | AE199: 0
A200: 0191 | B200: Monson | C200: 1401 | D200: 1413 | E200: 1424 | F200: 1414 | G200: 1433 | H200: 1426 | I200: 1462 | J200: 1484 | K200: 1544 | L200: 1570 | M200: 1595 | N200: 1553 | O200: 1525 | P200: 1477 | Q200: 1419 | R200: 1383 | S200: 1315 | T200: 1255 | U200: 1160 | V200: 1094 | W200: 1042 | X200: 979 | Y200: 929 | Z200: 917 | AA200: 924 | AB200: 858 | AC200: 838 | AD200: 821 | AE200: 807
A201: 0192 | B201: Montague | V201: 0 | W201: 0 | X201: 0 | Y201: 0 | Z201: 0 | AA201: 0 | AB201: 0 | AC201: 0 | AD201: 0 | AE201: 0
A202: 0193 | B202: Monterey | V202: 0 | W202: 0 | X202: 0 | Y202: 0 | Z202: 0 | AA202: 0 | AB202: 0 | AC202: 0 | AD202: 0 | AE202: 0
A203: 0194 | B203: Montgomery | V203: 0 | W203: 0 | X203: 0 | Y203: 0 | Z203: 0 | AA203: 0 | AB203: 0 | AC203: 0 | AD203: 0 | AE203: 0
A204: 0195 | B204: Mount Washington | V204: 0 | W204: 0 | X204: 0 | Y204: 0 | Z204: 0 | AA204: 0 | AB204: 0 | AC204: 0 | AD204: 0 | AE204: 0
A205: 0196 | B205: Nahant | C205: 273 | D205: 267 | E205: 250 | F205: 244 | G205: 230 | H205: 222 | I205: 220 | J205: 207 | K205: 205 | L205: 219 | M205: 201 | N205: 215 | O205: 256 | P205: 246 | Q205: 239 | R205: 240 | S205: 204 | T205: 185 | U205: 180 | V205: 172 | W205: 153 | X205: 142 | Y205: 147 | Z205: 151 | AA205: 154 | AB205: 147 | AC205: 164 | AD205: 155 | AE205: 149
A206: 0197 | B206: Nantucket | C206: 1093 | D206: 1162 | E206: 1206 | F206: 1238 | G206: 1255 | H206: 1201 | I206: 1178 | J206: 1141 | K206: 1169 | L206: 1223 | M206: 1243 | N206: 1308 | O206: 1295 | P206: 1279 | Q206: 1234 | R206: 1289 | S206: 1330 | T206: 1381 | U206: 1481 | V206: 1547 | W206: 1567 | X206: 1583 | Y206: 1619 | Z206: 1670 | AA206: 1678 | AB206: 1,666 | AC206: 1,672 | AD206: 1718 | AE206: 1683
A207: 0198 | B207: Natick | C207: 3898 | D207: 3987 | E207: 4115 | F207: 4172 | G207: 4298 | H207: 4412 | I207: 4398 | J207: 4555 | K207: 4604 | L207: 4577 | M207: 4620 | N207: 4567 | O207: 4648 | P207: 4721 | Q207: 4734 | R207: 4825 | S207: 4947 | T207: 5065 | U207: 5285 | V207: 5368 | W207: 5434 | X207: 5472 | Y207: 5507 | Z207: 5540 | AA207: 5529 | AB207: 5,251 | AC207: 5,308 | AD207: 5346 | AE207: 5303
A208: 0199 | B208: Needham | C208: 4087 | D208: 4110 | E208: 4281 | F208: 4303 | G208: 4330 | H208: 4374 | I208: 4498 | J208: 4639 | K208: 4722 | L208: 4901 | M208: 4914 | N208: 4995 | O208: 5013 | P208: 5115 | Q208: 5311 | R208: 5358 | S208: 5409 | T208: 5476 | U208: 5523 | V208: 5519 | W208: 5581 | X208: 5588 | Y208: 5666 | Z208: 5721 | AA208: 5706 | AB208: 5,483 | AC208: 5,515 | AD208: 5525 | AE208: 5541
... 241 more rows

Sheet recfte (hidden)
A8: LEA | B8: District | C8: FY96 | D8: FY97 | E8: FY98 | F8: FY99 | G8: FY00 | H8: FY01 | I8: FY02 | J8: FY03 | K8: FY04 | L8: FY05 | M8: FY06 | N8: FY07 | O8: FY08 | P8: FY09 | Q8: FY10 | R8: FY11 | S8: FY12 | T8: FY13 | U8: FY14 | V8: FY15 | W8: FY16 | X8: FY17 | Y8: FY18 | Z8: FY19 | AA8: FY20 | AB8: FY21 | AC8: FY22 | AD8: FY23 | AE8: FY24
A10: 0001 | B10: Abington | C10: 0 | D10: 0 | E10: 0 | F10: 0 | G10: 0 | H10: 0 | I10: 0 | J10: 0 | K10: 0 | L10: 0 | M10: 0 | N10: 0 | O10: 0 | P10: 0 | Q10: 0 | R10: 0 | S10: 0 | T10: 0 | U10: 2 | V10: 2 | W10: 1 | X10: 3 | Y10: 5 | Z10: 5 | AA10: 3 | AB10: 2 | AC10: 1 | AD10: 0 | AE10: 0
A11: 0002 | B11: Acton | C11: 36.01 | D11: 25 | E11: 15 | F11: 11 | G11: 3 | H11: 1 | I11: 1 | J11: 0 | K11: 0 | L11: 0 | M11: 0 | N11: 0 | O11: 0 | P11: 0 | Q11: 0 | R11: 0 | S11: 0 | T11: 0 | U11: 0 | V11: 0 | W11: 0 | X11: 0 | Y11: 0 | Z11: 0 | AA11: 0 | AB11: 0 | AC11: 0 | AD11: 0 | AE11: 0
A12: 0003 | B12: Acushnet | C12: 0 | D12: 0 | E12: 0 | F12: 0 | G12: 0 | H12: 0 | I12: 0 | J12: 0 | K12: 0 | L12: 0 | M12: 0 | N12: 0 | O12: 0 | P12: 0 | Q12: 0 | R12: 0 | S12: 0 | T12: 0 | U12: 0 | V12: 0 | W12: 0 | X12: 0 | Y12: 0 | Z12: 0 | AA12: 0 | AB12: 0 | AC12: 0 | AD12: 0 | AE12: 0
A13: 0004 | B13: Adams | C13: 0 | D13: 0 | E13: 0 | F13: 0 | G13: 0 | H13: 0 | I13: 0 | J13: 0 | K13: 0 | L13: 0 | M13: 0 | N13: 0 | O13: 0 | P13: 0 | Q13: 0 | R13: 0 | S13: 0 | T13: 0 | U13: 0 | V13: 0 | W13: 0 | X13: 0 | Y13: 0 | Z13: 0 | AA13: 0 | AB13: 0 | AC13: 0 | AD13: 0 | AE13: 0
A14: 0005 | B14: Agawam | C14: 0 | D14: 12.82 | E14: 24 | F14: 31.67 | G14: 28.35 | H14: 31.4 | I14: 31.98 | J14: 41.77 | K14: 46 | L14: 65.47 | M14: 68.75 | N14: 73.72 | O14: 76.5 | P14: 78.22 | Q14: 71.03 | R14: 78.89 | S14: 80.77 | T14: 74.89 | U14: 82 | V14: 80.57 | W14: 76.02 | X14: 77.29 | Y14: 75.92 | Z14: 77.38 | AA14: 83.5 | AB14: 76.58 | AC14: 73.6 | AD14: 70.43 | AE14: 62.54
A15: 0006 | B15: Alford | C15: 0 | D15: 0 | E15: 0 | F15: 0 | G15: 0 | H15: 0 | I15: 0 | J15: 0 | K15: 0 | L15: 0 | M15: 0 | N15: 0 | O15: 0 | P15: 0 | Q15: 0 | R15: 0 | S15: 0 | T15: 0 | U15: 0 | V15: 0 | W15: 0 | X15: 0 | Y15: 0 | Z15: 0 | AA15: 0 | AB15: 0 | AC15: 0 | AD15: 0 | AE15: 0
A16: 0007 | B16: Amesbury | C16: 81.45666667 | D16: 73.19 | E16: 79.29 | F16: 119.74 | G16: 121.33 | H16: 128.18 | I16: 122.93 | J16: 138.32 | K16: 132.78 | L16: 106.75 | M16: 87.6 | N16: 101.98 | O16: 111.33 | P16: 112.17 | Q16: 103.15 | R16: 86.45 | S16: 69.33 | T16: 55.16 | U16: 41.43 | V16: 30 | W16: 12.36 | X16: 14 | Y16: 16 | Z16: 38.01 | AA16: 74.88 | AB16: 60.21 | AC16: 60.57 | AD16: 71.52 | AE16: 76.72
A17: 0008 | B17: Amherst | C17: 0 | D17: 0 | E17: 0 | F17: 0 | G17: 0 | H17: 0 | I17: 0 | J17: 0 | K17: 0 | L17: 0 | M17: 0 | N17: 0 | O17: 0 | P17: 0 | Q17: 0 | R17: 0 | S17: 0 | T17: 36.1 | U17: 39.12 | V17: 53.85 | W17: 49.96 | X17: 60.24 | Y17: 95.23 | Z17: 93 | AA17: 88.06 | AB17: 74.68 | AC17: 79.67 | AD17: 92.16 | AE17: 97
A18: 0009 | B18: Andover | C18: 0 | D18: 0 | E18: 0 | F18: 0 | G18: 0 | H18: 0 | I18: 0 | J18: 0 | K18: 0 | L18: 0 | M18: 0 | N18: 0 | O18: 0 | P18: 0 | Q18: 0 | R18: 0 | S18: 0 | T18: 0 | U18: 0 | V18: 0 | W18: 0 | X18: 0 | Y18: 0 | Z18: 0 | AA18: 0 | AB18: 0 | AC18: 0 | AD18: 0 | AE18: 0
A19: 0010 | B19: Arlington | C19: 0 | D19: 0 | E19: 0 | F19: 0 | G19: 0 | H19: 0 | I19: 0 | J19: 0 | K19: 0 | L19: 0 | M19: 0 | N19: 0 | O19: 0 | P19: 0 | Q19: 0 | R19: 0 | S19: 0 | T19: 0 | U19: 0 | V19: 0 | W19: 0 | X19: 0 | Y19: 0 | Z19: 0 | AA19: 0 | AB19: 0 | AC19: 0 | AD19: 0 | AE19: 0
A20: 0011 | B20: Ashburnham | C20: 0 | D20: 0 | E20: 0 | F20: 0 | G20: 0 | H20: 0 | I20: 0 | J20: 0 | K20: 0 | L20: 0 | M20: 0 | N20: 0 | O20: 0 | P20: 0 | Q20: 0 | R20: 0 | S20: 0 | T20: 0 | U20: 0 | V20: 0 | W20: 0 | X20: 0 | Y20: 0 | Z20: 0 | AA20: 0 | AB20: 0 | AC20: 0 | AD20: 0 | AE20: 0
A21: 0012 | B21: Ashby | C21: 0 | D21: 0 | E21: 0 | F21: 0 | G21: 0 | H21: 0 | I21: 0 | J21: 0 | K21: 0 | L21: 0 | M21: 0 | N21: 0 | O21: 0 | P21: 0 | Q21: 0 | R21: 0 | S21: 0 | T21: 0 | U21: 0 | V21: 0 | W21: 0 | X21: 0 | Y21: 0 | Z21: 0 | AA21: 0 | AB21: 0 | AC21: 0 | AD21: 0 | AE21: 0
A22: 0013 | B22: Ashfield | C22: 0 | D22: 0 | E22: 0 | F22: 0 | G22: 0 | H22: 0 | I22: 0 | J22: 0 | K22: 0 | L22: 0 | M22: 0 | N22: 0 | O22: 0 | P22: 0 | Q22: 0 | R22: 0 | S22: 0 | T22: 0 | U22: 0 | V22: 0 | W22: 0 | X22: 0 | Y22: 0 | Z22: 0 | AA22: 0 | AB22: 0 | AC22: 0 | AD22: 0 | AE22: 0
A23: 0014 | B23: Ashland | C23: 58.81 | D23: 57.29 | E23: 60 | F23: 66.13 | G23: 54.71 | H23: 29.24 | I23: 12.68 | J23: 12.72 | K23: 17.85 | L23: 12.55 | M23: 11.15 | N23: 13.88 | O23: 11.775 | P23: 18.6 | Q23: 15 | R23: 22.61 | S23: 24.47 | T23: 28.73 | U23: 26.1 | V23: 31.76 | W23: 43.43 | X23: 38.61 | Y23: 48.74 | Z23: 53.95 | AA23: 51 | AB23: 43.89 | AC23: 40.33 | AD23: 35.07 | AE23: 33
A24: 0015 | B24: Athol | C24: 0 | D24: 0 | E24: 0 | F24: 0 | G24: 0 | H24: 0 | I24: 0 | J24: 0 | K24: 0 | L24: 0 | M24: 0 | N24: 0 | O24: 0 | P24: 0 | Q24: 0 | R24: 0 | S24: 0 | T24: 0 | U24: 0 | V24: 0 | W24: 0 | X24: 0 | Y24: 0 | Z24: 0 | AA24: 0 | AB24: 0 | AC24: 0 | AD24: 0 | AE24: 0
A25: 0016 | B25: Attleboro | C25: 0 | D25: 0 | E25: 0 | F25: 0 | G25: 0 | H25: 0 | I25: 0 | J25: 0 | K25: 0 | L25: 0 | M25: 0 | N25: 0 | O25: 0 | P25: 0 | Q25: 0 | R25: 0 | S25: 0 | T25: 0 | U25: 0 | V25: 0 | W25: 0 | X25: 0 | Y25: 0 | Z25: 0 | AA25: 0 | AB25: 2 | AC25: 2 | AD25: 2 | AE25: 0
A26: 0017 | B26: Auburn | C26: 0 | D26: 0 | E26: 0 | F26: 0 | G26: 0 | H26: 0 | I26: 0 | J26: 0 | K26: 0 | L26: 0 | M26: 0 | N26: 13.91 | O26: 17.11 | P26: 18.98 | Q26: 22.04 | R26: 21 | S26: 35.89 | T26: 34.89 | U26: 40.74 | V26: 46.91 | W26: 62.09 | X26: 65.96 | Y26: 69 | Z26: 81.15 | AA26: 81.27 | AB26: 98.08 | AC26: 92.48 | AD26: 76 | AE26: 76
A27: 0018 | B27: Avon | C27: 206.22 | D27: 204.98 | E27: 200.38 | F27: 198.77 | G27: 199.54 | H27: 194.15 | I27: 173.07 | J27: 166.4 | K27: 151.56 | L27: 145.24 | M27: 158.15 | N27: 185.49 | O27: 191.31 | P27: 180.18 | Q27: 174.41 | R27: 185.61 | S27: 169.64 | T27: 175.18 | U27: 184.97 | V27: 182.16 | W27: 188.18 | X27: 180.92 | Y27: 169.25 | Z27: 169.53 | AA27: 153.88 | AB27: 149.06 | AC27: 165.54 | AD27: 170.43 | AE27: 176.9
A28: 0019 | B28: Ayer | C28: 83.59 | D28: 122.12 | E28: 140.57 | F28: 177.04 | G28: 188.26 | H28: 199.2 | I28: 232.45 | J28: 249.55 | K28: 239.39 | L28: 229.02 | M28: 184 | N28: 164.86 | O28: 152.35 | P28: 149.72 | Q28: 163.52 | R28: 119.72 | S28: 0 | T28: 0 | U28: 0 | V28: 0 | W28: 0 | X28: 0 | Y28: 0 | Z28: 0 | AA28: 0 | AB28: 0 | AC28: 0 | AD28: 0 | AE28: 0
A29: 0020 | B29: Barnstable | C29: 0 | D29: 0 | E29: 0.94 | F29: 10.69 | G29: 30.39 | H29: 56.74 | I29: 42.83 | J29: 48.51 | K29: 30.6 | L29: 14.67 | M29: 24.19 | N29: 28.86 | O29: 38.11 | P29: 77.34 | Q29: 66.6 | R29: 72.97 | S29: 82.03 | T29: 95.39 | U29: 115.79 | V29: 104.86 | W29: 101.78 | X29: 123.43 | Y29: 96.72 | Z29: 91.86 | AA29: 108.65 | AB29: 96.59 | AC29: 98.94 | AD29: 89.63 | AE29: 102.89
A30: 0021 | B30: Barre | C30: 0 | D30: 0 | E30: 0 | F30: 0 | G30: 0 | H30: 0 | I30: 0 | J30: 0 | K30: 0 | L30: 0 | M30: 0 | N30: 0 | O30: 0 | P30: 0 | Q30: 0 | R30: 0 | S30: 0 | T30: 0 | U30: 0 | V30: 0 | W30: 0 | X30: 0 | Y30: 0 | Z30: 0 | AA30: 0 | AB30: 0 | AC30: 0 | AD30: 0 | AE30: 0
A31: 0022 | B31: Becket | C31: 0 | D31: 0 | E31: 0 | F31: 0 | G31: 0 | H31: 0 | I31: 0 | J31: 0 | K31: 0 | L31: 0 | M31: 0 | N31: 0 | O31: 0 | P31: 0 | Q31: 0 | R31: 0 | S31: 0 | T31: 0 | U31: 0 | V31: 0 | W31: 0 | X31: 0 | Y31: 0 | Z31: 0 | AA31: 0 | AB31: 0 | AC31: 0 | AD31: 0 | AE31: 0
A32: 0023 | B32: Bedford | C32: 0 | D32: 0 | E32: 0 | F32: 0 | G32: 0 | H32: 0 | I32: 0 | J32: 0 | K32: 0 | L32: 0 | M32: 0 | N32: 0 | O32: 0 | P32: 0 | Q32: 0 | R32: 0 | S32: 0 | T32: 0 | U32: 0 | V32: 0 | W32: 0 | X32: 0 | Y32: 0 | Z32: 0 | AA32: 0 | AB32: 0 | AC32: 0 | AD32: 0 | AE32: 0
A33: 0024 | B33: Belchertown | C33: 0 | D33: 0 | E33: 0 | F33: 0 | G33: 0 | H33: 0 | I33: 22.97 | J33: 35.71 | K33: 62.27 | L33: 58.65 | M33: 60.78 | N33: 52.12 | O33: 39.75 | P33: 34.05 | Q33: 24.86 | R33: 28.73 | S33: 33 | T33: 49 | U33: 53.26 | V33: 99.51 | W33: 123.49 | X33: 138.79 | Y33: 138.71 | Z33: 123.13 | AA33: 133.08 | AB33: 138.04 | AC33: 126.64 | AD33: 128.71 | AE33: 130.92
A34: 0025 | B34: Bellingham | C34: 0 | D34: 0 | E34: 0 | F34: 0 | G34: 0 | H34: 0 | I34: 0 | J34: 0 | K34: 0 | L34: 0 | M34: 0 | N34: 15.745 | O34: 42.41 | P34: 45.18 | Q34: 32.69 | R34: 38.34 | S34: 37.79 | T34: 41.48 | U34: 41.8 | V34: 45.33 | W34: 39.19 | X34: 38.86 | Y34: 46.54 | Z34: 52.43 | AA34: 62.2 | AB34: 63.62 | AC34: 61.72 | AD34: 56.25 | AE34: 61
A35: 0026 | B35: Belmont | C35: 0 | D35: 0 | E35: 0 | F35: 0 | G35: 0 | H35: 0 | I35: 0 | J35: 29.61 | K35: 60.07 | L35: 51.47 | M35: 44 | N35: 18 | O35: 0 | P35: 0 | Q35: 0 | R35: 0 | S35: 0 | T35: 0 | U35: 0 | V35: 0 | W35: 0 | X35: 0 | Y35: 0 | Z35: 0 | AA35: 0 | AB35: 0 | AC35: 0 | AD35: 0 | AE35: 0
A36: 0027 | B36: Berkley | C36: 0 | D36: 0 | E36: 0 | F36: 0 | G36: 0 | H36: 0 | I36: 0 | J36: 0 | K36: 7.915 | L36: 10.5 | M36: 7 | N36: 13 | O36: 13.8 | P36: 19.6 | Q36: 22.62 | R36: 22.98 | S36: 36.14 | T36: 48.41 | U36: 64.22 | V36: 78.6 | W36: 104.16 | X36: 97.62 | Y36: 89.73 | Z36: 89.92 | AA36: 109.12 | AB36: 109.57 | AC36: 113.44 | AD36: 122.06 | AE36: 135.4
A37: 0028 | B37: Berlin | C37: 27.46 | D37: 23.56 | E37: 25 | F37: 25.72 | G37: 19.96 | H37: 15.32 | I37: 14 | J37: 13.9 | K37: 10 | L37: 8.21 | M37: 9.67 | N37: 9 | O37: 10 | P37: 11 | Q37: 10.5 | R37: 12 | S37: 22.2 | T37: 36 | U37: 27.96 | V37: 18 | W37: 19.41 | X37: 17.9 | Y37: 15.44 | Z37: 15 | AA37: 0 | AB37: 0 | AC37: 0 | AD37: 0 | AE37: 0
A38: 0029 | B38: Bernardston | C38: 0 | D38: 0 | E38: 0 | F38: 0 | G38: 0 | H38: 0 | I38: 0 | J38: 0 | K38: 0 | L38: 0 | M38: 0 | N38: 0 | O38: 0 | P38: 0 | Q38: 0 | R38: 0 | S38: 0 | T38: 0 | U38: 0 | V38: 0 | W38: 0 | X38: 0 | Y38: 0 | Z38: 0 | AA38: 0 | AB38: 0 | AC38: 0 | AD38: 0 | AE38: 0
A39: 0030 | B39: Beverly | C39: 49.39 | D39: 46.06 | E39: 41.14 | F39: 37.39 | G39: 47.98 | H39: 31.45 | I39: 46.34 | J39: 57.24 | K39: 65.175 | L39: 75.37 | M39: 62.35 | N39: 71.025 | O39: 68.785 | P39: 67.5 | Q39: 68.31 | R39: 53.76 | S39: 48.52 | T39: 64.04 | U39: 92.12 | V39: 95.32 | W39: 103.3 | X39: 101.83 | Y39: 102.13 | Z39: 104.63 | AA39: 123.83 | AB39: 127.17 | AC39: 134.25 | AD39: 136.19 | AE39: 131.62
A40: 0031 | B40: Billerica | C40: 0 | D40: 0 | E40: 0 | F40: 0 | G40: 0 | H40: 0 | I40: 0 | J40: 0 | K40: 0 | L40: 0 | M40: 0 | N40: 0 | O40: 0 | P40: 0 | Q40: 0 | R40: 0 | S40: 0 | T40: 0 | U40: 0 | V40: 0 | W40: 0 | X40: 0 | Y40: 0 | Z40: 0 | AA40: 0 | AB40: 0 | AC40: 0 | AD40: 0 | AE40: 0
A41: 0032 | B41: Blackstone | C41: 0 | D41: 0 | E41: 0 | F41: 0 | G41: 0 | H41: 0 | I41: 0 | J41: 0 | K41: 0 | L41: 0 | M41: 0 | N41: 0 | O41: 0 | P41: 0 | Q41: 0 | R41: 0 | S41: 0 | T41: 0 | U41: 0 | V41: 0 | W41: 0 | X41: 0 | Y41: 0 | Z41: 0 | AA41: 0 | AB41: 0 | AC41: 0 | AD41: 0 | AE41: 0
A42: 0033 | B42: Blandford | C42: 0 | D42: 0 | E42: 0 | F42: 0 | G42: 0 | H42: 0 | I42: 0 | J42: 0 | K42: 0 | L42: 0 | M42: 0 | N42: 0 | O42: 0 | P42: 0 | Q42: 0 | R42: 0 | S42: 0 | T42: 0 | U42: 0 | V42: 0 | W42: 0 | X42: 0 | Y42: 0 | Z42: 0 | AA42: 0 | AB42: 0 | AC42: 0 | AD42: 0 | AE42: 0
A43: 0034 | B43: Bolton | C43: 0 | D43: 0 | E43: 0 | F43: 0 | G43: 0 | H43: 0 | I43: 0 | J43: 0 | K43: 0 | L43: 0 | M43: 0 | N43: 0 | O43: 0 | P43: 0 | Q43: 0 | R43: 0 | S43: 0 | T43: 0 | U43: 0 | V43: 0 | W43: 0 | X43: 0 | Y43: 0 | Z43: 0 | AA43: 0 | AB43: 0 | AC43: 0 | AD43: 0 | AE43: 0
A44: 0035 | B44: Boston | C44: 0 | D44: 0 | E44: 0 | F44: 0 | G44: 0 | H44: 0 | I44: 0 | J44: 0 | K44: 0 | L44: 0 | M44: 0 | N44: 0 | O44: 0 | P44: 0 | Q44: 0 | R44: 0 | S44: 0 | T44: 0 | U44: 0 | V44: 0 | W44: 0 | X44: 0 | Y44: 0 | Z44: 0 | AA44: 0 | AB44: 0 | AC44: 0 | AD44: 0 | AE44: 0
A45: 0036 | B45: Bourne | C45: 0 | D45: 0 | E45: 0 | F45: 0 | G45: 0 | H45: 0 | I45: 0 | J45: 0 | K45: 0 | L45: 0 | M45: 9.33 | N45: 17.26 | O45: 33.38 | P45: 18.86 | Q45: 36.41 | R45: 44.04 | S45: 42.78 | T45: 40.77 | U45: 73.29 | V45: 126.46 | W45: 134.9 | X45: 136.69 | Y45: 143.4 | Z45: 171.62 | AA45: 136.71 | AB45: 119.32 | AC45: 96.86 | AD45: 114.37 | AE45: 104.24
A46: 0037 | B46: Boxborough | C46: 0 | D46: 0 | E46: 0 | F46: 0 | G46: 0 | H46: 0 | I46: 0 | J46: 0 | K46: 0 | L46: 0 | M46: 0 | N46: 0 | O46: 24.5 | P46: 31 | Q46: 30.5 | R46: 25.5 | S46: 26.26 | T46: 20 | U46: 27 | V46: 0 | W46: 0 | X46: 0 | Y46: 0 | Z46: 0 | AA46: 0 | AB46: 0 | AC46: 0 | AD46: 0 | AE46: 0
A47: 0038 | B47: Boxford | C47: 0 | D47: 0 | E47: 0 | F47: 0 | G47: 0 | H47: 0 | I47: 0 | J47: 0 | K47: 0 | L47: 0 | M47: 0 | N47: 0 | O47: 0 | P47: 0 | Q47: 0 | R47: 0 | S47: 0 | T47: 0 | U47: 0 | V47: 0 | W47: 0 | X47: 0 | Y47: 0 | Z47: 0 | AA47: 0 | AB47: 0 | AC47: 0 | AD47: 0 | AE47: 0
A48: 0039 | B48: Boylston | C48: 0 | D48: 0 | E48: 0 | F48: 0 | G48: 0 | H48: 0 | I48: 4.78 | J48: 7.99 | K48: 8.945 | L48: 10 | M48: 10.5 | N48: 16 | O48: 20.5 | P48: 25.51 | Q48: 23 | R48: 15.7 | S48: 12 | T48: 21.5 | U48: 17 | V48: 13 | W48: 17 | X48: 18.78 | Y48: 14 | Z48: 17 | AA48: 0 | AB48: 0 | AC48: 0 | AD48: 0 | AE48: 0
A49: 0040 | B49: Braintree | C49: 0 | D49: 0 | E49: 0 | F49: 0 | G49: 0 | H49: 0 | I49: 0 | J49: 0 | K49: 0 | L49: 0 | M49: 0 | N49: 0 | O49: 0 | P49: 0 | Q49: 0 | R49: 0 | S49: 0 | T49: 0 | U49: 0 | V49: 0 | W49: 0 | X49: 0 | Y49: 0 | Z49: 0 | AA49: 0 | AB49: 0 | AC49: 0 | AD49: 0 | AE49: 0
A50: 0041 | B50: Brewster | C50: 0 | D50: 0 | E50: 0 | F50: 0 | G50: 0 | H50: 0 | I50: 0 | J50: 0 | K50: 0 | L50: 0 | M50: 0 | N50: 0 | O50: 0 | P50: 0 | Q50: 0 | R50: 0 | S50: 0 | T50: 0 | U50: 0 | V50: 0 | W50: 0 | X50: 0 | Y50: 0 | Z50: 0 | AA50: 0 | AB50: 0 | AC50: 0 | AD50: 0 | AE50: 0
A51: 0042 | B51: Bridgewater | C51: 0 | D51: 0 | E51: 0 | F51: 0 | G51: 0 | H51: 0 | I51: 0 | J51: 0 | K51: 0 | L51: 0 | M51: 0 | N51: 0 | O51: 0 | P51: 0 | Q51: 0 | R51: 0 | S51: 0 | T51: 0 | U51: 0 | V51: 0 | W51: 0 | X51: 0 | Y51: 0 | Z51: 0 | AA51: 0 | AB51: 0 | AC51: 0 | AD51: 0 | AE51: 0
A52: 0043 | B52: Brimfield | C52: 0 | D52: 0 | E52: 0 | F52: 0 | G52: 0 | H52: 0 | I52: 0 | J52: 0 | K52: 0 | L52: 0 | M52: 0 | N52: 0 | O52: 0 | P52: 0 | Q52: 0 | R52: 0 | S52: 0 | T52: 0 | U52: 0 | V52: 0 | W52: 0 | X52: 0 | Y52: 0 | Z52: 0 | AA52: 0 | AB52: 0 | AC52: 0 | AD52: 0 | AE52: 0
A53: 0044 | B53: Brockton | C53: 0 | D53: 0 | E53: 0 | F53: 0 | G53: 0 | H53: 0 | I53: 0 | J53: 0 | K53: 0 | L53: 0 | M53: 0 | N53: 0 | O53: 3 | P53: 11.74 | Q53: 12 | R53: 12.12 | S53: 16.16 | T53: 15.03 | U53: 18.96 | V53: 23 | W53: 23.43 | X53: 22.35 | Y53: 23.75 | Z53: 20 | AA53: 14.21 | AB53: 10 | AC53: 11.43 | AD53: 11.35 | AE53: 11.82
A54: 0045 | B54: Brookfield | C54: 0 | D54: 0 | E54: 0.88 | F54: 8.55 | G54: 14.12 | H54: 11.83 | I54: 8 | J54: 4.48 | K54: 7.055 | L54: 6.58 | M54: 14.51 | N54: 21.01 | O54: 26.86 | P54: 28.88 | Q54: 30.8 | R54: 44.66 | S54: 55.3 | T54: 54.15 | U54: 57.66 | V54: 60.86 | W54: 56.91 | X54: 58.58 | Y54: 47.92 | Z54: 48.96 | AA54: 42.91 | AB54: 41.8 | AC54: 43.78 | AD54: 58.66 | AE54: 62.21
A55: 0046 | B55: Brookline | C55: 0 | D55: 0 | E55: 0 | F55: 0 | G55: 0 | H55: 0 | I55: 0 | J55: 0 | K55: 0 | L55: 0 | M55: 0 | N55: 0 | O55: 0 | P55: 0 | Q55: 0 | R55: 0 | S55: 0 | T55: 0 | U55: 0 | V55: 0 | W55: 0 | X55: 0 | Y55: 0 | Z55: 0 | AA55: 0 | AB55: 0 | AC55: 0 | AD55: 0 | AE55: 0
A56: 0047 | B56: Buckland | C56: 0 | D56: 0 | E56: 0 | F56: 0 | G56: 0 | H56: 0 | I56: 0 | J56: 0 | K56: 0 | L56: 0 | M56: 0 | N56: 0 | O56: 0 | P56: 0 | Q56: 0 | R56: 0 | S56: 0 | T56: 0 | U56: 0 | V56: 0 | W56: 0 | X56: 0 | Y56: 0 | Z56: 0 | AA56: 0 | AB56: 0 | AC56: 0 | AD56: 0 | AE56: 0
A57: 0048 | B57: Burlington | C57: 0 | D57: 0 | E57: 0 | F57: 0 | G57: 0 | H57: 0 | I57: 0 | J57: 0 | K57: 0 | L57: 0 | M57: 0 | N57: 0 | O57: 0 | P57: 0 | Q57: 0 | R57: 10.98 | S57: 16.16 | T57: 20.41 | U57: 23.31 | V57: 25.02 | W57: 28.93 | X57: 29.69 | Y57: 20.18 | Z57: 21 | AA57: 21.54 | AB57: 24 | AC57: 22 | AD57: 19.78 | AE57: 16.67
A58: 0049 | B58: Cambridge | C58: 0 | D58: 0 | E58: 0 | F58: 0 | G58: 0 | H58: 0 | I58: 0 | J58: 0 | K58: 0 | L58: 0 | M58: 0 | N58: 0 | O58: 0 | P58: 0 | Q58: 0 | R58: 0 | S58: 0 | T58: 0 | U58: 0 | V58: 0 | W58: 0 | X58: 0 | Y58: 0 | Z58: 0 | AA58: 0 | AB58: 0 | AC58: 0 | AD58: 0 | AE58: 0
A59: 0050 | B59: Canton | C59: 0 | D59: 0 | E59: 0 | F59: 0 | G59: 0 | H59: 0 | I59: 0 | J59: 0 | K59: 0 | L59: 0 | M59: 0 | N59: 0 | O59: 0 | P59: 0 | Q59: 0 | R59: 0 | S59: 0 | T59: 0 | U59: 0 | V59: 0 | W59: 0 | X59: 0 | Y59: 0 | Z59: 0 | AA59: 0 | AB59: 0 | AC59: 0 | AD59: 0 | AE59: 0
A60: 0051 | B60: Carlisle | C60: 0 | D60: 0 | E60: 0 | F60: 0 | G60: 0 | H60: 0 | I60: 0 | J60: 0 | K60: 0 | L60: 0 | M60: 0 | N60: 0 | O60: 0 | P60: 0 | Q60: 0 | R60: 0 | S60: 0 | T60: 0 | U60: 0 | V60: 0 | W60: 0 | X60: 0 | Y60: 0 | Z60: 0 | AA60: 0 | AB60: 0 | AC60: 0 | AD60: 0 | AE60: 0
A61: 0052 | B61: Carver | C61: 0 | D61: 0 | E61: 0 | F61: 0 | G61: 0 | H61: 0 | I61: 0 | J61: 0 | K61: 0 | L61: 0 | M61: 0 | N61: 0 | O61: 0 | P61: 0 | Q61: 0 | R61: 0 | S61: 12 | T61: 10.63 | U61: 16.74 | V61: 20.64 | W61: 22.56 | X61: 20 | Y61: 22 | Z61: 34.48 | AA61: 53.18 | AB61: 66.28 | AC61: 62.67 | AD61: 64.31 | AE61: 71.26
A62: 0053 | B62: Charlemont | C62: 0 | D62: 0 | E62: 0 | F62: 0 | G62: 0 | H62: 0 | I62: 0 | J62: 0 | K62: 0 | L62: 0 | M62: 0 | N62: 0 | O62: 0 | P62: 0 | Q62: 0 | R62: 0 | S62: 0 | T62: 0 | U62: 0 | V62: 0 | W62: 0 | X62: 0 | Y62: 0 | Z62: 0 | AA62: 0 | AB62: 0 | AC62: 0 | AD62: 0 | AE62: 0
A63: 0054 | B63: Charlton | C63: 0 | D63: 0 | E63: 0 | F63: 0 | G63: 0 | H63: 0 | I63: 0 | J63: 0 | K63: 0 | L63: 0 | M63: 0 | N63: 0 | O63: 0 | P63: 0 | Q63: 0 | R63: 0 | S63: 0 | T63: 0 | U63: 0 | V63: 0 | W63: 0 | X63: 0 | Y63: 0 | Z63: 0 | AA63: 0 | AB63: 0 | AC63: 0 | AD63: 0 | AE63: 0
A64: 0055 | B64: Chatham | C64: 32.61 | D64: 38.52 | E64: 55.43 | F64: 98.26 | G64: 88.56 | H64: 95.98 | I64: 104.36 | J64: 131.6 | K64: 133.53 | L64: 147.1 | M64: 168.04 | N64: 157.66 | O64: 168.86 | P64: 170 | Q64: 171.02 | R64: 200.89 | S64: 200.94 | T64: 0 | U64: 0 | V64: 0 | W64: 0 | X64: 0 | Y64: 0 | Z64: 0 | AA64: 0 | AB64: 0 | AC64: 0 | AD64: 0 | AE64: 0
A65: 0056 | B65: Chelmsford | C65: 12 | D65: 6 | E65: 0 | F65: 0 | G65: 0 | H65: 0 | I65: 0 | J65: 0 | K65: 0 | L65: 0 | M65: 0 | N65: 0 | O65: 0 | P65: 0 | Q65: 0 | R65: 13.17 | S65: 20.7 | T65: 24.77 | U65: 29.37 | V65: 44 | W65: 57.89 | X65: 50.43 | Y65: 52 | Z65: 48.57 | AA65: 41 | AB65: 46 | AC65: 41.44 | AD65: 35 | AE65: 39
A66: 0057 | B66: Chelsea | C66: 0 | D66: 0 | E66: 0 | F66: 0 | G66: 0 | H66: 0 | I66: 0 | J66: 0 | K66: 0 | L66: 0 | M66: 0 | N66: 0 | O66: 0 | P66: 0 | Q66: 0 | R66: 0 | S66: 0 | T66: 0 | U66: 0 | V66: 0 | W66: 0 | X66: 0 | Y66: 0 | Z66: 0 | AA66: 0 | AB66: 0 | AC66: 0 | AD66: 0 | AE66: 0
A67: 0058 | B67: Cheshire | C67: 0 | D67: 0 | E67: 0 | F67: 0 | G67: 0 | H67: 0 | I67: 0 | J67: 0 | K67: 0 | L67: 0 | M67: 0 | N67: 0 | O67: 0 | P67: 0 | Q67: 0 | R67: 0 | S67: 0 | T67: 0 | U67: 0 | V67: 0 | W67: 0 | X67: 0 | Y67: 0 | Z67: 0 | AA67: 0 | AB67: 0 | AC67: 0 | AD67: 0 | AE67: 0
A68: 0059 | B68: Chester | C68: 0 | D68: 0 | E68: 0 | F68: 0 | G68: 0 | H68: 0 | I68: 0 | J68: 0 | K68: 0 | L68: 0 | M68: 0 | N68: 0 | O68: 0 | P68: 0 | Q68: 0 | R68: 0 | S68: 0 | T68: 0 | U68: 0 | V68: 0 | W68: 0 | X68: 0 | Y68: 0 | Z68: 0 | AA68: 0 | AB68: 0 | AC68: 0 | AD68: 0 | AE68: 0
A69: 0060 | B69: Chesterfield | C69: 0 | D69: 0 | E69: 0 | F69: 0 | G69: 0 | H69: 0 | I69: 0 | J69: 0 | K69: 0 | L69: 0 | M69: 0 | N69: 0 | O69: 0 | P69: 0 | Q69: 0 | R69: 0 | S69: 0 | T69: 0 | U69: 0 | V69: 0 | W69: 0 | X69: 0 | Y69: 0 | Z69: 0 | AA69: 0 | AB69: 0 | AC69: 0 | AD69: 0 | AE69: 0
A70: 0061 | B70: Chicopee | C70: 0 | D70: 0 | E70: 0 | F70: 0 | G70: 0 | H70: 0 | I70: 0 | J70: 18.33 | K70: 97.67 | L70: 148.83 | M70: 167.63 | N70: 183.08 | O70: 199.78 | P70: 224.57 | Q70: 228.87 | R70: 191.02 | S70: 188.23 | T70: 177.51 | U70: 189.14 | V70: 179.17 | W70: 190.44 | X70: 181.6 | Y70: 185.01 | Z70: 176.07 | AA70: 170.45 | AB70: 125.86 | AC70: 123.59 | AD70: 107.58 | AE70: 102.77
A71: 0062 | B71: Chilmark | C71: 0 | D71: 0 | E71: 0 | F71: 0 | G71: 0 | H71: 0 | I71: 0 | J71: 0 | K71: 0 | L71: 0 | M71: 0 | N71: 0 | O71: 0 | P71: 0 | Q71: 0 | R71: 0 | S71: 0 | T71: 0 | U71: 0 | V71: 0 | W71: 0 | X71: 0 | Y71: 0 | Z71: 0 | AA71: 0 | AB71: 0 | AC71: 0 | AD71: 0 | AE71: 0
A72: 0063 | B72: Clarksburg | C72: 0 | D72: 0 | E72: 0 | F72: 0 | G72: 0 | H72: 0 | I72: 0 | J72: 0 | K72: 0 | L72: 0 | M72: 0 | N72: 0 | O72: 0 | P72: 0 | Q72: 0 | R72: 14.39 | S72: 19 | T72: 20.69 | U72: 22 | V72: 26.96 | W72: 35.39 | X72: 46 | Y72: 54 | Z72: 54.72 | AA72: 63.27 | AB72: 55.2 | AC72: 53 | AD72: 48.83 | AE72: 41
A73: 0064 | B73: Clinton | C73: 42.79333333 | D73: 56.9 | E73: 66.76 | F73: 81.4 | G73: 75.34 | H73: 83.77 | I73: 107.95 | J73: 104.61 | K73: 112.94 | L73: 120.655 | M73: 103.29 | N73: 113.79 | O73: 119.51 | P73: 136.58 | Q73: 125.19 | R73: 125.81 | S73: 136.99 | T73: 138.51 | U73: 129.94 | V73: 115.98 | W73: 82.43 | X73: 77.37 | Y73: 83.13 | Z73: 81.88 | AA73: 73.12 | AB73: 66.2 | AC73: 68.49 | AD73: 79.25 | AE73: 65.06
A74: 0065 | B74: Cohasset | C74: 0 | D74: 0 | E74: 0 | F74: 0 | G74: 0 | H74: 0 | I74: 0 | J74: 0 | K74: 0 | L74: 0 | M74: 0 | N74: 0 | O74: 0 | P74: 0 | Q74: 0 | R74: 0 | S74: 0 | T74: 0 | U74: 0 | V74: 0 | W74: 0 | X74: 0 | Y74: 0 | Z74: 0 | AA74: 0 | AB74: 0 | AC74: 0 | AD74: 0 | AE74: 0
A75: 0066 | B75: Colrain | C75: 0 | D75: 0 | E75: 0 | F75: 0 | G75: 0 | H75: 0 | I75: 0 | J75: 0 | K75: 0 | L75: 0 | M75: 0 | N75: 0 | O75: 0 | P75: 0 | Q75: 0 | R75: 0 | S75: 0 | T75: 0 | U75: 0 | V75: 0 | W75: 0 | X75: 0 | Y75: 0 | Z75: 0 | AA75: 0 | AB75: 0 | AC75: 0 | AD75: 0 | AE75: 0
A76: 0067 | B76: Concord | C76: 0 | D76: 0 | E76: 0 | F76: 0 | G76: 0 | H76: 0 | I76: 0 | J76: 0 | K76: 0 | L76: 0 | M76: 0 | N76: 0 | O76: 0 | P76: 0 | Q76: 0 | R76: 0 | S76: 0 | T76: 0 | U76: 0 | V76: 0 | W76: 0 | X76: 0 | Y76: 0 | Z76: 0 | AA76: 0 | AB76: 0 | AC76: 0 | AD76: 0 | AE76: 0
A77: 0068 | B77: Conway | C77: 0 | D77: 0 | E77: 0 | F77: 0 | G77: 0 | H77: 0 | I77: 0.74 | J77: 7 | K77: 12 | L77: 22.86 | M77: 25.43 | N77: 21 | O77: 21 | P77: 22.89 | Q77: 19.65 | R77: 23.3 | S77: 12.04 | T77: 15 | U77: 20 | V77: 19.48 | W77: 19.21 | X77: 24 | Y77: 34.61 | Z77: 36 | AA77: 40 | AB77: 41.99 | AC77: 53 | AD77: 49.84 | AE77: 54
A78: 0069 | B78: Cummington | C78: 0 | D78: 0 | E78: 0 | F78: 0 | G78: 0 | H78: 0 | I78: 0 | J78: 0 | K78: 0 | L78: 0 | M78: 0 | N78: 0 | O78: 0 | P78: 0 | Q78: 0 | R78: 0 | S78: 0 | T78: 0 | U78: 0 | V78: 0 | W78: 0 | X78: 0 | Y78: 0 | Z78: 0 | AA78: 0 | AB78: 0 | AC78: 0 | AD78: 0 | AE78: 0
A79: 0070 | B79: Dalton | C79: 0 | D79: 0 | E79: 0 | F79: 0 | G79: 0 | H79: 0 | I79: 0 | J79: 0 | K79: 0 | L79: 0 | M79: 0 | N79: 0 | O79: 0 | P79: 0 | Q79: 0 | R79: 0 | S79: 0 | T79: 0 | U79: 0 | V79: 0 | W79: 0 | X79: 0 | Y79: 0 | Z79: 0 | AA79: 0 | AB79: 0 | AC79: 0 | AD79: 0 | AE79: 0
A80: 0071 | B80: Danvers | C80: 12.51 | D80: 9.95 | E80: 9.03 | F80: 6 | G80: 1 | H80: 0 | I80: 0 | J80: 0 | K80: 0 | L80: 0 | M80: 0 | N80: 0 | O80: 0 | P80: 0 | Q80: 0 | R80: 0 | S80: 0 | T80: 0 | U80: 0 | V80: 0 | W80: 0 | X80: 0 | Y80: 0 | Z80: 0 | AA80: 0 | AB80: 0 | AC80: 0 | AD80: 0 | AE80: 0
A81: 0072 | B81: Dartmouth | C81: 0 | D81: 0 | E81: 0 | F81: 0 | G81: 0 | H81: 0 | I81: 0 | J81: 0 | K81: 0 | L81: 0 | M81: 0 | N81: 0 | O81: 0 | P81: 0 | Q81: 0 | R81: 0 | S81: 0 | T81: 0 | U81: 0 | V81: 0 | W81: 0 | X81: 30 | Y81: 59.73 | Z81: 90.36 | AA81: 105.51 | AB81: 108.84 | AC81: 123.5 | AD81: 141.14 | AE81: 134.27
A82: 0073 | B82: Dedham | C82: 0 | D82: 0 | E82: 0 | F82: 0 | G82: 0 | H82: 0 | I82: 0 | J82: 0 | K82: 0 | L82: 0 | M82: 0 | N82: 0 | O82: 0 | P82: 0 | Q82: 0 | R82: 0 | S82: 0 | T82: 0 | U82: 0 | V82: 0 | W82: 0 | X82: 0 | Y82: 0 | Z82: 0 | AA82: 0 | AB82: 0 | AC82: 0 | AD82: 0 | AE82: 0
A83: 0074 | B83: Deerfield | C83: 0 | D83: 0 | E83: 0 | F83: 0 | G83: 5.72 | H83: 16.54 | I83: 37.94 | J83: 45.67 | K83: 57 | L83: 64.3 | M83: 68.82 | N83: 80.05 | O83: 80.05 | P83: 74.95 | Q83: 76.44 | R83: 64 | S83: 68.81 | T83: 84.44 | U83: 90.7 | V83: 100.67 | W83: 89.79 | X83: 80.07 | Y83: 80.06 | Z83: 69.23 | AA83: 59.64 | AB83: 47.93 | AC83: 55.92 | AD83: 53.33 | AE83: 46
A84: 0075 | B84: Dennis | C84: 0 | D84: 0 | E84: 0 | F84: 0 | G84: 0 | H84: 0 | I84: 0 | J84: 0 | K84: 0 | L84: 0 | M84: 0 | N84: 0 | O84: 0 | P84: 0 | Q84: 0 | R84: 0 | S84: 0 | T84: 0 | U84: 0 | V84: 0 | W84: 0 | X84: 0 | Y84: 0 | Z84: 0 | AA84: 0 | AB84: 0 | AC84: 0 | AD84: 0 | AE84: 0
A85: 0076 | B85: Dighton | C85: 0 | D85: 0 | E85: 0 | F85: 0 | G85: 0 | H85: 0 | I85: 0 | J85: 0 | K85: 0 | L85: 0 | M85: 0 | N85: 0 | O85: 0 | P85: 0 | Q85: 0 | R85: 0 | S85: 0 | T85: 0 | U85: 0 | V85: 0 | W85: 0 | X85: 0 | Y85: 0 | Z85: 0 | AA85: 0 | AB85: 0 | AC85: 0 | AD85: 0 | AE85: 0
A86: 0077 | B86: Douglas | C86: 18.88 | D86: 22.07 | E86: 17.15 | F86: 26.04 | G86: 12.58 | H86: 17.69 | I86: 23.71 | J86: 31.37 | K86: 54.855 | L86: 98.11 | M86: 90.36 | N86: 82.47 | O86: 88.27 | P86: 89.69 | Q86: 110.17 | R86: 100.61 | S86: 101.28 | T86: 110.58 | U86: 122.64 | V86: 121.81 | W86: 116.61 | X86: 123.32 | Y86: 110.16 | Z86: 127.49 | AA86: 121.46 | AB86: 124.08 | AC86: 122.18 | AD86: 100.85 | AE86: 100.55
A87: 0078 | B87: Dover | C87: 0 | D87: 0 | E87: 0 | F87: 0 | G87: 0 | H87: 0 | I87: 0 | J87: 0 | K87: 0 | L87: 0 | M87: 0 | N87: 0 | O87: 0 | P87: 0 | Q87: 0 | R87: 0 | S87: 0 | T87: 0 | U87: 0 | V87: 0 | W87: 0 | X87: 0 | Y87: 0 | Z87: 0 | AA87: 0 | AB87: 0 | AC87: 0 | AD87: 0 | AE87: 0
A88: 0079 | B88: Dracut | C88: 40.5 | D88: 38.75 | E88: 37.68 | F88: 44.97 | G88: 38.26 | H88: 37.24 | I88: 35.17 | J88: 33.36 | K88: 31.8 | L88: 29.68 | M88: 26.75 | N88: 28.81 | O88: 25.74 | P88: 30.56 | Q88: 23.9 | R88: 28.7 | S88: 29.52 | T88: 22.95 | U88: 25.95 | V88: 26.94 | W88: 35.85 | X88: 36.75 | Y88: 28.47 | Z88: 30.98 | AA88: 22.77 | AB88: 19.06 | AC88: 16.68 | AD88: 11.91 | AE88: 12.99
A89: 0080 | B89: Dudley | C89: 0 | D89: 0 | E89: 0 | F89: 0 | G89: 0 | H89: 0 | I89: 0 | J89: 0 | K89: 0 | L89: 0 | M89: 0 | N89: 0 | O89: 0 | P89: 0 | Q89: 0 | R89: 0 | S89: 0 | T89: 0 | U89: 0 | V89: 0 | W89: 0 | X89: 0 | Y89: 0 | Z89: 0 | AA89: 0 | AB89: 0 | AC89: 0 | AD89: 0 | AE89: 0
A90: 0081 | B90: Dunstable | C90: 0 | D90: 0 | E90: 0 | F90: 0 | G90: 0 | H90: 0 | I90: 0 | J90: 0 | K90: 0 | L90: 0 | M90: 0 | N90: 0 | O90: 0 | P90: 0 | Q90: 0 | R90: 0 | S90: 0 | T90: 0 | U90: 0 | V90: 0 | W90: 0 | X90: 0 | Y90: 0 | Z90: 0 | AA90: 0 | AB90: 0 | AC90: 0 | AD90: 0 | AE90: 0
A91: 0082 | B91: Duxbury | C91: 0 | D91: 0 | E91: 0 | F91: 0 | G91: 0 | H91: 0 | I91: 0 | J91: 0 | K91: 0 | L91: 0 | M91: 0 | N91: 0 | O91: 0 | P91: 0 | Q91: 0 | R91: 0 | S91: 0 | T91: 0 | U91: 0 | V91: 0 | W91: 0 | X91: 0 | Y91: 0 | Z91: 0 | AA91: 0 | AB91: 0 | AC91: 0 | AD91: 0 | AE91: 0
A92: 0083 | B92: East Bridgewater | C92: 0 | D92: 0 | E92: 0 | F92: 0 | G92: 0 | H92: 0 | I92: 0 | J92: 0 | K92: 0 | L92: 0 | M92: 0 | N92: 0 | O92: 0 | P92: 0 | Q92: 5.59 | R92: 8 | S92: 7 | T92: 5 | U92: 2 | V92: 14.69 | W92: 26.01 | X92: 34 | Y92: 45.98 | Z92: 43.36 | AA92: 45.65 | AB92: 39.53 | AC92: 30.99 | AD92: 32.2 | AE92: 31.06
A93: 0084 | B93: East Brookfield | C93: 0 | D93: 0 | E93: 0 | F93: 0 | G93: 0 | H93: 0 | I93: 0 | J93: 0 | K93: 0 | L93: 0 | M93: 0 | N93: 0 | O93: 0 | P93: 0 | Q93: 0 | R93: 0 | S93: 0 | T93: 0 | U93: 0 | V93: 0 | W93: 0 | X93: 0 | Y93: 0 | Z93: 0 | AA93: 0 | AB93: 0 | AC93: 0 | AD93: 0 | AE93: 0
A94: 0085 | B94: Eastham | C94: 0 | D94: 0 | E94: 0 | F94: 0 | G94: 0 | H94: 0 | I94: 0 | J94: 0 | K94: 0 | L94: 0 | M94: 0 | N94: 0 | O94: 0 | P94: 0 | Q94: 0 | R94: 0 | S94: 0 | T94: 0 | U94: 0 | V94: 0 | W94: 0 | X94: 1 | Y94: 0 | Z94: 0 | AA94: 0 | AB94: 0 | AC94: 0 | AD94: 0 | AE94: 0
A95: 0086 | B95: Easthampton | C95: 0 | D95: 0 | E95: 0 | F95: 7.84 | G95: 14.86 | H95: 16.06 | I95: 37.14 | J95: 47.62 | K95: 58.7 | L95: 68.605 | M95: 79.69 | N95: 88.9 | O95: 96.11 | P95: 89.76 | Q95: 63.86 | R95: 60.89 | S95: 66.01 | T95: 68.48 | U95: 76.75 | V95: 84.16 | W95: 86.1 | X95: 117.76 | Y95: 132.81 | Z95: 139.22 | AA95: 125.7 | AB95: 126.62 | AC95: 118.64 | AD95: 117.34 | AE95: 100.65
A96: 0087 | B96: East Longmeadow | C96: 41.98 | D96: 33 | E96: 56.98 | F96: 42.22 | G96: 39.32 | H96: 33.83 | I96: 13.1 | J96: 10.14 | K96: 2 | L96: 1.73 | M96: 0 | N96: 0 | O96: 0 | P96: 0 | Q96: 0 | R96: 0 | S96: 0 | T96: 0 | U96: 0 | V96: 0 | W96: 0 | X96: 0 | Y96: 0 | Z96: 0 | AA96: 0 | AB96: 15 | AC96: 23 | AD96: 33.22 | AE96: 34.73
A97: 0088 | B97: Easton | C97: 0 | D97: 0 | E97: 0 | F97: 0 | G97: 0 | H97: 0 | I97: 0 | J97: 0 | K97: 0 | L97: 0 | M97: 0 | N97: 0 | O97: 0 | P97: 0 | Q97: 0 | R97: 0 | S97: 0 | T97: 0 | U97: 0 | V97: 0 | W97: 0 | X97: 0 | Y97: 0 | Z97: 0 | AA97: 0 | AB97: 0 | AC97: 0 | AD97: 0 | AE97: 0
A98: 0089 | B98: Edgartown | C98: 0 | D98: 0 | E98: 0 | F98: 0 | G98: 0 | H98: 0 | I98: 0 | J98: 4 | K98: 8 | L98: 12 | M98: 7.66 | N98: 10 | O98: 16 | P98: 11 | Q98: 15 | R98: 16 | S98: 12 | T98: 17.66 | U98: 13.75 | V98: 12.64 | W98: 8 | X98: 9.41 | Y98: 7.84 | Z98: 7 | AA98: 10 | AB98: 3.84 | AC98: 5 | AD98: 4 | AE98: 3
A99: 0090 | B99: Egremont | C99: 0 | D99: 0 | E99: 0 | F99: 0 | G99: 0 | H99: 0 | I99: 0 | J99: 0 | K99: 0 | L99: 0 | M99: 0 | N99: 0 | O99: 0 | P99: 0 | Q99: 0 | R99: 0 | S99: 0 | T99: 0 | U99: 0 | V99: 0 | W99: 0 | X99: 0 | Y99: 0 | Z99: 0 | AA99: 0 | AB99: 0 | AC99: 0 | AD99: 0 | AE99: 0
A100: 0091 | B100: Erving | C100: 0 | D100: 0 | E100: 0 | F100: 0 | G100: 0 | H100: 0 | I100: 0 | J100: 0 | K100: 0 | L100: 0 | M100: 0 | N100: 0 | O100: 0 | P100: 0 | Q100: 0 | R100: 0 | S100: 0 | T100: 0 | U100: 0 | V100: 0 | W100: 0 | X100: 0 | Y100: 0 | Z100: 0 | AA100: 0 | AB100: 0 | AC100: 0 | AD100: 0 | AE100: 0
A101: 0092 | B101: Essex | C101: 14.2 | D101: 9.77 | E101: 10.1 | F101: 6 | G101: 5.48 | H101: 0 | I101: 0 | J101: 0 | K101: 0 | L101: 0 | M101: 0 | N101: 0 | O101: 0 | P101: 0 | Q101: 0 | R101: 0 | S101: 0 | T101: 0 | U101: 0 | V101: 0 | W101: 0 | X101: 0 | Y101: 0 | Z101: 0 | AA101: 0 | AB101: 0 | AC101: 0 | AD101: 0 | AE101: 0
A102: 0093 | B102: Everett | C102: 0 | D102: 0 | E102: 0 | F102: 0 | G102: 0 | H102: 0 | I102: 0 | J102: 0 | K102: 0 | L102: 0 | M102: 0 | N102: 0 | O102: 0 | P102: 0 | Q102: 0 | R102: 0 | S102: 0 | T102: 0 | U102: 0 | V102: 0 | W102: 0 | X102: 0 | Y102: 0 | Z102: 0 | AA102: 0 | AB102: 0 | AC102: 0 | AD102: 0 | AE102: 0
A103: 0094 | B103: Fairhaven | C103: 0 | D103: 0 | E103: 0 | F103: 0 | G103: 0 | H103: 0 | I103: 0 | J103: 0 | K103: 0 | L103: 0 | M103: 0 | N103: 0 | O103: 0 | P103: 0 | Q103: 0 | R103: 0 | S103: 0 | T103: 0 | U103: 0 | V103: 0 | W103: 0 | X103: 0 | Y103: 0 | Z103: 0 | AA103: 0 | AB103: 0 | AC103: 0 | AD103: 0 | AE103: 0
A104: 0095 | B104: Fall River | C104: 0 | D104: 0 | E104: 0 | F104: 0 | G104: 0 | H104: 0 | I104: 0 | J104: 0 | K104: 0 | L104: 0 | M104: 0 | N104: 0 | O104: 2 | P104: 3 | Q104: 24.78 | R104: 21.02 | S104: 4.38 | T104: 22.86 | U104: 21.72 | V104: 16.41 | W104: 26.35 | X104: 52.71 | Y104: 42.66 | Z104: 43 | AA104: 50.93 | AB104: 85.56 | AC104: 83.81 | AD104: 63.275 | AE104: 55.9
A105: 0096 | B105: Falmouth | C105: 0 | D105: 0 | E105: 0 | F105: 0 | G105: 0 | H105: 0 | I105: 0 | J105: 10.36 | K105: 15.7 | L105: 20.35 | M105: 13.66 | N105: 14.2 | O105: 14.1 | P105: 21.12 | Q105: 31.25 | R105: 34.44 | S105: 47.08 | T105: 65.48 | U105: 70.35 | V105: 91.45 | W105: 112.15 | X105: 125.68 | Y105: 111.09 | Z105: 153.16 | AA105: 170.03 | AB105: 164.15 | AC105: 163.36 | AD105: 151.57 | AE105: 165.92
A106: 0097 | B106: Fitchburg | C106: 60.57 | D106: 97.47 | E106: 137.27 | F106: 139.71 | G106: 136.59 | H106: 149.51 | I106: 183.21 | J106: 177.905 | K106: 147.95 | L106: 158.415 | M106: 142.945 | N106: 142.51 | O106: 151.97 | P106: 150.885 | Q106: 170.815 | R106: 179.86 | S106: 188.36 | T106: 200.1 | U106: 179.47 | V106: 180.12 | W106: 175.75 | X106: 183.68 | Y106: 191.12 | Z106: 190.95 | AA106: 191.48 | AB106: 188.9 | AC106: 203.73 | AD106: 172.95 | AE106: 126.8
A107: 0098 | B107: Florida | C107: 0 | D107: 0 | E107: 0 | F107: 0 | G107: 0 | H107: 0 | I107: 0 | J107: 0 | K107: 0 | L107: 0 | M107: 0 | N107: 0 | O107: 0 | P107: 0 | Q107: 0 | R107: 2 | S107: 4 | T107: 4 | U107: 7 | V107: 2 | W107: 3.42 | X107: 4.92 | Y107: 10.9 | Z107: 16 | AA107: 20.6 | AB107: 20.37 | AC107: 24 | AD107: 28 | AE107: 24.12
A108: 0099 | B108: Foxborough | C108: 0 | D108: 0 | E108: 0 | F108: 0 | G108: 0 | H108: 0 | I108: 0 | J108: 0 | K108: 0 | L108: 0 | M108: 0 | N108: 0 | O108: 0 | P108: 0 | Q108: 0 | R108: 0 | S108: 0 | T108: 0 | U108: 0 | V108: 0 | W108: 0 | X108: 0 | Y108: 0 | Z108: 0 | AA108: 0 | AB108: 0 | AC108: 0 | AD108: 0 | AE108: 0
A109: 0100 | B109: Framingham | C109: 0 | D109: 0 | E109: 0 | F109: 0 | G109: 0 | H109: 0 | I109: 0 | J109: 0 | K109: 0 | L109: 0 | M109: 0 | N109: 0 | O109: 0 | P109: 0 | Q109: 0 | R109: 0 | S109: 0 | T109: 0 | U109: 0 | V109: 0 | W109: 0 | X109: 0 | Y109: 0 | Z109: 0 | AA109: 0 | AB109: 0 | AC109: 0 | AD109: 0 | AE109: 0
A110: 0101 | B110: Franklin | C110: 0 | D110: 0 | E110: 0 | F110: 0 | G110: 0 | H110: 0 | I110: 0 | J110: 0 | K110: 13 | L110: 26.28 | M110: 28.42 | N110: 46.04 | O110: 71.79 | P110: 56.01 | Q110: 40.77 | R110: 30 | S110: 20 | T110: 17 | U110: 13 | V110: 10 | W110: 7 | X110: 6.94 | Y110: 3 | Z110: 2 | AA110: 1 | AB110: 0 | AC110: 0 | AD110: 0 | AE110: 0
A111: 0102 | B111: Freetown | C111: 0 | D111: 0 | E111: 0 | F111: 0 | G111: 0 | H111: 0 | I111: 0 | J111: 0 | K111: 0 | L111: 0 | M111: 0 | N111: 0 | O111: 0 | P111: 0 | Q111: 0 | R111: 0 | S111: 0 | T111: 0 | U111: 0 | V111: 0 | W111: 0 | X111: 0 | Y111: 0 | Z111: 0 | AA111: 0 | AB111: 0 | AC111: 0 | AD111: 0 | AE111: 0
A112: 0103 | B112: Gardner | C112: 58.54 | D112: 69.1 | E112: 75.29 | F112: 76.48 | G112: 98.3 | H112: 90.99 | I112: 99.93 | J112: 115.48 | K112: 134.175 | L112: 127.41 | M112: 144.19 | N112: 199.955 | O112: 239.835 | P112: 162.32 | Q112: 168.56 | R112: 166.3 | S112: 176.73 | T112: 156.4 | U112: 150.7 | V112: 140.23 | W112: 121.98 | X112: 119.26 | Y112: 110.43 | Z112: 109.41 | AA112: 160.63 | AB112: 161.6 | AC112: 155.86 | AD112: 159.7 | AE112: 174.94
A113: 0104 | B113: Aquinnah | C113: 0 | D113: 0 | E113: 0 | F113: 0 | G113: 0 | H113: 0 | I113: 0 | J113: 0 | K113: 0 | L113: 0 | M113: 0 | N113: 0 | O113: 0 | P113: 0 | Q113: 0 | R113: 0 | S113: 0 | T113: 0 | U113: 0 | V113: 0 | W113: 0 | X113: 0 | Y113: 0 | Z113: 0 | AA113: 0 | AB113: 0 | AC113: 0 | AD113: 0 | AE113: 0
A114: 0105 | B114: Georgetown | C114: 56.08222222 | D114: 62.64 | E114: 67.05 | F114: 51.85 | G114: 45.32 | H114: 50.7 | I114: 64.23 | J114: 64.41 | K114: 62.44 | L114: 64.37 | M114: 60.475 | N114: 64.62 | O114: 55 | P114: 59.22 | Q114: 47 | R114: 37.9 | S114: 28 | T114: 26 | U114: 27.82 | V114: 38 | W114: 40 | X114: 37.21 | Y114: 37.45 | Z114: 45.31 | AA114: 31 | AB114: 25.01 | AC114: 22.56 | AD114: 18.63 | AE114: 31
A115: 0106 | B115: Gill | C115: 0 | D115: 0 | E115: 0 | F115: 0 | G115: 0 | H115: 0 | I115: 0 | J115: 0 | K115: 0 | L115: 0 | M115: 0 | N115: 0 | O115: 0 | P115: 0 | Q115: 0 | R115: 0 | S115: 0 | T115: 0 | U115: 0 | V115: 0 | W115: 0 | X115: 0 | Y115: 0 | Z115: 0 | AA115: 0 | AB115: 0 | AC115: 0 | AD115: 0 | AE115: 0
A116: 0107 | B116: Gloucester | C116: 0 | D116: 14.83 | E116: 26.74 | F116: 56.66 | G116: 66.68 | H116: 74.19 | I116: 81.15 | J116: 69.65 | K116: 69.39 | L116: 64.39 | M116: 55.02 | N116: 43.57 | O116: 46.79 | P116: 40.62 | Q116: 35.17 | R116: 31.53 | S116: 33.52 | T116: 39.65 | U116: 43.87 | V116: 39.2 | W116: 38.54 | X116: 37.39 | Y116: 32.7 | Z116: 38.97 | AA116: 34.63 | AB116: 39.47 | AC116: 38.59 | AD116: 30.09 | AE116: 33.81
A117: 0108 | B117: Goshen | C117: 0 | D117: 0 | E117: 0 | F117: 0 | G117: 0 | H117: 0 | I117: 0 | J117: 0 | K117: 0 | L117: 0 | M117: 0 | N117: 0 | O117: 0 | P117: 0 | Q117: 0 | R117: 0 | S117: 0 | T117: 0 | U117: 0 | V117: 0 | W117: 0 | X117: 0 | Y117: 0 | Z117: 0 | AA117: 0 | AB117: 0 | AC117: 0 | AD117: 0 | AE117: 0
A118: 0109 | B118: Gosnold | C118: 0 | D118: 0 | E118: 0 | F118: 0 | G118: 0 | H118: 0 | I118: 0 | J118: 0 | K118: 0 | L118: 0 | M118: 0 | N118: 0 | O118: 0 | P118: 0 | Q118: 0 | R118: 0 | S118: 0 | T118: 0 | U118: 0 | V118: 0 | W118: 0 | X118: 0 | Y118: 0 | Z118: 0 | AA118: 0 | AB118: 0 | AC118: 0 | AD118: 0 | AE118: 0
A119: 0110 | B119: Grafton | C119: 0 | D119: 0 | E119: 0 | F119: 0 | G119: 0 | H119: 0 | I119: 0 | J119: 0 | K119: 0 | L119: 0 | M119: 0 | N119: 0 | O119: 0 | P119: 0 | Q119: 0 | R119: 0 | S119: 0 | T119: 0 | U119: 18.27 | V119: 31.53 | W119: 42.56 | X119: 64.4 | Y119: 66.65 | Z119: 88.88 | AA119: 114.48 | AB119: 122.89 | AC119: 118.52 | AD119: 123.15 | AE119: 129.43
A120: 0111 | B120: Granby | C120: 36.39 | D120: 69.24 | E120: 87.33 | F120: 94.7 | G120: 105.98 | H120: 105 | I120: 111.07 | J120: 112.88 | K120: 109.405 | L120: 106.75 | M120: 103.77 | N120: 103.6 | O120: 100.475 | P120: 109.29 | Q120: 131.96 | R120: 132.25 | S120: 140.21 | T120: 114.12 | U120: 113.3 | V120: 132.75 | W120: 117.09 | X120: 93.59 | Y120: 90.17 | Z120: 106.16 | AA120: 118.99 | AB120: 108.4 | AC120: 100.14 | AD120: 104.31 | AE120: 105.32
A121: 0112 | B121: Granville | C121: 0 | D121: 0 | E121: 0 | F121: 0 | G121: 0 | H121: 0 | I121: 0 | J121: 0 | K121: 0 | L121: 0 | M121: 0 | N121: 0 | O121: 0 | P121: 0 | Q121: 0 | R121: 0 | S121: 0 | T121: 0 | U121: 0 | V121: 0 | W121: 0 | X121: 0 | Y121: 0 | Z121: 0 | AA121: 0 | AB121: 0 | AC121: 0 | AD121: 0 | AE121: 0
A122: 0113 | B122: Great Barrington | C122: 0 | D122: 0 | E122: 0 | F122: 0 | G122: 0 | H122: 0 | I122: 0 | J122: 0 | K122: 0 | L122: 0 | M122: 0 | N122: 0 | O122: 0 | P122: 0 | Q122: 0 | R122: 0 | S122: 0 | T122: 0 | U122: 0 | V122: 0 | W122: 0 | X122: 0 | Y122: 0 | Z122: 0 | AA122: 0 | AB122: 0 | AC122: 0 | AD122: 0 | AE122: 0
A123: 0114 | B123: Greenfield | C123: 0 | D123: 0 | E123: 0 | F123: 8.58 | G123: 28.42 | H123: 38.43 | I123: 60.37 | J123: 70.9 | K123: 74.54 | L123: 62.08 | M123: 57.795 | N123: 69.03 | O123: 58.49 | P123: 38.4 | Q123: 48.24 | R123: 59.24 | S123: 508.4 | T123: 506.59 | U123: 65.17 | V123: 92.59 | W123: 116.55 | X123: 109.71 | Y123: 95.75 | Z123: 101.1 | AA123: 94.5 | AB123: 73.12 | AC123: 69.79 | AD123: 56.38 | AE123: 51.8
A124: 0115 | B124: Groton | C124: 0 | D124: 0 | E124: 0 | F124: 0 | G124: 0 | H124: 0 | I124: 0 | J124: 0 | K124: 0 | L124: 0 | M124: 0 | N124: 0 | O124: 0 | P124: 0 | Q124: 0 | R124: 0 | S124: 0 | T124: 0 | U124: 0 | V124: 0 | W124: 0 | X124: 0 | Y124: 0 | Z124: 0 | AA124: 0 | AB124: 0 | AC124: 0 | AD124: 0 | AE124: 0
A125: 0116 | B125: Groveland | C125: 0 | D125: 0 | E125: 0 | F125: 0 | G125: 0 | H125: 0 | I125: 0 | J125: 0 | K125: 0 | L125: 0 | M125: 0 | N125: 0 | O125: 0 | P125: 0 | Q125: 0 | R125: 0 | S125: 0 | T125: 0 | U125: 0 | V125: 0 | W125: 0 | X125: 0 | Y125: 0 | Z125: 0 | AA125: 0 | AB125: 0 | AC125: 0 | AD125: 0 | AE125: 0
A126: 0117 | B126: Hadley | C126: 0 | D126: 0 | E126: 0 | F126: 0 | G126: 0 | H126: 0 | I126: 0 | J126: 12.05 | K126: 15.9 | L126: 16.14 | M126: 34.06 | N126: 43.57 | O126: 55.07 | P126: 79.19 | Q126: 75.52 | R126: 75.62 | S126: 77.67 | T126: 75.56 | U126: 78.47 | V126: 102.43 | W126: 98.47 | X126: 82.12 | Y126: 81.46 | Z126: 94.62 | AA126: 112.91 | AB126: 114.3 | AC126: 108.49 | AD126: 110.49 | AE126: 127.57
A127: 0118 | B127: Halifax | C127: 0 | D127: 0 | E127: 0 | F127: 0 | G127: 0 | H127: 0 | I127: 0 | J127: 0 | K127: 0 | L127: 0 | M127: 0 | N127: 0 | O127: 0 | P127: 0 | Q127: 0 | R127: 0 | S127: 0 | T127: 0 | U127: 0 | V127: 0 | W127: 0 | X127: 0 | Y127: 0 | Z127: 0 | AA127: 0 | AB127: 0 | AC127: 0 | AD127: 0 | AE127: 0
A128: 0119 | B128: Hamilton | C128: 0 | D128: 0 | E128: 0 | F128: 0 | G128: 0 | H128: 0 | I128: 0 | J128: 0 | K128: 0 | L128: 0 | M128: 0 | N128: 0 | O128: 0 | P128: 0 | Q128: 0 | R128: 0 | S128: 0 | T128: 0 | U128: 0 | V128: 0 | W128: 0 | X128: 0 | Y128: 0 | Z128: 0 | AA128: 0 | AB128: 0 | AC128: 0 | AD128: 0 | AE128: 0
A129: 0120 | B129: Hampden | C129: 0 | D129: 0 | E129: 0 | F129: 0 | G129: 0 | H129: 0 | I129: 0 | J129: 0 | K129: 0 | L129: 0 | M129: 0 | N129: 0 | O129: 0 | P129: 0 | Q129: 0 | R129: 0 | S129: 0 | T129: 0 | U129: 0 | V129: 0 | W129: 0 | X129: 0 | Y129: 0 | Z129: 0 | AA129: 0 | AB129: 0 | AC129: 0 | AD129: 0 | AE129: 0
A130: 0121 | B130: Hancock | C130: 4 | D130: 5.29 | E130: 5 | F130: 6.61 | G130: 6 | H130: 4 | I130: 6.56 | J130: 8 | K130: 5.5 | L130: 4.42 | M130: 6 | N130: 5 | O130: 6.5 | P130: 3.81 | Q130: 6 | R130: 8.34 | S130: 7 | T130: 3 | U130: 4 | V130: 3 | W130: 5 | X130: 8 | Y130: 7 | Z130: 9.44 | AA130: 10 | AB130: 13.92 | AC130: 13.15 | AD130: 14.77 | AE130: 14
A131: 0122 | B131: Hanover | C131: 0 | D131: 0 | E131: 0 | F131: 0 | G131: 0 | H131: 0 | I131: 0 | J131: 0 | K131: 0 | L131: 0 | M131: 0 | N131: 0 | O131: 0 | P131: 0 | Q131: 0 | R131: 0 | S131: 0 | T131: 0 | U131: 0 | V131: 0 | W131: 0 | X131: 0 | Y131: 0 | Z131: 0 | AA131: 0 | AB131: 0 | AC131: 0 | AD131: 0 | AE131: 0
A132: 0123 | B132: Hanson | C132: 0 | D132: 0 | E132: 0 | F132: 0 | G132: 0 | H132: 0 | I132: 0 | J132: 0 | K132: 0 | L132: 0 | M132: 0 | N132: 0 | O132: 0 | P132: 0 | Q132: 0 | R132: 0 | S132: 0 | T132: 0 | U132: 0 | V132: 0 | W132: 0 | X132: 0 | Y132: 0 | Z132: 0 | AA132: 0 | AB132: 0 | AC132: 0 | AD132: 0 | AE132: 0
A133: 0124 | B133: Hardwick | C133: 0 | D133: 0 | E133: 0 | F133: 0 | G133: 0 | H133: 0 | I133: 0 | J133: 0 | K133: 0 | L133: 0 | M133: 0 | N133: 0 | O133: 0 | P133: 0 | Q133: 0 | R133: 0 | S133: 0 | T133: 0 | U133: 0 | V133: 0 | W133: 0 | X133: 0 | Y133: 0 | Z133: 0 | AA133: 0 | AB133: 0 | AC133: 0 | AD133: 0 | AE133: 0
A134: 0125 | B134: Harvard | C134: 151.3 | D134: 152.88 | E134: 159.3 | F134: 128.74 | G134: 100.96 | H134: 82 | I134: 67.37 | J134: 67.36 | K134: 64.52 | L134: 63.8 | M134: 74.53 | N134: 91.27 | O134: 76.14 | P134: 73.21 | Q134: 71 | R134: 69.72 | S134: 77 | T134: 74.28 | U134: 73.14 | V134: 70 | W134: 67.38 | X134: 57 | Y134: 56.35 | Z134: 57 | AA134: 55 | AB134: 54.25 | AC134: 59.36 | AD134: 52 | AE134: 46.37
A135: 0126 | B135: Harwich | C135: 0 | D135: 11.03 | E135: 14.97 | F135: 23.45 | G135: 39.74 | H135: 43.95 | I135: 43.36 | J135: 40.07 | K135: 59.26 | L135: 61.5 | M135: 72.91 | N135: 81.75 | O135: 107.94 | P135: 120.92 | Q135: 138.145 | R135: 156.25 | S135: 158.64 | T135: 0 | U135: 0 | V135: 0 | W135: 0 | X135: 0 | Y135: 0 | Z135: 0 | AA135: 0 | AB135: 0 | AC135: 0 | AD135: 0 | AE135: 0
A136: 0127 | B136: Hatfield | C136: 0 | D136: 0 | E136: 0 | F136: 0 | G136: 0 | H136: 0 | I136: 14 | J136: 23.42 | K136: 20.7 | L136: 26.97 | M136: 27.77 | N136: 43.12 | O136: 50.64 | P136: 66 | Q136: 123.24 | R136: 123.94 | S136: 134.4 | T136: 124.94 | U136: 124.89 | V136: 124 | W136: 130.8 | X136: 129.3 | Y136: 129.59 | Z136: 139.02 | AA136: 141.04 | AB136: 134.34 | AC136: 117.27 | AD136: 92.61 | AE136: 89.74
A137: 0128 | B137: Haverhill | C137: 35.15 | D137: 56.57 | E137: 65.54 | F137: 64.15 | G137: 88.15 | H137: 103.51 | I137: 95.74 | J137: 87.19 | K137: 78.55 | L137: 60.33 | M137: 53.89 | N137: 54.435 | O137: 54.02 | P137: 55.33 | Q137: 52.925 | R137: 54.79 | S137: 55.08 | T137: 57.34 | U137: 56.42 | V137: 42.49 | W137: 36.6 | X137: 31.08 | Y137: 29.5 | Z137: 31.15 | AA137: 30.8 | AB137: 19 | AC137: 14 | AD137: 11 | AE137: 7
A138: 0129 | B138: Hawley | C138: 0 | D138: 0 | E138: 0 | F138: 0 | G138: 0 | H138: 0 | I138: 0 | J138: 0 | K138: 0 | L138: 0 | M138: 0 | N138: 0 | O138: 0 | P138: 0 | Q138: 0 | R138: 0 | S138: 0 | T138: 0 | U138: 0 | V138: 0 | W138: 0 | X138: 0 | Y138: 0 | Z138: 0 | AA138: 0 | AB138: 0 | AC138: 0 | AD138: 0 | AE138: 0
A139: 0130 | B139: Heath | C139: 0 | D139: 0 | E139: 0 | F139: 0 | G139: 0 | H139: 0 | I139: 0 | J139: 0 | K139: 0 | L139: 0 | M139: 0 | N139: 0 | O139: 0 | P139: 0 | Q139: 0 | R139: 0 | S139: 0 | T139: 0 | U139: 0 | V139: 0 | W139: 0 | X139: 0 | Y139: 0 | Z139: 0 | AA139: 0 | AB139: 0 | AC139: 0 | AD139: 0 | AE139: 0
A140: 0131 | B140: Hingham | C140: 0 | D140: 0 | E140: 0 | F140: 0 | G140: 0 | H140: 0 | I140: 0 | J140: 0 | K140: 0 | L140: 0 | M140: 0 | N140: 0 | O140: 0 | P140: 0 | Q140: 0 | R140: 0 | S140: 0 | T140: 0 | U140: 0 | V140: 0 | W140: 0 | X140: 0 | Y140: 0 | Z140: 0 | AA140: 0 | AB140: 0 | AC140: 0 | AD140: 0 | AE140: 0
A141: 0132 | B141: Hinsdale | C141: 0 | D141: 0 | E141: 0 | F141: 0 | G141: 0 | H141: 0 | I141: 0 | J141: 0 | K141: 0 | L141: 0 | M141: 0 | N141: 0 | O141: 0 | P141: 0 | Q141: 0 | R141: 0 | S141: 0 | T141: 0 | U141: 0 | V141: 0 | W141: 0 | X141: 0 | Y141: 0 | Z141: 0 | AA141: 0 | AB141: 0 | AC141: 0 | AD141: 0 | AE141: 0
A142: 0133 | B142: Holbrook | C142: 0 | D142: 0 | E142: 0 | F142: 0 | G142: 0 | H142: 0 | I142: 0 | J142: 0 | K142: 0 | L142: 0 | M142: 0 | N142: 0 | O142: 0 | P142: 0 | Q142: 0 | R142: 11 | S142: 27.63 | T142: 61.16 | U142: 65.43 | V142: 57.48 | W142: 57.87 | X142: 47 | Y142: 40.21 | Z142: 33 | AA142: 23 | AB142: 18 | AC142: 14 | AD142: 19.55 | AE142: 15
A143: 0134 | B143: Holden | C143: 0 | D143: 0 | E143: 0 | F143: 0 | G143: 0 | H143: 0 | I143: 0 | J143: 0 | K143: 0 | L143: 0 | M143: 0 | N143: 0 | O143: 0 | P143: 0 | Q143: 0 | R143: 0 | S143: 0 | T143: 0 | U143: 0 | V143: 0 | W143: 0 | X143: 0 | Y143: 0 | Z143: 0 | AA143: 0 | AB143: 0 | AC143: 0 | AD143: 0 | AE143: 0
A144: 0135 | B144: Holland | C144: 0 | D144: 0 | E144: 0 | F144: 0 | G144: 0 | H144: 0 | I144: 0 | J144: 0 | K144: 0 | L144: 6.37 | M144: 11.355 | N144: 12.52 | O144: 14.065 | P144: 19.18 | Q144: 20.54 | R144: 20.34 | S144: 21.98 | T144: 18.5 | U144: 28.36 | V144: 40.31 | W144: 52.93 | X144: 55.18 | Y144: 54.16 | Z144: 42.18 | AA144: 44.18 | AB144: 43.46 | AC144: 34.36 | AD144: 39.94 | AE144: 37.62
A145: 0136 | B145: Holliston | C145: 277.19 | D145: 282.43 | E145: 258.54 | F145: 237.92 | G145: 198.88 | H145: 184.54 | I145: 147.63 | J145: 138.2 | K145: 121.97 | L145: 105.435 | M145: 97.35 | N145: 106.125 | O145: 106.74 | P145: 103.97 | Q145: 111.22 | R145: 119.995 | S145: 125.14 | T145: 121.03 | U145: 132.01 | V145: 158.83 | W145: 158.46 | X145: 150.9 | Y145: 121.12 | Z145: 106.78 | AA145: 100.26 | AB145: 103.56 | AC145: 96.44 | AD145: 106.52 | AE145: 108.25
A146: 0137 | B146: Holyoke | C146: 0 | D146: 0 | E146: 0 | F146: 0 | G146: 0 | H146: 7 | I146: 13.29 | J146: 17.8 | K146: 20 | L146: 14.42 | M146: 24.75 | N146: 27.21 | O146: 20.34 | P146: 22 | Q146: 18 | R146: 12.64 | S146: 19.44 | T146: 32.16 | U146: 50.19 | V146: 51.7 | W146: 52.69 | X146: 70.02 | Y146: 112.58 | Z146: 123.94 | AA146: 166.77 | AB146: 184.29 | AC146: 160.89 | AD146: 139.36 | AE146: 126.2
A147: 0138 | B147: Hopedale | C147: 54.45 | D147: 68.77 | E147: 91.56 | F147: 76.62 | G147: 99.8 | H147: 90.15 | I147: 129.65 | J147: 136.88 | K147: 140.48 | L147: 139.41 | M147: 134.56 | N147: 117.39 | O147: 111.39 | P147: 97.31 | Q147: 106.11 | R147: 111.67 | S147: 120.5 | T147: 124.6 | U147: 139.91 | V147: 129.58 | W147: 122.77 | X147: 134.21 | Y147: 143 | Z147: 138.9 | AA147: 152.65 | AB147: 170.66 | AC147: 174.49 | AD147: 165.14 | AE147: 181.7
A148: 0139 | B148: Hopkinton | C148: 27.53 | D148: 29.77 | E148: 17.54 | F148: 19.78 | G148: 19.49 | H148: 10.82 | I148: 7.39 | J148: 7 | K148: 3 | L148: 3 | M148: 0 | N148: 0 | O148: 0 | P148: 0 | Q148: 0 | R148: 0 | S148: 0 | T148: 0 | U148: 0 | V148: 0 | W148: 0 | X148: 0 | Y148: 0 | Z148: 0 | AA148: 0 | AB148: 0 | AC148: 0 | AD148: 0 | AE148: 0
A149: 0140 | B149: Hubbardston | C149: 0 | D149: 0 | E149: 0 | F149: 0 | G149: 0 | H149: 0 | I149: 0 | J149: 0 | K149: 0 | L149: 0 | M149: 0 | N149: 0 | O149: 0 | P149: 0 | Q149: 0 | R149: 0 | S149: 0 | T149: 0 | U149: 0 | V149: 0 | W149: 0 | X149: 0 | Y149: 0 | Z149: 0 | AA149: 0 | AB149: 0 | AC149: 0 | AD149: 0 | AE149: 0
A150: 0141 | B150: Hudson | C150: 68.33 | D150: 78.63 | E150: 102.95 | F150: 97.19 | G150: 92.41 | H150: 103.07 | I150: 89.53 | J150: 95.65 | K150: 100.56 | L150: 110.2 | M150: 109.6 | N150: 117.75 | O150: 139.99 | P150: 155.31 | Q150: 179.57 | R150: 161.6 | S150: 139.05 | T150: 123.36 | U150: 125.08 | V150: 101.62 | W150: 96.14 | X150: 96.56 | Y150: 103.12 | Z150: 80.67 | AA150: 108.08 | AB150: 124.7 | AC150: 145.21 | AD150: 155 | AE150: 187.01
A151: 0142 | B151: Hull | C151: 0 | D151: 0 | E151: 0 | F151: 0 | G151: 0 | H151: 0 | I151: 0 | J151: 0 | K151: 0 | L151: 0 | M151: 0 | N151: 0 | O151: 0 | P151: 0 | Q151: 0 | R151: 0 | S151: 0 | T151: 0 | U151: 0 | V151: 0 | W151: 0 | X151: 0 | Y151: 0 | Z151: 0 | AA151: 0 | AB151: 0 | AC151: 0 | AD151: 0 | AE151: 0
A152: 0143 | B152: Huntington | C152: 0 | D152: 0 | E152: 0 | F152: 0 | G152: 0 | H152: 0 | I152: 0 | J152: 0 | K152: 0 | L152: 0 | M152: 0 | N152: 0 | O152: 0 | P152: 0 | Q152: 0 | R152: 0 | S152: 0 | T152: 0 | U152: 0 | V152: 0 | W152: 0 | X152: 0 | Y152: 0 | Z152: 0 | AA152: 0 | AB152: 0 | AC152: 0 | AD152: 0 | AE152: 0
A153: 0144 | B153: Ipswich | C153: 55.63333333 | D153: 59.59 | E153: 51.23 | F153: 53.33 | G153: 55.79 | H153: 49.28 | I153: 66.43 | J153: 59.93 | K153: 74.31 | L153: 87.14 | M153: 98.445 | N153: 147.4 | O153: 151.515 | P153: 166.68 | Q153: 161.57 | R153: 155.35 | S153: 150.77 | T153: 113.58 | U153: 83.29 | V153: 70 | W153: 67.97 | X153: 63 | Y153: 47.13 | Z153: 50.22 | AA153: 48.29 | AB153: 43 | AC153: 57.3 | AD153: 57.52 | AE153: 58.99
A154: 0145 | B154: Kingston | C154: 0 | D154: 0 | E154: 0 | F154: 0 | G154: 0 | H154: 0 | I154: 0 | J154: 0 | K154: 0 | L154: 0 | M154: 0 | N154: 0 | O154: 0 | P154: 0 | Q154: 0 | R154: 0 | S154: 0 | T154: 0 | U154: 0 | V154: 0 | W154: 0 | X154: 0 | Y154: 0 | Z154: 0 | AA154: 0 | AB154: 0 | AC154: 0 | AD154: 0 | AE154: 0
A155: 0146 | B155: Lakeville | C155: 0 | D155: 0 | E155: 0 | F155: 0 | G155: 0 | H155: 0 | I155: 0 | J155: 0 | K155: 0 | L155: 0 | M155: 0 | N155: 0 | O155: 0 | P155: 0 | Q155: 0 | R155: 0 | S155: 0 | T155: 0 | U155: 0 | V155: 0 | W155: 0 | X155: 0 | Y155: 0 | Z155: 0 | AA155: 0 | AB155: 0 | AC155: 0 | AD155: 0 | AE155: 0
A156: 0147 | B156: Lancaster | C156: 0 | D156: 0 | E156: 0 | F156: 0 | G156: 0 | H156: 0 | I156: 0 | J156: 0 | K156: 0 | L156: 0 | M156: 0 | N156: 0 | O156: 0 | P156: 0 | Q156: 0 | R156: 0 | S156: 0 | T156: 0 | U156: 0 | V156: 0 | W156: 0 | X156: 0 | Y156: 0 | Z156: 0 | AA156: 0 | AB156: 0 | AC156: 0 | AD156: 0 | AE156: 0
A157: 0148 | B157: Lanesborough | C157: 6.86 | D157: 12 | E157: 16.26 | F157: 14 | G157: 10.76 | H157: 10.79 | I157: 12.16 | J157: 17.56 | K157: 13.98 | L157: 22.76 | M157: 27.14 | N157: 20.75 | O157: 13.36 | P157: 22.39 | Q157: 26 | R157: 16.16 | S157: 15 | T157: 12.85 | U157: 15 | V157: 20 | W157: 19 | X157: 14.5 | Y157: 16 | Z157: 0 | AA157: 0 | AB157: 0 | AC157: 0 | AD157: 0 | AE157: 0
A158: 0149 | B158: Lawrence | C158: 0 | D158: 0 | E158: 0 | F158: 0 | G158: 0 | H158: 0 | I158: 0 | J158: 0 | K158: 0 | L158: 0 | M158: 0 | N158: 0 | O158: 0 | P158: 0 | Q158: 0 | R158: 0 | S158: 0 | T158: 0 | U158: 0 | V158: 0 | W158: 0 | X158: 0 | Y158: 0 | Z158: 0 | AA158: 0 | AB158: 0 | AC158: 0 | AD158: 0 | AE158: 0
A159: 0150 | B159: Lee | C159: 62.12 | D159: 81.13 | E159: 69.71 | F159: 79.12 | G159: 84.81 | H159: 84.79 | I159: 90.51 | J159: 94.06 | K159: 109.97 | L159: 114.7 | M159: 122.88 | N159: 113.05 | O159: 117.39 | P159: 123.62 | Q159: 108.52 | R159: 106.37 | S159: 95.42 | T159: 103.01 | U159: 112.66 | V159: 127.98 | W159: 128.54 | X159: 131.36 | Y159: 122.56 | Z159: 146.34 | AA159: 148.59 | AB159: 159.18 | AC159: 153.56 | AD159: 152.49 | AE159: 141.97
A160: 0151 | B160: Leicester | C160: 0 | D160: 0 | E160: 0 | F160: 0 | G160: 0 | H160: 0 | I160: 0 | J160: 0 | K160: 23.2 | L160: 25.82 | M160: 54.63 | N160: 45.75 | O160: 59.65 | P160: 67.51 | Q160: 73.305 | R160: 69.98 | S160: 73.05 | T160: 70.5 | U160: 67.28 | V160: 92 | W160: 103.14 | X160: 99.16 | Y160: 95.06 | Z160: 75.63 | AA160: 67.66 | AB160: 57.94 | AC160: 55.52 | AD160: 66.6 | AE160: 78.23
A161: 0152 | B161: Lenox | C161: 70.37 | D161: 80.33 | E161: 90.8 | F161: 126.03 | G161: 110.57 | H161: 94.24 | I161: 84.89 | J161: 86.05 | K161: 106.43 | L161: 114.31 | M161: 134.84 | N161: 145.73 | O161: 149.81 | P161: 170.66 | Q161: 191.47 | R161: 205.26 | S161: 216.34 | T161: 221.43 | U161: 222 | V161: 246.79 | W161: 253.16 | X161: 277.77 | Y161: 268.44 | Z161: 282.72 | AA161: 300.89 | AB161: 290.56 | AC161: 281.01 | AD161: 317.04 | AE161: 312.88
A162: 0153 | B162: Leominster | C162: 64.36666667 | D162: 67.5 | E162: 51.19 | F162: 36.26 | G162: 26.49 | H162: 9.3 | I162: 15.04 | J162: 115.85 | K162: 124.94 | L162: 110.46 | M162: 117.76 | N162: 140.45 | O162: 150.55 | P162: 164.45 | Q162: 181.56 | R162: 200.99 | S162: 215.76 | T162: 238.49 | U162: 257.75 | V162: 246.88 | W162: 246.16 | X162: 299.49 | Y162: 251.47 | Z162: 230.18 | AA162: 235.53 | AB162: 236.32 | AC162: 251.42 | AD162: 281.64 | AE162: 271.68
A163: 0154 | B163: Leverett | C163: 0 | D163: 0 | E163: 0 | F163: 0 | G163: 0 | H163: 0 | I163: 6.1 | J163: 6 | K163: 11.99 | L163: 15.45 | M163: 24.58 | N163: 35.36 | O163: 26.06 | P163: 25.44 | Q163: 29.22 | R163: 26.71 | S163: 22.52 | T163: 26 | U163: 20.57 | V163: 20.49 | W163: 21.2 | X163: 18.17 | Y163: 18.27 | Z163: 23.09 | AA163: 21.47 | AB163: 24 | AC163: 34.65 | AD163: 33.2 | AE163: 32.57
A164: 0155 | B164: Lexington | C164: 0 | D164: 0 | E164: 0 | F164: 0 | G164: 0 | H164: 0 | I164: 0 | J164: 0 | K164: 0 | L164: 0 | M164: 0 | N164: 0 | O164: 0 | P164: 0 | Q164: 0 | R164: 0 | S164: 0 | T164: 0 | U164: 0 | V164: 0 | W164: 0 | X164: 0 | Y164: 0 | Z164: 0 | AA164: 0 | AB164: 0 | AC164: 0 | AD164: 0 | AE164: 0
A165: 0156 | B165: Leyden | C165: 0 | D165: 0 | E165: 0 | F165: 0 | G165: 0 | H165: 0 | I165: 0 | J165: 0 | K165: 0 | L165: 0 | M165: 0 | N165: 0 | O165: 0 | P165: 0 | Q165: 0 | R165: 0 | S165: 0 | T165: 0 | U165: 0 | V165: 0 | W165: 0 | X165: 0 | Y165: 0 | Z165: 0 | AA165: 0 | AB165: 0 | AC165: 0 | AD165: 0 | AE165: 0
A166: 0157 | B166: Lincoln | C166: 0 | D166: 0 | E166: 0 | F166: 0 | G166: 0 | H166: 0 | I166: 0 | J166: 0 | K166: 0 | L166: 0 | M166: 0 | N166: 0 | O166: 0 | P166: 0 | Q166: 0 | R166: 0 | S166: 0 | T166: 0 | U166: 0 | V166: 0 | W166: 0 | X166: 0 | Y166: 0 | Z166: 0 | AA166: 0 | AB166: 0 | AC166: 0 | AD166: 0 | AE166: 0
A167: 0158 | B167: Littleton | C167: 96.65333333 | D167: 88.4 | E167: 74.59 | F167: 77.91 | G167: 55.97 | H167: 40.76 | I167: 34.81 | J167: 27 | K167: 27.66 | L167: 28.2 | M167: 27.15 | N167: 27.18 | O167: 33.22 | P167: 41.4 | Q167: 43.325 | R167: 54.18 | S167: 69.91 | T167: 75.02 | U167: 72.5 | V167: 68.49 | W167: 78.39 | X167: 84.28 | Y167: 81.94 | Z167: 74.45 | AA167: 76.28 | AB167: 80.39 | AC167: 94 | AD167: 90 | AE167: 99.72
A168: 0159 | B168: Longmeadow | C168: 98 | D168: 97.96 | E168: 94.61 | F168: 96 | G168: 98.7 | H168: 92.46 | I168: 77.85 | J168: 83 | K168: 128.89 | L168: 121.49 | M168: 123.12 | N168: 103 | O168: 66.41 | P168: 56 | Q168: 50.27 | R168: 39.93 | S168: 39.5 | T168: 44 | U168: 43 | V168: 45 | W168: 39.63 | X168: 45 | Y168: 41.72 | Z168: 37.13 | AA168: 33 | AB168: 43.97 | AC168: 38.47 | AD168: 39 | AE168: 40
A169: 0160 | B169: Lowell | C169: 0 | D169: 0 | E169: 0 | F169: 0 | G169: 0 | H169: 0 | I169: 0 | J169: 0 | K169: 0 | L169: 0 | M169: 0 | N169: 0 | O169: 0 | P169: 0 | Q169: 0 | R169: 0 | S169: 0 | T169: 0 | U169: 0 | V169: 0 | W169: 0 | X169: 15 | Y169: 11.55 | Z169: 10.13 | AA169: 8.13 | AB169: 7 | AC169: 4 | AD169: 0 | AE169: 0
A170: 0161 | B170: Ludlow | C170: 0 | D170: 0 | E170: 7.05 | F170: 24.16 | G170: 35.97 | H170: 52.65 | I170: 57.81 | J170: 55.72 | K170: 70.57 | L170: 86.86 | M170: 107.97 | N170: 104.05 | O170: 102.05 | P170: 109.59 | Q170: 105.46 | R170: 94.67 | S170: 89.3 | T170: 94.75 | U170: 89.11 | V170: 80.17 | W170: 93.99 | X170: 86.39 | Y170: 103.65 | Z170: 99.95 | AA170: 93.51 | AB170: 88 | AC170: 71.27 | AD170: 88.51 | AE170: 89
A171: 0162 | B171: Lunenburg | C171: 117.01 | D171: 119.19 | E171: 100.92 | F171: 115.5 | G171: 103.99 | H171: 86.76 | I171: 89.49 | J171: 76.82 | K171: 74.275 | L171: 81.87 | M171: 85.94 | N171: 83.74 | O171: 79.51 | P171: 62.87 | Q171: 70.9 | R171: 66.3 | S171: 55.09 | T171: 53.96 | U171: 46.3 | V171: 38.94 | W171: 51.27 | X171: 46.23 | Y171: 40.39 | Z171: 31.9 | AA171: 33.99 | AB171: 27.44 | AC171: 19.1 | AD171: 20.46 | AE171: 15.54
A172: 0163 | B172: Lynn | C172: 0 | D172: 0 | E172: 0 | F172: 0 | G172: 0 | H172: 0 | I172: 0 | J172: 0 | K172: 0 | L172: 0 | M172: 0 | N172: 0 | O172: 0 | P172: 0 | Q172: 0 | R172: 0 | S172: 0 | T172: 0 | U172: 0 | V172: 0 | W172: 0 | X172: 0 | Y172: 0 | Z172: 0 | AA172: 0 | AB172: 0 | AC172: 0 | AD172: 0 | AE172: 0
A173: 0164 | B173: Lynnfield | C173: 0 | D173: 0 | E173: 0 | F173: 0 | G173: 0 | H173: 0 | I173: 0 | J173: 0 | K173: 0 | L173: 0 | M173: 0 | N173: 0 | O173: 0 | P173: 0 | Q173: 0 | R173: 0 | S173: 0 | T173: 0 | U173: 0 | V173: 0 | W173: 0 | X173: 0 | Y173: 0 | Z173: 0 | AA173: 0 | AB173: 0 | AC173: 0 | AD173: 0 | AE173: 0
A174: 0165 | B174: Malden | C174: 0 | D174: 0 | E174: 0 | F174: 0 | G174: 0 | H174: 0 | I174: 0 | J174: 0 | K174: 0 | L174: 0 | M174: 0 | N174: 0 | O174: 0 | P174: 0 | Q174: 0 | R174: 0 | S174: 0 | T174: 0 | U174: 0 | V174: 0 | W174: 0 | X174: 0 | Y174: 0 | Z174: 0 | AA174: 0 | AB174: 0 | AC174: 0 | AD174: 0 | AE174: 0
A175: 0166 | B175: Manchester | C175: 124.65 | D175: 148.79 | E175: 154.19 | F175: 135.57 | G175: 121.78 | H175: 0 | I175: 0 | J175: 0 | K175: 0 | L175: 0 | M175: 0 | N175: 0 | O175: 0 | P175: 0 | Q175: 0 | R175: 0 | S175: 0 | T175: 0 | U175: 0 | V175: 0 | W175: 0 | X175: 0 | Y175: 0 | Z175: 0 | AA175: 0 | AB175: 0 | AC175: 0 | AD175: 0 | AE175: 0
A176: 0167 | B176: Mansfield | C176: 0 | D176: 0 | E176: 0 | F176: 0 | G176: 0 | H176: 0 | I176: 0 | J176: 0 | K176: 0 | L176: 0 | M176: 0 | N176: 0 | O176: 0 | P176: 0 | Q176: 0 | R176: 0 | S176: 0 | T176: 0 | U176: 0 | V176: 0 | W176: 0 | X176: 0 | Y176: 0 | Z176: 0 | AA176: 0 | AB176: 0 | AC176: 0 | AD176: 12.43 | AE176: 21.98
A177: 0168 | B177: Marblehead | C177: 108.68 | D177: 84.36 | E177: 64.44 | F177: 50 | G177: 37.2 | H177: 30.7 | I177: 27 | J177: 24 | K177: 22 | L177: 15 | M177: 13.47 | N177: 11 | O177: 3 | P177: 0 | Q177: 1 | R177: 0 | S177: 0 | T177: 0 | U177: 0 | V177: 0 | W177: 0 | X177: 0 | Y177: 0 | Z177: 0 | AA177: 0 | AB177: 0 | AC177: 0 | AD177: 0 | AE177: 0
A178: 0169 | B178: Marion | C178: 0 | D178: 0 | E178: 0 | F178: 0 | G178: 0 | H178: 0 | I178: 0 | J178: 0 | K178: 0 | L178: 0 | M178: 0 | N178: 0 | O178: 0 | P178: 0 | Q178: 0 | R178: 0 | S178: 0 | T178: 0 | U178: 0 | V178: 0 | W178: 0 | X178: 0 | Y178: 0 | Z178: 0 | AA178: 0 | AB178: 0 | AC178: 0 | AD178: 0 | AE178: 0
A179: 0170 | B179: Marlborough | C179: 0 | D179: 0 | E179: 0 | F179: 0 | G179: 0 | H179: 0 | I179: 0 | J179: 0 | K179: 0 | L179: 0 | M179: 0 | N179: 0 | O179: 0 | P179: 0 | Q179: 0 | R179: 0 | S179: 0 | T179: 0 | U179: 0 | V179: 0 | W179: 0 | X179: 0 | Y179: 0 | Z179: 0 | AA179: 0 | AB179: 0 | AC179: 0 | AD179: 0 | AE179: 0
A180: 0171 | B180: Marshfield | C180: 0 | D180: 0 | E180: 0 | F180: 0 | G180: 0 | H180: 0 | I180: 0 | J180: 0 | K180: 0 | L180: 0 | M180: 0.98 | N180: 1.5 | O180: 2 | P180: 2 | Q180: 2.5 | R180: 3 | S180: 4 | T180: 4 | U180: 4.5 | V180: 6 | W180: 5 | X180: 4 | Y180: 3 | Z180: 2 | AA180: 2 | AB180: 1 | AC180: 0 | AD180: 0 | AE180: 0
A181: 0172 | B181: Mashpee | C181: 0 | D181: 0 | E181: 0 | F181: 0 | G181: 0 | H181: 0 | I181: 0 | J181: 0 | K181: 0 | L181: 0 | M181: 0 | N181: 0 | O181: 0 | P181: 0 | Q181: 0 | R181: 3 | S181: 28.15 | T181: 48.58 | U181: 37.5 | V181: 72.42 | W181: 64.75 | X181: 70 | Y181: 98 | Z181: 100.67 | AA181: 117.73 | AB181: 113.76 | AC181: 124.46 | AD181: 124.09 | AE181: 118.05
A182: 0173 | B182: Mattapoisett | C182: 0 | D182: 0 | E182: 0 | F182: 0 | G182: 0 | H182: 0 | I182: 0 | J182: 0 | K182: 0 | L182: 0 | M182: 0 | N182: 0 | O182: 0 | P182: 0 | Q182: 0 | R182: 0 | S182: 0 | T182: 0 | U182: 3 | V182: 3 | W182: 2 | X182: 2 | Y182: 2 | Z182: 4 | AA182: 6 | AB182: 8 | AC182: 9.31 | AD182: 12 | AE182: 13
A183: 0174 | B183: Maynard | C183: 37.13 | D183: 34.43 | E183: 26.22 | F183: 32.24 | G183: 36.51 | H183: 42 | I183: 28 | J183: 20.11 | K183: 31.84 | L183: 34.93 | M183: 31.23 | N183: 22.99 | O183: 30.11 | P183: 27.94 | Q183: 18.32 | R183: 15.84 | S183: 18.76 | T183: 37.46 | U183: 37.5 | V183: 35.16 | W183: 39.52 | X183: 38.56 | Y183: 39.12 | Z183: 35 | AA183: 36.7 | AB183: 25.99 | AC183: 19.14 | AD183: 17.57 | AE183: 18.35
A184: 0175 | B184: Medfield | C184: 0 | D184: 0 | E184: 0 | F184: 0 | G184: 0 | H184: 0 | I184: 0 | J184: 0 | K184: 0 | L184: 0 | M184: 0 | N184: 0 | O184: 0 | P184: 0 | Q184: 0 | R184: 0 | S184: 0 | T184: 0 | U184: 0 | V184: 0 | W184: 0 | X184: 0 | Y184: 0 | Z184: 0 | AA184: 0 | AB184: 0 | AC184: 0 | AD184: 0 | AE184: 0
A185: 0176 | B185: Medford | C185: 0 | D185: 0 | E185: 0 | F185: 0 | G185: 0 | H185: 0 | I185: 0 | J185: 0 | K185: 0 | L185: 0 | M185: 0 | N185: 0 | O185: 0 | P185: 0 | Q185: 0 | R185: 0 | S185: 0 | T185: 0 | U185: 0 | V185: 0 | W185: 0 | X185: 0 | Y185: 0 | Z185: 0 | AA185: 0 | AB185: 0 | AC185: 0 | AD185: 0 | AE185: 0
A186: 0177 | B186: Medway | C186: 38.41 | D186: 33.39 | E186: 33.37 | F186: 30.24 | G186: 38.28 | H186: 37.55 | I186: 39.3 | J186: 33.97 | K186: 35.47 | L186: 24.26 | M186: 41.855 | N186: 37.17 | O186: 32.28 | P186: 27.91 | Q186: 34.815 | R186: 55.62 | S186: 58.66 | T186: 71.7 | U186: 75.21 | V186: 71.15 | W186: 89.18 | X186: 78.84 | Y186: 81.82 | Z186: 72.78 | AA186: 66.99 | AB186: 69 | AC186: 57.79 | AD186: 61.2 | AE186: 65
A187: 0178 | B187: Melrose | C187: 0 | D187: 0 | E187: 0 | F187: 0 | G187: 0 | H187: 0 | I187: 0 | J187: 0 | K187: 0 | L187: 0 | M187: 0 | N187: 0 | O187: 0 | P187: 0 | Q187: 0 | R187: 0 | S187: 0 | T187: 0 | U187: 1 | V187: 10.63 | W187: 25.29 | X187: 27.31 | Y187: 26.13 | Z187: 22.46 | AA187: 13.07 | AB187: 7 | AC187: 3 | AD187: 1 | AE187: 0
A188: 0179 | B188: Mendon | C188: 0 | D188: 0 | E188: 0 | F188: 0 | G188: 0 | H188: 0 | I188: 0 | J188: 0 | K188: 0 | L188: 0 | M188: 0 | N188: 0 | O188: 0 | P188: 0 | Q188: 0 | R188: 0 | S188: 0 | T188: 0 | U188: 0 | V188: 0 | W188: 0 | X188: 0 | Y188: 0 | Z188: 0 | AA188: 0 | AB188: 0 | AC188: 0 | AD188: 0 | AE188: 0
A189: 0180 | B189: Merrimac | C189: 0 | D189: 0 | E189: 0 | F189: 0 | G189: 0 | H189: 0 | I189: 0 | J189: 0 | K189: 0 | L189: 0 | M189: 0 | N189: 0 | O189: 0 | P189: 0 | Q189: 0 | R189: 0 | S189: 0 | T189: 0 | U189: 0 | V189: 0 | W189: 0 | X189: 0 | Y189: 0 | Z189: 0 | AA189: 0 | AB189: 0 | AC189: 0 | AD189: 0 | AE189: 0
A190: 0181 | B190: Methuen | C190: 0 | D190: 0 | E190: 0 | F190: 0 | G190: 0 | H190: 0 | I190: 0 | J190: 0 | K190: 0 | L190: 0 | M190: 0 | N190: 0 | O190: 0 | P190: 0 | Q190: 0 | R190: 0 | S190: 0 | T190: 0 | U190: 0 | V190: 0 | W190: 0 | X190: 0 | Y190: 0 | Z190: 0 | AA190: 0 | AB190: 0 | AC190: 0 | AD190: 0 | AE190: 0
A191: 0182 | B191: Middleborough | C191: 0 | D191: 7.19 | E191: 14.58 | F191: 17.52 | G191: 16.12 | H191: 19.6 | I191: 15.08 | J191: 22.51 | K191: 16.08 | L191: 13.02 | M191: 13.41 | N191: 9.2 | O191: 7.19 | P191: 4 | Q191: 3 | R191: 3 | S191: 8 | T191: 4 | U191: 6.38 | V191: 3 | W191: 3 | X191: 17.23 | Y191: 28.84 | Z191: 42.48 | AA191: 43.44 | AB191: 46.1 | AC191: 42.93 | AD191: 38.58 | AE191: 30.03
A192: 0183 | B192: Middlefield | C192: 0 | D192: 0 | E192: 0 | F192: 0 | G192: 0 | H192: 0 | I192: 0 | J192: 0 | K192: 0 | L192: 0 | M192: 0 | N192: 0 | O192: 0 | P192: 0 | Q192: 0 | R192: 0 | S192: 0 | T192: 0 | U192: 0 | V192: 0 | W192: 0 | X192: 0 | Y192: 0 | Z192: 0 | AA192: 0 | AB192: 0 | AC192: 0 | AD192: 0 | AE192: 0
A193: 0184 | B193: Middleton | C193: 0 | D193: 0 | E193: 0 | F193: 0 | G193: 0 | H193: 0 | I193: 0 | J193: 0 | K193: 0 | L193: 0 | M193: 0 | N193: 0 | O193: 0 | P193: 0 | Q193: 0 | R193: 0 | S193: 0 | T193: 0 | U193: 0 | V193: 0 | W193: 0 | X193: 0 | Y193: 0 | Z193: 0 | AA193: 0 | AB193: 0 | AC193: 0 | AD193: 0 | AE193: 0
A194: 0185 | B194: Milford | C194: 85.02333333 | D194: 89.48 | E194: 101.02 | F194: 115.29 | G194: 124.28 | H194: 133.98 | I194: 127.83 | J194: 126.81 | K194: 142.65 | L194: 140.69 | M194: 130.33 | N194: 109.695 | O194: 113.505 | P194: 117.69 | Q194: 99.3 | R194: 85.69 | S194: 94.26 | T194: 89.92 | U194: 84.49 | V194: 82.65 | W194: 86.8 | X194: 103.26 | Y194: 109.23 | Z194: 121.55 | AA194: 132.99 | AB194: 121.65 | AC194: 98.02 | AD194: 84.96 | AE194: 79.78
A195: 0186 | B195: Millbury | C195: 0 | D195: 0 | E195: 0 | F195: 0 | G195: 0 | H195: 0 | I195: 0 | J195: 0 | K195: 0 | L195: 0 | M195: 0 | N195: 0 | O195: 0 | P195: 0 | Q195: 0 | R195: 0 | S195: 0 | T195: 0 | U195: 0 | V195: 0 | W195: 0 | X195: 0 | Y195: 0 | Z195: 4.26 | AA195: 13 | AB195: 15.82 | AC195: 29.66 | AD195: 30.12 | AE195: 35.59
A196: 0187 | B196: Millis | C196: 30.94 | D196: 33.33 | E196: 36.43 | F196: 48.97 | G196: 54.42 | H196: 49.83 | I196: 53.66 | J196: 45.69 | K196: 51.69 | L196: 47.55 | M196: 35.73 | N196: 30.02 | O196: 36.25 | P196: 41.87 | Q196: 60.58 | R196: 64.93 | S196: 68.56 | T196: 63.68 | U196: 74.68 | V196: 76.03 | W196: 79.26 | X196: 77.06 | Y196: 88.91 | Z196: 81.26 | AA196: 82.72 | AB196: 90.12 | AC196: 78.2 | AD196: 65 | AE196: 64.29
A197: 0188 | B197: Millville | C197: 0 | D197: 0 | E197: 0 | F197: 0 | G197: 0 | H197: 0 | I197: 0 | J197: 0 | K197: 0 | L197: 0 | M197: 0 | N197: 0 | O197: 0 | P197: 0 | Q197: 0 | R197: 0 | S197: 0 | T197: 0 | U197: 0 | V197: 0 | W197: 0 | X197: 0 | Y197: 0 | Z197: 0 | AA197: 0 | AB197: 0 | AC197: 0 | AD197: 0 | AE197: 0
A198: 0189 | B198: Milton | C198: 0 | D198: 0 | E198: 0 | F198: 0 | G198: 0 | H198: 0 | I198: 0 | J198: 0 | K198: 0 | L198: 0 | M198: 0 | N198: 0 | O198: 0 | P198: 0 | Q198: 0 | R198: 0 | S198: 0 | T198: 0 | U198: 0 | V198: 0 | W198: 0 | X198: 0 | Y198: 0 | Z198: 0 | AA198: 0 | AB198: 0 | AC198: 0 | AD198: 0 | AE198: 0
A199: 0190 | B199: Monroe | C199: 0 | D199: 0 | E199: 0 | F199: 0 | G199: 0 | H199: 0 | I199: 0 | J199: 0 | K199: 0 | L199: 0 | M199: 0 | N199: 0 | O199: 0 | P199: 0 | Q199: 0 | R199: 0 | S199: 0 | T199: 0 | U199: 0 | V199: 0 | W199: 0 | X199: 0 | Y199: 0 | Z199: 0 | AA199: 0 | AB199: 0 | AC199: 0 | AD199: 0 | AE199: 0
A200: 0191 | B200: Monson | C200: 0 | D200: 0 | E200: 0 | F200: 0 | G200: 0 | H200: 0 | I200: 0 | J200: 1.78 | K200: 0 | L200: 0 | M200: 0 | N200: 0 | O200: 0 | P200: 0 | Q200: 0 | R200: 7.72 | S200: 28.88 | T200: 42.2 | U200: 31.29 | V200: 42.96 | W200: 52 | X200: 51.14 | Y200: 49.31 | Z200: 52.22 | AA200: 60.09 | AB200: 60.54 | AC200: 59.93 | AD200: 67.85 | AE200: 66.5
A201: 0192 | B201: Montague | C201: 0 | D201: 0 | E201: 0 | F201: 0 | G201: 0 | H201: 0 | I201: 0 | J201: 0 | K201: 0 | L201: 0 | M201: 0 | N201: 0 | O201: 0 | P201: 0 | Q201: 0 | R201: 0 | S201: 0 | T201: 0 | U201: 0 | V201: 0 | W201: 0 | X201: 0 | Y201: 0 | Z201: 0 | AA201: 0 | AB201: 0 | AC201: 0 | AD201: 0 | AE201: 0
A202: 0193 | B202: Monterey | C202: 0 | D202: 0 | E202: 0 | F202: 0 | G202: 0 | H202: 0 | I202: 0 | J202: 0 | K202: 0 | L202: 0 | M202: 0 | N202: 0 | O202: 0 | P202: 0 | Q202: 0 | R202: 0 | S202: 0 | T202: 0 | U202: 0 | V202: 0 | W202: 0 | X202: 0 | Y202: 0 | Z202: 0 | AA202: 0 | AB202: 0 | AC202: 0 | AD202: 0 | AE202: 0
A203: 0194 | B203: Montgomery | C203: 0 | D203: 0 | E203: 0 | F203: 0 | G203: 0 | H203: 0 | I203: 0 | J203: 0 | K203: 0 | L203: 0 | M203: 0 | N203: 0 | O203: 0 | P203: 0 | Q203: 0 | R203: 0 | S203: 0 | T203: 0 | U203: 0 | V203: 0 | W203: 0 | X203: 0 | Y203: 0 | Z203: 0 | AA203: 0 | AB203: 0 | AC203: 0 | AD203: 0 | AE203: 0
A204: 0195 | B204: Mount Washington | C204: 0 | D204: 0 | E204: 0 | F204: 0 | G204: 0 | H204: 0 | I204: 0 | J204: 0 | K204: 0 | L204: 0 | M204: 0 | N204: 0 | O204: 0 | P204: 0 | Q204: 0 | R204: 0 | S204: 0 | T204: 0 | U204: 0 | V204: 0 | W204: 0 | X204: 0 | Y204: 0 | Z204: 0 | AA204: 0 | AB204: 0 | AC204: 0 | AD204: 0 | AE204: 0
A205: 0196 | B205: Nahant | C205: 0 | D205: 0 | E205: 0 | F205: 0 | G205: 0 | H205: 0 | I205: 0 | J205: 0 | K205: 0 | L205: 0 | M205: 0 | N205: 0 | O205: 0 | P205: 0 | Q205: 0 | R205: 0 | S205: 0 | T205: 0 | U205: 0 | V205: 0 | W205: 0 | X205: 0 | Y205: 0 | Z205: 0 | AA205: 0 | AB205: 0 | AC205: 0 | AD205: 0 | AE205: 0
A206: 0197 | B206: Nantucket | C206: 0 | D206: 0 | E206: 0 | F206: 0 | G206: 0 | H206: 0 | I206: 0 | J206: 0 | K206: 0 | L206: 0 | M206: 0 | N206: 0 | O206: 0 | P206: 0 | Q206: 0 | R206: 0 | S206: 0 | T206: 0 | U206: 0 | V206: 0 | W206: 0 | X206: 0 | Y206: 0 | Z206: 0 | AA206: 0 | AB206: 0 | AC206: 0 | AD206: 0 | AE206: 0
A207: 0198 | B207: Natick | C207: 0 | D207: 0 | E207: 0 | F207: 0 | G207: 0 | H207: 0 | I207: 0 | J207: 0 | K207: 0 | L207: 0 | M207: 0 | N207: 0 | O207: 0 | P207: 0 | Q207: 13.46 | R207: 18.2 | S207: 32.15 | T207: 36.51 | U207: 40.35 | V207: 40.06 | W207: 38.89 | X207: 46.8 | Y207: 47.73 | Z207: 48.23 | AA207: 39 | AB207: 32 | AC207: 24 | AD207: 17 | AE207: 10
A208: 0199 | B208: Needham | C208: 0 | D208: 0 | E208: 0 | F208: 0 | G208: 0 | H208: 0 | I208: 0 | J208: 0 | K208: 0 | L208: 0 | M208: 0 | N208: 0 | O208: 0 | P208: 0 | Q208: 0 | R208: 0 | S208: 0 | T208: 0 | U208: 0 | V208: 0 | W208: 0 | X208: 0 | Y208: 0 | Z208: 0 | AA208: 0 | AB208: 0 | AC208: 0 | AD208: 0 | AE208: 0
... 244 more rows

Sheet rectuit (hidden)
A8: LEA | B8: District | C8: FY96 | D8: FY97 | E8: FY98 | F8: FY99 | G8: FY00 | H8: FY01 | I8: FY02 | J8: FY03 | K8: FY04 | L8: FY05 | M8: FY06 | N8: FY07 | O8: FY08 | P8: FY09 | Q8: FY10 | R8: FY11 | S8: FY12 | T8: FY13 | U8: FY14 | V8: FY15 | W8: FY16 | X8: FY17 | Y8: FY18 | Z8: FY19 | AA8: FY20 | AB8: FY21 | AC8: FY22 | AD8: FY23 | AE8: FY24
A10: 0001 | B10: Abington | C10: 0 | D10: 0 | E10: 0 | F10: 0 | G10: 0 | H10: 0 | I10: 0 | J10: 0 | K10: 0 | L10: 0 | M10: 0 | N10: 0 | O10: 0 | P10: 0 | Q10: 0 | R10: 0 | S10: 0 | T10: 0 | U10: 10000 | V10: 10000 | W10: 5000 | X10: 15000 | Y10: 25000 | Z10: 25000 | AA10: 15000 | AB10: 10000 | AC10: 5000 | AD10: 0 | AE10: 0
A11: 0002 | B11: Acton | C11: 113630 | D11: 87638 | E11: 72957 | F11: 64162 | G11: 14066 | H11: 3464 | I11: 3488 | J11: 0 | K11: 0 | L11: 0 | M11: 0 | N11: 0 | O11: 0 | P11: 0 | Q11: 0 | R11: 0 | S11: 0 | T11: 0 | U11: 0 | V11: 0 | W11: 0 | X11: 0 | Y11: 0 | Z11: 0 | AA11: 0 | AB11: 0 | AC11: 0 | AD11: 0 | AE11: 0
A12: 0003 | B12: Acushnet | C12: 0 | D12: 0 | E12: 0 | F12: 0 | G12: 0 | H12: 0 | I12: 0 | J12: 0 | K12: 0 | L12: 0 | M12: 0 | N12: 0 | O12: 0 | P12: 0 | Q12: 0 | R12: 0 | S12: 0 | T12: 0 | U12: 0 | V12: 0 | W12: 0 | X12: 0 | Y12: 0 | Z12: 0 | AA12: 0 | AB12: 0 | AC12: 0 | AD12: 0 | AE12: 0
A13: 0004 | B13: Adams | C13: 0 | D13: 0 | E13: 0 | F13: 0 | G13: 0 | H13: 0 | I13: 0 | J13: 0 | K13: 0 | L13: 0 | M13: 0 | N13: 0 | O13: 0 | P13: 0 | Q13: 0 | R13: 0 | S13: 0 | T13: 0 | U13: 0 | V13: 0 | W13: 0 | X13: 0 | Y13: 0 | Z13: 0 | AA13: 0 | AB13: 0 | AC13: 0 | AD13: 0 | AE13: 0
A14: 0005 | B14: Agawam | C14: 0 | D14: 51976 | E14: 121124 | F14: 139706 | G14: 138283 | H14: 127467 | I14: 139295 | J14: 274444 | K14: 279086 | L14: 355042 | M14: 349308 | N14: 427549 | O14: 443488 | P14: 442633 | Q14: 401549 | R14: 428952 | S14: 424089 | T14: 394960 | U14: 429442 | V14: 425326 | W14: 437916 | X14: 426935 | Y14: 420146 | Z14: 414796 | AA14: 438691 | AB14: 401931 | AC14: 395725 | AD14: 421376 | AE14: 415975
A15: 0006 | B15: Alford | C15: 0 | D15: 0 | E15: 0 | F15: 0 | G15: 0 | H15: 0 | I15: 0 | J15: 0 | K15: 0 | L15: 0 | M15: 0 | N15: 0 | O15: 0 | P15: 0 | Q15: 0 | R15: 0 | S15: 0 | T15: 0 | U15: 0 | V15: 0 | W15: 0 | X15: 0 | Y15: 0 | Z15: 0 | AA15: 0 | AB15: 0 | AC15: 0 | AD15: 0 | AE15: 0
A16: 0007 | B16: Amesbury | C16: 271141 | D16: 285290 | E16: 403435 | F16: 565562 | G16: 577530 | H16: 692096 | I16: 743610 | J16: 799471 | K16: 769262 | L16: 571160 | M16: 529933 | N16: 647851 | O16: 629909 | P16: 656273 | Q16: 558799 | R16: 504104 | S16: 402410 | T16: 312161 | U16: 250563 | V16: 196514 | W16: 94513 | X16: 85450 | Y16: 101376 | Z16: 245060 | AA16: 609804 | AB16: 554073 | AC16: 627009 | AD16: 665335 | AE16: 868116
A17: 0008 | B17: Amherst | C17: 0 | D17: 0 | E17: 0 | F17: 0 | G17: 0 | H17: 0 | I17: 0 | J17: 0 | K17: 0 | L17: 0 | M17: 0 | N17: 0 | O17: 0 | P17: 0 | Q17: 0 | R17: 0 | S17: 0 | T17: 219624 | U17: 255276 | V17: 338073 | W17: 336133 | X17: 344496 | Y17: 637683 | Z17: 632835 | AA17: 666222 | AB17: 578850 | AC17: 596810 | AD17: 731230 | AE17: 885882
A18: 0009 | B18: Andover | C18: 0 | D18: 0 | E18: 0 | F18: 0 | G18: 0 | H18: 0 | I18: 0 | J18: 0 | K18: 0 | L18: 0 | M18: 0 | N18: 0 | O18: 0 | P18: 0 | Q18: 0 | R18: 0 | S18: 0 | T18: 0 | U18: 0 | V18: 0 | W18: 0 | X18: 0 | Y18: 0 | Z18: 0 | AA18: 0 | AB18: 0 | AC18: 0 | AD18: 0 | AE18: 0
A19: 0010 | B19: Arlington | C19: 0 | D19: 0 | E19: 0 | F19: 0 | G19: 0 | H19: 0 | I19: 0 | J19: 0 | K19: 0 | L19: 0 | M19: 0 | N19: 0 | O19: 0 | P19: 0 | Q19: 0 | R19: 0 | S19: 0 | T19: 0 | U19: 0 | V19: 0 | W19: 0 | X19: 0 | Y19: 0 | Z19: 0 | AA19: 0 | AB19: 0 | AC19: 0 | AD19: 0 | AE19: 0
A20: 0011 | B20: Ashburnham | C20: 0 | D20: 0 | E20: 0 | F20: 0 | G20: 0 | H20: 0 | I20: 0 | J20: 0 | K20: 0 | L20: 0 | M20: 0 | N20: 0 | O20: 0 | P20: 0 | Q20: 0 | R20: 0 | S20: 0 | T20: 0 | U20: 0 | V20: 0 | W20: 0 | X20: 0 | Y20: 0 | Z20: 0 | AA20: 0 | AB20: 0 | AC20: 0 | AD20: 0 | AE20: 0
A21: 0012 | B21: Ashby | C21: 0 | D21: 0 | E21: 0 | F21: 0 | G21: 0 | H21: 0 | I21: 0 | J21: 0 | K21: 0 | L21: 0 | M21: 0 | N21: 0 | O21: 0 | P21: 0 | Q21: 0 | R21: 0 | S21: 0 | T21: 0 | U21: 0 | V21: 0 | W21: 0 | X21: 0 | Y21: 0 | Z21: 0 | AA21: 0 | AB21: 0 | AC21: 0 | AD21: 0 | AE21: 0
A22: 0013 | B22: Ashfield | C22: 0 | D22: 0 | E22: 0 | F22: 0 | G22: 0 | H22: 0 | I22: 0 | J22: 0 | K22: 0 | L22: 0 | M22: 0 | N22: 0 | O22: 0 | P22: 0 | Q22: 0 | R22: 0 | S22: 0 | T22: 0 | U22: 0 | V22: 0 | W22: 0 | X22: 0 | Y22: 0 | Z22: 0 | AA22: 0 | AB22: 0 | AC22: 0 | AD22: 0 | AE22: 0
A23: 0014 | B23: Ashland | C23: 225285 | D23: 249877 | E23: 246484 | F23: 365020 | G23: 306040 | H23: 174844 | I23: 66310 | J23: 59976 | K23: 87251 | L23: 57404 | M23: 57388 | N23: 83164 | O23: 76051 | P23: 122993 | Q23: 91792 | R23: 135867 | S23: 142837 | T23: 147085 | U23: 143134 | V23: 212748 | W23: 266615 | X23: 271637 | Y23: 351933 | Z23: 522938 | AA23: 464202 | AB23: 519019 | AC23: 233235 | AD23: 215741 | AE23: 206100
A24: 0015 | B24: Athol | C24: 0 | D24: 0 | E24: 0 | F24: 0 | G24: 0 | H24: 0 | I24: 0 | J24: 0 | K24: 0 | L24: 0 | M24: 0 | N24: 0 | O24: 0 | P24: 0 | Q24: 0 | R24: 0 | S24: 0 | T24: 0 | U24: 0 | V24: 0 | W24: 0 | X24: 0 | Y24: 0 | Z24: 0 | AA24: 0 | AB24: 0 | AC24: 0 | AD24: 0 | AE24: 0
A25: 0016 | B25: Attleboro | C25: 0 | D25: 0 | E25: 0 | F25: 0 | G25: 0 | H25: 0 | I25: 0 | J25: 0 | K25: 0 | L25: 0 | M25: 0 | N25: 0 | O25: 0 | P25: 0 | Q25: 0 | R25: 0 | S25: 0 | T25: 0 | U25: 0 | V25: 0 | W25: 0 | X25: 0 | Y25: 0 | Z25: 0 | AA25: 0 | AB25: 10000 | AC25: 10000 | AD25: 12020 | AE25: 0
A26: 0017 | B26: Auburn | C26: 0 | D26: 0 | E26: 0 | F26: 0 | G26: 0 | H26: 0 | I26: 0 | J26: 0 | K26: 0 | L26: 0 | M26: 0 | N26: 73431 | O26: 88590 | P26: 101843 | Q26: 112520 | R26: 116689 | S26: 204710 | T26: 195176 | U26: 238546 | V26: 249438 | W26: 327610 | X26: 335863 | Y26: 368088 | Z26: 425548 | AA26: 432455 | AB26: 511043 | AC26: 486253 | AD26: 407974 | AE26: 419005
A27: 0018 | B27: Avon | C27: 953941 | D27: 821752 | E27: 924789 | F27: 873594 | G27: 929637 | H27: 915775 | I27: 930090 | J27: 842268 | K27: 793354 | L27: 763484 | M27: 889958 | N27: 1035965 | O27: 1054609 | P27: 997957 | Q27: 956026 | R27: 1044941 | S27: 947633 | T27: 989360 | U27: 1052976 | V27: 949225 | W27: 980670 | X27: 958977 | Y27: 907809 | Z27: 903625 | AA27: 825862 | AB27: 795351 | AC27: 895065 | AD27: 938946 | AE27: 990550
A28: 0019 | B28: Ayer | C28: 423904 | D28: 646099 | E28: 771724 | F28: 985277 | G28: 983610 | H28: 1036782 | I28: 1261758 | J28: 1334292 | K28: 1312956 | L28: 1288237 | M28: 1126844 | N28: 1075273 | O28: 942655 | P28: 1011161 | Q28: 1018806 | R28: 742504 | S28: 0 | T28: 0 | U28: 0 | V28: 0 | W28: 0 | X28: 0 | Y28: 0 | Z28: 0 | AA28: 0 | AB28: 0 | AC28: 0 | AD28: 0 | AE28: 0
A29: 0020 | B29: Barnstable | C29: 0 | D29: 0 | E29: 20802 | F29: 45829 | G29: 128505 | H29: 241132 | I29: 249070 | J29: 302838 | K29: 236109 | L29: 151673 | M29: 142616 | N29: 175318 | O29: 236270 | P29: 415670 | Q29: 378695 | R29: 420647 | S29: 472255 | T29: 668312 | U29: 730660 | V29: 616894 | W29: 650718 | X29: 744319 | Y29: 539484 | Z29: 611117 | AA29: 646757 | AB29: 568333 | AC29: 611207 | AD29: 533934 | AE29: 601912
A30: 0021 | B30: Barre | C30: 0 | D30: 0 | E30: 0 | F30: 0 | G30: 0 | H30: 0 | I30: 0 | J30: 0 | K30: 0 | L30: 0 | M30: 0 | N30: 0 | O30: 0 | P30: 0 | Q30: 0 | R30: 0 | S30: 0 | T30: 0 | U30: 0 | V30: 0 | W30: 0 | X30: 0 | Y30: 0 | Z30: 0 | AA30: 0 | AB30: 0 | AC30: 0 | AD30: 0 | AE30: 0
A31: 0022 | B31: Becket | C31: 0 | D31: 0 | E31: 0 | F31: 0 | G31: 0 | H31: 0 | I31: 0 | J31: 0 | K31: 0 | L31: 0 | M31: 0 | N31: 0 | O31: 0 | P31: 0 | Q31: 0 | R31: 0 | S31: 0 | T31: 0 | U31: 0 | V31: 0 | W31: 0 | X31: 0 | Y31: 0 | Z31: 0 | AA31: 0 | AB31: 0 | AC31: 0 | AD31: 0 | AE31: 0
A32: 0023 | B32: Bedford | C32: 0 | D32: 0 | E32: 0 | F32: 0 | G32: 0 | H32: 0 | I32: 0 | J32: 0 | K32: 0 | L32: 0 | M32: 0 | N32: 0 | O32: 0 | P32: 0 | Q32: 0 | R32: 0 | S32: 0 | T32: 0 | U32: 0 | V32: 0 | W32: 0 | X32: 0 | Y32: 0 | Z32: 0 | AA32: 0 | AB32: 0 | AC32: 0 | AD32: 0 | AE32: 0
A33: 0024 | B33: Belchertown | C33: 0 | D33: 0 | E33: 0 | F33: 0 | G33: 0 | H33: 0 | I33: 216841 | J33: 305952 | K33: 349378 | L33: 311606 | M33: 361246 | N33: 270620 | O33: 211445 | P33: 197887 | Q33: 163133 | R33: 191813 | S33: 203751 | T33: 295561 | U33: 315910 | V33: 580989 | W33: 749311 | X33: 851242 | Y33: 872639 | Z33: 745145 | AA33: 820453 | AB33: 903367 | AC33: 845966 | AD33: 908286 | AE33: 1128887
A34: 0025 | B34: Bellingham | C34: 0 | D34: 0 | E34: 0 | F34: 0 | G34: 0 | H34: 0 | I34: 0 | J34: 0 | K34: 0 | L34: 0 | M34: 0 | N34: 116223 | O34: 241338 | P34: 253398 | Q34: 181599 | R34: 213673 | S34: 204892 | T34: 225768 | U34: 265933 | V34: 257806 | W34: 218670 | X34: 220216 | Y34: 255832 | Z34: 288259 | AA34: 342059 | AB34: 360278 | AC34: 347396 | AD34: 315578 | AE34: 387425
A35: 0026 | B35: Belmont | C35: 0 | D35: 0 | E35: 0 | F35: 0 | G35: 0 | H35: 0 | I35: 0 | J35: 138692 | K35: 299491 | L35: 290043 | M35: 258159 | N35: 120478 | O35: 0 | P35: 0 | Q35: 0 | R35: 0 | S35: 0 | T35: 0 | U35: 0 | V35: 0 | W35: 0 | X35: 0 | Y35: 0 | Z35: 0 | AA35: 0 | AB35: 0 | AC35: 0 | AD35: 0 | AE35: 0
A36: 0027 | B36: Berkley | C36: 0 | D36: 0 | E36: 0 | F36: 0 | G36: 0 | H36: 0 | I36: 0 | J36: 0 | K36: 32900 | L36: 41866 | M36: 31486 | N36: 59001 | O36: 67862 | P36: 96495 | Q36: 111428 | R36: 117914 | S36: 193549 | T36: 268185 | U36: 334467 | V36: 396688 | W36: 520800 | X36: 529508 | Y36: 502633 | Z36: 521847 | AA36: 634168 | AB36: 679612 | AC36: 659651 | AD36: 744941 | AE36: 904058
A37: 0028 | B37: Berlin | C37: 93359 | D37: 82693 | E37: 81815 | F37: 108942 | G37: 83685 | H37: 59457 | I37: 61866 | J37: 65247 | K37: 49404 | L37: 40796 | M37: 48350 | N37: 45817 | O37: 50000 | P37: 61226 | Q37: 54520 | R37: 72605 | S37: 127783 | T37: 212426 | U37: 174482 | V37: 145629 | W37: 147821 | X37: 127711 | Y37: 82756 | Z37: 78840 | AA37: 0 | AB37: 0 | AC37: 0 | AD37: 0 | AE37: 0
A38: 0029 | B38: Bernardston | C38: 0 | D38: 0 | E38: 0 | F38: 0 | G38: 0 | H38: 0 | I38: 0 | J38: 0 | K38: 0 | L38: 0 | M38: 0 | N38: 0 | O38: 0 | P38: 0 | Q38: 0 | R38: 0 | S38: 0 | T38: 0 | U38: 0 | V38: 0 | W38: 0 | X38: 0 | Y38: 0 | Z38: 0 | AA38: 0 | AB38: 0 | AC38: 0 | AD38: 0 | AE38: 0
A39: 0030 | B39: Beverly | C39: 212000 | D39: 161166 | E39: 155843 | F39: 154826 | G39: 214051 | H39: 150369 | I39: 234309 | J39: 369422 | K39: 433793 | L39: 486881 | M39: 437803 | N39: 424966 | O39: 381117 | P39: 394821 | Q39: 401592 | R39: 324859 | S39: 257056 | T39: 358862 | U39: 507713 | V39: 524477 | W39: 596078 | X39: 565665 | Y39: 556361 | Z39: 586557 | AA39: 693035 | AB39: 677675 | AC39: 720458 | AD39: 721234 | AE39: 732757
A40: 0031 | B40: Billerica | C40: 0 | D40: 0 | E40: 0 | F40: 0 | G40: 0 | H40: 0 | I40: 0 | J40: 0 | K40: 0 | L40: 0 | M40: 0 | N40: 0 | O40: 0 | P40: 0 | Q40: 0 | R40: 0 | S40: 0 | T40: 0 | U40: 0 | V40: 0 | W40: 0 | X40: 0 | Y40: 0 | Z40: 0 | AA40: 0 | AB40: 0 | AC40: 0 | AD40: 0 | AE40: 0
A41: 0032 | B41: Blackstone | C41: 0 | D41: 0 | E41: 0 | F41: 0 | G41: 0 | H41: 0 | I41: 0 | J41: 0 | K41: 0 | L41: 0 | M41: 0 | N41: 0 | O41: 0 | P41: 0 | Q41: 0 | R41: 0 | S41: 0 | T41: 0 | U41: 0 | V41: 0 | W41: 0 | X41: 0 | Y41: 0 | Z41: 0 | AA41: 0 | AB41: 0 | AC41: 0 | AD41: 0 | AE41: 0
A42: 0033 | B42: Blandford | C42: 0 | D42: 0 | E42: 0 | F42: 0 | G42: 0 | H42: 0 | I42: 0 | J42: 0 | K42: 0 | L42: 0 | M42: 0 | N42: 0 | O42: 0 | P42: 0 | Q42: 0 | R42: 0 | S42: 0 | T42: 0 | U42: 0 | V42: 0 | W42: 0 | X42: 0 | Y42: 0 | Z42: 0 | AA42: 0 | AB42: 0 | AC42: 0 | AD42: 0 | AE42: 0
A43: 0034 | B43: Bolton | C43: 0 | D43: 0 | E43: 0 | F43: 0 | G43: 0 | H43: 0 | I43: 0 | J43: 0 | K43: 0 | L43: 0 | M43: 0 | N43: 0 | O43: 0 | P43: 0 | Q43: 0 | R43: 0 | S43: 0 | T43: 0 | U43: 0 | V43: 0 | W43: 0 | X43: 0 | Y43: 0 | Z43: 0 | AA43: 0 | AB43: 0 | AC43: 0 | AD43: 0 | AE43: 0
A44: 0035 | B44: Boston | C44: 0 | D44: 0 | E44: 0 | F44: 0 | G44: 0 | H44: 0 | I44: 0 | J44: 0 | K44: 0 | L44: 0 | M44: 0 | N44: 0 | O44: 0 | P44: 0 | Q44: 0 | R44: 0 | S44: 0 | T44: 0 | U44: 0 | V44: 0 | W44: 0 | X44: 0 | Y44: 0 | Z44: 0 | AA44: 0 | AB44: 0 | AC44: 0 | AD44: 0 | AE44: 0
A45: 0036 | B45: Bourne | C45: 0 | D45: 0 | E45: 0 | F45: 0 | G45: 0 | H45: 0 | I45: 0 | J45: 0 | K45: 0 | L45: 0 | M45: 51023 | N45: 86300 | O45: 185321 | P45: 100337 | Q45: 246617 | R45: 260449 | S45: 247254 | T45: 231541 | U45: 403525 | V45: 723869 | W45: 800520 | X45: 816628 | Y45: 865567 | Z45: 1085903 | AA45: 902675 | AB45: 808724 | AC45: 573629 | AD45: 1003174 | AE45: 861053
A46: 0037 | B46: Boxborough | C46: 0 | D46: 0 | E46: 0 | F46: 0 | G46: 0 | H46: 0 | I46: 0 | J46: 0 | K46: 0 | L46: 0 | M46: 0 | N46: 0 | O46: 155193 | P46: 204850 | Q46: 196722 | R46: 192845 | S46: 192735 | T46: 179595 | U46: 197076 | V46: 0 | W46: 0 | X46: 0 | Y46: 0 | Z46: 0 | AA46: 0 | AB46: 0 | AC46: 0 | AD46: 0 | AE46: 0
A47: 0038 | B47: Boxford | C47: 0 | D47: 0 | E47: 0 | F47: 0 | G47: 0 | H47: 0 | I47: 0 | J47: 0 | K47: 0 | L47: 0 | M47: 0 | N47: 0 | O47: 0 | P47: 0 | Q47: 0 | R47: 0 | S47: 0 | T47: 0 | U47: 0 | V47: 0 | W47: 0 | X47: 0 | Y47: 0 | Z47: 0 | AA47: 0 | AB47: 0 | AC47: 0 | AD47: 0 | AE47: 0
A48: 0039 | B48: Boylston | C48: 0 | D48: 0 | E48: 0 | F48: 0 | G48: 0 | H48: 0 | I48: 16448 | J48: 30771 | K48: 40458 | L48: 52275 | M48: 50465 | N48: 86287 | O48: 102933 | P48: 136548 | Q48: 119614 | R48: 82539 | S48: 60197 | T48: 111636 | U48: 88928 | V48: 70513 | W48: 94765 | X48: 112874 | Y48: 74318 | Z48: 86831 | AA48: 0 | AB48: 0 | AC48: 0 | AD48: 0 | AE48: 0
A49: 0040 | B49: Braintree | C49: 0 | D49: 0 | E49: 0 | F49: 0 | G49: 0 | H49: 0 | I49: 0 | J49: 0 | K49: 0 | L49: 0 | M49: 0 | N49: 0 | O49: 0 | P49: 0 | Q49: 0 | R49: 0 | S49: 0 | T49: 0 | U49: 0 | V49: 0 | W49: 0 | X49: 0 | Y49: 0 | Z49: 0 | AA49: 0 | AB49: 0 | AC49: 0 | AD49: 0 | AE49: 0
A50: 0041 | B50: Brewster | C50: 0 | D50: 0 | E50: 0 | F50: 0 | G50: 0 | H50: 0 | I50: 0 | J50: 0 | K50: 0 | L50: 0 | M50: 0 | N50: 0 | O50: 0 | P50: 0 | Q50: 0 | R50: 0 | S50: 0 | T50: 0 | U50: 0 | V50: 0 | W50: 0 | X50: 0 | Y50: 0 | Z50: 0 | AA50: 0 | AB50: 0 | AC50: 0 | AD50: 0 | AE50: 0
A51: 0042 | B51: Bridgewater | C51: 0 | D51: 0 | E51: 0 | F51: 0 | G51: 0 | H51: 0 | I51: 0 | J51: 0 | K51: 0 | L51: 0 | M51: 0 | N51: 0 | O51: 0 | P51: 0 | Q51: 0 | R51: 0 | S51: 0 | T51: 0 | U51: 0 | V51: 0 | W51: 0 | X51: 0 | Y51: 0 | Z51: 0 | AA51: 0 | AB51: 0 | AC51: 0 | AD51: 0 | AE51: 0
A52: 0043 | B52: Brimfield | C52: 0 | D52: 0 | E52: 0 | F52: 0 | G52: 0 | H52: 0 | I52: 0 | J52: 0 | K52: 0 | L52: 0 | M52: 0 | N52: 0 | O52: 0 | P52: 0 | Q52: 0 | R52: 0 | S52: 0 | T52: 0 | U52: 0 | V52: 0 | W52: 0 | X52: 0 | Y52: 0 | Z52: 0 | AA52: 0 | AB52: 0 | AC52: 0 | AD52: 0 | AE52: 0
A53: 0044 | B53: Brockton | C53: 0 | D53: 0 | E53: 0 | F53: 0 | G53: 0 | H53: 0 | I53: 0 | J53: 0 | K53: 0 | L53: 0 | M53: 0 | N53: 0 | O53: 15000 | P53: 58700 | Q53: 60000 | R53: 60600 | S53: 80800 | T53: 75150 | U53: 94800 | V53: 115000 | W53: 227944 | X53: 163758 | Y53: 145620 | Z53: 150031 | AA53: 102325 | AB53: 72036 | AC53: 68679 | AD53: 66698 | AE53: 54100
A54: 0045 | B54: Brookfield | C54: 0 | D54: 0 | E54: 3354 | F54: 32795 | G54: 66619 | H54: 64758 | I54: 36069 | J54: 28999 | K54: 41543 | L54: 32900 | M54: 71580 | N54: 113624 | O54: 147479 | P54: 173405 | Q54: 191131 | R54: 273472 | S54: 319460 | T54: 306697 | U54: 375456 | V54: 389284 | W54: 354773 | X54: 351939 | Y54: 248457 | Z54: 258461 | AA54: 225559 | AB54: 223167 | AC54: 234452 | AD54: 314990 | AE54: 322483
A55: 0046 | B55: Brookline | C55: 0 | D55: 0 | E55: 0 | F55: 0 | G55: 0 | H55: 0 | I55: 0 | J55: 0 | K55: 0 | L55: 0 | M55: 0 | N55: 0 | O55: 0 | P55: 0 | Q55: 0 | R55: 0 | S55: 0 | T55: 0 | U55: 0 | V55: 0 | W55: 0 | X55: 0 | Y55: 0 | Z55: 0 | AA55: 0 | AB55: 0 | AC55: 0 | AD55: 0 | AE55: 0
A56: 0047 | B56: Buckland | C56: 0 | D56: 0 | E56: 0 | F56: 0 | G56: 0 | H56: 0 | I56: 0 | J56: 0 | K56: 0 | L56: 0 | M56: 0 | N56: 0 | O56: 0 | P56: 0 | Q56: 0 | R56: 0 | S56: 0 | T56: 0 | U56: 0 | V56: 0 | W56: 0 | X56: 0 | Y56: 0 | Z56: 0 | AA56: 0 | AB56: 0 | AC56: 0 | AD56: 0 | AE56: 0
A57: 0048 | B57: Burlington | C57: 0 | D57: 0 | E57: 0 | F57: 0 | G57: 0 | H57: 0 | I57: 0 | J57: 0 | K57: 0 | L57: 0 | M57: 0 | N57: 0 | O57: 0 | P57: 0 | Q57: 0 | R57: 64996 | S57: 95432 | T57: 122397 | U57: 116550 | V57: 125100 | W57: 144650 | X57: 176074 | Y57: 113690 | Z57: 123469 | AA57: 112172 | AB57: 120000 | AC57: 110000 | AD57: 101352 | AE57: 86684
A58: 0049 | B58: Cambridge | C58: 0 | D58: 0 | E58: 0 | F58: 0 | G58: 0 | H58: 0 | I58: 0 | J58: 0 | K58: 0 | L58: 0 | M58: 0 | N58: 0 | O58: 0 | P58: 0 | Q58: 0 | R58: 0 | S58: 0 | T58: 0 | U58: 0 | V58: 0 | W58: 0 | X58: 0 | Y58: 0 | Z58: 0 | AA58: 0 | AB58: 0 | AC58: 0 | AD58: 0 | AE58: 0
A59: 0050 | B59: Canton | C59: 0 | D59: 0 | E59: 0 | F59: 0 | G59: 0 | H59: 0 | I59: 0 | J59: 0 | K59: 0 | L59: 0 | M59: 0 | N59: 0 | O59: 0 | P59: 0 | Q59: 0 | R59: 0 | S59: 0 | T59: 0 | U59: 0 | V59: 0 | W59: 0 | X59: 0 | Y59: 0 | Z59: 0 | AA59: 0 | AB59: 0 | AC59: 0 | AD59: 0 | AE59: 0
A60: 0051 | B60: Carlisle | C60: 0 | D60: 0 | E60: 0 | F60: 0 | G60: 0 | H60: 0 | I60: 0 | J60: 0 | K60: 0 | L60: 0 | M60: 0 | N60: 0 | O60: 0 | P60: 0 | Q60: 0 | R60: 0 | S60: 0 | T60: 0 | U60: 0 | V60: 0 | W60: 0 | X60: 0 | Y60: 0 | Z60: 0 | AA60: 0 | AB60: 0 | AC60: 0 | AD60: 0 | AE60: 0
A61: 0052 | B61: Carver | C61: 0 | D61: 0 | E61: 0 | F61: 0 | G61: 0 | H61: 0 | I61: 0 | J61: 0 | K61: 0 | L61: 0 | M61: 0 | N61: 0 | O61: 0 | P61: 0 | Q61: 0 | R61: 0 | S61: 60000 | T61: 53150 | U61: 93034 | V61: 155991 | W61: 174142 | X61: 241658 | Y61: 228963 | Z61: 349251 | AA61: 382378 | AB61: 466864 | AC61: 513980 | AD61: 572373 | AE61: 600536
A62: 0053 | B62: Charlemont | C62: 0 | D62: 0 | E62: 0 | F62: 0 | G62: 0 | H62: 0 | I62: 0 | J62: 0 | K62: 0 | L62: 0 | M62: 0 | N62: 0 | O62: 0 | P62: 0 | Q62: 0 | R62: 0 | S62: 0 | T62: 0 | U62: 0 | V62: 0 | W62: 0 | X62: 0 | Y62: 0 | Z62: 0 | AA62: 0 | AB62: 0 | AC62: 0 | AD62: 0 | AE62: 0
A63: 0054 | B63: Charlton | C63: 0 | D63: 0 | E63: 0 | F63: 0 | G63: 0 | H63: 0 | I63: 0 | J63: 0 | K63: 0 | L63: 0 | M63: 0 | N63: 0 | O63: 0 | P63: 0 | Q63: 0 | R63: 0 | S63: 0 | T63: 0 | U63: 0 | V63: 0 | W63: 0 | X63: 0 | Y63: 0 | Z63: 0 | AA63: 0 | AB63: 0 | AC63: 0 | AD63: 0 | AE63: 0
A64: 0055 | B64: Chatham | C64: 290654 | D64: 286035 | E64: 407092 | F64: 685773 | G64: 672814 | H64: 732215 | I64: 843441 | J64: 941373 | K64: 873193 | L64: 1021839 | M64: 1265107 | N64: 1242635 | O64: 1257663 | P64: 1335142 | Q64: 1309492 | R64: 1407028 | S64: 1435048 | T64: 0 | U64: 0 | V64: 0 | W64: 0 | X64: 0 | Y64: 0 | Z64: 0 | AA64: 0 | AB64: 0 | AC64: 0 | AD64: 0 | AE64: 0
A65: 0056 | B65: Chelmsford | C65: 40116 | D65: 21216 | E65: 0 | F65: 0 | G65: 0 | H65: 0 | I65: 0 | J65: 0 | K65: 0 | L65: 0 | M65: 0 | N65: 0 | O65: 0 | P65: 0 | Q65: 0 | R65: 75074 | S65: 135979 | T65: 169878 | U65: 222996 | V65: 326523 | W65: 425721 | X65: 365523 | Y65: 377710 | Z65: 278930 | AA65: 228569 | AB65: 263989 | AC65: 252481 | AD65: 285553 | AE65: 401517
A66: 0057 | B66: Chelsea | C66: 0 | D66: 0 | E66: 0 | F66: 0 | G66: 0 | H66: 0 | I66: 0 | J66: 0 | K66: 0 | L66: 0 | M66: 0 | N66: 0 | O66: 0 | P66: 0 | Q66: 0 | R66: 0 | S66: 0 | T66: 0 | U66: 0 | V66: 0 | W66: 0 | X66: 0 | Y66: 0 | Z66: 0 | AA66: 0 | AB66: 0 | AC66: 0 | AD66: 0 | AE66: 0
A67: 0058 | B67: Cheshire | C67: 0 | D67: 0 | E67: 0 | F67: 0 | G67: 0 | H67: 0 | I67: 0 | J67: 0 | K67: 0 | L67: 0 | M67: 0 | N67: 0 | O67: 0 | P67: 0 | Q67: 0 | R67: 0 | S67: 0 | T67: 0 | U67: 0 | V67: 0 | W67: 0 | X67: 0 | Y67: 0 | Z67: 0 | AA67: 0 | AB67: 0 | AC67: 0 | AD67: 0 | AE67: 0
A68: 0059 | B68: Chester | C68: 0 | D68: 0 | E68: 0 | F68: 0 | G68: 0 | H68: 0 | I68: 0 | J68: 0 | K68: 0 | L68: 0 | M68: 0 | N68: 0 | O68: 0 | P68: 0 | Q68: 0 | R68: 0 | S68: 0 | T68: 0 | U68: 0 | V68: 0 | W68: 0 | X68: 0 | Y68: 0 | Z68: 0 | AA68: 0 | AB68: 0 | AC68: 0 | AD68: 0 | AE68: 0
A69: 0060 | B69: Chesterfield | C69: 0 | D69: 0 | E69: 0 | F69: 0 | G69: 0 | H69: 0 | I69: 0 | J69: 0 | K69: 0 | L69: 0 | M69: 0 | N69: 0 | O69: 0 | P69: 0 | Q69: 0 | R69: 0 | S69: 0 | T69: 0 | U69: 0 | V69: 0 | W69: 0 | X69: 0 | Y69: 0 | Z69: 0 | AA69: 0 | AB69: 0 | AC69: 0 | AD69: 0 | AE69: 0
A70: 0061 | B70: Chicopee | C70: 0 | D70: 0 | E70: 0 | F70: 0 | G70: 0 | H70: 0 | I70: 0 | J70: 92945 | K70: 472177 | L70: 796943 | M70: 895160 | N70: 971400 | O70: 1054726 | P70: 1184862 | Q70: 1216255 | R70: 1029621 | S70: 995759 | T70: 967554 | U70: 1023904 | V70: 941627 | W70: 988909 | X70: 966963 | Y70: 988790 | Z70: 940781 | AA70: 913385 | AB70: 662278 | AC70: 667066 | AD70: 578044 | AE70: 550280
A71: 0062 | B71: Chilmark | C71: 0 | D71: 0 | E71: 0 | F71: 0 | G71: 0 | H71: 0 | I71: 0 | J71: 0 | K71: 0 | L71: 0 | M71: 0 | N71: 0 | O71: 0 | P71: 0 | Q71: 0 | R71: 0 | S71: 0 | T71: 0 | U71: 0 | V71: 0 | W71: 0 | X71: 0 | Y71: 0 | Z71: 0 | AA71: 0 | AB71: 0 | AC71: 0 | AD71: 0 | AE71: 0
A72: 0063 | B72: Clarksburg | C72: 0 | D72: 0 | E72: 0 | F72: 0 | G72: 0 | H72: 0 | I72: 0 | J72: 0 | K72: 0 | L72: 0 | M72: 0 | N72: 0 | O72: 0 | P72: 0 | Q72: 0 | R72: 72086 | S72: 106940 | T72: 123203 | U72: 122000 | V72: 159657 | W72: 203013 | X72: 252915 | Y72: 310252 | Z72: 301032 | AA72: 336275 | AB72: 296838 | AC72: 283184 | AD72: 254814 | AE72: 217026
A73: 0064 | B73: Clinton | C73: 170360 | D73: 278337 | E73: 276319 | F73: 382721 | G73: 377088 | H73: 408536 | I73: 571239 | J73: 669956 | K73: 739434 | L73: 596287 | M73: 565846 | N73: 617725 | O73: 739433 | P73: 789815 | Q73: 756978 | R73: 748250 | S73: 906936 | T73: 949999 | U73: 850320 | V73: 847518 | W73: 640152 | X73: 496015 | Y73: 535034 | Z73: 565518 | AA73: 531279 | AB73: 513791 | AC73: 470732 | AD73: 462728 | AE73: 386619
A74: 0065 | B74: Cohasset | C74: 0 | D74: 0 | E74: 0 | F74: 0 | G74: 0 | H74: 0 | I74: 0 | J74: 0 | K74: 0 | L74: 0 | M74: 0 | N74: 0 | O74: 0 | P74: 0 | Q74: 0 | R74: 0 | S74: 0 | T74: 0 | U74: 0 | V74: 0 | W74: 0 | X74: 0 | Y74: 0 | Z74: 0 | AA74: 0 | AB74: 0 | AC74: 0 | AD74: 0 | AE74: 0
A75: 0066 | B75: Colrain | C75: 0 | D75: 0 | E75: 0 | F75: 0 | G75: 0 | H75: 0 | I75: 0 | J75: 0 | K75: 0 | L75: 0 | M75: 0 | N75: 0 | O75: 0 | P75: 0 | Q75: 0 | R75: 0 | S75: 0 | T75: 0 | U75: 0 | V75: 0 | W75: 0 | X75: 0 | Y75: 0 | Z75: 0 | AA75: 0 | AB75: 0 | AC75: 0 | AD75: 0 | AE75: 0
A76: 0067 | B76: Concord | C76: 0 | D76: 0 | E76: 0 | F76: 0 | G76: 0 | H76: 0 | I76: 0 | J76: 0 | K76: 0 | L76: 0 | M76: 0 | N76: 0 | O76: 0 | P76: 0 | Q76: 0 | R76: 0 | S76: 0 | T76: 0 | U76: 0 | V76: 0 | W76: 0 | X76: 0 | Y76: 0 | Z76: 0 | AA76: 0 | AB76: 0 | AC76: 0 | AD76: 0 | AE76: 0
A77: 0068 | B77: Conway | C77: 0 | D77: 0 | E77: 0 | F77: 0 | G77: 0 | H77: 0 | I77: 44688 | J77: 112824 | K77: 165303 | L77: 199040 | M77: 229364 | N77: 152875 | O77: 178286 | P77: 174724 | Q77: 176699 | R77: 151852 | S77: 65772 | T77: 95266 | U77: 128114 | V77: 125137 | W77: 124095 | X77: 161393 | Y77: 235057 | Z77: 231550 | AA77: 254632 | AB77: 254721 | AC77: 309915 | AD77: 298862 | AE77: 404720
A78: 0069 | B78: Cummington | C78: 0 | D78: 0 | E78: 0 | F78: 0 | G78: 0 | H78: 0 | I78: 0 | J78: 0 | K78: 0 | L78: 0 | M78: 0 | N78: 0 | O78: 0 | P78: 0 | Q78: 0 | R78: 0 | S78: 0 | T78: 0 | U78: 0 | V78: 0 | W78: 0 | X78: 0 | Y78: 0 | Z78: 0 | AA78: 0 | AB78: 0 | AC78: 0 | AD78: 0 | AE78: 0
A79: 0070 | B79: Dalton | C79: 0 | D79: 0 | E79: 0 | F79: 0 | G79: 0 | H79: 0 | I79: 0 | J79: 0 | K79: 0 | L79: 0 | M79: 0 | N79: 0 | O79: 0 | P79: 0 | Q79: 0 | R79: 0 | S79: 0 | T79: 0 | U79: 0 | V79: 0 | W79: 0 | X79: 0 | Y79: 0 | Z79: 0 | AA79: 0 | AB79: 0 | AC79: 0 | AD79: 0 | AE79: 0
A80: 0071 | B80: Danvers | C80: 55843 | D80: 42637 | E80: 36048 | F80: 26216 | G80: 4171 | H80: 0 | I80: 0 | J80: 0 | K80: 0 | L80: 0 | M80: 0 | N80: 0 | O80: 0 | P80: 0 | Q80: 0 | R80: 0 | S80: 0 | T80: 0 | U80: 0 | V80: 0 | W80: 0 | X80: 0 | Y80: 0 | Z80: 0 | AA80: 0 | AB80: 0 | AC80: 0 | AD80: 0 | AE80: 0
A81: 0072 | B81: Dartmouth | C81: 0 | D81: 0 | E81: 0 | F81: 0 | G81: 0 | H81: 0 | I81: 0 | J81: 0 | K81: 0 | L81: 0 | M81: 0 | N81: 0 | O81: 0 | P81: 0 | Q81: 0 | R81: 0 | S81: 0 | T81: 0 | U81: 0 | V81: 0 | W81: 0 | X81: 150000 | Y81: 307817 | Z81: 470501 | AA81: 551741 | AB81: 590913 | AC81: 683752 | AD81: 780088 | AE81: 742503
A82: 0073 | B82: Dedham | C82: 0 | D82: 0 | E82: 0 | F82: 0 | G82: 0 | H82: 0 | I82: 0 | J82: 0 | K82: 0 | L82: 0 | M82: 0 | N82: 0 | O82: 0 | P82: 0 | Q82: 0 | R82: 0 | S82: 0 | T82: 0 | U82: 0 | V82: 0 | W82: 0 | X82: 0 | Y82: 0 | Z82: 0 | AA82: 0 | AB82: 0 | AC82: 0 | AD82: 0 | AE82: 0
A83: 0074 | B83: Deerfield | C83: 0 | D83: 0 | E83: 0 | F83: 0 | G83: 19139 | H83: 116870 | I83: 215540 | J83: 279461 | K83: 326774 | L83: 397673 | M83: 439225 | N83: 481249 | O83: 484127 | P83: 489148 | Q83: 484597 | R83: 396924 | S83: 447591 | T83: 567885 | U83: 614710 | V83: 711861 | W83: 647624 | X83: 553818 | Y83: 511096 | Z83: 453305 | AA83: 344117 | AB83: 293642 | AC83: 340138 | AD83: 345214 | AE83: 294669
A84: 0075 | B84: Dennis | C84: 0 | D84: 0 | E84: 0 | F84: 0 | G84: 0 | H84: 0 | I84: 0 | J84: 0 | K84: 0 | L84: 0 | M84: 0 | N84: 0 | O84: 0 | P84: 0 | Q84: 0 | R84: 0 | S84: 0 | T84: 0 | U84: 0 | V84: 0 | W84: 0 | X84: 0 | Y84: 0 | Z84: 0 | AA84: 0 | AB84: 0 | AC84: 0 | AD84: 0 | AE84: 0
A85: 0076 | B85: Dighton | C85: 0 | D85: 0 | E85: 0 | F85: 0 | G85: 0 | H85: 0 | I85: 0 | J85: 0 | K85: 0 | L85: 0 | M85: 0 | N85: 0 | O85: 0 | P85: 0 | Q85: 0 | R85: 0 | S85: 0 | T85: 0 | U85: 0 | V85: 0 | W85: 0 | X85: 0 | Y85: 0 | Z85: 0 | AA85: 0 | AB85: 0 | AC85: 0 | AD85: 0 | AE85: 0
A86: 0077 | B86: Douglas | C86: 57317 | D86: 66815 | E86: 57266 | F86: 90895 | G86: 50293 | H86: 66177 | I86: 96239 | J86: 140873 | K86: 245595 | L86: 440594 | M86: 434409 | N86: 417888 | O86: 443298 | P86: 451976 | Q86: 561891 | R86: 539294 | S86: 528691 | T86: 586395 | U86: 670728 | V86: 677565 | W86: 656288 | X86: 786261 | Y86: 747271 | Z86: 915675 | AA86: 861000 | AB86: 925258 | AC86: 749867 | AD86: 681293 | AE86: 657962
A87: 0078 | B87: Dover | C87: 0 | D87: 0 | E87: 0 | F87: 0 | G87: 0 | H87: 0 | I87: 0 | J87: 0 | K87: 0 | L87: 0 | M87: 0 | N87: 0 | O87: 0 | P87: 0 | Q87: 0 | R87: 0 | S87: 0 | T87: 0 | U87: 0 | V87: 0 | W87: 0 | X87: 0 | Y87: 0 | Z87: 0 | AA87: 0 | AB87: 0 | AC87: 0 | AD87: 0 | AE87: 0
A88: 0079 | B88: Dracut | C88: 145414 | D88: 156444 | E88: 164021 | F88: 197501 | G88: 162951 | H88: 174816 | I88: 138183 | J88: 151016 | K88: 136617 | L88: 127540 | M88: 118476 | N88: 151901 | O88: 138100 | P88: 164434 | Q88: 123979 | R88: 145998 | S88: 154616 | T88: 114750 | U88: 131882 | V88: 140340 | W88: 201370 | X88: 203974 | Y88: 157345 | Z88: 173361 | AA88: 123166 | AB88: 108688 | AC88: 91809 | AD88: 70774 | AE88: 74091
A89: 0080 | B89: Dudley | C89: 0 | D89: 0 | E89: 0 | F89: 0 | G89: 0 | H89: 0 | I89: 0 | J89: 0 | K89: 0 | L89: 0 | M89: 0 | N89: 0 | O89: 0 | P89: 0 | Q89: 0 | R89: 0 | S89: 0 | T89: 0 | U89: 0 | V89: 0 | W89: 0 | X89: 0 | Y89: 0 | Z89: 0 | AA89: 0 | AB89: 0 | AC89: 0 | AD89: 0 | AE89: 0
A90: 0081 | B90: Dunstable | C90: 0 | D90: 0 | E90: 0 | F90: 0 | G90: 0 | H90: 0 | I90: 0 | J90: 0 | K90: 0 | L90: 0 | M90: 0 | N90: 0 | O90: 0 | P90: 0 | Q90: 0 | R90: 0 | S90: 0 | T90: 0 | U90: 0 | V90: 0 | W90: 0 | X90: 0 | Y90: 0 | Z90: 0 | AA90: 0 | AB90: 0 | AC90: 0 | AD90: 0 | AE90: 0
A91: 0082 | B91: Duxbury | C91: 0 | D91: 0 | E91: 0 | F91: 0 | G91: 0 | H91: 0 | I91: 0 | J91: 0 | K91: 0 | L91: 0 | M91: 0 | N91: 0 | O91: 0 | P91: 0 | Q91: 0 | R91: 0 | S91: 0 | T91: 0 | U91: 0 | V91: 0 | W91: 0 | X91: 0 | Y91: 0 | Z91: 0 | AA91: 0 | AB91: 0 | AC91: 0 | AD91: 0 | AE91: 0
A92: 0083 | B92: East Bridgewater | C92: 0 | D92: 0 | E92: 0 | F92: 0 | G92: 0 | H92: 0 | I92: 0 | J92: 0 | K92: 0 | L92: 0 | M92: 0 | N92: 0 | O92: 0 | P92: 0 | Q92: 30227 | R92: 40000 | S92: 35000 | T92: 25000 | U92: 10000 | V92: 73450 | W92: 130050 | X92: 197179 | Y92: 239921 | Z92: 242158 | AA92: 276264 | AB92: 273073 | AC92: 190129 | AD92: 160687 | AE92: 180718
A93: 0084 | B93: East Brookfield | C93: 0 | D93: 0 | E93: 0 | F93: 0 | G93: 0 | H93: 0 | I93: 0 | J93: 0 | K93: 0 | L93: 0 | M93: 0 | N93: 0 | O93: 0 | P93: 0 | Q93: 0 | R93: 0 | S93: 0 | T93: 0 | U93: 0 | V93: 0 | W93: 0 | X93: 0 | Y93: 0 | Z93: 0 | AA93: 0 | AB93: 0 | AC93: 0 | AD93: 0 | AE93: 0
A94: 0085 | B94: Eastham | C94: 0 | D94: 0 | E94: 0 | F94: 0 | G94: 0 | H94: 0 | I94: 0 | J94: 0 | K94: 0 | L94: 0 | M94: 0 | N94: 0 | O94: 0 | P94: 0 | Q94: 0 | R94: 0 | S94: 0 | T94: 0 | U94: 0 | V94: 0 | W94: 0 | X94: 5000 | Y94: 0 | Z94: 0 | AA94: 0 | AB94: 0 | AC94: 0 | AD94: 0 | AE94: 0
A95: 0086 | B95: Easthampton | C95: 0 | D95: 0 | E95: 0 | F95: 51263 | G95: 66693 | H95: 91988 | I95: 165311 | J95: 224907 | K95: 293134 | L95: 340061 | M95: 421360 | N95: 479084 | O95: 514633 | P95: 491795 | Q95: 352573 | R95: 323374 | S95: 361461 | T95: 366380 | U95: 403836 | V95: 429763 | W95: 490764 | X95: 653535 | Y95: 754587 | Z95: 857038 | AA95: 752204 | AB95: 751108 | AC95: 747620 | AD95: 761311 | AE95: 679782
A96: 0087 | B96: East Longmeadow | C96: 151112 | D96: 115673 | E96: 207684 | F96: 174054 | G96: 181135 | H96: 194227 | I96: 89580 | J96: 79179 | K96: 45369 | L96: 45057 | M96: 0 | N96: 0 | O96: 0 | P96: 0 | Q96: 0 | R96: 0 | S96: 0 | T96: 0 | U96: 0 | V96: 0 | W96: 0 | X96: 0 | Y96: 0 | Z96: 0 | AA96: 0 | AB96: 85345 | AC96: 124345 | AD96: 313886 | AE96: 313715
A97: 0088 | B97: Easton | C97: 0 | D97: 0 | E97: 0 | F97: 0 | G97: 0 | H97: 0 | I97: 0 | J97: 0 | K97: 0 | L97: 0 | M97: 0 | N97: 0 | O97: 0 | P97: 0 | Q97: 0 | R97: 0 | S97: 0 | T97: 0 | U97: 0 | V97: 0 | W97: 0 | X97: 0 | Y97: 0 | Z97: 0 | AA97: 0 | AB97: 0 | AC97: 0 | AD97: 0 | AE97: 0
A98: 0089 | B98: Edgartown | C98: 0 | D98: 0 | E98: 0 | F98: 0 | G98: 0 | H98: 0 | I98: 0 | J98: 20000 | K98: 53472 | L98: 71506 | M98: 38300 | N98: 57309 | O98: 104402 | P98: 80965 | Q98: 90693 | R98: 151046 | S98: 82215 | T98: 113637 | U98: 99056 | V98: 74997 | W98: 63812 | X98: 76774 | Y98: 39630 | Z98: 46167 | AA98: 65977 | AB98: 25802 | AC98: 43072 | AD98: 27092 | AE98: 15000
A99: 0090 | B99: Egremont | C99: 0 | D99: 0 | E99: 0 | F99: 0 | G99: 0 | H99: 0 | I99: 0 | J99: 0 | K99: 0 | L99: 0 | M99: 0 | N99: 0 | O99: 0 | P99: 0 | Q99: 0 | R99: 0 | S99: 0 | T99: 0 | U99: 0 | V99: 0 | W99: 0 | X99: 0 | Y99: 0 | Z99: 0 | AA99: 0 | AB99: 0 | AC99: 0 | AD99: 0 | AE99: 0
A100: 0091 | B100: Erving | C100: 0 | D100: 0 | E100: 0 | F100: 0 | G100: 0 | H100: 0 | I100: 0 | J100: 0 | K100: 0 | L100: 0 | M100: 0 | N100: 0 | O100: 0 | P100: 0 | Q100: 0 | R100: 0 | S100: 0 | T100: 0 | U100: 0 | V100: 0 | W100: 0 | X100: 0 | Y100: 0 | Z100: 0 | AA100: 0 | AB100: 0 | AC100: 0 | AD100: 0 | AE100: 0
A101: 0092 | B101: Essex | C101: 46347 | D101: 31304 | E101: 35552 | F101: 26654 | G101: 23965 | H101: 0 | I101: 0 | J101: 0 | K101: 0 | L101: 0 | M101: 0 | N101: 0 | O101: 0 | P101: 0 | Q101: 0 | R101: 0 | S101: 0 | T101: 0 | U101: 0 | V101: 0 | W101: 0 | X101: 0 | Y101: 0 | Z101: 0 | AA101: 0 | AB101: 0 | AC101: 0 | AD101: 0 | AE101: 0
A102: 0093 | B102: Everett | C102: 0 | D102: 0 | E102: 0 | F102: 0 | G102: 0 | H102: 0 | I102: 0 | J102: 0 | K102: 0 | L102: 0 | M102: 0 | N102: 0 | O102: 0 | P102: 0 | Q102: 0 | R102: 0 | S102: 0 | T102: 0 | U102: 0 | V102: 0 | W102: 0 | X102: 0 | Y102: 0 | Z102: 0 | AA102: 0 | AB102: 0 | AC102: 0 | AD102: 0 | AE102: 0
A103: 0094 | B103: Fairhaven | C103: 0 | D103: 0 | E103: 0 | F103: 0 | G103: 0 | H103: 0 | I103: 0 | J103: 0 | K103: 0 | L103: 0 | M103: 0 | N103: 0 | O103: 0 | P103: 0 | Q103: 0 | R103: 0 | S103: 0 | T103: 0 | U103: 0 | V103: 0 | W103: 0 | X103: 0 | Y103: 0 | Z103: 0 | AA103: 0 | AB103: 0 | AC103: 0 | AD103: 0 | AE103: 0
A104: 0095 | B104: Fall River | C104: 0 | D104: 0 | E104: 0 | F104: 0 | G104: 0 | H104: 0 | I104: 0 | J104: 0 | K104: 0 | L104: 0 | M104: 0 | N104: 0 | O104: 10000 | P104: 15000 | Q104: 123900 | R104: 105100 | S104: 21900 | T104: 117562 | U104: 108600 | V104: 82050 | W104: 131750 | X104: 313388 | Y104: 215691 | Z104: 223642 | AA104: 257301 | AB104: 529682 | AC104: 447513 | AD104: 337099 | AE104: 295461
A105: 0096 | B105: Falmouth | C105: 0 | D105: 0 | E105: 0 | F105: 0 | G105: 0 | H105: 0 | I105: 0 | J105: 51633 | K105: 80354 | L105: 113089 | M105: 68300 | N105: 83362 | O105: 87560 | P105: 118912 | Q105: 186702 | R105: 173934 | S105: 267147 | T105: 399035 | U105: 412908 | V105: 578506 | W105: 662349 | X105: 739319 | Y105: 620762 | Z105: 849129 | AA105: 964705 | AB105: 1014870 | AC105: 1034045 | AD105: 980119 | AE105: 1052855
A106: 0097 | B106: Fitchburg | C106: 216116 | D106: 335031 | E106: 528850 | F106: 545712 | G106: 555447 | H106: 678814 | I106: 846891 | J106: 1011628 | K106: 797126 | L106: 1007769 | M106: 755526 | N106: 757446 | O106: 791204 | P106: 828738 | Q106: 948504 | R106: 969581 | S106: 983174 | T106: 1242449 | U106: 1029982 | V106: 1048411 | W106: 1014558 | X106: 1111371 | Y106: 1159234 | Z106: 1095051 | AA106: 1058599 | AB106: 1105613 | AC106: 1283885 | AD106: 1093024 | AE106: 859499
A107: 0098 | B107: Florida | C107: 0 | D107: 0 | E107: 0 | F107: 0 | G107: 0 | H107: 0 | I107: 0 | J107: 0 | K107: 0 | L107: 0 | M107: 0 | N107: 0 | O107: 0 | P107: 0 | Q107: 0 | R107: 10000 | S107: 20000 | T107: 20000 | U107: 35000 | V107: 11708 | W107: 19506 | X107: 26724 | Y107: 61444 | Z107: 91386 | AA107: 115137 | AB107: 104199 | AC107: 121831 | AD107: 147539 | AE107: 121624
A108: 0099 | B108: Foxborough | C108: 0 | D108: 0 | E108: 0 | F108: 0 | G108: 0 | H108: 0 | I108: 0 | J108: 0 | K108: 0 | L108: 0 | M108: 0 | N108: 0 | O108: 0 | P108: 0 | Q108: 0 | R108: 0 | S108: 0 | T108: 0 | U108: 0 | V108: 0 | W108: 0 | X108: 0 | Y108: 0 | Z108: 0 | AA108: 0 | AB108: 0 | AC108: 0 | AD108: 0 | AE108: 0
A109: 0100 | B109: Framingham | C109: 0 | D109: 0 | E109: 0 | F109: 0 | G109: 0 | H109: 0 | I109: 0 | J109: 0 | K109: 0 | L109: 0 | M109: 0 | N109: 0 | O109: 0 | P109: 0 | Q109: 0 | R109: 0 | S109: 0 | T109: 0 | U109: 0 | V109: 0 | W109: 0 | X109: 0 | Y109: 0 | Z109: 0 | AA109: 0 | AB109: 0 | AC109: 0 | AD109: 0 | AE109: 0
A110: 0101 | B110: Franklin | C110: 0 | D110: 0 | E110: 0 | F110: 0 | G110: 0 | H110: 0 | I110: 0 | J110: 0 | K110: 55276 | L110: 118271 | M110: 138137 | N110: 254030 | O110: 362260 | P110: 320033 | Q110: 223610 | R110: 160290 | S110: 127665 | T110: 108001 | U110: 70534 | V110: 50468 | W110: 40017 | X110: 37553 | Y110: 15000 | Z110: 10000 | AA110: 5000 | AB110: 0 | AC110: 0 | AD110: 0 | AE110: 0
A111: 0102 | B111: Freetown | C111: 0 | D111: 0 | E111: 0 | F111: 0 | G111: 0 | H111: 0 | I111: 0 | J111: 0 | K111: 0 | L111: 0 | M111: 0 | N111: 0 | O111: 0 | P111: 0 | Q111: 0 | R111: 0 | S111: 0 | T111: 0 | U111: 0 | V111: 0 | W111: 0 | X111: 0 | Y111: 0 | Z111: 0 | AA111: 0 | AB111: 0 | AC111: 0 | AD111: 0 | AE111: 0
A112: 0103 | B112: Gardner | C112: 182919 | D112: 220290 | E112: 238669 | F112: 283051 | G112: 352505 | H112: 371969 | I112: 391259 | J112: 473468 | K112: 565015 | L112: 503664 | M112: 629458 | N112: 875343 | O112: 1110018 | P112: 812210 | Q112: 909419 | R112: 864245 | S112: 965448 | T112: 821803 | U112: 776929 | V112: 773133 | W112: 681949 | X112: 632310 | Y112: 580179 | Z112: 586012 | AA112: 848537 | AB112: 856992 | AC112: 801909 | AD112: 929098 | AE112: 936563
A113: 0104 | B113: Aquinnah | C113: 0 | D113: 0 | E113: 0 | F113: 0 | G113: 0 | H113: 0 | I113: 0 | J113: 0 | K113: 0 | L113: 0 | M113: 0 | N113: 0 | O113: 0 | P113: 0 | Q113: 0 | R113: 0 | S113: 0 | T113: 0 | U113: 0 | V113: 0 | W113: 0 | X113: 0 | Y113: 0 | Z113: 0 | AA113: 0 | AB113: 0 | AC113: 0 | AD113: 0 | AE113: 0
A114: 0105 | B114: Georgetown | C114: 219706 | D114: 285551 | E114: 367891 | F114: 284253 | G114: 262735 | H114: 283498 | I114: 332522 | J114: 308548 | K114: 308706 | L114: 264827 | M114: 261324 | N114: 294982 | O114: 263985 | P114: 283081 | Q114: 237619 | R114: 216292 | S114: 142829 | T114: 132521 | U114: 140983 | V114: 196130 | W114: 203823 | X114: 186408 | Y114: 203158 | Z114: 267403 | AA114: 214830 | AB114: 175344 | AC114: 143859 | AD114: 114769 | AE114: 189858
A115: 0106 | B115: Gill | C115: 0 | D115: 0 | E115: 0 | F115: 0 | G115: 0 | H115: 0 | I115: 0 | J115: 0 | K115: 0 | L115: 0 | M115: 0 | N115: 0 | O115: 0 | P115: 0 | Q115: 0 | R115: 0 | S115: 0 | T115: 0 | U115: 0 | V115: 0 | W115: 0 | X115: 0 | Y115: 0 | Z115: 0 | AA115: 0 | AB115: 0 | AC115: 0 | AD115: 0 | AE115: 0
A116: 0107 | B116: Gloucester | C116: 0 | D116: 57155 | E116: 110141 | F116: 246173 | G116: 272088 | H116: 362659 | I116: 408334 | J116: 410234 | K116: 368007 | L116: 371415 | M116: 289207 | N116: 217850 | O116: 262419 | P116: 258938 | Q116: 206926 | R116: 169813 | S116: 185603 | T116: 219310 | U116: 243857 | V116: 214791 | W116: 201875 | X116: 205778 | Y116: 177788 | Z116: 243555 | AA116: 244736 | AB116: 252395 | AC116: 284369 | AD116: 215936 | AE116: 260157
A117: 0108 | B117: Goshen | C117: 0 | D117: 0 | E117: 0 | F117: 0 | G117: 0 | H117: 0 | I117: 0 | J117: 0 | K117: 0 | L117: 0 | M117: 0 | N117: 0 | O117: 0 | P117: 0 | Q117: 0 | R117: 0 | S117: 0 | T117: 0 | U117: 0 | V117: 0 | W117: 0 | X117: 0 | Y117: 0 | Z117: 0 | AA117: 0 | AB117: 0 | AC117: 0 | AD117: 0 | AE117: 0
A118: 0109 | B118: Gosnold | C118: 0 | D118: 0 | E118: 0 | F118: 0 | G118: 0 | H118: 0 | I118: 0 | J118: 0 | K118: 0 | L118: 0 | M118: 0 | N118: 0 | O118: 0 | P118: 0 | Q118: 0 | R118: 0 | S118: 0 | T118: 0 | U118: 0 | V118: 0 | W118: 0 | X118: 0 | Y118: 0 | Z118: 0 | AA118: 0 | AB118: 0 | AC118: 0 | AD118: 0 | AE118: 0
A119: 0110 | B119: Grafton | C119: 0 | D119: 0 | E119: 0 | F119: 0 | G119: 0 | H119: 0 | I119: 0 | J119: 0 | K119: 0 | L119: 0 | M119: 0 | N119: 0 | O119: 0 | P119: 0 | Q119: 0 | R119: 0 | S119: 0 | T119: 0 | U119: 114219 | V119: 191757 | W119: 286180 | X119: 383144 | Y119: 421695 | Z119: 546495 | AA119: 660871 | AB119: 770404 | AC119: 742693 | AD119: 798815 | AE119: 906840
A120: 0111 | B120: Granby | C120: 135617 | D120: 256003 | E120: 296268 | F120: 377017 | G120: 426860 | H120: 473359 | I120: 471239 | J120: 550214 | K120: 520082 | L120: 568620 | M120: 595460 | N120: 626001 | O120: 578198 | P120: 662030 | Q120: 797854 | R120: 786314 | S120: 783770 | T120: 659346 | U120: 693346 | V120: 750306 | W120: 662813 | X120: 523753 | Y120: 503071 | Z120: 611309 | AA120: 711298 | AB120: 726047 | AC120: 768039 | AD120: 723512 | AE120: 778543
A121: 0112 | B121: Granville | C121: 0 | D121: 0 | E121: 0 | F121: 0 | G121: 0 | H121: 0 | I121: 0 | J121: 0 | K121: 0 | L121: 0 | M121: 0 | N121: 0 | O121: 0 | P121: 0 | Q121: 0 | R121: 0 | S121: 0 | T121: 0 | U121: 0 | V121: 0 | W121: 0 | X121: 0 | Y121: 0 | Z121: 0 | AA121: 0 | AB121: 0 | AC121: 0 | AD121: 0 | AE121: 0
A122: 0113 | B122: Great Barrington | C122: 0 | D122: 0 | E122: 0 | F122: 0 | G122: 0 | H122: 0 | I122: 0 | J122: 0 | K122: 0 | L122: 0 | M122: 0 | N122: 0 | O122: 0 | P122: 0 | Q122: 0 | R122: 0 | S122: 0 | T122: 0 | U122: 0 | V122: 0 | W122: 0 | X122: 0 | Y122: 0 | Z122: 0 | AA122: 0 | AB122: 0 | AC122: 0 | AD122: 0 | AE122: 0
A123: 0114 | B123: Greenfield | C123: 0 | D123: 0 | E123: 0 | F123: 31500 | G123: 123174 | H123: 199365 | I123: 377516 | J123: 431746 | K123: 367251 | L123: 318240 | M123: 358411 | N123: 438596 | O123: 399160 | P123: 266745 | Q123: 314481 | R123: 367521 | S123: 2605616 | T123: 2603171 | U123: 428374 | V123: 570648 | W123: 710935 | X123: 711841 | Y123: 559038 | Z123: 565124 | AA123: 521117 | AB123: 413665 | AC123: 415816 | AD123: 306694 | AE123: 280208
A124: 0115 | B124: Groton | C124: 0 | D124: 0 | E124: 0 | F124: 0 | G124: 0 | H124: 0 | I124: 0 | J124: 0 | K124: 0 | L124: 0 | M124: 0 | N124: 0 | O124: 0 | P124: 0 | Q124: 0 | R124: 0 | S124: 0 | T124: 0 | U124: 0 | V124: 0 | W124: 0 | X124: 0 | Y124: 0 | Z124: 0 | AA124: 0 | AB124: 0 | AC124: 0 | AD124: 0 | AE124: 0
A125: 0116 | B125: Groveland | C125: 0 | D125: 0 | E125: 0 | F125: 0 | G125: 0 | H125: 0 | I125: 0 | J125: 0 | K125: 0 | L125: 0 | M125: 0 | N125: 0 | O125: 0 | P125: 0 | Q125: 0 | R125: 0 | S125: 0 | T125: 0 | U125: 0 | V125: 0 | W125: 0 | X125: 0 | Y125: 0 | Z125: 0 | AA125: 0 | AB125: 0 | AC125: 0 | AD125: 0 | AE125: 0
A126: 0117 | B126: Hadley | C126: 0 | D126: 0 | E126: 0 | F126: 0 | G126: 0 | H126: 0 | I126: 0 | J126: 59112 | K126: 82129 | L126: 81862 | M126: 175022 | N126: 228102 | O126: 282613 | P126: 416061 | Q126: 387954 | R126: 389253 | S126: 397480 | T126: 386736 | U126: 442679 | V126: 589766 | W126: 622679 | X126: 561100 | Y126: 538154 | Z126: 735639 | AA126: 815248 | AB126: 838689 | AC126: 907100 | AD126: 815021 | AE126: 937580
A127: 0118 | B127: Halifax | C127: 0 | D127: 0 | E127: 0 | F127: 0 | G127: 0 | H127: 0 | I127: 0 | J127: 0 | K127: 0 | L127: 0 | M127: 0 | N127: 0 | O127: 0 | P127: 0 | Q127: 0 | R127: 0 | S127: 0 | T127: 0 | U127: 0 | V127: 0 | W127: 0 | X127: 0 | Y127: 0 | Z127: 0 | AA127: 0 | AB127: 0 | AC127: 0 | AD127: 0 | AE127: 0
A128: 0119 | B128: Hamilton | C128: 0 | D128: 0 | E128: 0 | F128: 0 | G128: 0 | H128: 0 | I128: 0 | J128: 0 | K128: 0 | L128: 0 | M128: 0 | N128: 0 | O128: 0 | P128: 0 | Q128: 0 | R128: 0 | S128: 0 | T128: 0 | U128: 0 | V128: 0 | W128: 0 | X128: 0 | Y128: 0 | Z128: 0 | AA128: 0 | AB128: 0 | AC128: 0 | AD128: 0 | AE128: 0
A129: 0120 | B129: Hampden | C129: 0 | D129: 0 | E129: 0 | F129: 0 | G129: 0 | H129: 0 | I129: 0 | J129: 0 | K129: 0 | L129: 0 | M129: 0 | N129: 0 | O129: 0 | P129: 0 | Q129: 0 | R129: 0 | S129: 0 | T129: 0 | U129: 0 | V129: 0 | W129: 0 | X129: 0 | Y129: 0 | Z129: 0 | AA129: 0 | AB129: 0 | AC129: 0 | AD129: 0 | AE129: 0
A130: 0121 | B130: Hancock | C130: 16328 | D130: 22415 | E130: 20731 | F130: 28771 | G130: 25878 | H130: 18872 | I130: 50888 | J130: 40000 | K130: 27500 | L130: 22100 | M130: 34233 | N130: 29233 | O130: 37129 | P130: 24900 | Q130: 36640 | R130: 43779 | S130: 44677 | T130: 35217 | U130: 44986 | V130: 15000 | W130: 28564 | X130: 40000 | Y130: 35000 | Z130: 54640 | AA130: 72412 | AB130: 105804 | AC130: 126244 | AD130: 133831 | AE130: 141402
A131: 0122 | B131: Hanover | C131: 0 | D131: 0 | E131: 0 | F131: 0 | G131: 0 | H131: 0 | I131: 0 | J131: 0 | K131: 0 | L131: 0 | M131: 0 | N131: 0 | O131: 0 | P131: 0 | Q131: 0 | R131: 0 | S131: 0 | T131: 0 | U131: 0 | V131: 0 | W131: 0 | X131: 0 | Y131: 0 | Z131: 0 | AA131: 0 | AB131: 0 | AC131: 0 | AD131: 0 | AE131: 0
A132: 0123 | B132: Hanson | C132: 0 | D132: 0 | E132: 0 | F132: 0 | G132: 0 | H132: 0 | I132: 0 | J132: 0 | K132: 0 | L132: 0 | M132: 0 | N132: 0 | O132: 0 | P132: 0 | Q132: 0 | R132: 0 | S132: 0 | T132: 0 | U132: 0 | V132: 0 | W132: 0 | X132: 0 | Y132: 0 | Z132: 0 | AA132: 0 | AB132: 0 | AC132: 0 | AD132: 0 | AE132: 0
A133: 0124 | B133: Hardwick | C133: 0 | D133: 0 | E133: 0 | F133: 0 | G133: 0 | H133: 0 | I133: 0 | J133: 0 | K133: 0 | L133: 0 | M133: 0 | N133: 0 | O133: 0 | P133: 0 | Q133: 0 | R133: 0 | S133: 0 | T133: 0 | U133: 0 | V133: 0 | W133: 0 | X133: 0 | Y133: 0 | Z133: 0 | AA133: 0 | AB133: 0 | AC133: 0 | AD133: 0 | AE133: 0
A134: 0125 | B134: Harvard | C134: 719925 | D134: 669085 | E134: 691066 | F134: 575512 | G134: 463578 | H134: 397401 | I134: 320684 | J134: 345432 | K134: 333731 | L134: 310049 | M134: 359537 | N134: 485382 | O134: 390028 | P134: 383170 | Q134: 360156 | R134: 354090 | S134: 395631 | T134: 378671 | U134: 400366 | V134: 368354 | W134: 355892 | X134: 304387 | Y134: 297694 | Z134: 305900 | AA134: 291169 | AB134: 295384 | AC134: 326022 | AD134: 298407 | AE134: 258086
A135: 0126 | B135: Harwich | C135: 0 | D135: 54423 | E135: 75302 | F135: 138458 | G135: 217584 | H135: 246917 | I135: 247925 | J135: 232537 | K135: 342330 | L135: 352746 | M135: 421835 | N135: 497521 | O135: 642032 | P135: 724164 | Q135: 736348 | R135: 857229 | S135: 910831 | T135: 0 | U135: 0 | V135: 0 | W135: 0 | X135: 0 | Y135: 0 | Z135: 0 | AA135: 0 | AB135: 0 | AC135: 0 | AD135: 0 | AE135: 0
A136: 0127 | B136: Hatfield | C136: 0 | D136: 0 | E136: 0 | F136: 0 | G136: 0 | H136: 0 | I136: 79970 | J136: 117217 | K136: 107840 | L136: 137232 | M136: 137347 | N136: 227096 | O136: 288292 | P136: 359202 | Q136: 654545 | R136: 691330 | S136: 762684 | T136: 742244 | U136: 812882 | V136: 838623 | W136: 919191 | X136: 967334 | Y136: 1051569 | Z136: 1087879 | AA136: 968093 | AB136: 916322 | AC136: 906490 | AD136: 647295 | AE136: 771125
A137: 0128 | B137: Haverhill | C137: 114164 | D137: 187399 | E137: 232095 | F137: 247119 | G137: 378484 | H137: 456926 | I137: 395821 | J137: 371675 | K137: 390297 | L137: 287666 | M137: 282352 | N137: 332672 | O137: 358235 | P137: 323015 | Q137: 306647 | R137: 327793 | S137: 331502 | T137: 321024 | U137: 329024 | V137: 247501 | W137: 206775 | X137: 186176 | Y137: 186584 | Z137: 174074 | AA137: 180104 | AB137: 116561 | AC137: 88599 | AD137: 73352 | AE137: 54487
A138: 0129 | B138: Hawley | C138: 0 | D138: 0 | E138: 0 | F138: 0 | G138: 0 | H138: 0 | I138: 0 | J138: 0 | K138: 0 | L138: 0 | M138: 0 | N138: 0 | O138: 0 | P138: 0 | Q138: 0 | R138: 0 | S138: 0 | T138: 0 | U138: 0 | V138: 0 | W138: 0 | X138: 0 | Y138: 0 | Z138: 0 | AA138: 0 | AB138: 0 | AC138: 0 | AD138: 0 | AE138: 0
A139: 0130 | B139: Heath | C139: 0 | D139: 0 | E139: 0 | F139: 0 | G139: 0 | H139: 0 | I139: 0 | J139: 0 | K139: 0 | L139: 0 | M139: 0 | N139: 0 | O139: 0 | P139: 0 | Q139: 0 | R139: 0 | S139: 0 | T139: 0 | U139: 0 | V139: 0 | W139: 0 | X139: 0 | Y139: 0 | Z139: 0 | AA139: 0 | AB139: 0 | AC139: 0 | AD139: 0 | AE139: 0
A140: 0131 | B140: Hingham | C140: 0 | D140: 0 | E140: 0 | F140: 0 | G140: 0 | H140: 0 | I140: 0 | J140: 0 | K140: 0 | L140: 0 | M140: 0 | N140: 0 | O140: 0 | P140: 0 | Q140: 0 | R140: 0 | S140: 0 | T140: 0 | U140: 0 | V140: 0 | W140: 0 | X140: 0 | Y140: 0 | Z140: 0 | AA140: 0 | AB140: 0 | AC140: 0 | AD140: 0 | AE140: 0
A141: 0132 | B141: Hinsdale | C141: 0 | D141: 0 | E141: 0 | F141: 0 | G141: 0 | H141: 0 | I141: 0 | J141: 0 | K141: 0 | L141: 0 | M141: 0 | N141: 0 | O141: 0 | P141: 0 | Q141: 0 | R141: 0 | S141: 0 | T141: 0 | U141: 0 | V141: 0 | W141: 0 | X141: 0 | Y141: 0 | Z141: 0 | AA141: 0 | AB141: 0 | AC141: 0 | AD141: 0 | AE141: 0
A142: 0133 | B142: Holbrook | C142: 0 | D142: 0 | E142: 0 | F142: 0 | G142: 0 | H142: 0 | I142: 0 | J142: 0 | K142: 0 | L142: 0 | M142: 0 | N142: 0 | O142: 0 | P142: 0 | Q142: 0 | R142: 55104 | S142: 140145 | T142: 316780 | U142: 368169 | V142: 305871 | W142: 316096 | X142: 256063 | Y142: 267831 | Z142: 223729 | AA142: 137306 | AB142: 117776 | AC142: 91936 | AD142: 97750 | AE142: 76826
A143: 0134 | B143: Holden | C143: 0 | D143: 0 | E143: 0 | F143: 0 | G143: 0 | H143: 0 | I143: 0 | J143: 0 | K143: 0 | L143: 0 | M143: 0 | N143: 0 | O143: 0 | P143: 0 | Q143: 0 | R143: 0 | S143: 0 | T143: 0 | U143: 0 | V143: 0 | W143: 0 | X143: 0 | Y143: 0 | Z143: 0 | AA143: 0 | AB143: 0 | AC143: 0 | AD143: 0 | AE143: 0
A144: 0135 | B144: Holland | C144: 0 | D144: 0 | E144: 0 | F144: 0 | G144: 0 | H144: 0 | I144: 0 | J144: 0 | K144: 0 | L144: 31592 | M144: 62359 | N144: 71831 | O144: 105904 | P144: 134104 | Q144: 126496 | R144: 147761 | S144: 196478 | T144: 107695 | U144: 208347 | V144: 246248 | W144: 299281 | X144: 333995 | Y144: 320280 | Z144: 232943 | AA144: 234791 | AB144: 236891 | AC144: 177149 | AD144: 227370 | AE144: 208286
A145: 0136 | B145: Holliston | C145: 1085170 | D145: 1123748 | E145: 1075104 | F145: 971740 | G145: 943653 | H145: 914161 | I145: 707999 | J145: 720025 | K145: 761349 | L145: 626160 | M145: 558201 | N145: 618944 | O145: 610955 | P145: 617149 | Q145: 664327 | R145: 694438 | S145: 698438 | T145: 690073 | U145: 756628 | V145: 1025577 | W145: 1077427 | X145: 969229 | Y145: 808302 | Z145: 708882 | AA145: 662363 | AB145: 679030 | AC145: 586999 | AD145: 672736 | AE145: 766907
A146: 0137 | B146: Holyoke | C146: 0 | D146: 0 | E146: 0 | F146: 0 | G146: 0 | H146: 35000 | I146: 69088 | J146: 89000 | K146: 100000 | L146: 72100 | M146: 123750 | N146: 136050 | O146: 105487 | P146: 110000 | Q146: 92692 | R146: 69324 | S146: 104419 | T146: 168861 | U146: 259782 | V146: 274673 | W146: 293066 | X146: 393484 | Y146: 609247 | Z146: 694796 | AA146: 985144 | AB146: 1093435 | AC146: 944078 | AD146: 857533 | AE146: 794827
A147: 0138 | B147: Hopedale | C147: 194322 | D147: 253029 | E147: 300862 | F147: 266348 | G147: 468324 | H147: 437698 | I147: 679098 | J147: 762932 | K147: 792284 | L147: 772783 | M147: 780279 | N147: 634319 | O147: 641094 | P147: 532844 | Q147: 593889 | R147: 576547 | S147: 655595 | T147: 690221 | U147: 782450 | V147: 709439 | W147: 694534 | X147: 819064 | Y147: 910403 | Z147: 923237 | AA147: 983271 | AB147: 1032985 | AC147: 1069886 | AD147: 996510 | AE147: 1091312
A148: 0139 | B148: Hopkinton | C148: 100009 | D148: 115923 | E148: 67935 | F148: 75523 | G148: 80714 | H148: 52149 | I148: 30383 | J148: 34769 | K148: 17048 | L148: 16648 | M148: 0 | N148: 0 | O148: 0 | P148: 0 | Q148: 0 | R148: 0 | S148: 0 | T148: 0 | U148: 0 | V148: 0 | W148: 0 | X148: 0 | Y148: 0 | Z148: 0 | AA148: 0 | AB148: 0 | AC148: 0 | AD148: 0 | AE148: 0
A149: 0140 | B149: Hubbardston | C149: 0 | D149: 0 | E149: 0 | F149: 0 | G149: 0 | H149: 0 | I149: 0 | J149: 0 | K149: 0 | L149: 0 | M149: 0 | N149: 0 | O149: 0 | P149: 0 | Q149: 0 | R149: 0 | S149: 0 | T149: 0 | U149: 0 | V149: 0 | W149: 0 | X149: 0 | Y149: 0 | Z149: 0 | AA149: 0 | AB149: 0 | AC149: 0 | AD149: 0 | AE149: 0
A150: 0141 | B150: Hudson | C150: 239241 | D150: 300712 | E150: 463092 | F150: 472282 | G150: 423843 | H150: 450361 | I150: 452887 | J150: 502633 | K150: 551107 | L150: 641335 | M150: 674768 | N150: 625973 | O150: 747025 | P150: 810197 | Q150: 941566 | R150: 924841 | S150: 787324 | T150: 631267 | U150: 668435 | V150: 546944 | W150: 617483 | X150: 561909 | Y150: 760562 | Z150: 658030 | AA150: 659456 | AB150: 805237 | AC150: 1091923 | AD150: 1081186 | AE150: 1376316
A151: 0142 | B151: Hull | C151: 0 | D151: 0 | E151: 0 | F151: 0 | G151: 0 | H151: 0 | I151: 0 | J151: 0 | K151: 0 | L151: 0 | M151: 0 | N151: 0 | O151: 0 | P151: 0 | Q151: 0 | R151: 0 | S151: 0 | T151: 0 | U151: 0 | V151: 0 | W151: 0 | X151: 0 | Y151: 0 | Z151: 0 | AA151: 0 | AB151: 0 | AC151: 0 | AD151: 0 | AE151: 0
A152: 0143 | B152: Huntington | C152: 0 | D152: 0 | E152: 0 | F152: 0 | G152: 0 | H152: 0 | I152: 0 | J152: 0 | K152: 0 | L152: 0 | M152: 0 | N152: 0 | O152: 0 | P152: 0 | Q152: 0 | R152: 0 | S152: 0 | T152: 0 | U152: 0 | V152: 0 | W152: 0 | X152: 0 | Y152: 0 | Z152: 0 | AA152: 0 | AB152: 0 | AC152: 0 | AD152: 0 | AE152: 0
A153: 0144 | B153: Ipswich | C153: 242904 | D153: 229010 | E153: 212545 | F153: 206580 | G153: 238059 | H153: 220559 | I153: 326607 | J153: 331290 | K153: 388726 | L153: 480968 | M153: 551665 | N153: 781941 | O153: 841536 | P153: 927127 | Q153: 893477 | R153: 841438 | S153: 803382 | T153: 635485 | U153: 440964 | V153: 383036 | W153: 367074 | X153: 349068 | Y153: 300022 | Z153: 331072 | AA153: 331049 | AB153: 265679 | AC153: 342225 | AD153: 338152 | AE153: 409994
A154: 0145 | B154: Kingston | C154: 0 | D154: 0 | E154: 0 | F154: 0 | G154: 0 | H154: 0 | I154: 0 | J154: 0 | K154: 0 | L154: 0 | M154: 0 | N154: 0 | O154: 0 | P154: 0 | Q154: 0 | R154: 0 | S154: 0 | T154: 0 | U154: 0 | V154: 0 | W154: 0 | X154: 0 | Y154: 0 | Z154: 0 | AA154: 0 | AB154: 0 | AC154: 0 | AD154: 0 | AE154: 0
A155: 0146 | B155: Lakeville | C155: 0 | D155: 0 | E155: 0 | F155: 0 | G155: 0 | H155: 0 | I155: 0 | J155: 0 | K155: 0 | L155: 0 | M155: 0 | N155: 0 | O155: 0 | P155: 0 | Q155: 0 | R155: 0 | S155: 0 | T155: 0 | U155: 0 | V155: 0 | W155: 0 | X155: 0 | Y155: 0 | Z155: 0 | AA155: 0 | AB155: 0 | AC155: 0 | AD155: 0 | AE155: 0
A156: 0147 | B156: Lancaster | C156: 0 | D156: 0 | E156: 0 | F156: 0 | G156: 0 | H156: 0 | I156: 0 | J156: 0 | K156: 0 | L156: 0 | M156: 0 | N156: 0 | O156: 0 | P156: 0 | Q156: 0 | R156: 0 | S156: 0 | T156: 0 | U156: 0 | V156: 0 | W156: 0 | X156: 0 | Y156: 0 | Z156: 0 | AA156: 0 | AB156: 0 | AC156: 0 | AD156: 0 | AE156: 0
A157: 0148 | B157: Lanesborough | C157: 20036 | D157: 44935 | E157: 64203 | F157: 54421 | G157: 41954 | H157: 67770 | I157: 72664 | J157: 79606 | K157: 69900 | L157: 113800 | M157: 201706 | N157: 269823 | O157: 80242 | P157: 132141 | Q157: 168916 | R157: 104181 | S157: 84178 | T157: 80910 | U157: 93064 | V157: 120999 | W157: 109804 | X157: 78928 | Y157: 90077 | Z157: 0 | AA157: 0 | AB157: 0 | AC157: 0 | AD157: 0 | AE157: 0
A158: 0149 | B158: Lawrence | C158: 0 | D158: 0 | E158: 0 | F158: 0 | G158: 0 | H158: 0 | I158: 0 | J158: 0 | K158: 0 | L158: 0 | M158: 0 | N158: 0 | O158: 0 | P158: 0 | Q158: 0 | R158: 0 | S158: 0 | T158: 0 | U158: 0 | V158: 0 | W158: 0 | X158: 0 | Y158: 0 | Z158: 0 | AA158: 0 | AB158: 0 | AC158: 0 | AD158: 0 | AE158: 0
A159: 0150 | B159: Lee | C159: 256866 | D159: 322458 | E159: 309094 | F159: 416320 | G159: 491676 | H159: 417787 | I159: 517285 | J159: 624233 | K159: 667766 | L159: 648710 | M159: 657222 | N159: 645704 | O159: 728036 | P159: 745335 | Q159: 636729 | R159: 632700 | S159: 549927 | T159: 591704 | U159: 624574 | V159: 731075 | W159: 743454 | X159: 757246 | Y159: 676715 | Z159: 824432 | AA159: 856766 | AB159: 968702 | AC159: 1022723 | AD159: 961238 | AE159: 958583
A160: 0151 | B160: Leicester | C160: 0 | D160: 0 | E160: 0 | F160: 0 | G160: 0 | H160: 0 | I160: 0 | J160: 0 | K160: 104600 | L160: 121795 | M160: 275274 | N160: 223710 | O160: 328074 | P160: 381451 | Q160: 380235 | R160: 418417 | S160: 407336 | T160: 448252 | U160: 472137 | V160: 544663 | W160: 564881 | X160: 551173 | Y160: 500438 | Z160: 403419 | AA160: 368919 | AB160: 304137 | AC160: 294588 | AD160: 351375 | AE160: 430095
A161: 0152 | B161: Lenox | C161: 352410 | D161: 396162 | E161: 494623 | F161: 708733 | G161: 617863 | H161: 563030 | I161: 487782 | J161: 441781 | K161: 550598 | L161: 592624 | M161: 696474 | N161: 761559 | O161: 783028 | P161: 879801 | Q161: 989285 | R161: 1075567 | S161: 1123647 | T161: 1155093 | U161: 1145833 | V161: 1279101 | W161: 1310194 | X161: 1453299 | Y161: 1438959 | Z161: 1534531 | AA161: 1628455 | AB161: 1569533 | AC161: 1529741 | AD161: 1784610 | AE161: 1779463
A162: 0153 | B162: Leominster | C162: 292174 | D162: 265637 | E162: 183658 | F162: 147241 | G162: 117423 | H162: 52901 | I162: 99052 | J162: 621013 | K162: 667215 | L162: 622385 | M162: 633624 | N162: 807704 | O162: 879382 | P162: 918153 | Q162: 1044370 | R162: 1124502 | S162: 1206708 | T162: 1359095 | U162: 1484060 | V162: 1401012 | W162: 1350496 | X162: 1696939 | Y162: 1429434 | Z162: 1376642 | AA162: 1318933 | AB162: 1289390 | AC162: 1554880 | AD162: 1621032 | AE162: 1647129
A163: 0154 | B163: Leverett | C163: 0 | D163: 0 | E163: 0 | F163: 0 | G163: 0 | H163: 0 | I163: 27461 | J163: 32488 | K163: 65892 | L163: 84586 | M163: 129248 | N163: 195057 | O163: 138429 | P163: 139898 | Q163: 159335 | R163: 155303 | S163: 142008 | T163: 169140 | U163: 174593 | V163: 163072 | W163: 145160 | X163: 113540 | Y163: 118873 | Z163: 176856 | AA163: 118263 | AB163: 128015 | AC163: 188938 | AD163: 176492 | AE163: 185548
A164: 0155 | B164: Lexington | C164: 0 | D164: 0 | E164: 0 | F164: 0 | G164: 0 | H164: 0 | I164: 0 | J164: 0 | K164: 0 | L164: 0 | M164: 0 | N164: 0 | O164: 0 | P164: 0 | Q164: 0 | R164: 0 | S164: 0 | T164: 0 | U164: 0 | V164: 0 | W164: 0 | X164: 0 | Y164: 0 | Z164: 0 | AA164: 0 | AB164: 0 | AC164: 0 | AD164: 0 | AE164: 0
A165: 0156 | B165: Leyden | C165: 0 | D165: 0 | E165: 0 | F165: 0 | G165: 0 | H165: 0 | I165: 0 | J165: 0 | K165: 0 | L165: 0 | M165: 0 | N165: 0 | O165: 0 | P165: 0 | Q165: 0 | R165: 0 | S165: 0 | T165: 0 | U165: 0 | V165: 0 | W165: 0 | X165: 0 | Y165: 0 | Z165: 0 | AA165: 0 | AB165: 0 | AC165: 0 | AD165: 0 | AE165: 0
A166: 0157 | B166: Lincoln | C166: 0 | D166: 0 | E166: 0 | F166: 0 | G166: 0 | H166: 0 | I166: 0 | J166: 0 | K166: 0 | L166: 0 | M166: 0 | N166: 0 | O166: 0 | P166: 0 | Q166: 0 | R166: 0 | S166: 0 | T166: 0 | U166: 0 | V166: 0 | W166: 0 | X166: 0 | Y166: 0 | Z166: 0 | AA166: 0 | AB166: 0 | AC166: 0 | AD166: 0 | AE166: 0
A167: 0158 | B167: Littleton | C167: 516885 | D167: 458282 | E167: 344401 | F167: 388821 | G167: 251089 | H167: 250429 | I167: 239170 | J167: 173840 | K167: 151922 | L167: 207454 | M167: 264531 | N167: 144359 | O167: 168472 | P167: 257698 | Q167: 271193 | R167: 289419 | S167: 393439 | T167: 421305 | U167: 401916 | V167: 373331 | W167: 431572 | X167: 522764 | Y167: 495088 | Z167: 435799 | AA167: 419077 | AB167: 450864 | AC167: 512167 | AD167: 495031 | AE167: 598611
A168: 0159 | B168: Longmeadow | C168: 443843 | D168: 414441 | E168: 423424 | F168: 509568 | G168: 523002 | H168: 546216 | I168: 431234 | J168: 410809 | K168: 657350 | L168: 660872 | M168: 681891 | N168: 614915 | O168: 407645 | P168: 348735 | Q168: 331556 | R168: 307131 | S168: 325220 | T168: 285662 | U168: 318423 | V168: 364404 | W168: 328156 | X168: 357440 | Y168: 256439 | Z168: 213354 | AA168: 193863 | AB168: 246930 | AC168: 220449 | AD168: 219237 | AE168: 221863
A169: 0160 | B169: Lowell | C169: 0 | D169: 0 | E169: 0 | F169: 0 | G169: 0 | H169: 0 | I169: 0 | J169: 0 | K169: 0 | L169: 0 | M169: 0 | N169: 0 | O169: 0 | P169: 0 | Q169: 0 | R169: 0 | S169: 0 | T169: 0 | U169: 0 | V169: 0 | W169: 0 | X169: 87860 | Y169: 75653 | Z169: 57108 | AA169: 41197 | AB169: 35000 | AC169: 20000 | AD169: 0 | AE169: 0
A170: 0161 | B170: Ludlow | C170: 0 | D170: 0 | E170: 25996 | F170: 97458 | G170: 155109 | H170: 253112 | I170: 276271 | J170: 275203 | K170: 340986 | L170: 437865 | M170: 605029 | N170: 608618 | O170: 653786 | P170: 696584 | Q170: 636613 | R170: 577921 | S170: 566212 | T170: 563045 | U170: 509783 | V170: 499229 | W170: 562404 | X170: 507900 | Y170: 617689 | Z170: 543282 | AA170: 531779 | AB170: 568680 | AC170: 465218 | AD170: 591841 | AE170: 575608
A171: 0162 | B171: Lunenburg | C171: 326939 | D171: 331847 | E171: 320628 | F171: 401465 | G171: 384582 | H171: 341986 | I171: 374803 | J171: 368379 | K171: 374841 | L171: 395193 | M171: 436642 | N171: 462811 | O171: 438373 | P171: 337673 | Q171: 393693 | R171: 370139 | S171: 319057 | T171: 298593 | U171: 241290 | V171: 227741 | W171: 286673 | X171: 281212 | Y171: 241647 | Z171: 182658 | AA171: 219940 | AB171: 175332 | AC171: 113539 | AD171: 116976 | AE171: 94912
A172: 0163 | B172: Lynn | C172: 0 | D172: 0 | E172: 0 | F172: 0 | G172: 0 | H172: 0 | I172: 0 | J172: 0 | K172: 0 | L172: 0 | M172: 0 | N172: 0 | O172: 0 | P172: 0 | Q172: 0 | R172: 0 | S172: 0 | T172: 0 | U172: 0 | V172: 0 | W172: 0 | X172: 0 | Y172: 0 | Z172: 0 | AA172: 0 | AB172: 0 | AC172: 0 | AD172: 0 | AE172: 0
A173: 0164 | B173: Lynnfield | C173: 0 | D173: 0 | E173: 0 | F173: 0 | G173: 0 | H173: 0 | I173: 0 | J173: 0 | K173: 0 | L173: 0 | M173: 0 | N173: 0 | O173: 0 | P173: 0 | Q173: 0 | R173: 0 | S173: 0 | T173: 0 | U173: 0 | V173: 0 | W173: 0 | X173: 0 | Y173: 0 | Z173: 0 | AA173: 0 | AB173: 0 | AC173: 0 | AD173: 0 | AE173: 0
A174: 0165 | B174: Malden | C174: 0 | D174: 0 | E174: 0 | F174: 0 | G174: 0 | H174: 0 | I174: 0 | J174: 0 | K174: 0 | L174: 0 | M174: 0 | N174: 0 | O174: 0 | P174: 0 | Q174: 0 | R174: 0 | S174: 0 | T174: 0 | U174: 0 | V174: 0 | W174: 0 | X174: 0 | Y174: 0 | Z174: 0 | AA174: 0 | AB174: 0 | AC174: 0 | AD174: 0 | AE174: 0
A175: 0166 | B175: Manchester | C175: 675439 | D175: 815300 | E175: 1019380 | F175: 785779 | G175: 747379 | H175: 0 | I175: 0 | J175: 0 | K175: 0 | L175: 0 | M175: 0 | N175: 0 | O175: 0 | P175: 0 | Q175: 0 | R175: 0 | S175: 0 | T175: 0 | U175: 0 | V175: 0 | W175: 0 | X175: 0 | Y175: 0 | Z175: 0 | AA175: 0 | AB175: 0 | AC175: 0 | AD175: 0 | AE175: 0
A176: 0167 | B176: Mansfield | C176: 0 | D176: 0 | E176: 0 | F176: 0 | G176: 0 | H176: 0 | I176: 0 | J176: 0 | K176: 0 | L176: 0 | M176: 0 | N176: 0 | O176: 0 | P176: 0 | Q176: 0 | R176: 0 | S176: 0 | T176: 0 | U176: 0 | V176: 0 | W176: 0 | X176: 0 | Y176: 0 | Z176: 0 | AA176: 0 | AB176: 0 | AC176: 0 | AD176: 114025 | AE176: 198061
A177: 0168 | B177: Marblehead | C177: 533932 | D177: 444493 | E177: 336458 | F177: 276216 | G177: 211920 | H177: 177330 | I177: 161280 | J177: 165366 | K177: 125652 | L177: 100831 | M177: 73694 | N177: 63008 | O177: 15000 | P177: 0 | Q177: 5000 | R177: 0 | S177: 0 | T177: 0 | U177: 0 | V177: 0 | W177: 0 | X177: 0 | Y177: 0 | Z177: 0 | AA177: 0 | AB177: 0 | AC177: 0 | AD177: 0 | AE177: 0
A178: 0169 | B178: Marion | C178: 0 | D178: 0 | E178: 0 | F178: 0 | G178: 0 | H178: 0 | I178: 0 | J178: 0 | K178: 0 | L178: 0 | M178: 0 | N178: 0 | O178: 0 | P178: 0 | Q178: 0 | R178: 0 | S178: 0 | T178: 0 | U178: 0 | V178: 0 | W178: 0 | X178: 0 | Y178: 0 | Z178: 0 | AA178: 0 | AB178: 0 | AC178: 0 | AD178: 0 | AE178: 0
A179: 0170 | B179: Marlborough | C179: 0 | D179: 0 | E179: 0 | F179: 0 | G179: 0 | H179: 0 | I179: 0 | J179: 0 | K179: 0 | L179: 0 | M179: 0 | N179: 0 | O179: 0 | P179: 0 | Q179: 0 | R179: 0 | S179: 0 | T179: 0 | U179: 0 | V179: 0 | W179: 0 | X179: 0 | Y179: 0 | Z179: 0 | AA179: 0 | AB179: 0 | AC179: 0 | AD179: 0 | AE179: 0
A180: 0171 | B180: Marshfield | C180: 0 | D180: 0 | E180: 0 | F180: 0 | G180: 0 | H180: 0 | I180: 0 | J180: 0 | K180: 0 | L180: 0 | M180: 4900 | N180: 7500 | O180: 10000 | P180: 9302 | Q180: 12500 | R180: 15000 | S180: 20000 | T180: 20000 | U180: 22500 | V180: 34000 | W180: 25000 | X180: 20000 | Y180: 15000 | Z180: 10000 | AA180: 10000 | AB180: 5000 | AC180: 0 | AD180: 0 | AE180: 0
A181: 0172 | B181: Mashpee | C181: 0 | D181: 0 | E181: 0 | F181: 0 | G181: 0 | H181: 0 | I181: 0 | J181: 0 | K181: 0 | L181: 0 | M181: 0 | N181: 0 | O181: 0 | P181: 0 | Q181: 0 | R181: 15000 | S181: 157707 | T181: 287912 | U181: 238414 | V181: 442050 | W181: 385020 | X181: 375990 | Y181: 568152 | Z181: 563947 | AA181: 716151 | AB181: 654198 | AC181: 736095 | AD181: 757228 | AE181: 701071
A182: 0173 | B182: Mattapoisett | C182: 0 | D182: 0 | E182: 0 | F182: 0 | G182: 0 | H182: 0 | I182: 0 | J182: 0 | K182: 0 | L182: 0 | M182: 0 | N182: 0 | O182: 0 | P182: 0 | Q182: 0 | R182: 0 | S182: 0 | T182: 0 | U182: 15000 | V182: 42512 | W182: 38577 | X182: 40600 | Y182: 43073 | Z182: 53622 | AA182: 68505 | AB182: 49444 | AC182: 83833 | AD182: 101998 | AE182: 94209
A183: 0174 | B183: Maynard | C183: 153495 | D183: 167982 | E183: 162733 | F183: 156041 | G183: 171434 | H183: 206860 | I183: 163928 | J183: 110258 | K183: 188530 | L183: 232873 | M183: 174983 | N183: 127791 | O183: 178996 | P183: 149676 | Q183: 113552 | R183: 111409 | S183: 190484 | T183: 289125 | U183: 296075 | V183: 264647 | W183: 288123 | X183: 331059 | Y183: 335348 | Z183: 303211 | AA183: 327570 | AB183: 256681 | AC183: 241756 | AD183: 111096 | AE183: 154729
A184: 0175 | B184: Medfield | C184: 0 | D184: 0 | E184: 0 | F184: 0 | G184: 0 | H184: 0 | I184: 0 | J184: 0 | K184: 0 | L184: 0 | M184: 0 | N184: 0 | O184: 0 | P184: 0 | Q184: 0 | R184: 0 | S184: 0 | T184: 0 | U184: 0 | V184: 0 | W184: 0 | X184: 0 | Y184: 0 | Z184: 0 | AA184: 0 | AB184: 0 | AC184: 0 | AD184: 0 | AE184: 0
A185: 0176 | B185: Medford | C185: 0 | D185: 0 | E185: 0 | F185: 0 | G185: 0 | H185: 0 | I185: 0 | J185: 0 | K185: 0 | L185: 0 | M185: 0 | N185: 0 | O185: 0 | P185: 0 | Q185: 0 | R185: 0 | S185: 0 | T185: 0 | U185: 0 | V185: 0 | W185: 0 | X185: 0 | Y185: 0 | Z185: 0 | AA185: 0 | AB185: 0 | AC185: 0 | AD185: 0 | AE185: 0
A186: 0177 | B186: Medway | C186: 123436 | D186: 126864 | E186: 138976 | F186: 142680 | G186: 178005 | H186: 190498 | I186: 192759 | J186: 145022 | K186: 142980 | L186: 125468 | M186: 279369 | N186: 201248 | O186: 187746 | P186: 165429 | Q186: 192608 | R186: 301254 | S186: 321282 | T186: 394937 | U186: 399558 | V186: 394595 | W186: 499230 | X186: 466399 | Y186: 451284 | Z186: 402314 | AA186: 379083 | AB186: 374942 | AC186: 305475 | AD186: 329364 | AE186: 362182
A187: 0178 | B187: Melrose | C187: 0 | D187: 0 | E187: 0 | F187: 0 | G187: 0 | H187: 0 | I187: 0 | J187: 0 | K187: 0 | L187: 0 | M187: 0 | N187: 0 | O187: 0 | P187: 0 | Q187: 0 | R187: 0 | S187: 0 | T187: 0 | U187: 4737 | V187: 53150 | W187: 140055 | X187: 159296 | Y187: 136713 | Z187: 114511 | AA187: 65350 | AB187: 35000 | AC187: 15000 | AD187: 5000 | AE187: 0
A188: 0179 | B188: Mendon | C188: 0 | D188: 0 | E188: 0 | F188: 0 | G188: 0 | H188: 0 | I188: 0 | J188: 0 | K188: 0 | L188: 0 | M188: 0 | N188: 0 | O188: 0 | P188: 0 | Q188: 0 | R188: 0 | S188: 0 | T188: 0 | U188: 0 | V188: 0 | W188: 0 | X188: 0 | Y188: 0 | Z188: 0 | AA188: 0 | AB188: 0 | AC188: 0 | AD188: 0 | AE188: 0
A189: 0180 | B189: Merrimac | C189: 0 | D189: 0 | E189: 0 | F189: 0 | G189: 0 | H189: 0 | I189: 0 | J189: 0 | K189: 0 | L189: 0 | M189: 0 | N189: 0 | O189: 0 | P189: 0 | Q189: 0 | R189: 0 | S189: 0 | T189: 0 | U189: 0 | V189: 0 | W189: 0 | X189: 0 | Y189: 0 | Z189: 0 | AA189: 0 | AB189: 0 | AC189: 0 | AD189: 0 | AE189: 0
A190: 0181 | B190: Methuen | C190: 0 | D190: 0 | E190: 0 | F190: 0 | G190: 0 | H190: 0 | I190: 0 | J190: 0 | K190: 0 | L190: 0 | M190: 0 | N190: 0 | O190: 0 | P190: 0 | Q190: 0 | R190: 0 | S190: 0 | T190: 0 | U190: 0 | V190: 0 | W190: 0 | X190: 0 | Y190: 0 | Z190: 0 | AA190: 0 | AB190: 0 | AC190: 0 | AD190: 0 | AE190: 0
A191: 0182 | B191: Middleborough | C191: 0 | D191: 29400 | E191: 50838 | F191: 71552 | G191: 68589 | H191: 74934 | I191: 58736 | J191: 101151 | K191: 77564 | L191: 77686 | M191: 80855 | N191: 65074 | O191: 46882 | P191: 20287 | Q191: 15000 | R191: 15000 | S191: 40000 | T191: 20000 | U191: 31900 | V191: 15000 | W191: 15000 | X191: 98586 | Y191: 152041 | Z191: 228292 | AA191: 228437 | AB191: 266099 | AC191: 255287 | AD191: 233906 | AE191: 167817
A192: 0183 | B192: Middlefield | C192: 0 | D192: 0 | E192: 0 | F192: 0 | G192: 0 | H192: 0 | I192: 0 | J192: 0 | K192: 0 | L192: 0 | M192: 0 | N192: 0 | O192: 0 | P192: 0 | Q192: 0 | R192: 0 | S192: 0 | T192: 0 | U192: 0 | V192: 0 | W192: 0 | X192: 0 | Y192: 0 | Z192: 0 | AA192: 0 | AB192: 0 | AC192: 0 | AD192: 0 | AE192: 0
A193: 0184 | B193: Middleton | C193: 0 | D193: 0 | E193: 0 | F193: 0 | G193: 0 | H193: 0 | I193: 0 | J193: 0 | K193: 0 | L193: 0 | M193: 0 | N193: 0 | O193: 0 | P193: 0 | Q193: 0 | R193: 0 | S193: 0 | T193: 0 | U193: 0 | V193: 0 | W193: 0 | X193: 0 | Y193: 0 | Z193: 0 | AA193: 0 | AB193: 0 | AC193: 0 | AD193: 0 | AE193: 0
A194: 0185 | B194: Milford | C194: 316149 | D194: 427997 | E194: 452820 | F194: 458825 | G194: 573014 | H194: 627455 | I194: 637318 | J194: 672529 | K194: 781838 | L194: 860881 | M194: 768131 | N194: 620888 | O194: 635664 | P194: 652610 | Q194: 555651 | R194: 485695 | S194: 540373 | T194: 501997 | U194: 500610 | V194: 459014 | W194: 513108 | X194: 584492 | Y194: 691203 | Z194: 814164 | AA194: 841070 | AB194: 768344 | AC194: 692666 | AD194: 559321 | AE194: 557678
A195: 0186 | B195: Millbury | C195: 0 | D195: 0 | E195: 0 | F195: 0 | G195: 0 | H195: 0 | I195: 0 | J195: 0 | K195: 0 | L195: 0 | M195: 0 | N195: 0 | O195: 0 | P195: 0 | Q195: 0 | R195: 0 | S195: 0 | T195: 0 | U195: 0 | V195: 0 | W195: 0 | X195: 0 | Y195: 0 | Z195: 28837 | AA195: 83551 | AB195: 79100 | AC195: 195039 | AD195: 185610 | AE195: 237835
A196: 0187 | B196: Millis | C196: 136418 | D196: 163039 | E196: 185932 | F196: 223641 | G196: 265637 | H196: 240709 | I196: 251892 | J196: 225934 | K196: 243852 | L196: 225968 | M196: 180681 | N196: 174898 | O196: 228910 | P196: 236361 | Q196: 327580 | R196: 344910 | S196: 357653 | T196: 350905 | U196: 410329 | V196: 419555 | W196: 423920 | X196: 413061 | Y196: 478203 | Z196: 442880 | AA196: 452478 | AB196: 501071 | AC196: 431557 | AD196: 358839 | AE196: 356206
A197: 0188 | B197: Millville | C197: 0 | D197: 0 | E197: 0 | F197: 0 | G197: 0 | H197: 0 | I197: 0 | J197: 0 | K197: 0 | L197: 0 | M197: 0 | N197: 0 | O197: 0 | P197: 0 | Q197: 0 | R197: 0 | S197: 0 | T197: 0 | U197: 0 | V197: 0 | W197: 0 | X197: 0 | Y197: 0 | Z197: 0 | AA197: 0 | AB197: 0 | AC197: 0 | AD197: 0 | AE197: 0
A198: 0189 | B198: Milton | C198: 0 | D198: 0 | E198: 0 | F198: 0 | G198: 0 | H198: 0 | I198: 0 | J198: 0 | K198: 0 | L198: 0 | M198: 0 | N198: 0 | O198: 0 | P198: 0 | Q198: 0 | R198: 0 | S198: 0 | T198: 0 | U198: 0 | V198: 0 | W198: 0 | X198: 0 | Y198: 0 | Z198: 0 | AA198: 0 | AB198: 0 | AC198: 0 | AD198: 0 | AE198: 0
A199: 0190 | B199: Monroe | C199: 0 | D199: 0 | E199: 0 | F199: 0 | G199: 0 | H199: 0 | I199: 0 | J199: 0 | K199: 0 | L199: 0 | M199: 0 | N199: 0 | O199: 0 | P199: 0 | Q199: 0 | R199: 0 | S199: 0 | T199: 0 | U199: 0 | V199: 0 | W199: 0 | X199: 0 | Y199: 0 | Z199: 0 | AA199: 0 | AB199: 0 | AC199: 0 | AD199: 0 | AE199: 0
A200: 0191 | B200: Monson | C200: 0 | D200: 0 | E200: 0 | F200: 0 | G200: 0 | H200: 0 | I200: 0 | J200: 7070 | K200: 0 | L200: 0 | M200: 0 | N200: 0 | O200: 0 | P200: 0 | Q200: 0 | R200: 39795 | S200: 154191 | T200: 211000 | U200: 175446 | V200: 239656 | W200: 323728 | X200: 349741 | Y200: 340302 | Z200: 364832 | AA200: 438905 | AB200: 433628 | AC200: 422015 | AD200: 557500 | AE200: 446204
A201: 0192 | B201: Montague | C201: 0 | D201: 0 | E201: 0 | F201: 0 | G201: 0 | H201: 0 | I201: 0 | J201: 0 | K201: 0 | L201: 0 | M201: 0 | N201: 0 | O201: 0 | P201: 0 | Q201: 0 | R201: 0 | S201: 0 | T201: 0 | U201: 0 | V201: 0 | W201: 0 | X201: 0 | Y201: 0 | Z201: 0 | AA201: 0 | AB201: 0 | AC201: 0 | AD201: 0 | AE201: 0
A202: 0193 | B202: Monterey | C202: 0 | D202: 0 | E202: 0 | F202: 0 | G202: 0 | H202: 0 | I202: 0 | J202: 0 | K202: 0 | L202: 0 | M202: 0 | N202: 0 | O202: 0 | P202: 0 | Q202: 0 | R202: 0 | S202: 0 | T202: 0 | U202: 0 | V202: 0 | W202: 0 | X202: 0 | Y202: 0 | Z202: 0 | AA202: 0 | AB202: 0 | AC202: 0 | AD202: 0 | AE202: 0
A203: 0194 | B203: Montgomery | C203: 0 | D203: 0 | E203: 0 | F203: 0 | G203: 0 | H203: 0 | I203: 0 | J203: 0 | K203: 0 | L203: 0 | M203: 0 | N203: 0 | O203: 0 | P203: 0 | Q203: 0 | R203: 0 | S203: 0 | T203: 0 | U203: 0 | V203: 0 | W203: 0 | X203: 0 | Y203: 0 | Z203: 0 | AA203: 0 | AB203: 0 | AC203: 0 | AD203: 0 | AE203: 0
A204: 0195 | B204: Mount Washington | C204: 0 | D204: 0 | E204: 0 | F204: 0 | G204: 0 | H204: 0 | I204: 0 | J204: 0 | K204: 0 | L204: 0 | M204: 0 | N204: 0 | O204: 0 | P204: 0 | Q204: 0 | R204: 0 | S204: 0 | T204: 0 | U204: 0 | V204: 0 | W204: 0 | X204: 0 | Y204: 0 | Z204: 0 | AA204: 0 | AB204: 0 | AC204: 0 | AD204: 0 | AE204: 0
A205: 0196 | B205: Nahant | C205: 0 | D205: 0 | E205: 0 | F205: 0 | G205: 0 | H205: 0 | I205: 0 | J205: 0 | K205: 0 | L205: 0 | M205: 0 | N205: 0 | O205: 0 | P205: 0 | Q205: 0 | R205: 0 | S205: 0 | T205: 0 | U205: 0 | V205: 0 | W205: 0 | X205: 0 | Y205: 0 | Z205: 0 | AA205: 0 | AB205: 0 | AC205: 0 | AD205: 0 | AE205: 0
A206: 0197 | B206: Nantucket | C206: 0 | D206: 0 | E206: 0 | F206: 0 | G206: 0 | H206: 0 | I206: 0 | J206: 0 | K206: 0 | L206: 0 | M206: 0 | N206: 0 | O206: 0 | P206: 0 | Q206: 0 | R206: 0 | S206: 0 | T206: 0 | U206: 0 | V206: 0 | W206: 0 | X206: 0 | Y206: 0 | Z206: 0 | AA206: 0 | AB206: 0 | AC206: 0 | AD206: 0 | AE206: 0
A207: 0198 | B207: Natick | C207: 0 | D207: 0 | E207: 0 | F207: 0 | G207: 0 | H207: 0 | I207: 0 | J207: 0 | K207: 0 | L207: 0 | M207: 0 | N207: 0 | O207: 0 | P207: 0 | Q207: 81529 | R207: 98864 | S207: 181996 | T207: 200233 | U207: 233152 | V207: 245600 | W207: 306642 | X207: 386099 | Y207: 420863 | Z207: 309427 | AA207: 230468 | AB207: 213939 | AC207: 317600 | AD207: 51449 | AE207: 63245
A208: 0199 | B208: Needham | C208: 0 | D208: 0 | E208: 0 | F208: 0 | G208: 0 | H208: 0 | I208: 0 | J208: 0 | K208: 0 | L208: 0 | M208: 0 | N208: 0 | O208: 0 | P208: 0 | Q208: 0 | R208: 0 | S208: 0 | T208: 0 | U208: 0 | V208: 0 | W208: 0 | X208: 0 | Y208: 0 | Z208: 0 | AA208: 0 | AB208: 0 | AC208: 0 | AD208: 0 | AE208: 0
... 243 more rows

Sheet sendfte (hidden)
A8: LEA | B8: District | C8: FY96 | D8: FY97 | E8: FY98 | F8: FY99 | G8: FY00 | H8: FY01 | I8: FY02 | J8: FY03 | K8: FY04 | L8: FY05 | M8: FY06 | N8: FY07 | O8: FY08 | P8: FY09 | Q8: FY10 | R8: FY11 | S8: FY12 | T8: FY13 | U8: FY14 | V8: FY15 | W8: FY16 | X8: FY17 | Y8: FY18 | Z8: FY19 | AA8: FY20 | AB8: FY21 | AC8: FY22 | AD8: FY23 | AE8: FY24
A10: 0001 | B10: Abington | C10: 0 | D10: 1 | E10: 1 | F10: 0 | G10: 0 | H10: 1.71 | I10: 1 | J10: 0.62 | K10: 0 | L10: 1 | M10: 2 | N10: 2 | O10: 3 | P10: 3 | Q10: 1.2 | R10: 2 | S10: 6 | T10: 5.21 | U10: 9.7 | V10: 29.2 | W10: 33.49 | X10: 43.9 | Y10: 44.55 | Z10: 41.52 | AA10: 39.82 | AB10: 38.9 | AC10: 44.19 | AD10: 44.72 | AE10: 37.53
A11: 0002 | B11: Acton | C11: 3.79 | D11: 5.97 | E11: 4.66 | F11: 7.26 | G11: 8.31 | H11: 6 | I11: 4 | J11: 2.6 | K11: 6.27 | L11: 3 | M11: 0.39 | N11: 1.78 | O11: 3 | P11: 1.53 | Q11: 3 | R11: 2 | S11: 11.04 | T11: 5.79 | U11: 10.36 | V11: 0 | W11: 0 | X11: 0 | Y11: 0 | Z11: 0 | AA11: 0 | AB11: 0 | AC11: 0 | AD11: 0 | AE11: 0
A12: 0003 | B12: Acushnet | C12: 0 | D12: 0 | E12: 0 | F12: 0 | G12: 0 | H12: 0 | I12: 0 | J12: 1 | K12: 2 | L12: 3 | M12: 2.3 | N12: 1 | O12: 0 | P12: 0 | Q12: 1 | R12: 4 | S12: 5 | T12: 7 | U12: 11.5 | V12: 11.12 | W12: 18.63 | X12: 21.37 | Y12: 25.69 | Z12: 26.79 | AA12: 19.81 | AB12: 25.16 | AC12: 24.89 | AD12: 31.98 | AE12: 35.59
A13: 0004 | B13: Adams | C13: 0 | D13: 0 | E13: 0 | F13: 0 | G13: 0 | H13: 0 | I13: 0 | J13: 0 | K13: 0 | L13: 0 | M13: 0 | N13: 0 | O13: 0 | P13: 0 | Q13: 0 | R13: 0 | S13: 0 | T13: 0 | U13: 0 | V13: 0 | W13: 0 | X13: 0 | Y13: 0 | Z13: 0 | AA13: 0 | AB13: 0 | AC13: 0 | AD13: 0 | AE13: 0
A14: 0005 | B14: Agawam | C14: 21.26333333 | D14: 29.34 | E14: 32.04 | F14: 23.54 | G14: 17.12 | H14: 17.95 | I14: 21.72 | J14: 28.25 | K14: 38.59 | L14: 36.29 | M14: 36.43 | N14: 34.47 | O14: 43.03 | P14: 28.66 | Q14: 34.37 | R14: 40.13 | S14: 38.24 | T14: 43.33 | U14: 54.18 | V14: 43.25 | W14: 46.1 | X14: 55.27 | Y14: 49.58 | Z14: 62.71 | AA14: 49.99 | AB14: 57.33 | AC14: 66.67 | AD14: 66.75 | AE14: 59.98
A15: 0006 | B15: Alford | C15: 0 | D15: 0 | E15: 0 | F15: 0 | G15: 0 | H15: 0 | I15: 0 | J15: 0 | K15: 0 | L15: 0 | M15: 0 | N15: 0 | O15: 0 | P15: 0 | Q15: 0 | R15: 0 | S15: 0 | T15: 0 | U15: 0 | V15: 0 | W15: 0 | X15: 0 | Y15: 0 | Z15: 0 | AA15: 0 | AB15: 0 | AC15: 0 | AD15: 0 | AE15: 0
A16: 0007 | B16: Amesbury | C16: 144.5566667 | D16: 154.19 | E16: 158.89 | F16: 160.3 | G16: 153.86 | H16: 148.07 | I16: 154.2 | J16: 166.7 | K16: 160.3 | L16: 129.57 | M16: 112.735 | N16: 115.315 | O16: 95.35 | P16: 82.51 | Q16: 72.94 | R16: 74.01 | S16: 72.97 | T16: 78.59 | U16: 75.5 | V16: 73.9 | W16: 59.69 | X16: 46.62 | Y16: 44.77 | Z16: 42.47 | AA16: 40.25 | AB16: 55.65 | AC16: 52.74 | AD16: 52.93 | AE16: 61.2
A17: 0008 | B17: Amherst | C17: 0 | D17: 1 | E17: 1 | F17: 0.54 | G17: 2.8 | H17: 7 | I17: 15.09 | J17: 11 | K17: 18.26 | L17: 15.15 | M17: 14.75 | N17: 24.36 | O17: 26.48 | P17: 33.18 | Q17: 28.83 | R17: 27.11 | S17: 28.64 | T17: 28.64 | U17: 24.41 | V17: 22.13 | W17: 25.07 | X17: 18.4 | Y17: 22.66 | Z17: 32.54 | AA17: 27.72 | AB17: 36.74 | AC17: 35.69 | AD17: 45.95 | AE17: 53.67
A18: 0009 | B18: Andover | C18: 3.733333333 | D18: 4.83 | E18: 6 | F18: 4.67 | G18: 0.1 | H18: 0 | I18: 0.86 | J18: 1.95 | K18: 1 | L18: 2.73 | M18: 1 | N18: 1 | O18: 1 | P18: 2 | Q18: 1.57 | R18: 2 | S18: 1 | T18: 1 | U18: 0.83 | V18: 5.34 | W18: 4 | X18: 10.27 | Y18: 11.7 | Z18: 11.68 | AA18: 9.86 | AB18: 15.21 | AC18: 17.9 | AD18: 14.99 | AE18: 12.28
A19: 0010 | B19: Arlington | C19: 1 | D19: 1 | E19: 0.35 | F19: 4.95 | G19: 2 | H19: 0 | I19: 0 | J19: 1.46 | K19: 6.57 | L19: 6 | M19: 6 | N19: 5 | O19: 0 | P19: 0 | Q19: 0 | R19: 0 | S19: 0 | T19: 0 | U19: 0 | V19: 0.91 | W19: 1.96 | X19: 3 | Y19: 4.74 | Z19: 7.17 | AA19: 6.72 | AB19: 16.25 | AC19: 12.28 | AD19: 12.14 | AE19: 14.75
A20: 0011 | B20: Ashburnham | C20: 0 | D20: 0 | E20: 0 | F20: 0 | G20: 0 | H20: 0 | I20: 0 | J20: 0 | K20: 0 | L20: 0 | M20: 0 | N20: 0 | O20: 0 | P20: 0 | Q20: 0 | R20: 0 | S20: 0 | T20: 0 | U20: 0 | V20: 0 | W20: 0 | X20: 0 | Y20: 0 | Z20: 0 | AA20: 0 | AB20: 0 | AC20: 0 | AD20: 0 | AE20: 0
A21: 0012 | B21: Ashby | C21: 0 | D21: 0 | E21: 0 | F21: 0 | G21: 0 | H21: 0 | I21: 0 | J21: 0 | K21: 0 | L21: 0 | M21: 0 | N21: 0 | O21: 0 | P21: 0 | Q21: 0 | R21: 0 | S21: 0 | T21: 0 | U21: 0 | V21: 0 | W21: 0 | X21: 0 | Y21: 0 | Z21: 0 | AA21: 0 | AB21: 0 | AC21: 0 | AD21: 0 | AE21: 0
A22: 0013 | B22: Ashfield | C22: 0 | D22: 0 | E22: 0 | F22: 0 | G22: 0 | H22: 0 | I22: 0 | J22: 0 | K22: 0 | L22: 0 | M22: 0 | N22: 0 | O22: 0 | P22: 0 | Q22: 0 | R22: 0 | S22: 0 | T22: 0 | U22: 0 | V22: 0 | W22: 0 | X22: 0 | Y22: 0 | Z22: 0 | AA22: 0 | AB22: 0 | AC22: 0 | AD22: 0 | AE22: 0
A23: 0014 | B23: Ashland | C23: 19.56666667 | D23: 25.08 | E23: 19.57 | F23: 22.1 | G23: 20.48 | H23: 20.16 | I23: 15.89 | J23: 14.31 | K23: 14.8 | L23: 14 | M23: 10.78 | N23: 9 | O23: 8.26 | P23: 7 | Q23: 9.19 | R23: 9.5 | S23: 9.96 | T23: 11.24 | U23: 12.44 | V23: 15.78 | W23: 13.86 | X23: 13.99 | Y23: 17.51 | Z23: 12 | AA23: 11.5 | AB23: 11.99 | AC23: 15.82 | AD23: 13.58 | AE23: 13.51
A24: 0015 | B24: Athol | C24: 0 | D24: 0 | E24: 0 | F24: 0 | G24: 0 | H24: 0 | I24: 0 | J24: 0 | K24: 0 | L24: 0 | M24: 0 | N24: 0 | O24: 0 | P24: 0 | Q24: 0 | R24: 0 | S24: 0 | T24: 0 | U24: 0 | V24: 0 | W24: 0 | X24: 0 | Y24: 0 | Z24: 0 | AA24: 0 | AB24: 0 | AC24: 0 | AD24: 0 | AE24: 0
A25: 0016 | B25: Attleboro | C25: 1.59 | D25: 0 | E25: 1.23 | F25: 0 | G25: 1.1 | H25: 3.58 | I25: 5.42 | J25: 3 | K25: 2.26 | L25: 2.58 | M25: 5 | N25: 2.49 | O25: 3.67 | P25: 4.37 | Q25: 6 | R25: 7.5 | S25: 10.68 | T25: 11.13 | U25: 7.48 | V25: 18.78 | W25: 26.33 | X25: 40.74 | Y25: 47.46 | Z25: 62.04 | AA25: 66.54 | AB25: 72.81 | AC25: 71.37 | AD25: 80.96 | AE25: 94.2
A26: 0017 | B26: Auburn | C26: 0 | D26: 0.29 | E26: 1 | F26: 3 | G26: 0.4 | H26: 1.12 | I26: 3.71 | J26: 7.42 | K26: 12.09 | L26: 13.11 | M26: 12.23 | N26: 10.48 | O26: 11.12 | P26: 17.15 | Q26: 22.49 | R26: 23.71 | S26: 32.92 | T26: 28.66 | U26: 21.27 | V26: 23.87 | W26: 17.8 | X26: 20.05 | Y26: 23.94 | Z26: 22.45 | AA26: 20.15 | AB26: 35.18 | AC26: 28.7 | AD26: 22.41 | AE26: 23.53
A27: 0018 | B27: Avon | C27: 0 | D27: 0 | E27: 0 | F27: 0 | G27: 0 | H27: 0 | I27: 0 | J27: 0 | K27: 0 | L27: 1 | M27: 1 | N27: 2.75 | O27: 1 | P27: 4 | Q27: 3 | R27: 3 | S27: 0.86 | T27: 1 | U27: 3 | V27: 5.49 | W27: 1.69 | X27: 1.19 | Y27: 3.79 | Z27: 3.8 | AA27: 4 | AB27: 7.34 | AC27: 7.15 | AD27: 12 | AE27: 12.98
A28: 0019 | B28: Ayer | C28: 111.1533333 | D28: 87.22 | E28: 86.03 | F28: 103.34 | G28: 89.11 | H28: 76.64 | I28: 38.53 | J28: 36.1 | K28: 24.03 | L28: 27.7 | M28: 28.17 | N28: 28.22 | O28: 35.36 | P28: 37.52 | Q28: 45.83 | R28: 55.49 | S28: 0 | T28: 0 | U28: 0 | V28: 0 | W28: 0 | X28: 0 | Y28: 0 | Z28: 0 | AA28: 0 | AB28: 0 | AC28: 0 | AD28: 0 | AE28: 0
A29: 0020 | B29: Barnstable | C29: 1 | D29: 6.95 | E29: 14.75 | F29: 24.29 | G29: 37.69 | H29: 53.6 | I29: 50.05 | J29: 43.71 | K29: 57.24 | L29: 63.545 | M29: 74.975 | N29: 61.38 | O29: 63.71 | P29: 57.47 | Q29: 67.57 | R29: 82.23 | S29: 105.49 | T29: 123.6 | U29: 111.49 | V29: 153.61 | W29: 155.45 | X29: 177.73 | Y29: 215.18 | Z29: 222.62 | AA29: 241.57 | AB29: 246.27 | AC29: 246.07 | AD29: 239.15 | AE29: 241.62
A30: 0021 | B30: Barre | C30: 0 | D30: 0 | E30: 0 | F30: 0 | G30: 0 | H30: 0 | I30: 0 | J30: 0 | K30: 0 | L30: 0 | M30: 0 | N30: 0 | O30: 0 | P30: 0 | Q30: 0 | R30: 0 | S30: 0 | T30: 0 | U30: 0 | V30: 0 | W30: 0 | X30: 0 | Y30: 0 | Z30: 0 | AA30: 0 | AB30: 0 | AC30: 0 | AD30: 0 | AE30: 0
A31: 0022 | B31: Becket | C31: 1 | D31: 2 | E31: 3.6 | F31: 2.17 | G31: 4.21 | H31: 3.26 | I31: 4.08 | J31: 2.62 | K31: 2.83 | L31: 1 | M31: 3 | N31: 3 | O31: 1 | P31: 0 | Q31: 2 | R31: 0 | S31: 2 | T31: 2 | U31: 5 | V31: 2 | W31: 3 | X31: 2 | Y31: 1.86 | Z31: 1 | AA31: 1 | AB31: 0 | AC31: 0 | AD31: 0 | AE31: 0
A32: 0023 | B32: Bedford | C32: 2.64 | D32: 3.82 | E32: 3.5 | F32: 1 | G32: 2 | H32: 1.54 | I32: 0 | J32: 1 | K32: 0 | L32: 1.09 | M32: 1 | N32: 0 | O32: 0 | P32: 0 | Q32: 1 | R32: 1.34 | S32: 6.2 | T32: 2 | U32: 4 | V32: 1.9 | W32: 4.16 | X32: 2.07 | Y32: 4.74 | Z32: 7.05 | AA32: 4.55 | AB32: 5 | AC32: 4.93 | AD32: 2 | AE32: 3.46
A33: 0024 | B33: Belchertown | C33: 11.21 | D33: 14.22 | E33: 12.4 | F33: 11.24 | G33: 20.18 | H33: 27.02 | I33: 38.68 | J33: 38.02 | K33: 35.18 | L33: 44.36 | M33: 39.09 | N33: 49.14 | O33: 52.29 | P33: 48.99 | Q33: 48.73 | R33: 56.01 | S33: 67.68 | T33: 71.49 | U33: 77.6 | V33: 85.86 | W33: 95.69 | X33: 97.18 | Y33: 101.84 | Z33: 117.49 | AA33: 129.39 | AB33: 131.59 | AC33: 119.49 | AD33: 122.92 | AE33: 125.35
A34: 0025 | B34: Bellingham | C34: 44.65 | D34: 44.32 | E34: 47.98 | F34: 53.02 | G34: 56.6 | H34: 59.6 | I34: 57.17 | J34: 58.43 | K34: 63.155 | L34: 52.6 | M34: 56.15 | N34: 56.165 | O34: 72.81 | P34: 76.505 | Q34: 84.84 | R34: 83.2 | S34: 75.67 | T34: 68.17 | U34: 89.38 | V34: 122.36 | W34: 135.85 | X34: 123.55 | Y34: 111.41 | Z34: 116.85 | AA34: 108.61 | AB34: 126.8 | AC34: 118.77 | AD34: 107.46 | AE34: 106.27
A35: 0026 | B35: Belmont | C35: 0.4 | D35: 0 | E35: 0 | F35: 0.97 | G35: 0.7 | H35: 0 | I35: 0 | J35: 0 | K35: 0 | L35: 0 | M35: 0 | N35: 0 | O35: 0 | P35: 1 | Q35: 0 | R35: 0 | S35: 3 | T35: 0 | U35: 0 | V35: 0.14 | W35: 1.3 | X35: 1.19 | Y35: 3.91 | Z35: 5.84 | AA35: 5.34 | AB35: 9 | AC35: 6.58 | AD35: 6.55 | AE35: 4.82
A36: 0027 | B36: Berkley | C36: 8.61 | D36: 9.2 | E36: 7.95 | F36: 6.62 | G36: 12.8 | H36: 10.97 | I36: 15.59 | J36: 16.14 | K36: 18.305 | L36: 18.05 | M36: 15.9 | N36: 17.4 | O36: 19.28 | P36: 17.15 | Q36: 19.6 | R36: 16.46 | S36: 7 | T36: 3.85 | U36: 3.53 | V36: 2 | W36: 1.85 | X36: 2.98 | Y36: 7.13 | Z36: 7.88 | AA36: 9.54 | AB36: 9.96 | AC36: 8.38 | AD36: 7.57 | AE36: 11.72
A37: 0028 | B37: Berlin | C37: 8.8 | D37: 7.3 | E37: 6.89 | F37: 7.18 | G37: 4 | H37: 3 | I37: 1 | J37: 0.36 | K37: 0 | L37: 1 | M37: 1 | N37: 1 | O37: 3 | P37: 3 | Q37: 3 | R37: 14.77 | S37: 10.12 | T37: 6.77 | U37: 3 | V37: 0 | W37: 1 | X37: 0.64 | Y37: 1 | Z37: 0 | AA37: 0 | AB37: 0 | AC37: 0 | AD37: 0 | AE37: 0
A38: 0029 | B38: Bernardston | C38: 0 | D38: 0 | E38: 0 | F38: 0 | G38: 0 | H38: 0 | I38: 0 | J38: 0 | K38: 0 | L38: 0 | M38: 0 | N38: 0 | O38: 0 | P38: 0 | Q38: 0 | R38: 0 | S38: 0 | T38: 0 | U38: 0 | V38: 0 | W38: 0 | X38: 0 | Y38: 0 | Z38: 0 | AA38: 0 | AB38: 0 | AC38: 0 | AD38: 0 | AE38: 0
A39: 0030 | B39: Beverly | C39: 70.04 | D39: 74.67 | E39: 88.1 | F39: 93.62 | G39: 96.56 | H39: 97.26 | I39: 101.57 | J39: 92.72 | K39: 104.06 | L39: 106.67 | M39: 106.42 | N39: 107.82 | O39: 110.9 | P39: 117.3 | Q39: 94.06 | R39: 80.72 | S39: 77.72 | T39: 74.51 | U39: 67.23 | V39: 67.29 | W39: 59.34 | X39: 54.67 | Y39: 44.38 | Z39: 61.93 | AA39: 71.1 | AB39: 59.85 | AC39: 70.91 | AD39: 69.6 | AE39: 76.37
A40: 0031 | B40: Billerica | C40: 8.9 | D40: 7 | E40: 5.03 | F40: 3 | G40: 2.44 | H40: 0.5 | I40: 0.33 | J40: 0.48 | K40: 2.065 | L40: 2.78 | M40: 3 | N40: 1 | O40: 1.5 | P40: 2 | Q40: 2 | R40: 7 | S40: 11.1 | T40: 10.22 | U40: 10.43 | V40: 18.3 | W40: 17.97 | X40: 20.57 | Y40: 20.39 | Z40: 24.46 | AA40: 19.45 | AB40: 23.03 | AC40: 37.64 | AD40: 26.79 | AE40: 32.65
A41: 0032 | B41: Blackstone | C41: 0 | D41: 0 | E41: 0 | F41: 0 | G41: 0 | H41: 0 | I41: 0 | J41: 0 | K41: 0 | L41: 0 | M41: 0 | N41: 0 | O41: 0 | P41: 0 | Q41: 0 | R41: 0 | S41: 0 | T41: 0 | U41: 0 | V41: 0 | W41: 0 | X41: 0 | Y41: 0 | Z41: 0 | AA41: 0 | AB41: 0 | AC41: 0 | AD41: 0 | AE41: 0
A42: 0033 | B42: Blandford | C42: 0 | D42: 0 | E42: 0 | F42: 0 | G42: 0 | H42: 0 | I42: 0 | J42: 0 | K42: 0 | L42: 0 | M42: 1 | N42: 1 | O42: 0 | P42: 0 | Q42: 0 | R42: 0 | S42: 0 | T42: 0 | U42: 0 | V42: 0 | W42: 2 | X42: 0 | Y42: 0 | Z42: 0 | AA42: 0 | AB42: 1 | AC42: 1 | AD42: 2 | AE42: 1
A43: 0034 | B43: Bolton | C43: 0 | D43: 0 | E43: 0 | F43: 0 | G43: 0 | H43: 0 | I43: 0 | J43: 0 | K43: 0 | L43: 0 | M43: 0 | N43: 0 | O43: 0 | P43: 0 | Q43: 0 | R43: 0 | S43: 0 | T43: 0 | U43: 0 | V43: 0 | W43: 0 | X43: 0 | Y43: 0 | Z43: 0 | AA43: 0 | AB43: 0 | AC43: 0 | AD43: 0 | AE43: 0
A44: 0035 | B44: Boston | C44: 18.08 | D44: 30.2 | E44: 30.1 | F44: 27.74 | G44: 29.18 | H44: 22.07 | I44: 28.82 | J44: 48.33 | K44: 60.33 | L44: 59.45 | M44: 49.66 | N44: 48.3 | O44: 43.01 | P44: 38.21 | Q44: 35.48 | R44: 27.99 | S44: 61.93 | T44: 40.17 | U44: 48.02 | V44: 76.94 | W44: 93.08 | X44: 129.94 | Y44: 138.38 | Z44: 173.58 | AA44: 152.87 | AB44: 146.61 | AC44: 205.75 | AD44: 298.65 | AE44: 312.61
A45: 0036 | B45: Bourne | C45: 5.8 | D45: 5 | E45: 4.37 | F45: 3.28 | G45: 4 | H45: 2 | I45: 5.51 | J45: 14.69 | K45: 10.84 | L45: 6.83 | M45: 5.88 | N45: 5.64 | O45: 10.31 | P45: 20.63 | Q45: 27.46 | R45: 33.205 | S45: 48.53 | T45: 64.25 | U45: 81.83 | V45: 94.72 | W45: 95.58 | X45: 123.74 | Y45: 133.29 | Z45: 142.99 | AA45: 132.78 | AB45: 128.69 | AC45: 132.88 | AD45: 143 | AE45: 145.38
A46: 0037 | B46: Boxborough | C46: 8.34 | D46: 6.7 | E46: 7.53 | F46: 3.26 | G46: 3.71 | H46: 3 | I46: 2 | J46: 1 | K46: 1.36 | L46: 0 | M46: 0 | N46: 0.25 | O46: 0.11 | P46: 0 | Q46: 0 | R46: 0 | S46: 0 | T46: 0.38 | U46: 0 | V46: 0 | W46: 0 | X46: 0 | Y46: 0 | Z46: 0 | AA46: 0 | AB46: 0 | AC46: 0 | AD46: 0 | AE46: 0
A47: 0038 | B47: Boxford | C47: 0 | D47: 1.3 | E47: 0.24 | F47: 0 | G47: 0 | H47: 2 | I47: 0 | J47: 0 | K47: 0 | L47: 1 | M47: 0 | N47: 0 | O47: 2.4 | P47: 1 | Q47: 0 | R47: 0.57 | S47: 0.51 | T47: 0.67 | U47: 1 | V47: 1 | W47: 3 | X47: 2 | Y47: 2 | Z47: 3 | AA47: 1 | AB47: 1 | AC47: 2 | AD47: 2 | AE47: 1
A48: 0039 | B48: Boylston | C48: 3 | D48: 0.07 | E48: 1.09 | F48: 1 | G48: 0 | H48: 0 | I48: 0 | J48: 3.74 | K48: 0.5 | L48: 0 | M48: 1 | N48: 1 | O48: 3 | P48: 3.5 | Q48: 4 | R48: 6 | S48: 8.5 | T48: 11.5 | U48: 6 | V48: 7.66 | W48: 5.6 | X48: 6 | Y48: 4.66 | Z48: 5 | AA48: 1 | AB48: 0.82 | AC48: 0 | AD48: 0 | AE48: 0
A49: 0040 | B49: Braintree | C49: 0 | D49: 1 | E49: 1 | F49: 1 | G49: 1 | H49: 1 | I49: 0 | J49: 0 | K49: 0 | L49: 0 | M49: 0 | N49: 0.94 | O49: 1 | P49: 1.38 | Q49: 2 | R49: 0 | S49: 6.08 | T49: 5.79 | U49: 5.81 | V49: 6.23 | W49: 5.19 | X49: 6.51 | Y49: 5.39 | Z49: 10.06 | AA49: 13.43 | AB49: 17.39 | AC49: 20.55 | AD49: 22.1 | AE49: 22.26
A50: 0041 | B50: Brewster | C50: 6 | D50: 4 | E50: 8.9 | F50: 4 | G50: 6.76 | H50: 4.46 | I50: 14 | J50: 18 | K50: 27.5 | L50: 18.36 | M50: 26.01 | N50: 16.745 | O50: 19.04 | P50: 16.71 | Q50: 16.11 | R50: 17.18 | S50: 13.53 | T50: 17.74 | U50: 17 | V50: 22.8 | W50: 32.25 | X50: 24.83 | Y50: 27.92 | Z50: 24.35 | AA50: 22.24 | AB50: 17.59 | AC50: 16.73 | AD50: 13.48 | AE50: 16.5
A51: 0042 | B51: Bridgewater | C51: 0 | D51: 0 | E51: 0 | F51: 0 | G51: 0 | H51: 0 | I51: 0 | J51: 0 | K51: 0 | L51: 0 | M51: 0 | N51: 0 | O51: 0 | P51: 0 | Q51: 0 | R51: 0 | S51: 0 | T51: 0 | U51: 0 | V51: 0 | W51: 0 | X51: 0 | Y51: 0 | Z51: 0 | AA51: 0 | AB51: 0 | AC51: 0 | AD51: 0 | AE51: 0
A52: 0043 | B52: Brimfield | C52: 0 | D52: 0 | E52: 0 | F52: 0 | G52: 2 | H52: 3 | I52: 1 | J52: 3.36 | K52: 3.8 | L52: 1.84 | M52: 3.21 | N52: 1 | O52: 3.02 | P52: 3.91 | Q52: 3.16 | R52: 0.24 | S52: 3.88 | T52: 5.1 | U52: 6.05 | V52: 9.37 | W52: 7.13 | X52: 7 | Y52: 6.94 | Z52: 5.77 | AA52: 7.59 | AB52: 5.07 | AC52: 10.6 | AD52: 8.47 | AE52: 6.69
A53: 0044 | B53: Brockton | C53: 180.3766667 | D53: 179.17 | E53: 172.16 | F53: 177.41 | G53: 164.08 | H53: 158.71 | I53: 139.38 | J53: 139.77 | K53: 135.87 | L53: 156.86 | M53: 172.41 | N53: 183.94 | O53: 186.67 | P53: 179.52 | Q53: 158.95 | R53: 160.07 | S53: 155.95 | T53: 180.5 | U53: 185.34 | V53: 191.08 | W53: 235.67 | X53: 247.71 | Y53: 281.93 | Z53: 315.85 | AA53: 285.02 | AB53: 286.63 | AC53: 261.03 | AD53: 292.28 | AE53: 302.95
A54: 0045 | B54: Brookfield | C54: 0 | D54: 0.71 | E54: 5.28 | F54: 6 | G54: 4 | H54: 6.9 | I54: 8.91 | J54: 8.57 | K54: 10.55 | L54: 15.44 | M54: 18.16 | N54: 26.66 | O54: 20.79 | P54: 16.91 | Q54: 14.13 | R54: 16.04 | S54: 7.94 | T54: 7.94 | U54: 7.35 | V54: 2.28 | W54: 2.63 | X54: 4.77 | Y54: 5.19 | Z54: 5.59 | AA54: 4 | AB54: 4.01 | AC54: 4 | AD54: 5.71 | AE54: 6.28
A55: 0046 | B55: Brookline | C55: 0 | D55: 0 | E55: 0 | F55: 0 | G55: 0 | H55: 0 | I55: 0 | J55: 0 | K55: 0.5 | L55: 1 | M55: 0 | N55: 0 | O55: 0 | P55: 0 | Q55: 0 | R55: 0.18 | S55: 1 | T55: 2 | U55: 2 | V55: 0 | W55: 1.31 | X55: 3.61 | Y55: 3.66 | Z55: 6.54 | AA55: 6.57 | AB55: 6.42 | AC55: 9.56 | AD55: 6.82 | AE55: 5.86
A56: 0047 | B56: Buckland | C56: 0 | D56: 0 | E56: 0 | F56: 0 | G56: 0 | H56: 0 | I56: 0 | J56: 0 | K56: 0 | L56: 0 | M56: 0 | N56: 0 | O56: 0 | P56: 0 | Q56: 0 | R56: 0 | S56: 0 | T56: 0 | U56: 0 | V56: 0 | W56: 0 | X56: 0 | Y56: 0 | Z56: 0 | AA56: 0 | AB56: 0 | AC56: 0 | AD56: 0 | AE56: 0
A57: 0048 | B57: Burlington | C57: 0 | D57: 0 | E57: 0 | F57: 0.77 | G57: 1.4 | H57: 1 | I57: 0 | J57: 0 | K57: 0 | L57: 0 | M57: 1.72 | N57: 1 | O57: 2 | P57: 1 | Q57: 1.34 | R57: 0.45 | S57: 0 | T57: 1 | U57: 0 | V57: 3.5 | W57: 3.88 | X57: 6.93 | Y57: 6.34 | Z57: 8.25 | AA57: 14.99 | AB57: 13.26 | AC57: 22.71 | AD57: 17.92 | AE57: 18.14
A58: 0049 | B58: Cambridge | C58: 8.25 | D58: 6.44 | E58: 5 | F58: 6 | G58: 5 | H58: 2 | I58: 1 | J58: 5 | K58: 16 | L58: 11.48 | M58: 10 | N58: 5.19 | O58: 0.44 | P58: 0 | Q58: 0 | R58: 0.45 | S58: 1 | T58: 0 | U58: 1.08 | V58: 4.9 | W58: 5.41 | X58: 2.96 | Y58: 8.61 | Z58: 13.07 | AA58: 16.43 | AB58: 12.39 | AC58: 12.29 | AD58: 11.16 | AE58: 17.81
A59: 0050 | B59: Canton | C59: 0 | D59: 0.32 | E59: 0 | F59: 0 | G59: 0 | H59: 1.11 | I59: 0 | J59: 0 | K59: 0 | L59: 0 | M59: 0 | N59: 0 | O59: 1 | P59: 0 | Q59: 0 | R59: 0 | S59: 2 | T59: 2 | U59: 0 | V59: 0.03 | W59: 1.4 | X59: 2.82 | Y59: 3.78 | Z59: 6.41 | AA59: 7.53 | AB59: 10.82 | AC59: 8.77 | AD59: 11.32 | AE59: 9.22
A60: 0051 | B60: Carlisle | C60: 0 | D60: 2.46 | E60: 1 | F60: 0 | G60: 1.4 | H60: 0 | I60: 0 | J60: 0 | K60: 0 | L60: 0 | M60: 0 | N60: 0 | O60: 1 | P60: 0 | Q60: 0 | R60: 0 | S60: 0 | T60: 1.6 | U60: 0 | V60: 0 | W60: 0 | X60: 0 | Y60: 0 | Z60: 0 | AA60: 2 | AB60: 0 | AC60: 0 | AD60: 0 | AE60: 0
A61: 0052 | B61: Carver | C61: 0.9 | D61: 1 | E61: 0 | F61: 0 | G61: 0 | H61: 0 | I61: 0 | J61: 0.98 | K61: 2 | L61: 1 | M61: 1 | N61: 0.73 | O61: 0 | P61: 5.88 | Q61: 2.24 | R61: 3.6 | S61: 7.97 | T61: 4 | U61: 6.84 | V61: 6.71 | W61: 4.81 | X61: 7.43 | Y61: 17.92 | Z61: 18.8 | AA61: 16.15 | AB61: 10.9 | AC61: 10 | AD61: 7.27 | AE61: 8.14
A62: 0053 | B62: Charlemont | C62: 0 | D62: 0 | E62: 0 | F62: 0 | G62: 0 | H62: 0 | I62: 0 | J62: 0 | K62: 0 | L62: 0 | M62: 0 | N62: 0 | O62: 0 | P62: 0 | Q62: 0 | R62: 0 | S62: 0 | T62: 0 | U62: 0 | V62: 0 | W62: 0 | X62: 0 | Y62: 0 | Z62: 0 | AA62: 0 | AB62: 0 | AC62: 0 | AD62: 0 | AE62: 0
A63: 0054 | B63: Charlton | C63: 0 | D63: 0 | E63: 0 | F63: 0 | G63: 0 | H63: 0 | I63: 0 | J63: 0 | K63: 0 | L63: 0 | M63: 0 | N63: 0 | O63: 0 | P63: 0 | Q63: 0 | R63: 0 | S63: 0 | T63: 0 | U63: 0 | V63: 0 | W63: 0 | X63: 0 | Y63: 0 | Z63: 0 | AA63: 0 | AB63: 0 | AC63: 0 | AD63: 0 | AE63: 0
A64: 0055 | B64: Chatham | C64: 1 | D64: 3.8 | E64: 4.48 | F64: 6.49 | G64: 16.46 | H64: 19.5 | I64: 15.43 | J64: 9.77 | K64: 24.97 | L64: 16 | M64: 26.83 | N64: 26.18 | O64: 38.49 | P64: 42.46 | Q64: 51.585 | R64: 57 | S64: 71.96 | T64: 0 | U64: 0 | V64: 0 | W64: 0 | X64: 0 | Y64: 0 | Z64: 0 | AA64: 0 | AB64: 0 | AC64: 0 | AD64: 0 | AE64: 0
A65: 0056 | B65: Chelmsford | C65: 19.26 | D65: 18.45 | E65: 21.14 | F65: 25.45 | G65: 21 | H65: 5.92 | I65: 7.22 | J65: 2.24 | K65: 3.6 | L65: 5.23 | M65: 6.29 | N65: 4.96 | O65: 10.72 | P65: 5.54 | Q65: 10.64 | R65: 13.105 | S65: 21.5 | T65: 32.92 | U65: 37.41 | V65: 27.55 | W65: 29.66 | X65: 34.42 | Y65: 31.57 | Z65: 34.91 | AA65: 34.15 | AB65: 34.91 | AC65: 31.18 | AD65: 28.47 | AE65: 25.6
A66: 0057 | B66: Chelsea | C66: 0 | D66: 0 | E66: 0 | F66: 0 | G66: 1.36 | H66: 1 | I66: 1.12 | J66: 2 | K66: 2.19 | L66: 0.28 | M66: 1 | N66: 2 | O66: 1 | P66: 2 | Q66: 2.53 | R66: 0 | S66: 3.92 | T66: 4 | U66: 1 | V66: 3.98 | W66: 10.27 | X66: 7.7 | Y66: 6.08 | Z66: 15.04 | AA66: 8.31 | AB66: 11.53 | AC66: 20.51 | AD66: 21.34 | AE66: 27.1
A67: 0058 | B67: Cheshire | C67: 0 | D67: 0 | E67: 0 | F67: 0 | G67: 0 | H67: 0 | I67: 0 | J67: 0 | K67: 0 | L67: 0 | M67: 0 | N67: 0 | O67: 0 | P67: 0 | Q67: 0 | R67: 0 | S67: 0 | T67: 0 | U67: 0 | V67: 0 | W67: 0 | X67: 0 | Y67: 0 | Z67: 0 | AA67: 0 | AB67: 0 | AC67: 0 | AD67: 0 | AE67: 0
A68: 0059 | B68: Chester | C68: 0 | D68: 0 | E68: 0 | F68: 0 | G68: 0 | H68: 0 | I68: 0 | J68: 0 | K68: 0 | L68: 0 | M68: 0 | N68: 0 | O68: 0 | P68: 0 | Q68: 0 | R68: 0 | S68: 0 | T68: 0 | U68: 0 | V68: 0 | W68: 0 | X68: 0 | Y68: 0 | Z68: 0 | AA68: 0 | AB68: 0 | AC68: 0 | AD68: 0 | AE68: 0
A69: 0060 | B69: Chesterfield | C69: 0 | D69: 0 | E69: 0 | F69: 0 | G69: 0 | H69: 0 | I69: 0 | J69: 0 | K69: 0 | L69: 0 | M69: 0 | N69: 0 | O69: 0 | P69: 0 | Q69: 0 | R69: 0 | S69: 0 | T69: 0 | U69: 0 | V69: 0 | W69: 0 | X69: 0 | Y69: 0 | Z69: 0 | AA69: 0 | AB69: 0 | AC69: 0 | AD69: 0 | AE69: 0
A70: 0061 | B70: Chicopee | C70: 10.43 | D70: 17.61 | E70: 29 | F70: 38.13 | G70: 38.62 | H70: 46.27 | I70: 65.04 | J70: 65.72 | K70: 74.05 | L70: 78.07 | M70: 83.84 | N70: 83.34 | O70: 77.845 | P70: 80.65 | Q70: 84.5 | R70: 87.54 | S70: 97.77 | T70: 124.46 | U70: 135.04 | V70: 129.35 | W70: 139.67 | X70: 163.51 | Y70: 212.07 | Z70: 217.33 | AA70: 238.66 | AB70: 249.84 | AC70: 255.78 | AD70: 284.81 | AE70: 239.19
A71: 0062 | B71: Chilmark | C71: 0 | D71: 0 | E71: 0 | F71: 0 | G71: 0 | H71: 0 | I71: 0 | J71: 0 | K71: 0 | L71: 0 | M71: 0 | N71: 0 | O71: 0 | P71: 0 | Q71: 0 | R71: 0 | S71: 0 | T71: 0 | U71: 0 | V71: 0 | W71: 0 | X71: 0 | Y71: 0 | Z71: 0 | AA71: 0 | AB71: 0 | AC71: 0 | AD71: 0 | AE71: 0
A72: 0063 | B72: Clarksburg | C72: 4.65 | D72: 3 | E72: 6.73 | F72: 4.25 | G72: 5.37 | H72: 6 | I72: 4 | J72: 7 | K72: 4 | L72: 8.59 | M72: 7 | N72: 13.23 | O72: 10.47 | P72: 9.39 | Q72: 13.6 | R72: 9.69 | S72: 7.19 | T72: 13.3 | U72: 8.49 | V72: 13.03 | W72: 17.78 | X72: 24.16 | Y72: 26.33 | Z72: 26.95 | AA72: 21.8 | AB72: 20 | AC72: 20.97 | AD72: 19.91 | AE72: 18.85
A73: 0064 | B73: Clinton | C73: 84.42333333 | D73: 96.16 | E73: 108.03 | F73: 94.06 | G73: 89.37 | H73: 66.45 | I73: 61.32 | J73: 59.885 | K73: 46.355 | L73: 41.5 | M73: 45.54 | N73: 45.41 | O73: 56 | P73: 52.815 | Q73: 52.6 | R73: 70.11 | S73: 104.59 | T73: 129.5 | U73: 124.02 | V73: 118.54 | W73: 117.37 | X73: 105.63 | Y73: 95.1 | Z73: 93.68 | AA73: 97.58 | AB73: 96.6 | AC73: 82.55 | AD73: 75.06 | AE73: 84.13
A74: 0065 | B74: Cohasset | C74: 0 | D74: 0 | E74: 0 | F74: 0 | G74: 0 | H74: 0 | I74: 0 | J74: 0 | K74: 0 | L74: 0 | M74: 0 | N74: 0 | O74: 0 | P74: 0 | Q74: 0 | R74: 0 | S74: 0 | T74: 0 | U74: 0 | V74: 0 | W74: 0 | X74: 1.68 | Y74: 1.81 | Z74: 3.47 | AA74: 5.56 | AB74: 4.35 | AC74: 5 | AD74: 2.83 | AE74: 2
A75: 0066 | B75: Colrain | C75: 0 | D75: 0 | E75: 0 | F75: 0 | G75: 0 | H75: 0 | I75: 0 | J75: 0 | K75: 0 | L75: 0 | M75: 0 | N75: 0 | O75: 0 | P75: 0 | Q75: 0 | R75: 0 | S75: 0 | T75: 0 | U75: 0 | V75: 0 | W75: 0 | X75: 0 | Y75: 0 | Z75: 0 | AA75: 0 | AB75: 0 | AC75: 0 | AD75: 0 | AE75: 0
A76: 0067 | B76: Concord | C76: 3.68 | D76: 2 | E76: 0 | F76: 2.22 | G76: 1.51 | H76: 0 | I76: 0 | J76: 1.04 | K76: 0 | L76: 0 | M76: 0 | N76: 0.58 | O76: 0 | P76: 0.67 | Q76: 1.405 | R76: 1 | S76: 0.37 | T76: 1.49 | U76: 2 | V76: 1.78 | W76: 2 | X76: 3.22 | Y76: 3 | Z76: 2.47 | AA76: 2 | AB76: 1 | AC76: 0 | AD76: 2.12 | AE76: 2
A77: 0068 | B77: Conway | C77: 0 | D77: 0 | E77: 0 | F77: 0 | G77: 0.53 | H77: 2.42 | I77: 7.68 | J77: 3.26 | K77: 7.86 | L77: 7.46 | M77: 10 | N77: 10 | O77: 8.56 | P77: 7.94 | Q77: 7.5 | R77: 6 | S77: 10.38 | T77: 2 | U77: 5.32 | V77: 8 | W77: 10.58 | X77: 12.81 | Y77: 7 | Z77: 6.27 | AA77: 7.2 | AB77: 6.43 | AC77: 5 | AD77: 7 | AE77: 3.81
A78: 0069 | B78: Cummington | C78: 0 | D78: 0 | E78: 0 | F78: 0 | G78: 0 | H78: 0 | I78: 0 | J78: 0 | K78: 0 | L78: 0 | M78: 0 | N78: 0 | O78: 0 | P78: 0 | Q78: 0 | R78: 0 | S78: 0 | T78: 0 | U78: 0 | V78: 0 | W78: 0 | X78: 0 | Y78: 0 | Z78: 0 | AA78: 0 | AB78: 0 | AC78: 0 | AD78: 0 | AE78: 0
A79: 0070 | B79: Dalton | C79: 0 | D79: 0 | E79: 0 | F79: 0 | G79: 0 | H79: 1 | I79: 0 | J79: 0 | K79: 0.22 | L79: 0 | M79: 1.8 | N79: 0.82 | O79: 0 | P79: 0 | Q79: 0 | R79: 0 | S79: 0 | T79: 0 | U79: 0 | V79: 0 | W79: 0 | X79: 0 | Y79: 0 | Z79: 0 | AA79: 0 | AB79: 0 | AC79: 0 | AD79: 1.46 | AE79: 2
A80: 0071 | B80: Danvers | C80: 16.43 | D80: 15.5 | E80: 12.85 | F80: 13.34 | G80: 11.21 | H80: 9.97 | I80: 12.09 | J80: 12 | K80: 14.39 | L80: 12 | M80: 14.74 | N80: 17.27 | O80: 23.38 | P80: 30.33 | Q80: 33.05 | R80: 22 | S80: 26.9 | T80: 30.74 | U80: 36.48 | V80: 43.55 | W80: 55.1 | X80: 46.15 | Y80: 42.1 | Z80: 54.29 | AA80: 52.24 | AB80: 45.2 | AC80: 52.01 | AD80: 51.71 | AE80: 57.36
A81: 0072 | B81: Dartmouth | C81: 0 | D81: 0 | E81: 0 | F81: 0.1 | G81: 1 | H81: 5 | I81: 6.54 | J81: 5 | K81: 3.03 | L81: 3.3 | M81: 4.49 | N81: 2 | O81: 1 | P81: 2 | Q81: 3 | R81: 1 | S81: 2.16 | T81: 1 | U81: 4.69 | V81: 3.7 | W81: 5.47 | X81: 9.43 | Y81: 15.58 | Z81: 20.34 | AA81: 31.55 | AB81: 36.55 | AC81: 48.98 | AD81: 56.085 | AE81: 53.6
A82: 0073 | B82: Dedham | C82: 0 | D82: 0 | E82: 0.69 | F82: 1 | G82: 2 | H82: 2.32 | I82: 0 | J82: 0 | K82: 0 | L82: 0.07 | M82: 0 | N82: 0 | O82: 0 | P82: 0 | Q82: 0 | R82: 0 | S82: 3 | T82: 3.33 | U82: 3.52 | V82: 2.66 | W82: 3.17 | X82: 4.27 | Y82: 3.26 | Z82: 3.82 | AA82: 6.13 | AB82: 4.84 | AC82: 5.8 | AD82: 11.64 | AE82: 9.68
A83: 0074 | B83: Deerfield | C83: 0 | D83: 0 | E83: 0.86 | F83: 1.67 | G83: 2.19 | H83: 7.5 | I83: 9 | J83: 9.63 | K83: 11.77 | L83: 14.92 | M83: 13.005 | N83: 15.33 | O83: 9.45 | P83: 9.96 | Q83: 12 | R83: 16 | S83: 12.37 | T83: 10.81 | U83: 10.78 | V83: 17.37 | W83: 22.41 | X83: 23.71 | Y83: 23.96 | Z83: 23.9 | AA83: 21.53 | AB83: 22.27 | AC83: 29.47 | AD83: 28.91 | AE83: 25.26
A84: 0075 | B84: Dennis | C84: 0 | D84: 0 | E84: 0 | F84: 0 | G84: 0 | H84: 0 | I84: 0 | J84: 0 | K84: 0 | L84: 0 | M84: 0 | N84: 0 | O84: 0 | P84: 0 | Q84: 0 | R84: 0 | S84: 0 | T84: 0 | U84: 0 | V84: 0 | W84: 0 | X84: 0 | Y84: 0 | Z84: 0 | AA84: 0 | AB84: 0 | AC84: 0 | AD84: 0 | AE84: 0
A85: 0076 | B85: Dighton | C85: 0 | D85: 0 | E85: 0 | F85: 0 | G85: 0 | H85: 0 | I85: 0 | J85: 0 | K85: 0 | L85: 0 | M85: 0 | N85: 0 | O85: 0 | P85: 0 | Q85: 0 | R85: 0 | S85: 0 | T85: 0 | U85: 0 | V85: 0 | W85: 0 | X85: 0 | Y85: 0 | Z85: 0 | AA85: 0 | AB85: 0 | AC85: 0 | AD85: 0 | AE85: 0
A86: 0077 | B86: Douglas | C86: 86.4 | D86: 110.87 | E86: 111.75 | F86: 108.95 | G86: 102.98 | H86: 94.1 | I86: 96.42 | J86: 91.2 | K86: 68.67 | L86: 68.91 | M86: 68.23 | N86: 50.545 | O86: 54.51 | P86: 41.49 | Q86: 40.37 | R86: 41.13 | S86: 42.25 | T86: 48.61 | U86: 57.95 | V86: 47.28 | W86: 47.12 | X86: 61.42 | Y86: 72.15 | Z86: 62.37 | AA86: 63.46 | AB86: 64.97 | AC86: 56.98 | AD86: 56.87 | AE86: 50.46
A87: 0078 | B87: Dover | C87: 0 | D87: 0 | E87: 0 | F87: 0 | G87: 0 | H87: 0 | I87: 0 | J87: 0 | K87: 0 | L87: 0 | M87: 0 | N87: 0 | O87: 0 | P87: 0 | Q87: 0 | R87: 0 | S87: 0 | T87: 0 | U87: 0 | V87: 0 | W87: 0 | X87: 0 | Y87: 0 | Z87: 0 | AA87: 0 | AB87: 0 | AC87: 0 | AD87: 0 | AE87: 0
A88: 0079 | B88: Dracut | C88: 26.55 | D88: 25 | E88: 18.84 | F88: 15.93 | G88: 11.51 | H88: 8.56 | I88: 12 | J88: 10.24 | K88: 9.4 | L88: 15.75 | M88: 15.94 | N88: 12.01 | O88: 10.94 | P88: 12.97 | Q88: 12 | R88: 15.23 | S88: 15.48 | T88: 18.02 | U88: 19.91 | V88: 18.77 | W88: 25.61 | X88: 37.73 | Y88: 45.89 | Z88: 48.76 | AA88: 41.67 | AB88: 35.61 | AC88: 32.77 | AD88: 43.84 | AE88: 44.18
A89: 0080 | B89: Dudley | C89: 0 | D89: 0 | E89: 0 | F89: 0 | G89: 0 | H89: 0 | I89: 0 | J89: 0 | K89: 0 | L89: 0 | M89: 0 | N89: 0 | O89: 0 | P89: 0 | Q89: 0 | R89: 0 | S89: 0 | T89: 0 | U89: 0 | V89: 0 | W89: 0 | X89: 0 | Y89: 0 | Z89: 0 | AA89: 0 | AB89: 0 | AC89: 0 | AD89: 0 | AE89: 0
A90: 0081 | B90: Dunstable | C90: 0 | D90: 0 | E90: 0 | F90: 0 | G90: 0 | H90: 0 | I90: 0 | J90: 0 | K90: 0 | L90: 0 | M90: 0 | N90: 0 | O90: 0 | P90: 0 | Q90: 0 | R90: 0 | S90: 0 | T90: 0 | U90: 0 | V90: 0 | W90: 0 | X90: 0 | Y90: 0 | Z90: 0 | AA90: 0 | AB90: 0 | AC90: 0 | AD90: 0 | AE90: 0
A91: 0082 | B91: Duxbury | C91: 0 | D91: 0 | E91: 0 | F91: 0 | G91: 0 | H91: 0 | I91: 0 | J91: 0 | K91: 0 | L91: 0 | M91: 0 | N91: 0 | O91: 0 | P91: 0.5 | Q91: 0 | R91: 0 | S91: 0.9 | T91: 1 | U91: 1 | V91: 0.71 | W91: 1.77 | X91: 2.51 | Y91: 4.79 | Z91: 2 | AA91: 5 | AB91: 8.87 | AC91: 5 | AD91: 3 | AE91: 4.81
A92: 0083 | B92: East Bridgewater | C92: 0 | D92: 0 | E92: 0.74 | F92: 1.69 | G92: 1 | H92: 1.68 | I92: 1 | J92: 0.46 | K92: 0 | L92: 1 | M92: 2.64 | N92: 6.84 | O92: 9.25 | P92: 15 | Q92: 17 | R92: 20.68 | S92: 22 | T92: 15.18 | U92: 17.15 | V92: 24.14 | W92: 19.68 | X92: 29.92 | Y92: 39.86 | Z92: 44.41 | AA92: 51.12 | AB92: 43.09 | AC92: 39.04 | AD92: 38.36 | AE92: 39.36
A93: 0084 | B93: East Brookfield | C93: 0 | D93: 0 | E93: 0 | F93: 0 | G93: 0 | H93: 0 | I93: 0 | J93: 1 | K93: 1 | L93: 1 | M93: 0 | N93: 0 | O93: 0 | P93: 0 | Q93: 2 | R93: 4 | S93: 4 | T93: 7 | U93: 6.65 | V93: 6 | W93: 5 | X93: 6 | Y93: 7 | Z93: 9 | AA93: 13 | AB93: 12 | AC93: 12 | AD93: 13 | AE93: 7.5
A94: 0085 | B94: Eastham | C94: 0 | D94: 2 | E94: 2.51 | F94: 3 | G94: 4 | H94: 2 | I94: 3 | J94: 3.07 | K94: 4.4 | L94: 10 | M94: 9.11 | N94: 8 | O94: 8.51 | P94: 6.63 | Q94: 8.32 | R94: 8.38 | S94: 7.09 | T94: 2.51 | U94: 6.51 | V94: 6.14 | W94: 7.91 | X94: 12.29 | Y94: 7 | Z94: 10.71 | AA94: 16.88 | AB94: 14.28 | AC94: 17.56 | AD94: 20 | AE94: 31.61
A95: 0086 | B95: Easthampton | C95: 3.19 | D95: 2.36 | E95: 20.5 | F95: 38.76 | G95: 61.55 | H95: 66.18 | I95: 101.88 | J95: 135.13 | K95: 179.39 | L95: 197.1 | M95: 200.01 | N95: 197.84 | O95: 179.84 | P95: 192.36 | Q95: 211.37 | R95: 197.35 | S95: 193.62 | T95: 188.88 | U95: 186.81 | V95: 188.71 | W95: 174.98 | X95: 158.8 | Y95: 143.28 | Z95: 154.34 | AA95: 154.06 | AB95: 146.02 | AC95: 141.66 | AD95: 126.81 | AE95: 119.11
A96: 0087 | B96: East Longmeadow | C96: 8.54 | D96: 9.76 | E96: 10.13 | F96: 6 | G96: 7.53 | H96: 5 | I96: 6 | J96: 6 | K96: 10 | L96: 8.02 | M96: 10.72 | N96: 7.56 | O96: 8 | P96: 4 | Q96: 9.58 | R96: 5 | S96: 9.73 | T96: 6.97 | U96: 4.75 | V96: 7 | W96: 9.97 | X96: 13.77 | Y96: 17.64 | Z96: 13.61 | AA96: 20.17 | AB96: 19.42 | AC96: 25.73 | AD96: 26.09 | AE96: 35.32
A97: 0088 | B97: Easton | C97: 0 | D97: 0 | E97: 0.75 | F97: 0 | G97: 1.56 | H97: 2 | I97: 3 | J97: 2.14 | K97: 4 | L97: 4 | M97: 2.46 | N97: 3 | O97: 3.56 | P97: 5.84 | Q97: 4.39 | R97: 6 | S97: 7.44 | T97: 6 | U97: 5.92 | V97: 8.66 | W97: 8.64 | X97: 10.24 | Y97: 14.82 | Z97: 20.89 | AA97: 23.29 | AB97: 22.04 | AC97: 23.5 | AD97: 30.66 | AE97: 30.65
A98: 0089 | B98: Edgartown | C98: 0 | D98: 0 | E98: 2 | F98: 2 | G98: 0 | H98: 7 | I98: 13 | J98: 27.02 | K98: 24.44 | L98: 34.31 | M98: 31.55 | N98: 29.81 | O98: 34.7 | P98: 35.99 | Q98: 46.13 | R98: 44.74 | S98: 45.83 | T98: 33.51 | U98: 36.02 | V98: 32.45 | W98: 33 | X98: 37.12 | Y98: 41.49 | Z98: 34.23 | AA98: 26.68 | AB98: 23.8 | AC98: 17.73 | AD98: 14.09 | AE98: 18.85
A99: 0090 | B99: Egremont | C99: 0 | D99: 0 | E99: 0 | F99: 0 | G99: 0 | H99: 0 | I99: 0 | J99: 0 | K99: 0 | L99: 0 | M99: 0 | N99: 0 | O99: 0 | P99: 0 | Q99: 0 | R99: 0 | S99: 0 | T99: 0 | U99: 0 | V99: 0 | W99: 0 | X99: 0 | Y99: 0 | Z99: 0 | AA99: 0 | AB99: 0 | AC99: 0 | AD99: 0 | AE99: 0
A100: 0091 | B100: Erving | C100: 0 | D100: 1 | E100: 1 | F100: 1 | G100: 2 | H100: 6.65 | I100: 8.09 | J100: 12.72 | K100: 17.05 | L100: 20.74 | M100: 22.62 | N100: 27.69 | O100: 26.58 | P100: 41.88 | Q100: 51.36 | R100: 48.91 | S100: 40.28 | T100: 44.72 | U100: 40.22 | V100: 40.01 | W100: 35.16 | X100: 41.29 | Y100: 41.37 | Z100: 30.4 | AA100: 23.88 | AB100: 29.31 | AC100: 28.34 | AD100: 24.64 | AE100: 22.41
A101: 0092 | B101: Essex | C101: 4.71 | D101: 28.5 | E101: 47.53 | F101: 60.48 | G101: 81.8 | H101: 0 | I101: 0 | J101: 0 | K101: 0 | L101: 0 | M101: 0 | N101: 0 | O101: 0 | P101: 0 | Q101: 0 | R101: 0 | S101: 0 | T101: 0 | U101: 0 | V101: 0 | W101: 0 | X101: 0 | Y101: 0 | Z101: 0 | AA101: 0 | AB101: 0 | AC101: 0 | AD101: 0 | AE101: 0
A102: 0093 | B102: Everett | C102: 0 | D102: 15.09 | E102: 16.86 | F102: 14 | G102: 9.36 | H102: 6.82 | I102: 6.27 | J102: 5.59 | K102: 8.94 | L102: 8.99 | M102: 11.22 | N102: 13.64 | O102: 12.11 | P102: 17 | Q102: 20.43 | R102: 15 | S102: 12.44 | T102: 9.92 | U102: 7.38 | V102: 16.31 | W102: 16.22 | X102: 19.44 | Y102: 15.52 | Z102: 9.11 | AA102: 15.29 | AB102: 22.32 | AC102: 31.25 | AD102: 32.43 | AE102: 24.07
A103: 0094 | B103: Fairhaven | C103: 0 | D103: 0 | E103: 0 | F103: 0 | G103: 0 | H103: 0 | I103: 0 | J103: 0 | K103: 0 | L103: 0 | M103: 0.49 | N103: 0.96 | O103: 0 | P103: 0 | Q103: 4 | R103: 5.63 | S103: 12.46 | T103: 14.75 | U103: 17.33 | V103: 10.75 | W103: 13.35 | X103: 13.48 | Y103: 18.8 | Z103: 26.57 | AA103: 36.25 | AB103: 42.88 | AC103: 48.33 | AD103: 44.42 | AE103: 43.69
A104: 0095 | B104: Fall River | C104: 1.5 | D104: 4.05 | E104: 4.4 | F104: 11.55 | G104: 15.75 | H104: 14.12 | I104: 17.19 | J104: 22.95 | K104: 26.09 | L104: 23.51 | M104: 21.65 | N104: 31.61 | O104: 22.84 | P104: 16.55 | Q104: 15.61 | R104: 13.19 | S104: 22.49 | T104: 27.05 | U104: 42.32 | V104: 78.23 | W104: 102.34 | X104: 110.67 | Y104: 131.63 | Z104: 166.55 | AA104: 176.34 | AB104: 163.22 | AC104: 173.39 | AD104: 192.75 | AE104: 208.1
A105: 0096 | B105: Falmouth | C105: 0.07 | D105: 1 | E105: 0 | F105: 1 | G105: 1 | H105: 1.7 | I105: 1 | J105: 3 | K105: 1 | L105: 5.03 | M105: 4.68 | N105: 8.59 | O105: 8.17 | P105: 8.71 | Q105: 16.05 | R105: 21.92 | S105: 37.12 | T105: 39.4 | U105: 35.31 | V105: 49.11 | W105: 40.19 | X105: 44.97 | Y105: 58.11 | Z105: 63.71 | AA105: 74.99 | AB105: 72.56 | AC105: 68.01 | AD105: 73.24 | AE105: 65.79
A106: 0097 | B106: Fitchburg | C106: 195.8066667 | D106: 214.83 | E106: 182.3 | F106: 183.27 | G106: 187.63 | H106: 163.41 | I106: 188.39 | J106: 254.06 | K106: 255.835 | L106: 246.94 | M106: 261.94 | N106: 279.785 | O106: 281.54 | P106: 285.1 | Q106: 339.64 | R106: 381.18 | S106: 396.48 | T106: 425.83 | U106: 416.62 | V106: 420.35 | W106: 430.61 | X106: 441.85 | Y106: 408.79 | Z106: 382.02 | AA106: 387.95 | AB106: 383.65 | AC106: 371.6 | AD106: 365.08 | AE106: 354.96
A107: 0098 | B107: Florida | C107: 0 | D107: 0 | E107: 0 | F107: 1 | G107: 1 | H107: 1 | I107: 0.12 | J107: 1 | K107: 3 | L107: 3.67 | M107: 3 | N107: 4.18 | O107: 5.17 | P107: 5.91 | Q107: 2.41 | R107: 2 | S107: 1 | T107: 0 | U107: 3.49 | V107: 4 | W107: 7 | X107: 5.99 | Y107: 7.58 | Z107: 8.1 | AA107: 9.49 | AB107: 5 | AC107: 3 | AD107: 6.36 | AE107: 4.62
A108: 0099 | B108: Foxborough | C108: 0 | D108: 0 | E108: 2.3 | F108: 0 | G108: 0.62 | H108: 0.4 | I108: 0.96 | J108: 0 | K108: 0.46 | L108: 0 | M108: 1 | N108: 1.4 | O108: 0 | P108: 0.07 | Q108: 0 | R108: 0 | S108: 0 | T108: 1 | U108: 0 | V108: 0.17 | W108: 4.7 | X108: 3.55 | Y108: 5.11 | Z108: 4.78 | AA108: 8.52 | AB108: 11.03 | AC108: 22.11 | AD108: 23.63 | AE108: 24.14
A109: 0100 | B109: Framingham | C109: 59.75 | D109: 56.09 | E109: 52.97 | F109: 61.34 | G109: 55.62 | H109: 43.59 | I109: 32.7 | J109: 25.78 | K109: 22.55 | L109: 16.35 | M109: 19.41 | N109: 16.94 | O109: 18.76 | P109: 25.98 | Q109: 20.51 | R109: 29.08 | S109: 35.39 | T109: 36.3 | U109: 40.14 | V109: 45.33 | W109: 54.69 | X109: 56.06 | Y109: 67.77 | Z109: 83.47 | AA109: 78.93 | AB109: 84.96 | AC109: 84.42 | AD109: 86.35 | AE109: 60.9
A110: 0101 | B110: Franklin | C110: 15.4 | D110: 19.53 | E110: 26.7 | F110: 33.92 | G110: 40.78 | H110: 38.15 | I110: 36.26 | J110: 32.11 | K110: 30.04 | L110: 30.38 | M110: 27.26 | N110: 25.68 | O110: 29.37 | P110: 31.03 | Q110: 27.51 | R110: 29.5 | S110: 30.13 | T110: 34.53 | U110: 23.92 | V110: 29 | W110: 34.29 | X110: 35.29 | Y110: 45.38 | Z110: 50.06 | AA110: 42.87 | AB110: 42.24 | AC110: 55.93 | AD110: 49.69 | AE110: 58.03
A111: 0102 | B111: Freetown | C111: 0 | D111: 3 | E111: 0 | F111: 0 | G111: 0 | H111: 2 | I111: 3 | J111: 1.2 | K111: 1.31 | L111: 1 | M111: 0 | N111: 0.62 | O111: 0 | P111: 1 | Q111: 3.5 | R111: 5.72 | S111: 0 | T111: 0 | U111: 0 | V111: 0 | W111: 2 | X111: 2 | Y111: 2 | Z111: 2 | AA111: 1 | AB111: 1 | AC111: 0.48 | AD111: 2 | AE111: 2
A112: 0103 | B112: Gardner | C112: 21.48 | D112: 22.54 | E112: 23.74 | F112: 37.08 | G112: 47.17 | H112: 63.12 | I112: 72.1 | J112: 87.565 | K112: 86.2 | L112: 89.1 | M112: 91.835 | N112: 102.98 | O112: 104.965 | P112: 119.23 | Q112: 115.5 | R112: 109.44 | S112: 122.22 | T112: 143.41 | U112: 158.24 | V112: 188.68 | W112: 252.4 | X112: 282.87 | Y112: 300.76 | Z112: 292.99 | AA112: 244.79 | AB112: 220.49 | AC112: 210.33 | AD112: 190.14 | AE112: 166.21
A113: 0104 | B113: Aquinnah | C113: 0 | D113: 0 | E113: 0 | F113: 0 | G113: 0 | H113: 0 | I113: 0 | J113: 0 | K113: 0 | L113: 0 | M113: 0 | N113: 0 | O113: 0 | P113: 0 | Q113: 0 | R113: 0 | S113: 0 | T113: 0 | U113: 0 | V113: 0 | W113: 0 | X113: 0 | Y113: 0 | Z113: 0 | AA113: 0 | AB113: 0 | AC113: 0 | AD113: 0 | AE113: 0
A114: 0105 | B114: Georgetown | C114: 44.08 | D114: 47.16 | E114: 39.59 | F114: 33.7 | G114: 31.38 | H114: 36 | I114: 38.48 | J114: 31.01 | K114: 28.46 | L114: 26.57 | M114: 28.95 | N114: 28.53 | O114: 33.62 | P114: 23.12 | Q114: 28.525 | R114: 25.03 | S114: 30.56 | T114: 22.1 | U114: 26.93 | V114: 24.11 | W114: 23.87 | X114: 21.54 | Y114: 20 | Z114: 21.32 | AA114: 26.34 | AB114: 23.26 | AC114: 22.38 | AD114: 23.25 | AE114: 23.43
A115: 0106 | B115: Gill | C115: 0 | D115: 0 | E115: 0 | F115: 0 | G115: 0 | H115: 0 | I115: 0 | J115: 0 | K115: 0 | L115: 0 | M115: 0 | N115: 0 | O115: 0 | P115: 0 | Q115: 0 | R115: 0 | S115: 0 | T115: 0 | U115: 0 | V115: 0 | W115: 0 | X115: 0 | Y115: 0 | Z115: 0 | AA115: 0 | AB115: 0 | AC115: 0 | AD115: 0 | AE115: 0
A116: 0107 | B116: Gloucester | C116: 116.35 | D116: 119.69 | E116: 127.26 | F116: 119.46 | G116: 129.09 | H116: 120.16 | I116: 118.27 | J116: 128.43 | K116: 136.42 | L116: 154.4 | M116: 180.645 | N116: 192.64 | O116: 215.01 | P116: 205.14 | Q116: 210.37 | R116: 231.93 | S116: 240 | T116: 260.07 | U116: 291.74 | V116: 302.96 | W116: 312.14 | X116: 297.67 | Y116: 305.01 | Z116: 290.6 | AA116: 288.47 | AB116: 275.01 | AC116: 256.48 | AD116: 259.83 | AE116: 238.86
A117: 0108 | B117: Goshen | C117: 0 | D117: 0 | E117: 0 | F117: 0 | G117: 0 | H117: 0 | I117: 0 | J117: 0 | K117: 0 | L117: 0 | M117: 0 | N117: 0 | O117: 0 | P117: 0 | Q117: 0 | R117: 0 | S117: 0 | T117: 0 | U117: 0 | V117: 0 | W117: 0 | X117: 0 | Y117: 0 | Z117: 0 | AA117: 0 | AB117: 0 | AC117: 0 | AD117: 0 | AE117: 0
A118: 0109 | B118: Gosnold | C118: 0 | D118: 0 | E118: 0 | F118: 0 | G118: 0 | H118: 0 | I118: 0 | J118: 0 | K118: 0 | L118: 0 | M118: 0 | N118: 0 | O118: 0 | P118: 0 | Q118: 0 | R118: 0 | S118: 0 | T118: 0 | U118: 0 | V118: 0 | W118: 0 | X118: 0 | Y118: 0 | Z118: 0 | AA118: 0 | AB118: 0 | AC118: 0 | AD118: 0 | AE118: 0
A119: 0110 | B119: Grafton | C119: 13.15 | D119: 14.15 | E119: 19.88 | F119: 26.59 | G119: 17.43 | H119: 16.25 | I119: 19.67 | J119: 22.26 | K119: 21.14 | L119: 18.55 | M119: 12.97 | N119: 13.14 | O119: 17.43 | P119: 23.74 | Q119: 16.47 | R119: 26.17 | S119: 36.62 | T119: 20.58 | U119: 20.37 | V119: 27.93 | W119: 37.1 | X119: 42.25 | Y119: 39.77 | Z119: 37 | AA119: 30.62 | AB119: 42.92 | AC119: 42.37 | AD119: 29.99 | AE119: 34.19
A120: 0111 | B120: Granby | C120: 0 | D120: 1.01 | E120: 0.13 | F120: 0 | G120: 4 | H120: 3.7 | I120: 4.21 | J120: 10.16 | K120: 19.45 | L120: 19 | M120: 27.9 | N120: 31.49 | O120: 30 | P120: 32.44 | Q120: 27.89 | R120: 26.26 | S120: 32.01 | T120: 35.82 | U120: 38.58 | V120: 48.63 | W120: 52.09 | X120: 61.88 | Y120: 66.31 | Z120: 66.28 | AA120: 62.8 | AB120: 58.36 | AC120: 50.94 | AD120: 42.99 | AE120: 44.55
A121: 0112 | B121: Granville | C121: 1.99 | D121: 2 | E121: 4.78 | F121: 2.47 | G121: 1 | H121: 1 | I121: 0 | J121: 0.78 | K121: 2.39 | L121: 5.45 | M121: 4.38 | N121: 7.8 | O121: 9.47 | P121: 14 | Q121: 15 | R121: 20.32 | S121: 21.5 | T121: 0 | U121: 0 | V121: 0 | W121: 0 | X121: 0 | Y121: 0 | Z121: 0 | AA121: 0 | AB121: 0 | AC121: 0 | AD121: 0 | AE121: 0
A122: 0113 | B122: Great Barrington | C122: 0 | D122: 0 | E122: 0 | F122: 0 | G122: 0 | H122: 0 | I122: 0 | J122: 0 | K122: 0 | L122: 0 | M122: 0 | N122: 0 | O122: 0 | P122: 0 | Q122: 0 | R122: 0 | S122: 0 | T122: 0 | U122: 0 | V122: 0 | W122: 0 | X122: 0 | Y122: 0 | Z122: 0 | AA122: 0 | AB122: 0 | AC122: 0 | AD122: 0 | AE122: 0
A123: 0114 | B123: Greenfield | C123: 0 | D123: 7 | E123: 14.4 | F123: 14.76 | G123: 42.93 | H123: 67.12 | I123: 103.28 | J123: 126.81 | K123: 162.79 | L123: 201.29 | M123: 222.63 | N123: 249.12 | O123: 256.3 | P123: 339.51 | Q123: 380.53 | R123: 357.44 | S123: 341.54 | T123: 338.89 | U123: 333.7 | V123: 331.95 | W123: 323.16 | X123: 330.07 | Y123: 356.81 | Z123: 306.84 | AA123: 296.02 | AB123: 271.11 | AC123: 267.06 | AD123: 318.12 | AE123: 321.65
A124: 0115 | B124: Groton | C124: 0 | D124: 0 | E124: 0 | F124: 0 | G124: 0 | H124: 0 | I124: 0 | J124: 0 | K124: 0 | L124: 0 | M124: 0 | N124: 0 | O124: 0 | P124: 0 | Q124: 0 | R124: 0 | S124: 0 | T124: 0 | U124: 0 | V124: 0 | W124: 0 | X124: 0 | Y124: 0 | Z124: 0 | AA124: 0 | AB124: 0 | AC124: 0 | AD124: 0 | AE124: 0
A125: 0116 | B125: Groveland | C125: 0 | D125: 0 | E125: 0 | F125: 0 | G125: 0 | H125: 0 | I125: 0 | J125: 0 | K125: 0 | L125: 0 | M125: 0 | N125: 0 | O125: 0 | P125: 0 | Q125: 0 | R125: 0 | S125: 0 | T125: 0 | U125: 0 | V125: 0 | W125: 0 | X125: 0 | Y125: 0 | Z125: 0 | AA125: 0 | AB125: 0 | AC125: 0 | AD125: 0 | AE125: 0
A126: 0117 | B126: Hadley | C126: 0 | D126: 0 | E126: 2 | F126: 3.3 | G126: 18.58 | H126: 24 | I126: 30.49 | J126: 29.61 | K126: 32.89 | L126: 24.42 | M126: 21.38 | N126: 32.39 | O126: 26.92 | P126: 31.34 | Q126: 36.3 | R126: 30.07 | S126: 47.03 | T126: 61.47 | U126: 58.52 | V126: 58.58 | W126: 47.48 | X126: 46.79 | Y126: 57.01 | Z126: 61.03 | AA126: 48.37 | AB126: 45.24 | AC126: 43.81 | AD126: 42.37 | AE126: 45.19
A127: 0118 | B127: Halifax | C127: 0 | D127: 0 | E127: 0 | F127: 0 | G127: 0 | H127: 0 | I127: 0 | J127: 0 | K127: 0 | L127: 0 | M127: 0 | N127: 0 | O127: 1 | P127: 3.16 | Q127: 3 | R127: 2 | S127: 1 | T127: 1 | U127: 1 | V127: 1 | W127: 1 | X127: 1 | Y127: 3 | Z127: 6 | AA127: 7 | AB127: 5 | AC127: 3 | AD127: 1 | AE127: 0
A128: 0119 | B128: Hamilton | C128: 0 | D128: 0 | E128: 0 | F128: 0 | G128: 0 | H128: 0 | I128: 0 | J128: 0 | K128: 0 | L128: 0 | M128: 0 | N128: 0 | O128: 0 | P128: 0 | Q128: 0 | R128: 0 | S128: 0 | T128: 0 | U128: 0 | V128: 0 | W128: 0 | X128: 0 | Y128: 0 | Z128: 0 | AA128: 0 | AB128: 0 | AC128: 0 | AD128: 0 | AE128: 0
A129: 0120 | B129: Hampden | C129: 0 | D129: 0 | E129: 0 | F129: 0 | G129: 0 | H129: 0 | I129: 0 | J129: 0 | K129: 0 | L129: 0 | M129: 0 | N129: 0 | O129: 0 | P129: 0 | Q129: 0 | R129: 0 | S129: 0 | T129: 0 | U129: 0 | V129: 0 | W129: 0 | X129: 0 | Y129: 0 | Z129: 0 | AA129: 0 | AB129: 0 | AC129: 0 | AD129: 0 | AE129: 0
A130: 0121 | B130: Hancock | C130: 1.79 | D130: 6 | E130: 2.66 | F130: 5 | G130: 6 | H130: 10 | I130: 11.77 | J130: 12.23 | K130: 19.09 | L130: 19 | M130: 20.74 | N130: 14.17 | O130: 18 | P130: 16 | Q130: 15.72 | R130: 9.67 | S130: 9 | T130: 14.55 | U130: 9.65 | V130: 11 | W130: 4.69 | X130: 4 | Y130: 8 | Z130: 8.27 | AA130: 6 | AB130: 2 | AC130: 3 | AD130: 2 | AE130: 1.68
A131: 0122 | B131: Hanover | C131: 0 | D131: 0 | E131: 0 | F131: 0 | G131: 0 | H131: 1 | I131: 0.48 | J131: 0 | K131: 0.88 | L131: 2 | M131: 2 | N131: 2 | O131: 2.48 | P131: 2 | Q131: 1 | R131: 1 | S131: 0 | T131: 0 | U131: 1 | V131: 0 | W131: 2.74 | X131: 5.38 | Y131: 7.76 | Z131: 12.01 | AA131: 10.48 | AB131: 9.52 | AC131: 9.76 | AD131: 7.37 | AE131: 10.44
A132: 0123 | B132: Hanson | C132: 0 | D132: 0 | E132: 0 | F132: 0 | G132: 0 | H132: 0 | I132: 0 | J132: 0 | K132: 0 | L132: 0 | M132: 0 | N132: 0 | O132: 0 | P132: 0 | Q132: 0 | R132: 0 | S132: 0 | T132: 0 | U132: 0 | V132: 0 | W132: 0 | X132: 0 | Y132: 0 | Z132: 0 | AA132: 0 | AB132: 0 | AC132: 0 | AD132: 0 | AE132: 0
A133: 0124 | B133: Hardwick | C133: 0 | D133: 0 | E133: 0 | F133: 0 | G133: 0 | H133: 0 | I133: 0 | J133: 0 | K133: 0 | L133: 0 | M133: 0 | N133: 0 | O133: 0 | P133: 0 | Q133: 0 | R133: 0 | S133: 0 | T133: 0 | U133: 0 | V133: 0 | W133: 0 | X133: 0 | Y133: 0 | Z133: 0 | AA133: 0 | AB133: 0 | AC133: 0 | AD133: 0 | AE133: 0
A134: 0125 | B134: Harvard | C134: 22.01 | D134: 17.66 | E134: 20.57 | F134: 13.68 | G134: 11.23 | H134: 9.77 | I134: 6.84 | J134: 6.12 | K134: 4.01 | L134: 4 | M134: 9 | N134: 11.04 | O134: 9.48 | P134: 8 | Q134: 8.98 | R134: 10.55 | S134: 9.02 | T134: 8.93 | U134: 5.3 | V134: 5 | W134: 3 | X134: 2 | Y134: 0 | Z134: 4.37 | AA134: 5 | AB134: 2.46 | AC134: 2 | AD134: 2 | AE134: 2.63
A135: 0126 | B135: Harwich | C135: 15.44 | D135: 19.51 | E135: 33.32 | F135: 52.89 | G135: 59.16 | H135: 80.31 | I135: 87.54 | J135: 99.63 | K135: 114.16 | L135: 122.43 | M135: 145.17 | N135: 148.89 | O135: 176.63 | P135: 180.38 | Q135: 175.96 | R135: 193.83 | S135: 206.72 | T135: 0 | U135: 0 | V135: 0 | W135: 0 | X135: 0 | Y135: 0 | Z135: 0 | AA135: 0 | AB135: 0 | AC135: 0 | AD135: 0 | AE135: 0
A136: 0127 | B136: Hatfield | C136: 0 | D136: 0 | E136: 1 | F136: 0 | G136: 8.55 | H136: 10.64 | I136: 14.97 | J136: 29.23 | K136: 23.81 | L136: 27.87 | M136: 25.42 | N136: 32.24 | O136: 35.22 | P136: 44.24 | Q136: 45.24 | R136: 35.19 | S136: 33.39 | T136: 42.92 | U136: 37.69 | V136: 28.32 | W136: 30.78 | X136: 35.86 | Y136: 31.44 | Z136: 35.27 | AA136: 35.65 | AB136: 33.22 | AC136: 33.41 | AD136: 38.58 | AE136: 37.37
A137: 0128 | B137: Haverhill | C137: 142.3988889 | D137: 133.84 | E137: 126.63 | F137: 106.87 | G137: 100.06 | H137: 109.38 | I137: 101.91 | J137: 111.98 | K137: 134.615 | L137: 159.535 | M137: 154.21 | N137: 143.06 | O137: 155.08 | P137: 169.73 | Q137: 194.13 | R137: 211.875 | S137: 216.13 | T137: 233.78 | U137: 216.11 | V137: 210.38 | W137: 189.82 | X137: 180.64 | Y137: 162.97 | Z137: 151.91 | AA137: 142.84 | AB137: 131.81 | AC137: 125.4 | AD137: 125.45 | AE137: 134.53
A138: 0129 | B138: Hawley | C138: 0 | D138: 0 | E138: 0 | F138: 0 | G138: 0 | H138: 0 | I138: 0 | J138: 0 | K138: 0 | L138: 0 | M138: 0 | N138: 0 | O138: 0 | P138: 0 | Q138: 0 | R138: 0 | S138: 0 | T138: 0 | U138: 0 | V138: 0 | W138: 0 | X138: 0 | Y138: 0 | Z138: 0 | AA138: 0 | AB138: 0 | AC138: 0 | AD138: 0 | AE138: 0
A139: 0130 | B139: Heath | C139: 0 | D139: 0 | E139: 0 | F139: 0 | G139: 0 | H139: 0 | I139: 0 | J139: 0 | K139: 0 | L139: 0 | M139: 0 | N139: 0 | O139: 0 | P139: 0 | Q139: 0 | R139: 0 | S139: 0 | T139: 0 | U139: 0 | V139: 0 | W139: 0 | X139: 0 | Y139: 0 | Z139: 0 | AA139: 0 | AB139: 0 | AC139: 0 | AD139: 0 | AE139: 0
A140: 0131 | B140: Hingham | C140: 0 | D140: 0 | E140: 0 | F140: 0 | G140: 0 | H140: 0 | I140: 0 | J140: 0 | K140: 0 | L140: 0 | M140: 0 | N140: 0 | O140: 0 | P140: 0 | Q140: 0 | R140: 0 | S140: 0 | T140: 1 | U140: 0.72 | V140: 0 | W140: 3.48 | X140: 4.7 | Y140: 4.73 | Z140: 4.86 | AA140: 2.55 | AB140: 3.95 | AC140: 3.26 | AD140: 4.69 | AE140: 5.49
A141: 0132 | B141: Hinsdale | C141: 0 | D141: 0 | E141: 0 | F141: 0 | G141: 0 | H141: 0 | I141: 0 | J141: 0 | K141: 0 | L141: 0 | M141: 0 | N141: 0 | O141: 0 | P141: 0 | Q141: 0 | R141: 0 | S141: 0 | T141: 1 | U141: 0 | V141: 0 | W141: 0 | X141: 0 | Y141: 0 | Z141: 0 | AA141: 0 | AB141: 0 | AC141: 0.64 | AD141: 0 | AE141: 0
A142: 0133 | B142: Holbrook | C142: 7 | D142: 5 | E142: 5 | F142: 4 | G142: 6.69 | H142: 6.12 | I142: 2.03 | J142: 1 | K142: 3.41 | L142: 3 | M142: 3.5 | N142: 6.42 | O142: 5 | P142: 5 | Q142: 7.23 | R142: 8.83 | S142: 10.24 | T142: 9 | U142: 9.9 | V142: 16.6 | W142: 17.5 | X142: 15.55 | Y142: 13.16 | Z142: 10.84 | AA142: 12.64 | AB142: 14.02 | AC142: 19.39 | AD142: 20.63 | AE142: 17.89
A143: 0134 | B143: Holden | C143: 0 | D143: 0 | E143: 0 | F143: 0 | G143: 0 | H143: 0 | I143: 0 | J143: 0 | K143: 0 | L143: 0 | M143: 0 | N143: 0 | O143: 0 | P143: 0 | Q143: 0 | R143: 0 | S143: 0 | T143: 0 | U143: 0 | V143: 0 | W143: 0 | X143: 0 | Y143: 0 | Z143: 0 | AA143: 0 | AB143: 0 | AC143: 0 | AD143: 0 | AE143: 0
A144: 0135 | B144: Holland | C144: 0 | D144: 0 | E144: 0 | F144: 0.96 | G144: 1 | H144: 2.3 | I144: 1.83 | J144: 0 | K144: 0.225 | L144: 0.82 | M144: 2.46 | N144: 1.59 | O144: 1 | P144: 2 | Q144: 2 | R144: 2.69 | S144: 3.31 | T144: 3 | U144: 1 | V144: 1 | W144: 2.52 | X144: 0 | Y144: 3.99 | Z144: 3.64 | AA144: 0 | AB144: 2.54 | AC144: 1 | AD144: 6.04 | AE144: 3
A145: 0136 | B145: Holliston | C145: 9.49 | D145: 16.46 | E145: 12.45 | F145: 17.33 | G145: 10.34 | H145: 6.51 | I145: 6 | J145: 6.25 | K145: 10.31 | L145: 5.42 | M145: 4.075 | N145: 8.29 | O145: 3.34 | P145: 4.08 | Q145: 6.62 | R145: 4.77 | S145: 9.43 | T145: 7.2 | U145: 4.82 | V145: 8.57 | W145: 14.33 | X145: 13.25 | Y145: 19.52 | Z145: 26.09 | AA145: 21.43 | AB145: 30.93 | AC145: 33.47 | AD145: 25.68 | AE145: 26.51
A146: 0137 | B146: Holyoke | C146: 4.62 | D146: 8.78 | E146: 13.59 | F146: 20.23 | G146: 24.81 | H146: 30.46 | I146: 64.46 | J146: 104.72 | K146: 147.07 | L146: 203.1 | M146: 207.67 | N146: 217.12 | O146: 219.44 | P146: 226.64 | Q146: 219.72 | R146: 258.9 | S146: 259.55 | T146: 291.42 | U146: 311.62 | V146: 334.25 | W146: 337.02 | X146: 373.3 | Y146: 389.5 | Z146: 424.39 | AA146: 432.61 | AB146: 423.91 | AC146: 445.03 | AD146: 421.57 | AE146: 419.9
A147: 0138 | B147: Hopedale | C147: 49.71 | D147: 44.82 | E147: 54.64 | F147: 74.99 | G147: 99.42 | H147: 93.29 | I147: 98.7 | J147: 87.22 | K147: 86.745 | L147: 84.51 | M147: 74.76 | N147: 59.03 | O147: 60.735 | P147: 56.32 | Q147: 41.38 | R147: 47.42 | S147: 47.42 | T147: 41.88 | U147: 44.97 | V147: 49.21 | W147: 48.56 | X147: 47.05 | Y147: 47.66 | Z147: 49.66 | AA147: 53.2 | AB147: 36.09 | AC147: 27.31 | AD147: 25 | AE147: 19.83
A148: 0139 | B148: Hopkinton | C148: 77.51 | D148: 75.98 | E148: 57.33 | F148: 44.62 | G148: 38 | H148: 30.68 | I148: 21.44 | J148: 17.06 | K148: 10.885 | L148: 8.99 | M148: 4.5 | N148: 7.51 | O148: 8.77 | P148: 12.21 | Q148: 13.19 | R148: 16.12 | S148: 13.13 | T148: 14.42 | U148: 17.74 | V148: 15.46 | W148: 18.37 | X148: 16.04 | Y148: 14.56 | Z148: 21.34 | AA148: 21.29 | AB148: 14.88 | AC148: 19.17 | AD148: 14.43 | AE148: 15.39
A149: 0140 | B149: Hubbardston | C149: 0 | D149: 0 | E149: 0 | F149: 0 | G149: 0 | H149: 0 | I149: 0 | J149: 0 | K149: 0 | L149: 0 | M149: 0 | N149: 0 | O149: 0 | P149: 0 | Q149: 0 | R149: 0 | S149: 0 | T149: 0 | U149: 0 | V149: 0 | W149: 0 | X149: 0 | Y149: 0 | Z149: 0 | AA149: 0 | AB149: 0 | AC149: 0 | AD149: 0 | AE149: 0
A150: 0141 | B150: Hudson | C150: 103.83 | D150: 96.6 | E150: 77.93 | F150: 61.59 | G150: 50.52 | H150: 33.69 | I150: 24.27 | J150: 13.72 | K150: 14.92 | L150: 14.92 | M150: 11.67 | N150: 13.97 | O150: 16.55 | P150: 14.78 | Q150: 16.53 | R150: 19.89 | S150: 22.29 | T150: 29.08 | U150: 22.89 | V150: 19 | W150: 21.26 | X150: 19.89 | Y150: 19.64 | Z150: 20.05 | AA150: 20.52 | AB150: 18.27 | AC150: 22.58 | AD150: 19.1 | AE150: 20.17
A151: 0142 | B151: Hull | C151: 0 | D151: 0 | E151: 0 | F151: 0 | G151: 0 | H151: 0 | I151: 0 | J151: 0 | K151: 0 | L151: 0 | M151: 0 | N151: 0 | O151: 0 | P151: 0 | Q151: 0 | R151: 0 | S151: 1.53 | T151: 1 | U151: 2.1 | V151: 4.5 | W151: 6 | X151: 3.67 | Y151: 4.09 | Z151: 3.31 | AA151: 2.85 | AB151: 4 | AC151: 3 | AD151: 2.74 | AE151: 3.01
A152: 0143 | B152: Huntington | C152: 0 | D152: 0 | E152: 0 | F152: 0 | G152: 0 | H152: 0 | I152: 0 | J152: 0 | K152: 0 | L152: 0 | M152: 0 | N152: 0 | O152: 0 | P152: 0 | Q152: 0 | R152: 0 | S152: 0 | T152: 0 | U152: 0 | V152: 0 | W152: 0 | X152: 0 | Y152: 0 | Z152: 0 | AA152: 0 | AB152: 0 | AC152: 0 | AD152: 0 | AE152: 0
A153: 0144 | B153: Ipswich | C153: 40.62666667 | D153: 38.4 | E153: 35.09 | F153: 44.07 | G153: 32.91 | H153: 30.51 | I153: 20.38 | J153: 27.51 | K153: 14.48 | L153: 16.16 | M153: 16.61 | N153: 12.16 | O153: 11.72 | P153: 6 | Q153: 3.68 | R153: 2.55 | S153: 11 | T153: 21.32 | U153: 19.88 | V153: 20.1 | W153: 16.66 | X153: 21.06 | Y153: 12.06 | Z153: 14.05 | AA153: 17.82 | AB153: 21.63 | AC153: 17.98 | AD153: 14.61 | AE153: 16.91
A154: 0145 | B154: Kingston | C154: 0 | D154: 0 | E154: 1 | F154: 1 | G154: 1 | H154: 1 | I154: 0 | J154: 0 | K154: 0 | L154: 0 | M154: 0 | N154: 0 | O154: 0 | P154: 0 | Q154: 0 | R154: 0 | S154: 0 | T154: 0 | U154: 0 | V154: 0 | W154: 0 | X154: 1.29 | Y154: 4 | Z154: 3 | AA154: 4.8 | AB154: 7.72 | AC154: 7.13 | AD154: 6.16 | AE154: 5
A155: 0146 | B155: Lakeville | C155: 0 | D155: 0.48 | E155: 2.34 | F155: 0.72 | G155: 0.52 | H155: 0.59 | I155: 0 | J155: 0.62 | K155: 1 | L155: 2 | M155: 1.84 | N155: 1 | O155: 0 | P155: 0.41 | Q155: 1.41 | R155: 0 | S155: 0 | T155: 0 | U155: 0 | V155: 0 | W155: 0 | X155: 0 | Y155: 0 | Z155: 0 | AA155: 0 | AB155: 0 | AC155: 0 | AD155: 0 | AE155: 0
A156: 0147 | B156: Lancaster | C156: 0 | D156: 0 | E156: 0 | F156: 0 | G156: 0 | H156: 0 | I156: 0 | J156: 0 | K156: 0 | L156: 0 | M156: 0 | N156: 0 | O156: 0 | P156: 0 | Q156: 0 | R156: 0 | S156: 0 | T156: 0 | U156: 0 | V156: 0 | W156: 0 | X156: 0 | Y156: 0 | Z156: 0 | AA156: 0 | AB156: 0 | AC156: 0 | AD156: 0 | AE156: 0
A157: 0148 | B157: Lanesborough | C157: 3 | D157: 3 | E157: 5.5 | F157: 7 | G157: 7 | H157: 8.38 | I157: 4 | J157: 8.4 | K157: 5.39 | L157: 5.74 | M157: 5.54 | N157: 17 | O157: 15.41 | P157: 14.73 | Q157: 11.57 | R157: 15.08 | S157: 18.34 | T157: 22.91 | U157: 21.21 | V157: 21.28 | W157: 24.09 | X157: 22.18 | Y157: 19.04 | Z157: 0 | AA157: 0 | AB157: 0 | AC157: 0 | AD157: 0 | AE157: 0
A158: 0149 | B158: Lawrence | C158: 79.55 | D158: 92.84 | E158: 99.59 | F158: 94.75 | G158: 108.49 | H158: 135.13 | I158: 132.54 | J158: 120.1 | K158: 123.03 | L158: 97.93 | M158: 81.63 | N158: 74.955 | O158: 84.07 | P158: 79.89 | Q158: 81.57 | R158: 68.72 | S158: 66.35 | T158: 53.59 | U158: 48.82 | V158: 54.8 | W158: 65.93 | X158: 67.4 | Y158: 49.7 | Z158: 64.79 | AA158: 64.9 | AB158: 63.58 | AC158: 77.15 | AD158: 75.98 | AE158: 80.73
A159: 0150 | B159: Lee | C159: 41.29 | D159: 47.01 | E159: 59.58 | F159: 74.87 | G159: 70.82 | H159: 76.56 | I159: 72.07 | J159: 67.86 | K159: 63.14 | L159: 69.63 | M159: 76.41 | N159: 79.52 | O159: 72.1 | P159: 68.45 | Q159: 74.55 | R159: 71.23 | S159: 76.81 | T159: 81.07 | U159: 90.42 | V159: 89.71 | W159: 98.38 | X159: 106.42 | Y159: 102.82 | Z159: 109.85 | AA159: 109.29 | AB159: 104.67 | AC159: 105.37 | AD159: 108.64 | AE159: 92.02
A160: 0151 | B160: Leicester | C160: 0 | D160: 0.88 | E160: 1 | F160: 1.5 | G160: 0 | H160: 5.9 | I160: 9.17 | J160: 7.19 | K160: 15.73 | L160: 12.06 | M160: 11.81 | N160: 24.64 | O160: 29.08 | P160: 31.27 | Q160: 27.05 | R160: 23.6 | S160: 25.29 | T160: 35.68 | U160: 30.39 | V160: 31.23 | W160: 35.34 | X160: 51.58 | Y160: 47.61 | Z160: 43.8 | AA160: 40.99 | AB160: 37.07 | AC160: 42 | AD160: 60.04 | AE160: 64.77
A161: 0152 | B161: Lenox | C161: 17.75 | D161: 22.63 | E161: 22.45 | F161: 23.19 | G161: 22.32 | H161: 21.74 | I161: 29.04 | J161: 34.09 | K161: 40.37 | L161: 35.48 | M161: 37.49 | N161: 39.32 | O161: 38.12 | P161: 40.8 | Q161: 42.93 | R161: 39.7 | S161: 41.74 | T161: 44.42 | U161: 53.79 | V161: 51.5 | W161: 47.02 | X161: 37.39 | Y161: 29.18 | Z161: 30.89 | AA161: 34.03 | AB161: 39.26 | AC161: 33.46 | AD161: 34.7 | AE161: 25.83
A162: 0153 | B162: Leominster | C162: 174.77 | D162: 216.16 | E162: 257.99 | F162: 281.48 | G162: 265.42 | H162: 267.78 | I162: 284.99 | J162: 245.69 | K162: 212.05 | L162: 208.625 | M162: 188.91 | N162: 204.55 | O162: 210.67 | P162: 240.535 | Q162: 246.705 | R162: 314.86 | S162: 338.91 | T162: 350.84 | U162: 341.8 | V162: 334.88 | W162: 323.7 | X162: 286.68 | Y162: 268.33 | Z162: 266.24 | AA162: 249.12 | AB162: 224.09 | AC162: 211.7 | AD162: 218.18 | AE162: 192.09
A163: 0154 | B163: Leverett | C163: 0 | D163: 0 | E163: 0 | F163: 0 | G163: 0.81 | H163: 0 | I163: 0 | J163: 0 | K163: 0 | L163: 0.11 | M163: 0 | N163: 0 | O163: 0 | P163: 3 | Q163: 3.58 | R163: 3.42 | S163: 5 | T163: 7.63 | U163: 6.98 | V163: 7.34 | W163: 5.37 | X163: 8.98 | Y163: 4 | Z163: 3.32 | AA163: 5.25 | AB163: 5.53 | AC163: 8.02 | AD163: 5 | AE163: 3.42
A164: 0155 | B164: Lexington | C164: 3.05 | D164: 2 | E164: 2.5 | F164: 1 | G164: 1.2 | H164: 1 | I164: 0 | J164: 1 | K164: 1 | L164: 2 | M164: 3 | N164: 2 | O164: 1 | P164: 0 | Q164: 0.52 | R164: 2 | S164: 5 | T164: 2.99 | U164: 1 | V164: 2.43 | W164: 6.34 | X164: 6.82 | Y164: 1.66 | Z164: 6.74 | AA164: 9.58 | AB164: 7.16 | AC164: 11.06 | AD164: 10.19 | AE164: 6.13
A165: 0156 | B165: Leyden | C165: 0 | D165: 0 | E165: 0 | F165: 0 | G165: 0 | H165: 0 | I165: 0 | J165: 0 | K165: 0 | L165: 0 | M165: 0 | N165: 0 | O165: 0 | P165: 0 | Q165: 0 | R165: 0 | S165: 0 | T165: 0 | U165: 0 | V165: 0 | W165: 0 | X165: 0 | Y165: 0 | Z165: 0 | AA165: 0 | AB165: 0 | AC165: 0 | AD165: 0 | AE165: 0
A166: 0157 | B166: Lincoln | C166: 0.14 | D166: 1 | E166: 1 | F166: 0 | G166: 0 | H166: 1 | I166: 0 | J166: 0 | K166: 0 | L166: 0 | M166: 0 | N166: 0 | O166: 0 | P166: 0 | Q166: 0 | R166: 0.1 | S166: 0 | T166: 4 | U166: 2.7 | V166: 0.42 | W166: 2.22 | X166: 0 | Y166: 0.06 | Z166: 0.48 | AA166: 0 | AB166: 0 | AC166: 0 | AD166: 3 | AE166: 2.54
A167: 0158 | B167: Littleton | C167: 45.88 | D167: 40.4 | E167: 37.35 | F167: 37.8 | G167: 28.56 | H167: 20.47 | I167: 17.08 | J167: 16.18 | K167: 14 | L167: 19.34 | M167: 30 | N167: 37.88 | O167: 41.17 | P167: 42.45 | Q167: 35.55 | R167: 36.14 | S167: 38.64 | T167: 33.09 | U167: 24.58 | V167: 19.4 | W167: 22.16 | X167: 25.54 | Y167: 25.36 | Z167: 25.9 | AA167: 19.06 | AB167: 23.63 | AC167: 26.61 | AD167: 21.98 | AE167: 22.57
A168: 0159 | B168: Longmeadow | C168: 1.89 | D168: 1.11 | E168: 0.64 | F168: 0.14 | G168: 0 | H168: 0 | I168: 0 | J168: 1.67 | K168: 1 | L168: 0 | M168: 1 | N168: 3.37 | O168: 2.91 | P168: 3.78 | Q168: 4 | R168: 0.17 | S168: 4 | T168: 2 | U168: 2 | V168: 2 | W168: 2.06 | X168: 5.38 | Y168: 7.4 | Z168: 5.63 | AA168: 4 | AB168: 13 | AC168: 8.16 | AD168: 9.01 | AE168: 8.1
A169: 0160 | B169: Lowell | C169: 136.6033002 | D169: 121.59 | E169: 108.09 | F169: 93.88 | G169: 68.43 | H169: 58.51 | I169: 47.97 | J169: 35.21 | K169: 35.19 | L169: 40.45 | M169: 39.01 | N169: 43.22 | O169: 36.95 | P169: 50.66 | Q169: 48.03 | R169: 57.98 | S169: 76.93 | T169: 78.7 | U169: 88.64 | V169: 106.85 | W169: 141.95 | X169: 137.72 | Y169: 141.79 | Z169: 148.37 | AA169: 131.92 | AB169: 138.37 | AC169: 135.93 | AD169: 156.39 | AE169: 151.74
A170: 0161 | B170: Ludlow | C170: 6 | D170: 14.46 | E170: 24.3 | F170: 21.85 | G170: 28.9 | H170: 22.81 | I170: 22.55 | J170: 22.69 | K170: 26.625 | L170: 27.9 | M170: 33.58 | N170: 26.02 | O170: 20.69 | P170: 13.9 | Q170: 14.7 | R170: 18.99 | S170: 22.96 | T170: 24.14 | U170: 31.8 | V170: 38.55 | W170: 40.08 | X170: 41.96 | Y170: 53.56 | Z170: 62.98 | AA170: 66.89 | AB170: 58.21 | AC170: 67.46 | AD170: 63.32 | AE170: 74.53
A171: 0162 | B171: Lunenburg | C171: 24.67 | D171: 58.65 | E171: 49.06 | F171: 39.37 | G171: 38.78 | H171: 44.11 | I171: 52.7 | J171: 55.22 | K171: 52.34 | L171: 37.47 | M171: 50.125 | N171: 45.79 | O171: 54.78 | P171: 43.51 | Q171: 51.67 | R171: 57.3 | S171: 75.22 | T171: 71.84 | U171: 69.54 | V171: 85.48 | W171: 80.18 | X171: 102.29 | Y171: 98.35 | Z171: 85.28 | AA171: 78.37 | AB171: 75.16 | AC171: 79.33 | AD171: 64.29 | AE171: 58.69
A172: 0163 | B172: Lynn | C172: 137.21 | D172: 121.37 | E172: 87.97 | F172: 68.89 | G172: 55.56 | H172: 49.29 | I172: 48.12 | J172: 40.69 | K172: 45.395 | L172: 47.25 | M172: 29.71 | N172: 28.59 | O172: 21.53 | P172: 26.3 | Q172: 25.78 | R172: 24.12 | S172: 34.19 | T172: 36.4 | U172: 62.34 | V172: 79.01 | W172: 99.25 | X172: 91.82 | Y172: 91.46 | Z172: 92.1 | AA172: 85.53 | AB172: 99.07 | AC172: 117.39 | AD172: 129.76 | AE172: 158.77
A173: 0164 | B173: Lynnfield | C173: 0 | D173: 0 | E173: 0 | F173: 0.49 | G173: 1 | H173: 0 | I173: 2 | J173: 2 | K173: 1 | L173: 0.71 | M173: 0 | N173: 0 | O173: 0.4 | P173: 0 | Q173: 1 | R173: 0 | S173: 2.26 | T173: 2 | U173: 1 | V173: 0 | W173: 0 | X173: 0.48 | Y173: 5.92 | Z173: 2 | AA173: 3.19 | AB173: 2.07 | AC173: 8.18 | AD173: 5 | AE173: 3.49
A174: 0165 | B174: Malden | C174: 3 | D174: 3 | E174: 2 | F174: 2 | G174: 2 | H174: 1.15 | I174: 1 | J174: 0 | K174: 0 | L174: 0 | M174: 0 | N174: 0 | O174: 0 | P174: 1 | Q174: 1 | R174: 1 | S174: 3.61 | T174: 4.12 | U174: 0.65 | V174: 7.37 | W174: 9.94 | X174: 15.93 | Y174: 17.49 | Z174: 22.18 | AA174: 17.67 | AB174: 13.2 | AC174: 19 | AD174: 25.63 | AE174: 29.37
A175: 0166 | B175: Manchester | C175: 2.433333333 | D175: 2.77 | E175: 3.35 | F175: 7.93 | G175: 7.51 | H175: 0 | I175: 0 | J175: 0 | K175: 0 | L175: 0 | M175: 0 | N175: 0 | O175: 0 | P175: 0 | Q175: 0 | R175: 0 | S175: 0 | T175: 0 | U175: 0 | V175: 0 | W175: 0 | X175: 0 | Y175: 0 | Z175: 0 | AA175: 0 | AB175: 0 | AC175: 0 | AD175: 0 | AE175: 0
A176: 0167 | B176: Mansfield | C176: 0.95 | D176: 0 | E176: 0 | F176: 1 | G176: 0.87 | H176: 0 | I176: 0.07 | J176: 0.56 | K176: 0 | L176: 1.72 | M176: 1 | N176: 1 | O176: 4.6 | P176: 5 | Q176: 5.92 | R176: 4 | S176: 7 | T176: 3.56 | U176: 5 | V176: 5.27 | W176: 6.43 | X176: 7.45 | Y176: 13.98 | Z176: 18 | AA176: 20.8 | AB176: 17.45 | AC176: 20.6 | AD176: 26.91 | AE176: 27.77
A177: 0168 | B177: Marblehead | C177: 1 | D177: 0.97 | E177: 4 | F177: 4.39 | G177: 3 | H177: 2.61 | I177: 4.17 | J177: 4.44 | K177: 2 | L177: 2 | M177: 2 | N177: 0.42 | O177: 0 | P177: 0.66 | Q177: 0 | R177: 1 | S177: 6.43 | T177: 4.65 | U177: 0.59 | V177: 0.6 | W177: 5.41 | X177: 5.19 | Y177: 4.25 | Z177: 5.34 | AA177: 7.57 | AB177: 12.86 | AC177: 7.1 | AD177: 9.42 | AE177: 7.89
A178: 0169 | B178: Marion | C178: 0 | D178: 0 | E178: 0 | F178: 0 | G178: 0 | H178: 0 | I178: 0 | J178: 0 | K178: 0 | L178: 0 | M178: 0 | N178: 0 | O178: 0 | P178: 0 | Q178: 0 | R178: 0 | S178: 0 | T178: 0 | U178: 0 | V178: 1 | W178: 0.72 | X178: 1.36 | Y178: 0.21 | Z178: 0.98 | AA178: 0 | AB178: 3.73 | AC178: 4 | AD178: 3 | AE178: 1
A179: 0170 | B179: Marlborough | C179: 70.33 | D179: 72.22 | E179: 76.69 | F179: 82.35 | G179: 65.38 | H179: 61.95 | I179: 56.59 | J179: 51.34 | K179: 46.68 | L179: 59.09 | M179: 52.05 | N179: 63.15 | O179: 73.58 | P179: 87.94 | Q179: 106.68 | R179: 111 | S179: 105.63 | T179: 96.7 | U179: 92.13 | V179: 93.87 | W179: 91.36 | X179: 91.33 | Y179: 93.13 | Z179: 85.09 | AA179: 94.12 | AB179: 85.87 | AC179: 105.18 | AD179: 124.22 | AE179: 146.71
A180: 0171 | B180: Marshfield | C180: 0 | D180: 0 | E180: 0 | F180: 0 | G180: 0 | H180: 0 | I180: 0 | J180: 0 | K180: 0 | L180: 0 | M180: 0 | N180: 0 | O180: 0 | P180: 0 | Q180: 0 | R180: 2 | S180: 1.02 | T180: 0 | U180: 0.46 | V180: 6.54 | W180: 6.14 | X180: 6 | Y180: 5.2 | Z180: 9.43 | AA180: 7.21 | AB180: 9.03 | AC180: 9.78 | AD180: 12.52 | AE180: 9.12
A181: 0172 | B181: Mashpee | C181: 1 | D181: 1 | E181: 1.45 | F181: 4.95 | G181: 5.94 | H181: 9.43 | I181: 7.65 | J181: 9.3 | K181: 12.1 | L181: 14.91 | M181: 12.36 | N181: 17.38 | O181: 26.59 | P181: 33.93 | Q181: 33.22 | R181: 43.77 | S181: 52.1 | T181: 74.82 | U181: 66.12 | V181: 65.2 | W181: 81.1 | X181: 96.78 | Y181: 83.36 | Z181: 106.17 | AA181: 102.48 | AB181: 107.88 | AC181: 84.72 | AD181: 86.66 | AE181: 90.93
A182: 0173 | B182: Mattapoisett | C182: 0 | D182: 0 | E182: 0 | F182: 0 | G182: 0 | H182: 0 | I182: 0 | J182: 0 | K182: 1 | L182: 0 | M182: 0.5 | N182: 0 | O182: 0 | P182: 0 | Q182: 0 | R182: 0 | S182: 0 | T182: 0 | U182: 0 | V182: 0.39 | W182: 1.33 | X182: 0 | Y182: 0 | Z182: 0 | AA182: 0.97 | AB182: 1 | AC182: 1 | AD182: 1 | AE182: 1
A183: 0174 | B183: Maynard | C183: 117.64 | D183: 101.86 | E183: 87.74 | F183: 66.06 | G183: 50.74 | H183: 32 | I183: 18.94 | J183: 13.26 | K183: 14 | L183: 9 | M183: 14.88 | N183: 27.95 | O183: 45.415 | P183: 42.96 | Q183: 52.43 | R183: 45.71 | S183: 33.7 | T183: 29 | U183: 24.16 | V183: 15.63 | W183: 9 | X183: 12.09 | Y183: 12.89 | Z183: 13.56 | AA183: 18.01 | AB183: 18.98 | AC183: 19.99 | AD183: 14.94 | AE183: 14.95
A184: 0175 | B184: Medfield | C184: 2.21 | D184: 3 | E184: 2.07 | F184: 5.49 | G184: 3.46 | H184: 1.8 | I184: 5.04 | J184: 2.55 | K184: 0 | L184: 0.5 | M184: 1 | N184: 2.58 | O184: 4.21 | P184: 5.41 | Q184: 9.49 | R184: 6.4 | S184: 2.13 | T184: 1.99 | U184: 1.67 | V184: 5.91 | W184: 7.45 | X184: 8.72 | Y184: 11.95 | Z184: 7.9 | AA184: 6.45 | AB184: 6.59 | AC184: 4.28 | AD184: 5.31 | AE184: 2
A185: 0176 | B185: Medford | C185: 39.58 | D185: 68.41 | E185: 65.57 | F185: 77.39 | G185: 68.81 | H185: 41.28 | I185: 20 | J185: 9.98 | K185: 6.27 | L185: 4.7 | M185: 2.38 | N185: 7.56 | O185: 7 | P185: 4.15 | Q185: 4 | R185: 1 | S185: 1 | T185: 0.31 | U185: 2.25 | V185: 3.93 | W185: 7.41 | X185: 6.7 | Y185: 12.42 | Z185: 12.91 | AA185: 10.14 | AB185: 19.2 | AC185: 26.9 | AD185: 30.82 | AE185: 31.13
A186: 0177 | B186: Medway | C186: 39.41 | D186: 42.31 | E186: 54.43 | F186: 54.69 | G186: 43.8 | H186: 47 | I186: 42.06 | J186: 31.63 | K186: 35.05 | L186: 32.22 | M186: 31.18 | N186: 35.28 | O186: 39.645 | P186: 42.17 | Q186: 49.41 | R186: 44.35 | S186: 45.39 | T186: 47.66 | U186: 50.56 | V186: 42.32 | W186: 49.63 | X186: 45.62 | Y186: 43.19 | Z186: 45.69 | AA186: 37.21 | AB186: 36.27 | AC186: 40.16 | AD186: 35.26 | AE186: 37.63
A187: 0178 | B187: Melrose | C187: 1.24 | D187: 1.33 | E187: 1 | F187: 1 | G187: 0 | H187: 0.63 | I187: 0 | J187: 0 | K187: 0 | L187: 0 | M187: 0 | N187: 0 | O187: 0 | P187: 0 | Q187: 0 | R187: 0 | S187: 0.94 | T187: 0 | U187: 0 | V187: 3.84 | W187: 2.08 | X187: 6.28 | Y187: 6.36 | Z187: 8.79 | AA187: 9 | AB187: 9 | AC187: 16.45 | AD187: 16.66 | AE187: 10.68
A188: 0179 | B188: Mendon | C188: 0 | D188: 0 | E188: 0 | F188: 0 | G188: 0 | H188: 0 | I188: 0 | J188: 0 | K188: 0 | L188: 0 | M188: 0 | N188: 0 | O188: 0 | P188: 0 | Q188: 0 | R188: 0 | S188: 0 | T188: 0 | U188: 0 | V188: 0 | W188: 0 | X188: 0 | Y188: 0 | Z188: 0 | AA188: 0 | AB188: 0 | AC188: 0 | AD188: 0 | AE188: 0
A189: 0180 | B189: Merrimac | C189: 0 | D189: 0 | E189: 0 | F189: 0 | G189: 0 | H189: 0 | I189: 0 | J189: 0 | K189: 0 | L189: 0 | M189: 0 | N189: 0 | O189: 0 | P189: 0 | Q189: 0 | R189: 0 | S189: 0 | T189: 0 | U189: 0 | V189: 0 | W189: 0 | X189: 0 | Y189: 0 | Z189: 0 | AA189: 0 | AB189: 0 | AC189: 0 | AD189: 0 | AE189: 0
A190: 0181 | B190: Methuen | C190: 16.26 | D190: 14.8 | E190: 13.72 | F190: 12.65 | G190: 11.39 | H190: 14.42 | I190: 14 | J190: 17.5 | K190: 21.03 | L190: 14 | M190: 11.71 | N190: 12.31 | O190: 9.84 | P190: 14.95 | Q190: 10.82 | R190: 13.77 | S190: 19.34 | T190: 21.31 | U190: 24.78 | V190: 16.99 | W190: 24.69 | X190: 34 | Y190: 41.43 | Z190: 38.04 | AA190: 32.19 | AB190: 45.38 | AC190: 53.1 | AD190: 61.36 | AE190: 47.16
A191: 0182 | B191: Middleborough | C191: 3.703333333 | D191: 1.96 | E191: 7.32 | F191: 3.47 | G191: 7 | H191: 5.02 | I191: 4.23 | J191: 3.66 | K191: 1 | L191: 3.84 | M191: 1.54 | N191: 2.17 | O191: 5.13 | P191: 10.76 | Q191: 9.19 | R191: 21.25 | S191: 32.72 | T191: 35.09 | U191: 33.94 | V191: 46.59 | W191: 51.73 | X191: 51.19 | Y191: 50.22 | Z191: 55.39 | AA191: 57.77 | AB191: 68.91 | AC191: 69.01 | AD191: 64.26 | AE191: 86.53
A192: 0183 | B192: Middlefield | C192: 0 | D192: 0 | E192: 0 | F192: 0 | G192: 0 | H192: 0 | I192: 0 | J192: 0 | K192: 0 | L192: 0 | M192: 0 | N192: 0 | O192: 0 | P192: 0 | Q192: 0 | R192: 0 | S192: 0 | T192: 0 | U192: 0 | V192: 0 | W192: 0 | X192: 0 | Y192: 0 | Z192: 0 | AA192: 0 | AB192: 0 | AC192: 0 | AD192: 0 | AE192: 0
A193: 0184 | B193: Middleton | C193: 0 | D193: 0 | E193: 0 | F193: 0 | G193: 0 | H193: 1 | I193: 1 | J193: 5 | K193: 2 | L193: 0.2 | M193: 0 | N193: 0.2 | O193: 0 | P193: 0 | Q193: 0 | R193: 0 | S193: 0 | T193: 0 | U193: 0 | V193: 0 | W193: 1 | X193: 0 | Y193: 0 | Z193: 2 | AA193: 1.12 | AB193: 0.05 | AC193: 0 | AD193: 3.15 | AE193: 0
A194: 0185 | B194: Milford | C194: 121.48 | D194: 134.31 | E194: 139.91 | F194: 136.05 | G194: 144.9 | H194: 131 | I194: 148.1 | J194: 134.555 | K194: 143.78 | L194: 133.375 | M194: 119.95 | N194: 110.4 | O194: 103.86 | P194: 100.14 | Q194: 108.81 | R194: 121.65 | S194: 139.99 | T194: 150.82 | U194: 169.48 | V194: 184.21 | W194: 198.76 | X194: 198.7 | Y194: 194.94 | Z194: 178.87 | AA194: 186.37 | AB194: 213.24 | AC194: 216.9 | AD194: 227.59 | AE194: 242.72
A195: 0186 | B195: Millbury | C195: 11.3 | D195: 10 | E195: 13.81 | F195: 7.82 | G195: 7.39 | H195: 11.64 | I195: 12.69 | J195: 10 | K195: 15.22 | L195: 18.18 | M195: 12.96 | N195: 15.19 | O195: 14.58 | P195: 15 | Q195: 8.5 | R195: 16.14 | S195: 15.03 | T195: 14.68 | U195: 17.74 | V195: 20.19 | W195: 24.34 | X195: 32.44 | Y195: 45.86 | Z195: 50.29 | AA195: 49.97 | AB195: 45.94 | AC195: 47.04 | AD195: 45.09 | AE195: 46.75
A196: 0187 | B196: Millis | C196: 46.64 | D196: 44.64 | E196: 50.4 | F196: 41.95 | G196: 46.02 | H196: 47.34 | I196: 39.91 | J196: 39.5 | K196: 38.38 | L196: 31.66 | M196: 36.14 | N196: 35.465 | O196: 34.65 | P196: 29.34 | Q196: 29.555 | R196: 36.155 | S196: 35.1 | T196: 31.26 | U196: 31.01 | V196: 31.69 | W196: 28.61 | X196: 26.05 | Y196: 28.84 | Z196: 28.78 | AA196: 35.38 | AB196: 35 | AC196: 25.38 | AD196: 25.49 | AE196: 18.26
A197: 0188 | B197: Millville | C197: 0 | D197: 0 | E197: 0 | F197: 0 | G197: 0 | H197: 0 | I197: 0 | J197: 0 | K197: 0 | L197: 0 | M197: 0 | N197: 0 | O197: 0 | P197: 0 | Q197: 0 | R197: 0 | S197: 0 | T197: 0 | U197: 0 | V197: 0 | W197: 0 | X197: 0 | Y197: 0 | Z197: 0 | AA197: 0 | AB197: 0 | AC197: 0 | AD197: 0 | AE197: 0
A198: 0189 | B198: Milton | C198: 0 | D198: 1 | E198: 0 | F198: 0 | G198: 0 | H198: 0 | I198: 0 | J198: 0 | K198: 0 | L198: 0 | M198: 0 | N198: 0 | O198: 1 | P198: 0 | Q198: 0 | R198: 0 | S198: 0 | T198: 3.22 | U198: 2 | V198: 2.7 | W198: 4 | X198: 4.5 | Y198: 3.32 | Z198: 8.32 | AA198: 10.07 | AB198: 2.54 | AC198: 5.77 | AD198: 7.49 | AE198: 1.74
A199: 0190 | B199: Monroe | C199: 0 | D199: 0.54 | E199: 2.45 | F199: 4.97 | G199: 5 | H199: 7 | I199: 7 | J199: 3 | K199: 5.6 | L199: 1 | M199: 1.3 | N199: 3 | O199: 4.36 | P199: 6.2 | Q199: 1.52 | R199: 1 | S199: 1.7 | T199: 1 | U199: 1 | V199: 0.37 | W199: 0.74 | X199: 3.5 | Y199: 1.43 | Z199: 2.85 | AA199: 4.19 | AB199: 5 | AC199: 5 | AD199: 6 | AE199: 7.69
A200: 0191 | B200: Monson | C200: 3 | D200: 1.43 | E200: 3 | F200: 3.54 | G200: 3 | H200: 4 | I200: 2.87 | J200: 4.5 | K200: 5.23 | L200: 5.15 | M200: 10.83 | N200: 10.5 | O200: 12.78 | P200: 20.61 | Q200: 22.98 | R200: 17 | S200: 32.8 | T200: 35.61 | U200: 35.38 | V200: 34.77 | W200: 36.68 | X200: 40.03 | Y200: 51.3 | Z200: 58.21 | AA200: 52.5 | AB200: 48.64 | AC200: 46.43 | AD200: 41.02 | AE200: 47.39
A201: 0192 | B201: Montague | C201: 0 | D201: 0 | E201: 0 | F201: 0 | G201: 0 | H201: 0 | I201: 0 | J201: 0 | K201: 0 | L201: 0 | M201: 0 | N201: 0 | O201: 0 | P201: 0 | Q201: 0 | R201: 0 | S201: 0 | T201: 0 | U201: 0 | V201: 0 | W201: 0 | X201: 0 | Y201: 0 | Z201: 0 | AA201: 0 | AB201: 0 | AC201: 0 | AD201: 0 | AE201: 0
A202: 0193 | B202: Monterey | C202: 0 | D202: 0 | E202: 0 | F202: 0 | G202: 0 | H202: 0 | I202: 0 | J202: 0 | K202: 0 | L202: 0 | M202: 0 | N202: 0 | O202: 0 | P202: 0 | Q202: 0 | R202: 0 | S202: 0 | T202: 0 | U202: 0 | V202: 0 | W202: 0 | X202: 0 | Y202: 0 | Z202: 0 | AA202: 0 | AB202: 0 | AC202: 0 | AD202: 0 | AE202: 0
A203: 0194 | B203: Montgomery | C203: 0 | D203: 0 | E203: 0 | F203: 0 | G203: 0 | H203: 0 | I203: 0 | J203: 0 | K203: 0 | L203: 0 | M203: 0 | N203: 0 | O203: 0 | P203: 0 | Q203: 0 | R203: 0 | S203: 0 | T203: 0 | U203: 0 | V203: 0 | W203: 0 | X203: 0 | Y203: 0 | Z203: 0 | AA203: 0 | AB203: 0 | AC203: 0 | AD203: 0 | AE203: 1
A204: 0195 | B204: Mount Washington | C204: 0 | D204: 1 | E204: 0.38 | F204: 0.35 | G204: 0 | H204: 0 | I204: 0 | J204: 0 | K204: 0 | L204: 0 | M204: 0 | N204: 1 | O204: 2 | P204: 2.58 | Q204: 1 | R204: 1 | S204: 1 | T204: 2 | U204: 2 | V204: 1 | W204: 1 | X204: 0 | Y204: 1 | Z204: 1 | AA204: 1 | AB204: 1 | AC204: 0 | AD204: 0 | AE204: 0
A205: 0196 | B205: Nahant | C205: 0 | D205: 0 | E205: 0 | F205: 0 | G205: 0 | H205: 0 | I205: 0 | J205: 0 | K205: 0 | L205: 0 | M205: 1 | N205: 1 | O205: 0 | P205: 0 | Q205: 0 | R205: 0 | S205: 0 | T205: 0 | U205: 0 | V205: 0 | W205: 1.48 | X205: 0 | Y205: 0 | Z205: 0.95 | AA205: 1 | AB205: 1 | AC205: 1 | AD205: 0 | AE205: 1
A206: 0197 | B206: Nantucket | C206: 0 | D206: 0 | E206: 0 | F206: 0 | G206: 0 | H206: 0 | I206: 0 | J206: 0 | K206: 0 | L206: 0 | M206: 0 | N206: 0 | O206: 0 | P206: 0 | Q206: 0 | R206: 0 | S206: 0 | T206: 0 | U206: 0 | V206: 0 | W206: 1.17 | X206: 2.26 | Y206: 2.19 | Z206: 6.9 | AA206: 5.3 | AB206: 8 | AC206: 3 | AD206: 3.92 | AE206: 0
A207: 0198 | B207: Natick | C207: 6.88 | D207: 5.67 | E207: 9.16 | F207: 6 | G207: 7.67 | H207: 4.87 | I207: 5.68 | J207: 5.235 | K207: 3.2 | L207: 3.92 | M207: 6 | N207: 5.32 | O207: 5 | P207: 5 | Q207: 1 | R207: 1.5 | S207: 4.94 | T207: 6.09 | U207: 10.89 | V207: 14.13 | W207: 11.77 | X207: 13.85 | Y207: 15.63 | Z207: 18.75 | AA207: 15.71 | AB207: 16.27 | AC207: 14.36 | AD207: 10.28 | AE207: 13.74
A208: 0199 | B208: Needham | C208: 0 | D208: 2 | E208: 0 | F208: 0 | G208: 0.5 | H208: 0 | I208: 0 | J208: 0 | K208: 0 | L208: 0 | M208: 0 | N208: 0 | O208: 0.9 | P208: 0 | Q208: 3 | R208: 2 | S208: 0 | T208: 2.04 | U208: 1.7 | V208: 3.41 | W208: 5.91 | X208: 6.96 | Y208: 6.08 | Z208: 5 | AA208: 4.28 | AB208: 8.48 | AC208: 7.71 | AD208: 7.43 | AE208: 7.36
... 244 more rows

Sheet sendtuit (hidden)
A8: LEA | B8: District | C8: FY96 | D8: FY97 | E8: FY98 | F8: FY99 | G8: FY00 | H8: FY01 | I8: FY02 | J8: FY03 | K8: FY04 | L8: FY05 | M8: FY06 | N8: FY07 | O8: FY08 | P8: FY09 | Q8: FY10 | R8: FY11 | S8: FY12 | T8: FY13 | U8: FY14 | V8: FY15 | W8: FY16 | X8: FY17 | Y8: FY18 | Z8: FY19 | AA8: FY20 | AB8: FY21 | AC8: FY22 | AD8: FY23 | AE8: FY24
A10: 0001 | B10: Abington | C10: 0 | D10: 4139 | E10: 4104 | F10: 0 | G10: 0 | H10: 5577 | I10: 3728 | J10: 2318 | K10: 0 | L10: 5000 | M10: 10000 | N10: 10000 | O10: 15000 | P10: 15000 | Q10: 6000 | R10: 10000 | S10: 30000 | T10: 26050 | U10: 59740 | V10: 162033 | W10: 202621 | X10: 264765 | Y10: 249262 | Z10: 234481 | AA10: 276904 | AB10: 283846 | AC10: 301442 | AD10: 298302 | AE10: 236363
A11: 0002 | B11: Acton | C11: 18747 | D11: 28815 | E11: 18773 | F11: 30018 | G11: 38460 | H11: 25029 | I11: 19094 | J11: 20002 | K11: 31292 | L11: 15000 | M11: 1950 | N11: 8717 | O11: 15000 | P11: 7650 | Q11: 15000 | R11: 10000 | S11: 58460 | T11: 77128 | U11: 106176 | V11: 0 | W11: 0 | X11: 0 | Y11: 0 | Z11: 0 | AA11: 0 | AB11: 0 | AC11: 0 | AD11: 0 | AE11: 0
A12: 0003 | B12: Acushnet | C12: 0 | D12: 0 | E12: 0 | F12: 0 | G12: 0 | H12: 0 | I12: 0 | J12: 3950 | K12: 7798 | L12: 12948 | M12: 10666 | N12: 4773 | O12: 0 | P12: 0 | Q12: 5000 | R12: 20000 | S12: 25000 | T12: 40684 | U12: 67227 | V12: 62652 | W12: 98585 | X12: 124616 | Y12: 141718 | Z12: 150922 | AA12: 106211 | AB12: 129541 | AC12: 145685 | AD12: 197744 | AE12: 236657
A13: 0004 | B13: Adams | C13: 0 | D13: 0 | E13: 0 | F13: 0 | G13: 0 | H13: 0 | I13: 0 | J13: 0 | K13: 0 | L13: 0 | M13: 0 | N13: 0 | O13: 0 | P13: 0 | Q13: 0 | R13: 0 | S13: 0 | T13: 0 | U13: 0 | V13: 0 | W13: 0 | X13: 0 | Y13: 0 | Z13: 0 | AA13: 0 | AB13: 0 | AC13: 0 | AD13: 0 | AE13: 0
A14: 0005 | B14: Agawam | C14: 68210 | D14: 101888 | E14: 122787 | F14: 91326 | G14: 84345 | H14: 97637 | I14: 163997 | J14: 128849 | K14: 164825 | L14: 167695 | M14: 174046 | N14: 172064 | O14: 218803 | P14: 157073 | Q14: 198426 | R14: 232953 | S14: 237844 | T14: 252166 | U14: 384227 | V14: 295973 | W14: 292059 | X14: 368076 | Y14: 307309 | Z14: 416341 | AA14: 342773 | AB14: 419560 | AC14: 504214 | AD14: 550051 | AE14: 486614
A15: 0006 | B15: Alford | C15: 0 | D15: 0 | E15: 0 | F15: 0 | G15: 0 | H15: 0 | I15: 0 | J15: 0 | K15: 0 | L15: 0 | M15: 0 | N15: 0 | O15: 0 | P15: 0 | Q15: 0 | R15: 0 | S15: 0 | T15: 0 | U15: 0 | V15: 0 | W15: 0 | X15: 0 | Y15: 0 | Z15: 0 | AA15: 0 | AB15: 0 | AC15: 0 | AD15: 0 | AE15: 0
A16: 0007 | B16: Amesbury | C16: 534567 | D16: 600873 | E16: 662597 | F16: 708191 | G16: 715320 | H16: 754179 | I16: 895016 | J16: 934653 | K16: 917568 | L16: 753909 | M16: 696943 | N16: 625326 | O16: 579237 | P16: 510797 | Q16: 403876 | R16: 400249 | S16: 457439 | T16: 505016 | U16: 425993 | V16: 494710 | W16: 379481 | X16: 312497 | Y16: 325452 | Z16: 302070 | AA16: 304026 | AB16: 419673 | AC16: 426729 | AD16: 395899 | AE16: 508482
A17: 0008 | B17: Amherst | C17: 0 | D17: 3338 | E17: 3058 | F17: 9832 | G17: 11488 | H17: 56039 | I17: 92057 | J17: 80308 | K17: 156601 | L17: 119920 | M17: 98224 | N17: 204876 | O17: 212437 | P17: 267827 | Q17: 241126 | R17: 184881 | S17: 166698 | T17: 155745 | U17: 134019 | V17: 145514 | W17: 238888 | X17: 208910 | Y17: 210106 | Z17: 315667 | AA17: 190308 | AB17: 277253 | AC17: 342832 | AD17: 361311 | AE17: 384626
A18: 0009 | B18: Andover | C18: 14328 | D18: 22075 | E18: 22863 | F18: 18355 | G18: 670 | H18: 0 | I18: 3675 | J18: 13947 | K18: 5000 | L18: 12009 | M18: 5000 | N18: 5000 | O18: 5000 | P18: 10000 | Q18: 7850 | R18: 10000 | S18: 5000 | T18: 5000 | U18: 5574 | V18: 35903 | W18: 26467 | X18: 66391 | Y18: 76292 | Z18: 98056 | AA18: 89980 | AB18: 134546 | AC18: 165853 | AD18: 147559 | AE18: 128136
A19: 0010 | B19: Arlington | C19: 3683 | D19: 3973 | E19: 1684 | F19: 36403 | G19: 13552 | H19: 0 | I19: 0 | J19: 6839 | K19: 33040 | L19: 37821 | M19: 38267 | N19: 41008 | O19: 0 | P19: 0 | Q19: 0 | R19: 0 | S19: 0 | T19: 0 | U19: 0 | V19: 6179 | W19: 14806 | X19: 18867 | Y19: 30561 | Z19: 50556 | AA19: 50856 | AB19: 144734 | AC19: 109492 | AD19: 123576 | AE19: 162305
A20: 0011 | B20: Ashburnham | C20: 0 | D20: 0 | E20: 0 | F20: 0 | G20: 0 | H20: 0 | I20: 0 | J20: 0 | K20: 0 | L20: 0 | M20: 0 | N20: 0 | O20: 0 | P20: 0 | Q20: 0 | R20: 0 | S20: 0 | T20: 0 | U20: 0 | V20: 0 | W20: 0 | X20: 0 | Y20: 0 | Z20: 0 | AA20: 0 | AB20: 0 | AC20: 0 | AD20: 0 | AE20: 0
A21: 0012 | B21: Ashby | C21: 0 | D21: 0 | E21: 0 | F21: 0 | G21: 0 | H21: 0 | I21: 0 | J21: 0 | K21: 0 | L21: 0 | M21: 0 | N21: 0 | O21: 0 | P21: 0 | Q21: 0 | R21: 0 | S21: 0 | T21: 0 | U21: 0 | V21: 0 | W21: 0 | X21: 0 | Y21: 0 | Z21: 0 | AA21: 0 | AB21: 0 | AC21: 0 | AD21: 0 | AE21: 0
A22: 0013 | B22: Ashfield | C22: 0 | D22: 0 | E22: 0 | F22: 0 | G22: 0 | H22: 0 | I22: 0 | J22: 0 | K22: 0 | L22: 0 | M22: 0 | N22: 0 | O22: 0 | P22: 0 | Q22: 0 | R22: 0 | S22: 0 | T22: 0 | U22: 0 | V22: 0 | W22: 0 | X22: 0 | Y22: 0 | Z22: 0 | AA22: 0 | AB22: 0 | AC22: 0 | AD22: 0 | AE22: 0
A23: 0014 | B23: Ashland | C23: 69256 | D23: 86070 | E23: 70298 | F23: 83773 | G23: 90328 | H23: 87610 | I23: 64971 | J23: 74338 | K23: 75938 | L23: 79540 | M23: 89593 | N23: 60898 | O23: 42457 | P23: 35670 | Q23: 52472 | R23: 54980 | S23: 64977 | T23: 66231 | U23: 66227 | V23: 94165 | W23: 89931 | X23: 101820 | Y23: 121378 | Z23: 72493 | AA23: 70815 | AB23: 88149 | AC23: 122215 | AD23: 118358 | AE23: 123043
A24: 0015 | B24: Athol | C24: 0 | D24: 0 | E24: 0 | F24: 0 | G24: 0 | H24: 0 | I24: 0 | J24: 0 | K24: 0 | L24: 0 | M24: 0 | N24: 0 | O24: 0 | P24: 0 | Q24: 0 | R24: 0 | S24: 0 | T24: 0 | U24: 0 | V24: 0 | W24: 0 | X24: 0 | Y24: 0 | Z24: 0 | AA24: 0 | AB24: 0 | AC24: 0 | AD24: 0 | AE24: 0
A25: 0016 | B25: Attleboro | C25: 5338 | D25: 0 | E25: 7175 | F25: 0 | G25: 3107 | H25: 11690 | I25: 30390 | J25: 19020 | K25: 11463 | L25: 11534 | M25: 23737 | N25: 12450 | O25: 18350 | P25: 21680 | Q25: 29701 | R25: 38318 | S25: 54152 | T25: 55650 | U25: 43046 | V25: 113243 | W25: 163391 | X25: 252452 | Y25: 285187 | Z25: 422258 | AA25: 472135 | AB25: 520119 | AC25: 533650 | AD25: 675616 | AE25: 707602
A26: 0017 | B26: Auburn | C26: 0 | D26: 666 | E26: 3223 | F26: 10293 | G26: 1832 | H26: 5167 | I26: 15691 | J26: 39044 | K26: 53552 | L26: 59685 | M26: 59171 | N26: 51116 | O26: 60782 | P26: 98002 | Q26: 140255 | R26: 123869 | S26: 168685 | T26: 169120 | U26: 132633 | V26: 152127 | W26: 102423 | X26: 137081 | Y26: 149420 | Z26: 153418 | AA26: 141256 | AB26: 238137 | AC26: 192446 | AD26: 151343 | AE26: 167835
A27: 0018 | B27: Avon | C27: 0 | D27: 0 | E27: 0 | F27: 0 | G27: 0 | H27: 0 | I27: 0 | J27: 0 | K27: 0 | L27: 5000 | M27: 5000 | N27: 13173 | O27: 5000 | P27: 20000 | Q27: 15000 | R27: 15000 | S27: 4300 | T27: 5000 | U27: 15000 | V27: 28458 | W27: 10067 | X27: 9131 | Y27: 22945 | Z27: 25406 | AA27: 28996 | AB27: 43664 | AC27: 51259 | AD27: 80896 | AE27: 89834
A28: 0019 | B28: Ayer | C28: 472624 | D28: 372665 | E28: 365675 | F28: 472502 | G28: 405404 | H28: 381112 | I28: 203148 | J28: 190616 | K28: 114476 | L28: 148090 | M28: 154568 | N28: 143156 | O28: 179262 | P28: 197892 | Q28: 240214 | R28: 292176 | S28: 0 | T28: 0 | U28: 0 | V28: 0 | W28: 0 | X28: 0 | Y28: 0 | Z28: 0 | AA28: 0 | AB28: 0 | AC28: 0 | AD28: 0 | AE28: 0
A29: 0020 | B29: Barnstable | C29: 5000 | D29: 23943 | E29: 62998 | F29: 112793 | G29: 203558 | H29: 359062 | I29: 295265 | J29: 266059 | K29: 329205 | L29: 391532 | M29: 468187 | N29: 428668 | O29: 383064 | P29: 317721 | Q29: 369021 | R29: 477596 | S29: 634428 | T29: 694838 | U29: 679672 | V29: 904548 | W29: 904893 | X29: 1013950 | Y29: 1255999 | Z29: 1332001 | AA29: 1453130 | AB29: 1488518 | AC29: 1534629 | AD29: 1538830 | AE29: 1631699
A30: 0021 | B30: Barre | C30: 0 | D30: 0 | E30: 0 | F30: 0 | G30: 0 | H30: 0 | I30: 0 | J30: 0 | K30: 0 | L30: 0 | M30: 0 | N30: 0 | O30: 0 | P30: 0 | Q30: 0 | R30: 0 | S30: 0 | T30: 0 | U30: 0 | V30: 0 | W30: 0 | X30: 0 | Y30: 0 | Z30: 0 | AA30: 0 | AB30: 0 | AC30: 0 | AD30: 0 | AE30: 0
A31: 0022 | B31: Becket | C31: 5000 | D31: 10000 | E31: 22445 | F31: 25412 | G31: 27541 | H31: 17042 | I31: 24759 | J31: 13100 | K31: 16154 | L31: 5000 | M31: 18406 | N31: 16796 | O31: 5000 | P31: 0 | Q31: 10000 | R31: 0 | S31: 12026 | T31: 11861 | U31: 26895 | V31: 10000 | W31: 15000 | X31: 10000 | Y31: 11494 | Z31: 7064 | AA31: 5000 | AB31: 0 | AC31: 0 | AD31: 0 | AE31: 0
A32: 0023 | B32: Bedford | C32: 12997 | D32: 16412 | E32: 17850 | F32: 6082 | G32: 10610 | H32: 7085 | I32: 0 | J32: 5000 | K32: 0 | L32: 5450 | M32: 5000 | N32: 0 | O32: 0 | P32: 0 | Q32: 5000 | R32: 6700 | S32: 31000 | T32: 10000 | U32: 21700 | V32: 11113 | W32: 26665 | X32: 12970 | Y32: 30973 | Z32: 60687 | AA32: 40698 | AB32: 40388 | AC32: 40348 | AD32: 19907 | AE32: 44300
A33: 0024 | B33: Belchertown | C33: 44685 | D33: 50845 | E33: 39985 | F33: 35313 | G33: 99373 | H33: 148058 | I33: 206431 | J33: 225254 | K33: 248358 | L33: 307911 | M33: 272613 | N33: 388744 | O33: 343922 | P33: 371018 | Q33: 298366 | R33: 326410 | S33: 432639 | T33: 479301 | U33: 544322 | V33: 566839 | W33: 661719 | X33: 638168 | Y33: 693388 | Z33: 770368 | AA33: 894167 | AB33: 999176 | AC33: 852549 | AD33: 834743 | AE33: 1094534
A34: 0025 | B34: Bellingham | C34: 144746 | D34: 169215 | E34: 196462 | F34: 244256 | G34: 258845 | H34: 276406 | I34: 256548 | J34: 283835 | K34: 324348 | L34: 286334 | M34: 334414 | N34: 326800 | O34: 404325 | P34: 448440 | Q34: 502366 | R34: 471394 | S34: 452228 | T34: 394303 | U34: 493488 | V34: 737635 | W34: 844393 | X34: 724121 | Y34: 648198 | Z34: 708370 | AA34: 658660 | AB34: 756922 | AC34: 738203 | AD34: 664641 | AE34: 658356
A35: 0026 | B35: Belmont | C35: 1772 | D35: 0 | E35: 0 | F35: 8454 | G35: 3235 | H35: 0 | I35: 0 | J35: 0 | K35: 0 | L35: 0 | M35: 0 | N35: 0 | O35: 0 | P35: 5000 | Q35: 0 | R35: 0 | S35: 15000 | T35: 0 | U35: 0 | V35: 700 | W35: 8920 | X35: 8109 | Y35: 26204 | Z35: 49145 | AA35: 51442 | AB35: 81195 | AC35: 62156 | AD35: 61958 | AE35: 55353
A36: 0027 | B36: Berkley | C36: 28897 | D36: 38350 | E36: 32612 | F36: 35438 | G36: 76813 | H36: 48266 | I36: 92048 | J36: 68662 | K36: 91516 | L36: 87262 | M36: 78413 | N36: 86892 | O36: 95690 | P36: 87555 | Q36: 98451 | R36: 82656 | S36: 34880 | T36: 19250 | U36: 17650 | V36: 10000 | W36: 9250 | X36: 15141 | Y36: 35650 | Z36: 46395 | AA36: 54984 | AB36: 59386 | AC36: 57238 | AD36: 58291 | AE36: 86474
A37: 0028 | B37: Berlin | C37: 30674 | D37: 27683 | E37: 28723 | F37: 26438 | G37: 20906 | H37: 13534 | I37: 4247 | J37: 3292 | K37: 0 | L37: 5000 | M37: 5000 | N37: 5000 | O37: 15000 | P37: 15000 | Q37: 15000 | R37: 90643 | S37: 60145 | T37: 39303 | U37: 16633 | V37: 0 | W37: 5000 | X37: 3200 | Y37: 5000 | Z37: 0 | AA37: 0 | AB37: 0 | AC37: 0 | AD37: 0 | AE37: 0
A38: 0029 | B38: Bernardston | C38: 0 | D38: 0 | E38: 0 | F38: 0 | G38: 0 | H38: 0 | I38: 0 | J38: 0 | K38: 0 | L38: 0 | M38: 0 | N38: 0 | O38: 0 | P38: 0 | Q38: 0 | R38: 0 | S38: 0 | T38: 0 | U38: 0 | V38: 0 | W38: 0 | X38: 0 | Y38: 0 | Z38: 0 | AA38: 0 | AB38: 0 | AC38: 0 | AD38: 0 | AE38: 0
A39: 0030 | B39: Beverly | C39: 358985 | D39: 375197 | E39: 467837 | F39: 500188 | G39: 534063 | H39: 511914 | I39: 616202 | J39: 499231 | K39: 546543 | L39: 550285 | M39: 562411 | N39: 578690 | O39: 603609 | P39: 642794 | Q39: 498340 | R39: 435888 | S39: 419026 | T39: 393807 | U39: 358873 | V39: 373702 | W39: 338684 | X39: 313331 | Y39: 246528 | Z39: 384432 | AA39: 438511 | AB39: 452043 | AC39: 669439 | AD39: 546980 | AE39: 631818
A40: 0031 | B40: Billerica | C40: 45152 | D40: 35887 | E40: 24684 | F40: 13878 | G40: 9603 | H40: 2055 | I40: 1075 | J40: 4518 | K40: 9130 | L40: 12586 | M40: 13295 | N40: 4716 | O40: 6989 | P40: 10000 | Q40: 10000 | R40: 35000 | S40: 68710 | T40: 51100 | U40: 52150 | V40: 106562 | W40: 117252 | X40: 129332 | Y40: 127065 | Z40: 175534 | AA40: 143654 | AB40: 178712 | AC40: 319562 | AD40: 235236 | AE40: 297217
A41: 0032 | B41: Blackstone | C41: 0 | D41: 0 | E41: 0 | F41: 0 | G41: 0 | H41: 0 | I41: 0 | J41: 0 | K41: 0 | L41: 0 | M41: 0 | N41: 0 | O41: 0 | P41: 0 | Q41: 0 | R41: 0 | S41: 0 | T41: 0 | U41: 0 | V41: 0 | W41: 0 | X41: 0 | Y41: 0 | Z41: 0 | AA41: 0 | AB41: 0 | AC41: 0 | AD41: 0 | AE41: 0
A42: 0033 | B42: Blandford | C42: 0 | D42: 0 | E42: 0 | F42: 0 | G42: 0 | H42: 0 | I42: 0 | J42: 0 | K42: 0 | L42: 0 | M42: 5000 | N42: 2612 | O42: 0 | P42: 0 | Q42: 0 | R42: 0 | S42: 0 | T42: 0 | U42: 0 | V42: 0 | W42: 11951 | X42: 0 | Y42: 0 | Z42: 0 | AA42: 0 | AB42: 5000 | AC42: 5000 | AD42: 10000 | AE42: 5000
A43: 0034 | B43: Bolton | C43: 0 | D43: 0 | E43: 0 | F43: 0 | G43: 0 | H43: 0 | I43: 0 | J43: 0 | K43: 0 | L43: 0 | M43: 0 | N43: 0 | O43: 0 | P43: 0 | Q43: 0 | R43: 0 | S43: 0 | T43: 0 | U43: 0 | V43: 0 | W43: 0 | X43: 0 | Y43: 0 | Z43: 0 | AA43: 0 | AB43: 0 | AC43: 0 | AD43: 0 | AE43: 0
A44: 0035 | B44: Boston | C44: 92325 | D44: 143572 | E44: 153626 | F44: 155759 | G44: 161629 | H44: 128361 | I44: 171299 | J44: 263491 | K44: 305912 | L44: 330522 | M44: 297675 | N44: 309752 | O44: 258089 | P44: 229234 | Q44: 242292 | R44: 256515 | S44: 449535 | T44: 293596 | U44: 328290 | V44: 499840 | W44: 616775 | X44: 893980 | Y44: 973207 | Z44: 1583087 | AA44: 1453838 | AB44: 1340285 | AC44: 1962062 | AD44: 3029699 | AE44: 3275059
A45: 0036 | B45: Bourne | C45: 22158 | D45: 20762 | E45: 16305 | F45: 14580 | G45: 18626 | H45: 9134 | I45: 62005 | J45: 98916 | K45: 54218 | L45: 34150 | M45: 29385 | N45: 32467 | O45: 57193 | P45: 105395 | Q45: 155469 | R45: 191261 | S45: 280471 | T45: 422815 | U45: 581570 | V45: 643214 | W45: 564917 | X45: 741010 | Y45: 781428 | Z45: 854855 | AA45: 808095 | AB45: 845972 | AC45: 971803 | AD45: 853116 | AE45: 1025463
A46: 0037 | B46: Boxborough | C46: 29163 | D46: 23952 | E46: 55055 | F46: 10864 | G46: 14260 | H46: 12255 | I46: 13978 | J46: 5000 | K46: 6800 | L46: 0 | M46: 0 | N46: 4725 | O46: 550 | P46: 0 | Q46: 0 | R46: 0 | S46: 0 | T46: 8086 | U46: 0 | V46: 0 | W46: 0 | X46: 0 | Y46: 0 | Z46: 0 | AA46: 0 | AB46: 0 | AC46: 0 | AD46: 0 | AE46: 0
A47: 0038 | B47: Boxford | C47: 0 | D47: 3773 | E47: 744 | F47: 0 | G47: 0 | H47: 7615 | I47: 0 | J47: 0 | K47: 0 | L47: 4806 | M47: 0 | N47: 0 | O47: 15620 | P47: 10094 | Q47: 0 | R47: 2850 | S47: 2550 | T47: 3350 | U47: 6700 | V47: 6700 | W47: 16700 | X47: 10000 | Y47: 11292 | Z47: 17956 | AA47: 8474 | AB47: 5000 | AC47: 10000 | AD47: 13105 | AE47: 5000
A48: 0039 | B48: Boylston | C48: 10185 | D48: 192 | E48: 3608 | F48: 3497 | G48: 0 | H48: 0 | I48: 0 | J48: 18172 | K48: 2500 | L48: 0 | M48: 4745 | N48: 5000 | O48: 15000 | P48: 20573 | Q48: 23387 | R48: 40054 | S48: 56232 | T48: 65824 | U48: 32294 | V48: 85615 | W48: 73688 | X48: 66368 | Y48: 23300 | Z48: 26193 | AA48: 5000 | AB48: 4100 | AC48: 0 | AD48: 0 | AE48: 0
A49: 0040 | B49: Braintree | C49: 0 | D49: 3810 | E49: 4142 | F49: 3377 | G49: 3452 | H49: 5000 | I49: 0 | J49: 0 | K49: 0 | L49: 0 | M49: 0 | N49: 4700 | O49: 5000 | P49: 6900 | Q49: 10000 | R49: 0 | S49: 30400 | T49: 29653 | U49: 32141 | V49: 38475 | W49: 33330 | X49: 47509 | Y49: 36641 | Z49: 79035 | AA49: 113562 | AB49: 146755 | AC49: 182443 | AD49: 224912 | AE49: 247271
A50: 0041 | B50: Brewster | C50: 71334 | D50: 19616 | E50: 38766 | F50: 24722 | G50: 27632 | H50: 21504 | I50: 80023 | J50: 89396 | K50: 142020 | L50: 108855 | M50: 161064 | N50: 115261 | O50: 141682 | P50: 98590 | Q50: 136337 | R50: 122408 | S50: 125895 | T50: 139409 | U50: 94114 | V50: 154273 | W50: 195396 | X50: 158502 | Y50: 187667 | Z50: 132356 | AA50: 117813 | AB50: 92410 | AC50: 115029 | AD50: 91038 | AE50: 92903
A51: 0042 | B51: Bridgewater | C51: 0 | D51: 0 | E51: 0 | F51: 0 | G51: 0 | H51: 0 | I51: 0 | J51: 0 | K51: 0 | L51: 0 | M51: 0 | N51: 0 | O51: 0 | P51: 0 | Q51: 0 | R51: 0 | S51: 0 | T51: 0 | U51: 0 | V51: 0 | W51: 0 | X51: 0 | Y51: 0 | Z51: 0 | AA51: 0 | AB51: 0 | AC51: 0 | AD51: 0 | AE51: 0
A52: 0043 | B52: Brimfield | C52: 0 | D52: 0 | E52: 0 | F52: 0 | G52: 8771 | H52: 12084 | I52: 3905 | J52: 18194 | K52: 25890 | L52: 8528 | M52: 16399 | N52: 4764 | O52: 15100 | P52: 19550 | Q52: 15800 | R52: 1200 | S52: 20339 | T52: 25500 | U52: 57759 | V52: 102448 | W52: 62760 | X52: 50067 | Y52: 64864 | Z52: 77888 | AA52: 39354 | AB52: 31203 | AC52: 73271 | AD52: 44546 | AE52: 37065
A53: 0044 | B53: Brockton | C53: 831248 | D53: 717254 | E53: 791292 | F53: 785264 | G53: 774311 | H53: 726473 | I53: 725522 | J53: 694600 | K53: 709207 | L53: 820448 | M53: 958336 | N53: 995552 | O53: 989259 | P53: 982139 | Q53: 881758 | R53: 863074 | S53: 847095 | T53: 1020938 | U53: 1003453 | V53: 1055571 | W53: 1268968 | X53: 1392433 | Y53: 1569057 | Z53: 1877323 | AA53: 1710445 | AB53: 1740601 | AC53: 1533610 | AD53: 1816944 | AE53: 1821047
A54: 0045 | B54: Brookfield | C54: 0 | D54: 1946 | E54: 16148 | F54: 22434 | G54: 14288 | H54: 26175 | I54: 39866 | J54: 38850 | K54: 48217 | L54: 73055 | M54: 86507 | N54: 133395 | O54: 103790 | P54: 84550 | Q54: 71372 | R54: 93609 | S54: 43446 | T54: 41883 | U54: 58047 | V54: 14677 | W54: 22784 | X54: 24895 | Y54: 25950 | Z54: 29524 | AA54: 28814 | AB54: 25186 | AC54: 41239 | AD54: 82347 | AE54: 72789
A55: 0046 | B55: Brookline | C55: 0 | D55: 0 | E55: 0 | F55: 0 | G55: 0 | H55: 0 | I55: 0 | J55: 0 | K55: 2451 | L55: 4738 | M55: 0 | N55: 0 | O55: 0 | P55: 0 | Q55: 0 | R55: 2279 | S55: 5000 | T55: 10000 | U55: 13400 | V55: 0 | W55: 8829 | X55: 24550 | Y55: 24757 | Z55: 56166 | AA55: 59334 | AB55: 61710 | AC55: 93570 | AD55: 74266 | AE55: 61797
A56: 0047 | B56: Buckland | C56: 0 | D56: 0 | E56: 0 | F56: 0 | G56: 0 | H56: 0 | I56: 0 | J56: 0 | K56: 0 | L56: 0 | M56: 0 | N56: 0 | O56: 0 | P56: 0 | Q56: 0 | R56: 0 | S56: 0 | T56: 0 | U56: 0 | V56: 0 | W56: 0 | X56: 0 | Y56: 0 | Z56: 0 | AA56: 0 | AB56: 0 | AC56: 0 | AD56: 0 | AE56: 0
A57: 0048 | B57: Burlington | C57: 0 | D57: 0 | E57: 0 | F57: 6670 | G57: 5201 | H57: 4521 | I57: 0 | J57: 0 | K57: 0 | L57: 0 | M57: 7769 | N57: 5000 | O57: 10000 | P57: 5000 | Q57: 6700 | R57: 2250 | S57: 0 | T57: 5000 | U57: 0 | V57: 23488 | W57: 26005 | X57: 46587 | Y57: 42950 | Z57: 68664 | AA57: 133441 | AB57: 122235 | AC57: 239466 | AD57: 227981 | AE57: 250933
A58: 0049 | B58: Cambridge | C58: 48871 | D58: 35425 | E58: 34989 | F58: 33893 | G58: 31466 | H58: 9796 | I58: 4951 | J58: 23736 | K58: 79349 | L58: 64101 | M58: 57771 | N58: 25950 | O58: 2493 | P58: 0 | Q58: 0 | R58: 2250 | S58: 5000 | T58: 0 | U58: 7380 | V58: 32879 | W58: 36291 | X58: 19835 | Y58: 58976 | Z58: 110972 | AA58: 146963 | AB58: 110794 | AC58: 117936 | AD58: 112177 | AE58: 186691
A59: 0050 | B59: Canton | C59: 0 | D59: 1176 | E59: 0 | F59: 0 | G59: 0 | H59: 4390 | I59: 0 | J59: 0 | K59: 0 | L59: 0 | M59: 0 | N59: 0 | O59: 5000 | P59: 0 | Q59: 0 | R59: 0 | S59: 10000 | T59: 10000 | U59: 0 | V59: 274 | W59: 9836 | X59: 19058 | Y59: 24774 | Z59: 53097 | AA59: 64658 | AB59: 87830 | AC59: 91964 | AD59: 115203 | AE59: 101086
A60: 0051 | B60: Carlisle | C60: 0 | D60: 7815 | E60: 3155 | F60: 0 | G60: 5272 | H60: 0 | I60: 0 | J60: 0 | K60: 0 | L60: 0 | M60: 0 | N60: 0 | O60: 5000 | P60: 0 | Q60: 0 | R60: 0 | S60: 0 | T60: 8000 | U60: 0 | V60: 0 | W60: 0 | X60: 0 | Y60: 0 | Z60: 0 | AA60: 17144 | AB60: 0 | AC60: 0 | AD60: 0 | AE60: 0
